{"text_format":"1","workbook":"xlsx","n_sheets":9,"sheets":["Benvenuto","Lotto4_R7525_1","Lotto4_R7525_2","Lotto4_R7525_3","Altre Opzioni","Riepilogo_Ordine","Config","ConfigurationTS4L4","Tabella_prezzi"],"not_rendered":{"charts":0,"images":13,"macros":1,"external_links":1,"defined_names":38,"comments":0,"pivot_tables":0},"unopened":[],"bounds":{"document_bytes":16777216,"sheet_cells":100000,"rows_first":2000,"rows_last":500,"rows_between":2000,"halvings":0,"cell_chars":16384,"cell_head_chars":4096},"cells_cut":0,"cells_raw":0,"read":"whole","date_system":"1900"}

{"sheet":"Benvenuto","index":0,"n_rows":8,"n_cols":17,"rows_kept":8,"cut":false,"hidden":false,"merged":[[2,15,2,16],[4,15,4,16],[6,15,6,16],[2,4,42,13]]}
[]
[]
[null,null,null,null,null,null,null,null,null,null,null,null,null,null,null,"LEGENDA"]
[null,null,null,null,null,null,null,null,null,null,null,null,null,null,null,"Campi Non Editabili","Campi Editabili"]
[]
[null,null,null,null,null,null,null,null,null,null,null,null,null,null,null,"Opzioni 20%","Qtà 20%"]
[]
[null,null,null,null,null,null,null,null,null,null,null,null,null,null,null,"Errore nella Selezione","Verifica Positiva"]

{"sheet":"Lotto4_R7525_1","index":1,"n_rows":152,"n_cols":32,"rows_kept":152,"cut":false,"hidden":false,"merged":[[1,10,2,10],[3,10,5,10],[3,12,4,12],[5,12,6,12],[9,11,10,11],[74,11,75,11],[42,15,43,15],[94,8,98,8],[103,8,107,8],[85,8,89,8],[151,10,151,13],[152,10,159,13],[76,15,78,16],[77,11,78,11],[85,12,85,13],[125,11,126,11],[125,12,125,15],[128,11,129,11],[131,11,132,11],[134,11,135,11],[91,12,91,13],[141,11,142,11],[112,8,119,8],[125,8,135,8],[94,12,94,13],[103,12,103,13],[77,9,78,9],[134,9,135,9],[125,9,126,9],[128,9,129,9],[131,9,132,9],[9,9,10,9],[15,9,16,9],[18,9,19,9],[39,9,40,9],[60,15,62,15],[18,11,19,11],[39,11,40,11],[39,12,39,15],[42,10,43,10],[60,12,60,13],[15,11,16,11],[141,9,142,9],[144,9,145,9],[82,10,83,13],[122,10,123,13],[138,10,139,13],[100,12,100,13],[144,11,145,11]]}
[]
[null,null,null,null,null,null,null,null,null,null,"Convenzione \nTecnologie Server 4 - Lotto 4",null,{"$f":"IF(W108>1,\"ERRORE NELLA CONFIGURAZIONE\",\"\")","v":""},null,null,{"$f":"IF(Riepilogo_Ordine!K141>Riepilogo_Ordine!G141,\"Superata Quota 20%\",\"\")","v":""},null,null,null,null,null,null,null,null,null,null,null,null,null,"SALVAPDF"]
[null,null,null,null,null,null,null,null,null,null,null,null,null,null,null,"Articoli 20% Totali",null,null,"Check HD 2","Check HDD Nut","Check CPU","Check RAM","Check NVME","Check PCI","Check Win","Check Warr","Check nVME","Check Tot",null,{"$f":"IF(N8>0,1,0)","v":0}]
[null,null,null,null,null,null,null,null,null,null,{"$f":"IF(Z11=\"Nutanix\",\"Selezionando la soluzione Nutanix si accetta la sostituzione del server base con la versione XC comprensivo di HBA355 (Non RAID), BOSS Card e LAN 10 GB su slot OCP\",IF(W15=\"vsan\",\"Selezionando la soluzione vSAN si accetta la sostituzione del controller 745 con il HBA355 (Non RAID), comprensivo di BOSS Card\",\"Selezionare Il server Base e cliccare su 'Compila Configurazione' per inserire le opzioni necessarie e obbligatorie a soddisfare la configurazione selezionata\"))","v":"Selezionare Il server Base e cliccare su 'Compila Configurazione' per inserire le opzioni necessarie e obbligatorie a soddisfare la configurazione selezionata"},null,{"$f":"IF(AB4>1,\"Errori nella Configurazione\",IF(AA4>0,\"Troppi Dischi nVME\",IF(S4>0,\"Troppi Dischi SAS\",IF(U4>0,\"Errore nella Selezione della CPU\",IF(V4>0,\"Errore Nella Selezione della RAM\",IF(W4>0,\"Errore Nella selezione dello Chassis per Dischi nVME\",IF(X4>0,\"Errore nella Selezione Slot PCI\",IF(Y4>0,\"Errore nella Selezione Licenze Windows\",IF(Z4>0,\"Errore Selezione Garanzia o HDD Retention\",IF(T4>0,\"Errore Selezione Dischi\",IF(T6=1,\"Errore Selezione dischi NVMe\",\"\")))))))))))","v":""},"Totale Altre Opzioni",null,{"$f":"Riepilogo_Ordine!K141","v":0},null,null,{"$f":"IF(N44<0,1,0)","v":0},{"$f":"IF(AND(Z11=\"Nutanix\",AF46>1),1,0)","v":0},{"$f":"IF(N22<>\"\",1,0)","v":0},{"$f":"IF(N25<>\"\",1,0)","v":0},{"$f":"IF(M61<>\"\",1,0)","v":0},{"$f":"IF(M86<>\"\",1,0)","v":0},{"$f":"IF(N28<>\"\",1,0)","v":0},{"$f":"IF(N145<>\"\",1,0)","v":0},{"$f":"IF(N63<0,1,0)","v":0},{"$f":"SUM(S4:AA4)+T6","v":0}]
[null,null,null,null,null,null,null,null,null,null,null,null,null,{"$f":"'Altre Opzioni'!L3","v":0},null,"Quota Residua 20 %",null,null,null,"Check NVMe GPU"]
[null,null,null,null,null,null,null,null,null,null,null,null,"Guida alla Convenzione","Totale Configurazione",null,{"$f":"Riepilogo_Ordine!G142","v":0},null,null,null,{"$f":"IF(AND(N64=0,AA11=\"GPUReady\"),1,0)","v":0}]
[null,null,null,null,null,null,null,null,{"$f":"IF(AND(Y11=\"Vsan\",N73=\"\"),\"Utilizzando il controller HBA355 in una soluzione vSAN, per il boot si deve utilizzare la 'BOSS Card'\",IF(AND(Z11=\"Nutanix\",N73=\"\"),\"Utilizzando il controller HBA355 in una soluzione Nutanix, per il boot si deve utilizzare la 'BOSS Card'\",\"\"))","v":""},null,{"$f":"IF(Riepilogo_Ordine!P8>0,\"Compilare i Dati nel Foglio Riepilogo per Stampare in PDF\",\"\")","v":"Compilare i Dati nel Foglio Riepilogo per Stampare in PDF"},null,null,{"$f":"N148+N149","v":0},null,"Totale Ordine\nIva Esclusa",null,null,null,{"$f":"N7+Lotto4_R7525_2!L7","v":0}]
[null,null,null,null,null,null,null,null,null,null,"DELL POWEREDGE R7525",null,"Quantità Server",0,null,{"$f":"Riepilogo_Ordine!K142","v":0}]
[]
[null,null,null,null,null,null,null,null,null,null,"Base",null,null,null,null,null,null,null,null,null,null,null,{"$f":"IF(N127<>0,\"JBOD\",\"\")","v":""},"PowerEdge R7525 Server (General Purpose)",{"$f":"IF(AND(X11=\"\",Y11=\"vSAN\"),1,IF(AND(X11=\"nvme\",Y11=\"\"),3,2))","v":2}]
[null,null,null,null,null,null,null,null,null,null,"PowerEdge R7525 Server (General Purpose)",null,{"$f":"IF($N$8=0,\"\",VLOOKUP(K11,TS4L4_Base,13,FALSE))","v":""},{"$f":"IF($N$8>0,1,\"\")","v":""},null,{"$f":"T11","v":3637.17},null,null,null,{"$f":"VLOOKUP($K$11,TS4L4_Base,10,FALSE)","v":3637.17},null,{"$f":"VLOOKUP($K11,TS4L4_Base,12,FALSE)","v":"L4N01"},null,{"$f":"IF(AND(K11=ConfigurationTS4L4!A13,N23=\"\"),\"nVME1\",IF(AND(K11=ConfigurationTS4L4!A13,N23=1),\"nVME2\",\"\"))","v":""},{"$f":"IF(K11=ConfigurationTS4L4!A14,512,IF(K11=ConfigurationTS4L4!A15,1024,IF(K11=ConfigurationTS4L4!A16,2048,\"\")))","v":""},{"$f":"IF(K11=ConfigurationTS4L4!A17,\"Nutanix\",\"\")","v":""},{"$f":"IF(K11=ConfigurationTS4L4!A9,\"GPUReady\",\"\")","v":""}]
[]
[]
[]
[null,null,null,null,null,null,null,null,null,null,{"$f":"IF(SUM(N64:N70)>0,IF(K11=ConfigurationTS4L4!A3,\"▲ Selezionare chassis NVME, vSAN, Nutanix o ▲ GPUReady \n per Abilitare nVME \",\"\"),\"\")","v":""},null,null,null,null,null,null,null,null,null,null,null,{"$f":"IF(Y11<>\"\",\"vsan\",\"\")","v":""},{"$f":"IF(AND(Y15=\"GP1\",K26>512),\"Selezionare RAM Corretta\",\"\")","v":""},{"$f":"IF(AND(K11=ConfigurationTS4L4!A12,N23=\"\"),\"GP1\",IF(AND(K11=ConfigurationTS4L4!A12,N23=1),\"GP2\",\"\"))","v":"GP1"}]
[null,null,null,null,null,null,null,null,null,null,"Chassis Configuration",null,{"$f":"IF($X$82=\"SW\",\"MAX 4 GPU\",IF($X$82=\"DW\",\"MAX 2 GPU\",\"\"))","v":""}]
[null,null,null,null,null,null,null,null,null,null,{"$f":"IF(N23=1,VLOOKUP($K$11,TS4L4_Chassis,3,FALSE),VLOOKUP($K$11,TS4L4_Chassis,2,FALSE))","v":"Chassis with Up to 16 x 2.5 Hard Drives for 1CPU Configuration"},null,{"$f":"IF($N$23=1,VLOOKUP($K$11,TS4L4_Chassis,11,FALSE),VLOOKUP($K$11,TS4L4_Chassis,9,FALSE))","v":"TS4L4-Opz1CPU"},{"$f":"VLOOKUP(K11,TS4L4_Chassis,7,0)","v":0},null,{"$f":"T17+U17","v":0},null,null,null,null,{"$f":"VLOOKUP($K$11,TS4L4_Chassis,10,FALSE)*N17","v":0},{"$f":"IF(N17=0,\"\",(VLOOKUP($K11,TS4L4_Chassis,12,FALSE)))","v":""},null,"Chassis with Up to 24 x 2.5'' Hard Drives for 2CPU Configuration",1]
[]
[null,null,null,null,null,null,null,null,null,null,"Processor"]
[null,null,null,null,null,null,null,null,null,null,"AMD7413 2.65GHz,24C/48T,128M,180W,3200CK",null,null,null,null,null,null,null,null,{"$f":"IF(N17=1,VLOOKUP($K$20,TS4L4_CPU,11,FALSE),VLOOKUP($K$20,TS4L4_CPU,11,FALSE))","v":0},{"$f":"IF(N17=1,VLOOKUP($K$20,TS4L4_CPU,11,FALSE),VLOOKUP($K$20,TS4L4_CPU,11,FALSE))","v":0},{"$f":"IF(U20=0,0,VLOOKUP($K20,TS4L4_CPU,12,FALSE))","v":0}]
[]
[null,null,null,null,null,null,null,null,null,null,"Additional Processor",null,null,{"$f":"IF(AND(Y11=512,N23=\"\"),\"Selezionare Processore Aggiuntivo per Configurazione vSAN\",IF(AND(X11=\"nVME1\",N23=\"\"),\"Selezionare Processore Aggiuntivo per Configurazione nVME\",IF(AND(Y11=1024,N23=\"\"),\"Selezionare Processore Aggiuntivo per Configurazione vSAN\",IF(AND(Y11=2048,N23=\"\"),\"Selezionare Processore Aggiuntivo per Configurazione vSAN\",IF(AND(Z11=\"Nutanix\",N23=\"\"),\"Selezionare Processore Aggiuntivo per Configurazione Nutanix\",IF(AND(AA11=\"GPUReady\",N23=\"\"),\"Selezionare Processore Aggiuntivo per Configurazione GPUReady\",\"\"))))))","v":""}]
[null,null,null,null,null,null,null,null,{"$f":"IF(AND(K23=\"No Additional Processor\",SUM(L90:L105)>0),\"Selezionare Processore Aggiuntivo o Deselezionare Schede PCI\",\"\")","v":""},null,"No Additional Processor",null,{"$f":"IF(N17=1,VLOOKUP($K$20,TS4L4_CPU,13,FALSE),VLOOKUP($K$23,TS4L4_CPU,13,FALSE))","v":""},{"$f":"IF(N17=1,VLOOKUP($K$23,TS4L4_CPU,7,FALSE),VLOOKUP($K$23,TS4L4_CPU,7,FALSE))","v":""},null,{"$f":"T23","v":0},null,null,null,{"$f":"IF(N17=1,VLOOKUP($K$20,TS4L4_CPU,10,FALSE),VLOOKUP($K$23,TS4L4_CPU,10,FALSE))","v":0},{"$f":"IF(N17=1,VLOOKUP($K$20,TS4L4_CPU,11,FALSE),VLOOKUP($K$23,TS4L4_CPU,11,FALSE))","v":0},{"$f":"IF(N17=1,VLOOKUP(K20,TS4L4_CPU,12,FALSE),VLOOKUP($K23,TS4L4_CPU,12,FALSE))","v":""},null,{"$f":"IF(N23=1,\"AMD7413 2.65GHz,24C/48T,128M,180W,3200CK\",K23)","v":"No Additional Processor"}]
[]
[null,null,null,null,null,null,null,null,null,null,"Memory Capacity (GB)",null,null,{"$f":"IF(AND(Y11=512,K26<>512),\"Selezionare 512 GB Ram'\",IF(AND(Y11=1024,K26<>1024),\"Selezionare 1 TB RAM\",IF(AND(Y11=2048,K26<>2048),\"Selezionare 2 TB RAM\",IF(AND(Z11=\"Nutanix\",K26<>2048),\"Selezionare 2TB RAM\",IF(AND(Y15=\"GP1\",K26>512),\"Selezionare RAM Corretta\",IF(AND(Y15=\"GP2\",K26>1536),\"Selezionare RAM Corretta\",IF(AND(X11=\"nVME1\",K26>512),\"Selezionare RAM Corretta\",IF(AND(X11=\"nVME2\",K26>1536),\"Selezionare RAM Corretta\",IF(AND(AA11=\"GPUReady\",K26<>2048),\"Selezionare Base GPUReady e cliccare su 'Compila Configurazione'\",\"\")))))))))","v":""}]
[null,null,null,null,null,null,null,null,null,null,256,null,{"$f":"IF(K23=\"No Additional Processor\",VLOOKUP(K26,TS4L4_RAM2CPU,13,FALSE),VLOOKUP(K26,TS4L4_RAM2CPU,13,FALSE))","v":"TS4L4-RAM32"},{"$f":"IF(N25<>\"\",0,Y26)","v":0},null,{"$f":"T26","v":0},null,null,null,{"$f":"IF(N25<>\"\",0,IF(K23=\"No Additional Processor\",VLOOKUP(K26,TS4L4_RAM2CPU,10,FALSE),VLOOKUP(K26,TS4L4_RAM2CPU,10,FALSE)))","v":0},null,{"$f":"IF(N25<>\"\",0,AA26)","v":""},null,{"$f":"IF($N$23=1,VLOOKUP($K$26,TS4L4_RAM2CPU,13,FALSE),VLOOKUP($K$26,TS4L4_RAM1Cpu,13,FALSE))","v":"TS4L4-RAM32"},{"$f":"IF($N$23=1,VLOOKUP($K$26,TS4L4_RAM2CPU,7,FALSE),VLOOKUP($K$26,TS4L4_RAM1Cpu,7,FALSE))","v":0},{"$f":"IF($N$23=1,VLOOKUP($K$26,TS4L4_RAM2CPU,10,FALSE),VLOOKUP($K$26,TS4L4_RAM1Cpu,10,FALSE))","v":0},{"$f":"IF($N$23=1,VLOOKUP($K$26,TS4L4_RAM2CPU,12,FALSE),VLOOKUP($K$26,TS4L4_RAM1Cpu,12,FALSE))","v":""}]
[]
[null,null,null,null,null,null,null,null,null,null,"Operating System STANDARD",null,null,{"$f":"IF(AND(K29=\"No Operating System\",N29>0),\"Selezionare Sistema Operativo\",IF(AND(K29=\"Ubuntu 22.04 LTS 64 Bit\",N29>1),\"Selezionare Licenze Corrette\",IF(AND(K29=\"Ubuntu 22.04 LTS 64 Bit\",N23=1),\"\",IF(AND(N23=1,K29=\"No Operating System\"),\"\",IF(AND(N23=1,N29<3),\"Selezionare Licenze Corrette\",IF(AND(N23<>1,N29>4),\"Selezionare Licenze Corrette\",IF(AND(K29=\"Windows Server 2022,Standard,ROK,16CORE\",N29=\"\"),\"Selezionare numero Licenze\",\"\")))))))","v":""}]
[null,null,null,null,null,null,null,null,null,null,"No Operating System",null,{"$f":"VLOOKUP($K$29,TS4L4_OS,13,FALSE)","v":""},0,null,{"$f":"T29","v":0},null,null,null,{"$f":"IF(N33>0,0,VLOOKUP($K$29,TS4L4_OS,10,FALSE))*N29","v":0},{"$f":"VLOOKUP($K$29,TS4L4_OS,11,FALSE)","v":0},{"$f":"IF(N33>0,0,VLOOKUP($K29,TS4L4_OS,12,FALSE))","v":""},null,{"$f":"IF(AND(K23=\"No Additional Processor\",N29>=3),TRUE,FALSE)","v":false}]
[null,null,null,null,null,null,null,null,null,null,"Windows Server 2022 Standard Edition, Add License,2CORE",null,{"$f":"VLOOKUP($K$30,TS4L4_OS,13,FALSE)","v":"TS4L4-WINSRV2C"},{"$f":"IF(K29=\"No Operating System\",0,IF(AND(K29=\"Windows Server 2022,Standard,ROK,16CORE\",N29=0),0,IF($K$29=\"Ubuntu 22.04 LTS 64 Bit\",0,IF(N29=1,VLOOKUP($K$29,TS4L4_OS,7,FALSE)*4,IF(N29=3,0,IF(N29=6,0,IF(N29=9,0,IF(N29=\"\",0,IF(N29=4,4)))))))))","v":0},null,{"$f":"T30","v":0},null,null,null,{"$f":"VLOOKUP($K$30,TS4L4_OS,10,FALSE)*N30","v":0},{"$f":"VLOOKUP($K$29,TS4L4_OS,11,FALSE)","v":0},{"$f":"IF(N33>0,0,VLOOKUP($K30,TS4L4_OS,12,FALSE))","v":"L4N25"},null,{"$f":"IF(AND(K23<>\"No Additional Processor\",N29>=3),TRUE,FALSE)","v":false}]
[]
[null,null,null,null,null,null,null,null,null,null,"Operating System DATACENTER"]
[null,null,null,null,null,null,null,null,null,null,"No Operating System",null,{"$f":"VLOOKUP($K$33,ConfigurationTS4L4!A67:W76,13,FALSE)","v":""},{"$f":"IF(K33=\"Windows Server 2022,Datacenter,ROK,16CORE\",1,0)","v":0},null,{"$f":"T33","v":0},null,null,null,{"$f":"IF(N29>0,0,VLOOKUP($K$33,TS4L4_OS,10,FALSE))*N33","v":0},{"$f":"VLOOKUP($K$29,TS4L4_OS,11,FALSE)","v":0},{"$f":"IF(N29>0,0,VLOOKUP($K33,TS4L4_OS,12,FALSE))","v":""},null,{"$f":"IF(AND(N23=1,N33=1),16,IF(AND(N23=1,N33=\"\"),0,IF(AND(N23=\"\",N33=1),4,FALSE)))","v":false}]
[null,null,null,null,null,null,null,null,null,null,"Windows Server 2022 / 2019 Datacenter Edition,Add License,2CORE",null,{"$f":"VLOOKUP($K$34,TS4L4_OS,13,FALSE)","v":"TS4L4-WinServDC2core"},{"$f":"IF(AND(N23=1,N33=1),16,IF(AND(N23=1,N33=\"\"),0,IF(AND(N23=\"\",N33=1),4,IF(AND(N23=\"\",N33=\"\"),0,\"0\"))))","v":"0"},null,{"$f":"T34","v":0},null,null,null,{"$f":"IF(N29>0,0,VLOOKUP($K$34,TS4L4_OS,10,FALSE))*N34","v":0},{"$f":"VLOOKUP($K$29,TS4L4_OS,11,FALSE)","v":0},{"$f":"IF(N29>0,0,VLOOKUP($K34,TS4L4_OS,12,FALSE))","v":"L4N28"}]
[]
[null,null,null,null,null,null,null,null,null,null,"Operating System Device CAL / User CAL"]
[null,null,null,null,null,null,null,null,null,null,"1-pack of Windows Server 2022/2019 Device CALs (STD or DC)",null,{"$f":"VLOOKUP($K$37,ConfigurationTS4L4!A72:W73,13,FALSE)","v":"TS4L4-WINDEVCAL"},0,null,{"$f":"T37","v":0},null,null,null,{"$f":"VLOOKUP($K$37,ConfigurationTS4L4!A72:N73,10,FALSE)*N37","v":0},{"$f":"VLOOKUP($K$29,TS4L4_OS,11,FALSE)","v":0},{"$f":"VLOOKUP($K37,TS4L4_OS,12,FALSE)","v":"L4N23"}]
[null,null,null,null,null,null,null,null,null,null,"1-pack of Windows Server 2022/2019 User CALs (STD or DC)",null,{"$f":"VLOOKUP($K$38,ConfigurationTS4L4!A73:W74,13,FALSE)","v":"TS4L4-WINUSRCAL"},0,null,{"$f":"T38","v":0},null,null,null,{"$f":"VLOOKUP($K$38,ConfigurationTS4L4!A73:N74,10,FALSE)*N38","v":0},{"$f":"VLOOKUP($K$29,TS4L4_OS,11,FALSE)","v":0},{"$f":"VLOOKUP($K38,TS4L4_OS,12,FALSE)","v":"L4N24"}]
[]
[null,null,null,null,null,null,null,null,null,null,"Disk Controller",null,{"$f":"IF(AND(Y11=\"Vsan\",N73=\"\"),\"Utilizzando il controller HBA355 in una soluzione vSAN, per il boot si deve utilizzare la 'BOSS Card'\",IF(AND(Z11=\"Nutanix\",N73=\"\"),\"Utilizzando il controller HBA355 in una soluzione Nutanix per il boot si deve utilizzare la 'BOSS Card'\",\"\"))","v":""}]
[null,null,null,null,null,null,null,null,null,null,{"$f":"IF(Y11=512,ConfigurationTS4L4!A98,IF(Y11=1024,ConfigurationTS4L4!A98,IF(Y11=2048,ConfigurationTS4L4!A98,IF(Z11=\"Nutanix\",ConfigurationTS4L4!A98,IF(AA11=\"GPUReady\",ConfigurationTS4L4!A98,ConfigurationTS4L4!A97)))))","v":"PERC H745 Controller"},null,{"$f":"VLOOKUP(K41,TS4L4_CRTL,13,FALSE)","v":""},{"$f":"VLOOKUP($K41,TS4L4_CRTL,7,FALSE)","v":""},null,{"$f":"U41","v":0},null,null,null,{"$f":"IF(K41=ConfigurationTS4L4!A46,0,VLOOKUP($K41,TS4L4_CRTL,10,FALSE))","v":0},{"$f":"IF($AA$11=\"GPUReady\",0,IF(W15=\"vsan\",0,IF(Z11=\"Nutanix\",0,VLOOKUP($K41,TS4L4_CRTL,11,FALSE))))","v":0},{"$f":"IF(W15=\"vsan\",0,IF(Z11=\"Nutanix\",0,VLOOKUP($K41,TS4L4_CRTL,12,FALSE)))","v":"L4N44"},null,{"$f":"IF(K11=\"PowerEdge R7525 Server (vSAN Ready)\",\"Vsan\",\"\")","v":""}]
[]
[null,null,null,null,null,null,null,null,null,null,"Hard Drivers Bays n° 16 - 2 bay occupate dai dischi 960GB SSD di base",null,"Usati","Disponibili",null,{"$f":"IF(AND(Z11=\"Nutanix\",AF46>1),\"E' Possibile selezionare solo un modello di Disco\",IF(Z11=\"Nutanix\",\"In una soluzione Nutanix i dischi devono necessariamente essere dello stesso modello\",\"\"))","v":""}]
[null,null,null,null,null,null,null,null,null,null,null,null,{"$f":"N46+N48+N50+N56+N58+N52+N54+N60","v":2},{"$f":"16-M44","v":14}]
[null,null,null,null,null,null,null,null,null,null,null,null,null,null,null,null,null,null,null,null,null,null,null,null,null,null,null,null,null,null,null,"Totale"]
[null,null,null,null,null,null,null,null,null,null,{"$f":"ConfigurationTS4L4!A79","v":"2.4TB 10k SAS ISE 12Gbps"},null,{"$f":"VLOOKUP($K46,TS4L4_HDD,13,FALSE)","v":"TS4L4-HDD2TB"},0,null,{"$f":"T46","v":0},null,null,null,{"$f":"IF(N44<0,0,IF(AND(AF46>1,Z11=\"nutanix\"),0,VLOOKUP($K46,TS4L4_HDD,10,FALSE))*N46)","v":0},{"$f":"IF(N44<0,0,VLOOKUP($K46,TS4L4_HDD,11,FALSE))","v":0},{"$f":"IF(N44<0,\"\",IF(AND(AF46>1,Z11=\"nutanix\"),\"\",VLOOKUP($K46,TS4L4_HDD,12,FALSE)))","v":"L4N11"},null,{"$f":"IF(N46>0,1,0)","v":0},{"$f":"IF(N48>0,1,0)","v":0},{"$f":"IF(N50>0,1,0)","v":0},{"$f":"IF(N52>0,1,0)","v":0},{"$f":"IF(N54>0,1,0)","v":0},{"$f":"IF(N56>0,1,0)","v":1},{"$f":"IF(N58>0,1,0)","v":0},{"$f":"IF(N60>0,1,0)","v":0},{"$f":"SUM(X46:AE46)","v":1}]
[]
[null,null,null,null,null,null,null,null,null,null,{"$f":"ConfigurationTS4L4!A80","v":"1.2TB 10K RPM SAS ISE 12Gbps"},null,{"$f":"VLOOKUP($K48,TS4L4_HDD,13,FALSE)","v":"TS4L4-HDD1TB"},0,null,{"$f":"T48","v":0},null,null,null,{"$f":"IF(N44<0,0,IF(AND(AF46>1,Z11=\"nutanix\"),0,VLOOKUP($K48,TS4L4_HDD,10,FALSE))*N48)","v":0},{"$f":"IF(N44<0,0,VLOOKUP($K48,TS4L4_HDD,11,FALSE))","v":0},{"$f":"IF(N44<0,\"\",IF(AND(AF46>1,Z11=\"nutanix\"),\"\",VLOOKUP($K48,TS4L4_HDD,12,FALSE)))","v":"L4N12"}]
[]
[null,null,null,null,null,null,null,null,null,null,{"$f":"ConfigurationTS4L4!A81","v":"3.84TB SSD SAS ISE RI 12Gbps"},null,{"$f":"VLOOKUP($K50,TS4L4_HDD,13,FALSE)","v":"TS4L4-SSD-RI3,8TB"},0,null,{"$f":"T50","v":0},null,null,null,{"$f":"IF(N44<0,0,IF(AND(AF46>1,Z11=\"nutanix\"),0,VLOOKUP($K50,TS4L4_HDD,10,FALSE))*N50)","v":0},{"$f":"IF(N44<0,0,VLOOKUP($K50,TS4L4_HDD,11,FALSE))","v":0},{"$f":"IF(N44<0,\"\",IF(AND(AF46>1,Z11=\"nutanix\"),\"\",VLOOKUP($K50,TS4L4_HDD,12,FALSE)))","v":"L4N13"}]
[]
[null,null,null,null,null,null,null,null,null,null,{"$f":"ConfigurationTS4L4!A82","v":"1.92TB SSD SAS ISE RI 12Gbps"},null,{"$f":"VLOOKUP($K52,TS4L4_HDD,13,FALSE)","v":"TS4L4-SSD-RI1,6TB"},0,null,{"$f":"T52","v":0},null,null,null,{"$f":"IF(N44<0,0,IF(AND(AF46>1,Z11=\"nutanix\"),0,VLOOKUP($K52,TS4L4_HDD,10,FALSE))*N52)","v":0},{"$f":"VLOOKUP($K52,TS4L4_HDD,11,FALSE)","v":0},{"$f":"IF(N44<0,\"\",IF(AND(AF46>1,Z11=\"nutanix\"),\"\",VLOOKUP($K52,TS4L4_HDD,12,FALSE)))","v":"L4N14"}]
[]
[null,null,null,null,null,null,null,null,null,null,{"$f":"ConfigurationTS4L4!A83","v":"1.6TB SSD SAS ISE MU 12Gbps"},null,{"$f":"VLOOKUP($K54,TS4L4_HDD,13,FALSE)","v":"TS4L4-SSD-MU1,6TB"},0,null,{"$f":"T54","v":0},null,null,null,{"$f":"IF(N44<0,0,IF(AND(AF46>1,Z11=\"nutanix\"),0,VLOOKUP($K54,TS4L4_HDD,10,FALSE))*N54)","v":0},{"$f":"VLOOKUP($K54,TS4L4_HDD,11,FALSE)","v":0},{"$f":"IF(N44<0,\"\",IF(AND(AF46>1,Z11=\"nutanix\"),\"\",VLOOKUP($K54,TS4L4_HDD,12,FALSE)))","v":"L4N15"}]
[]
[null,null,null,null,null,null,null,null,null,null,{"$f":"ConfigurationTS4L4!A84","v":"960GB SSD SAS ISE RI 12Gbps"},null,{"$f":"VLOOKUP($K56,TS4L4_HDD,13,FALSE)","v":"TS4L4-SSD-RI800GB"},2,null,{"$f":"T56","v":0},null,null,null,{"$f":"IF(N44<0,0,IF(AND(AF46>1,Z11=\"nutanix\"),0,IF(N56>2,(VLOOKUP($K56,TS4L4_HDD,10,FALSE)*(N56-2)),0)))","v":0},{"$f":"VLOOKUP($K56,TS4L4_HDD,11,FALSE)*N56","v":0},{"$f":"IF(N44<0,\"\",IF(AND(AF46>1,Z11=\"nutanix\"),\"\",VLOOKUP($K56,TS4L4_HDD,12,FALSE)))","v":"L4N16"}]
[]
[null,null,null,null,null,null,null,null,null,null,{"$f":"ConfigurationTS4L4!A85","v":"800GB SSD SAS ISE Mix Use 12Gbps"},null,{"$f":"VLOOKUP($K58,TS4L4_HDD,13,FALSE)","v":"TS4L4-SSD-MU800GB"},0,null,{"$f":"T58","v":0},null,null,null,{"$f":"IF(N44<0,0,IF(AND(AF46>1,Z11=\"nutanix\"),0,VLOOKUP($K58,TS4L4_HDD,10,FALSE))*N58)","v":0},{"$f":"VLOOKUP($K58,TS4L4_HDD,11,FALSE)*N58","v":0},{"$f":"IF(N44<0,\"\",IF(AND(AF46>1,Z11=\"nutanix\"),\"\",VLOOKUP($K58,TS4L4_HDD,12,FALSE)))","v":"L4N17"}]
[]
[null,null,null,null,null,null,null,null,null,null,{"$f":"ConfigurationTS4L4!A87","v":"7.68TB SSD RI SAS ISE 12Gbps"},null,{"$f":"VLOOKUP($K60,TS4L4_HDD,13,FALSE)","v":"TS4L4-SSD7.68RI"},0,null,{"$f":"U60","v":0},null,null,null,null,{"$f":"IF(N44<0,0,IF(AND(AF46>1,Z11=\"nutanix\"),0,VLOOKUP($K60,TS4L4_HDD,11,FALSE))*N60)","v":0},{"$f":"IF(N44<0,\"\",IF(AND(AF46>1,Z11=\"nutanix\"),\"\",VLOOKUP($K60,TS4L4_HDD,12,FALSE)))","v":"L4N32"}]
[null,null,null,null,null,null,null,null,null,null,null,null,{"$f":"IF(SUM(N64:N70)>0,IF(K11=ConfigurationTS4L4!A3,\"▲ Selezionare chassis NVME, vSAN, Nutanix o GPU Ready ▲ \nper abilitare dischi nVME\",\"\"),\"\")","v":""},null,null,{"$f":"IF(AND(N64<2,AA11=\"GPUReady\"),\"Selezionare almeno 2 dischi NVMe 1.6\",IF(N63<0,\"Troppi Dischi NVMe\",IF(SUM(N64:N70)>0,\"Sui dischi NVMe non è supportato il RAID Hardware\",\"\")))","v":""}]
[null,null,null,null,null,null,null,null,null,null,"NVMe Bays N° 8",null,"Usati","Disponibili"]
[null,null,null,null,null,null,null,null,null,null,null,null,{"$f":"SUM(N64:N70)","v":0},{"$f":"8-(N64+N66+N68+N70)","v":8}]
[null,null,null,null,null,null,null,null,null,null,{"$f":"ConfigurationTS4L4!A86","v":"1.6TB Enterprise NVMe Mixed Use Drive U.2"},null,{"$f":"VLOOKUP($K64,TS4L4_HDD,13,FALSE)","v":"TS4L4-NVME1,6TB"},0,{"$f":"IF(AND(N64>0,M61<>\"\"),\"!\",\"\")","v":""},{"$f":"T64","v":0},null,null,null,{"$f":"IF(N63<0,0,IF(AND(K11=\"PowerEdge R7525 Server (General Purpose)\",SUM(N64:N70)>0),0,VLOOKUP($K64,TS4L4_HDD,10,FALSE))*N64)","v":0},{"$f":"VLOOKUP($K64,TS4L4_HDD,11,FALSE)","v":0},{"$f":"IF(N63<0,\"\",IF(AND(K11=\"PowerEdge R7525 Server (General Purpose)\",SUM(N64:N70)>0),\"\",VLOOKUP($K64,TS4L4_HDD,12,FALSE)))","v":"L4N18"}]
[]
[null,null,null,null,null,null,null,null,null,null,{"$f":"ConfigurationTS4L4!A88","v":"3.2TB, Enterprise, NVMe, Mixed Use"},null,{"$f":"VLOOKUP($K66,TS4L4_HDD,13,FALSE)","v":"TS4L4-NVMe3.2MU"},0,{"$f":"IF(AND(N66>0,M61<>\"\"),\"!\",\"\")","v":""},{"$f":"U66","v":0},null,null,null,null,{"$f":"IF(N63<0,0,IF(AND(K11=\"PowerEdge R7525 Server (General Purpose)\",SUM(N64:N70)>0),0,VLOOKUP($K66,TS4L4_HDD,11,FALSE))*N66)","v":0},{"$f":"IF(N63<0,\"\",IF(AND(K11=\"PowerEdge R7525 Server (General Purpose)\",SUM(N64:N70)>0),\"\",VLOOKUP($K66,TS4L4_HDD,12,FALSE)))","v":"L4N33"}]
[]
[null,null,null,null,null,null,null,null,null,null,{"$f":"ConfigurationTS4L4!A89","v":"1.92TB, Enterprise, NVMe, Read Intensive"},null,{"$f":"VLOOKUP($K68,TS4L4_HDD,13,FALSE)","v":"TS4L4-NVMe1.92RI"},0,{"$f":"IF(AND(N68>0,M61<>\"\"),\"!\",\"\")","v":""},{"$f":"U68","v":0},null,null,null,null,{"$f":"IF(N63<0,0,IF(AND(K11=\"PowerEdge R7525 Server (General Purpose)\",SUM(N64:N70)>0),0,VLOOKUP($K68,TS4L4_HDD,11,FALSE))*N68)","v":0},{"$f":"IF(N63<0,\"\",IF(AND(K11=\"PowerEdge R7525 Server (General Purpose)\",SUM(N64:N70)>0),\"\",VLOOKUP($K68,TS4L4_HDD,12,FALSE)))","v":"L4N34"}]
[]
[null,null,null,null,null,null,null,null,null,null,{"$f":"ConfigurationTS4L4!A90","v":"3.84TB, Enterprise, NVMe, Read Intensive"},null,{"$f":"VLOOKUP($K70,TS4L4_HDD,13,FALSE)","v":"TS4L4-NVMe3.84RI"},0,{"$f":"IF(AND(N70>0,M61<>\"\"),\"!\",\"\")","v":""},{"$f":"U70","v":0},null,null,null,null,{"$f":"IF(N63<0,0,IF(AND(K11=\"PowerEdge R7525 Server (General Purpose)\",SUM(N64:N70)>0),0,VLOOKUP($K70,TS4L4_HDD,11,FALSE))*N70)","v":0},{"$f":"IF(N63<0,\"\",IF(AND(K11=\"PowerEdge R7525 Server (General Purpose)\",SUM(N64:N70)>0),\"\",VLOOKUP($K70,TS4L4_HDD,12,FALSE)))","v":"L4N35"}]
[]
[null,null,null,null,null,null,null,null,null,null,"BOSS controller card"]
[null,null,null,null,null,null,null,null,null,null,{"$f":"IF(N41=1,ConfigurationTS4L4!A108,ConfigurationTS4L4!A107)","v":"No Boss card"},null,{"$f":"IF(U73>0,VLOOKUP($K73,TS4L4_BOSS,13,FALSE),\"\")","v":""},{"$f":"VLOOKUP($K73,TS4L4_BOSS,7,FALSE)","v":""},null,{"$f":"U73","v":0},null,null,null,{"$f":"VLOOKUP($K73,TS4L4_BOSS,10,FALSE)","v":0},{"$f":"IF(W10=\"JBOD\",0,IF(W15=\"vsan\",0,IF(Z11=\"Nutanix\",0,VLOOKUP($K73,TS4L4_BOSS,11,FALSE))))","v":0},{"$f":"IF(W15=\"vsan\",0,IF(Z11=\"Nutanix\",0,VLOOKUP($K73,TS4L4_BOSS,12,FALSE)))","v":""}]
[]
[null,null,null,null,null,null,null,null,null,{"$f":"IF(N75=\"\",\"\",U76)","v":""},"Power Supply",{"$f":"IF(P75=\"\",\"\",W76)","v":""}]
[null,null,null,null,null,null,null,null,null,null,{"$f":"IF(Y17=1,\"Dual, Hot-plug Power Supply (1+1), 1400W\",IF($M$17=\"TS3L4-GPUDW\",\"Dual, Hot-plug Power Supply (1+1), 2000W\",IF($M$17=\"TS3L4-GPUSW\",\"Dual, Hot-plug Power Supply (1+1), 2000W\",\"Dual, Hot-plug, Redundant Power Supply (1+1), 750W\")))","v":"Dual, Hot-plug Power Supply (1+1), 1400W"},null,{"$f":"VLOOKUP($K76,TS4L4_PSU,13,FALSE)","v":"TS4L4-PSU1400W"},{"$f":"VLOOKUP($K76,TS4L4_PSU,7,FALSE)","v":1},null,null,null,null,null,{"$f":"VLOOKUP($K76,TS4L4_PSU,10,FALSE)","v":0},{"$f":"VLOOKUP($K76,TS4L4_PSU,11,FALSE)","v":0},{"$f":"VLOOKUP($K76,TS4L4_PSU,12,FALSE)","v":"L4N49"}]
[]
[null,null,null,null,null,null,null,null,null,null,"Embedded Systems Management"]
[null,null,null,null,null,null,null,null,null,null,"iDRAC9,Enterprise"]
[]
[]
[]
[null,null,null,null,null,null,null,null,null,null,"Slot PCI\nIn questa sezione è possibile selezionare la configurazione degli Slot PCI"]
[]
[]
[null,null,null,null,null,null,null,null,{"$f":"IF(AA11=\"GPUReady\",\"Slot per GPU 1 Double Wide (Occupa 2 Slot PCI, 1 e 2)\",\"\")","v":""},null,"PCI Slot 1 Processor 1 x8 PCIe Gen4 for HL/FH",null,{"$f":"IF(AND(K23=\"No Additional Processor\",SUM(N93:N108)>0),\"Selezionare Processore Aggiuntivo o Deselezionare Schede PCI\",IF(AND(K87=\"Nvidia A30\",$AA$11<>\"GPUReady\"),\"Selezionare server GPU Ready o deselezionare Scheda GPU\",IF(AND(K87=\"Nvidia A40\",$AA$11<>\"GPUReady\"),\"Selezionare server GPU Ready o deselezionare Scheda GPU\",IF(AND(AA11=\"GPUReady\",(SUM(W87:X87))=0,K87<>\"Slot non utilizzato\"),\"Deselezionare scheda PCI o Selezionare GPU\",\"\"))))","v":""}]
[null,null,null,null,null,null,null,null,null,null,"Slot Non Utilizzato",null,{"$f":"IF(AND($AA$11<>\"GPUReady\",K87=\"Nvidia A30\"),\"\",IF(AND($AA$11<>\"GPUReady\",K87=\"Nvidia A40\"),\"\",IF(AND($AA$11=\"GPUReady\",(SUM(W87:X87)=0)),\"\",IF(AND($AA$11=\"GPUReady\",(SUM(W87:X87)>0)),VLOOKUP($K87,TS4L4_GPU,13,FALSE),VLOOKUP($K87,TS4L4_PCI,13,)))))","v":""},{"$f":"IF(AND($AA$11<>\"GPUReady\",K87=\"Nvidia A30\"),\"\",IF(AND($AA$11<>\"GPUReady\",K87=\"Nvidia A40\"),\"\",IF(AND($AA$11=\"GPUReady\",(SUM(W87:X87)=0)),\"\",IF(AND($AA$11=\"GPUReady\",(SUM(W87:X87)>0)),VLOOKUP($K87,TS4L4_GPU,7,FALSE),VLOOKUP($K87,TS4L4_PCI,7,FALSE)))))","v":""},null,{"$f":"T87+U87","v":0},null,null,null,{"$f":"IF(AND($AA$11<>\"GPUReady\",K87=\"Nvidia A30\"),0,IF(AND($AA$11<>\"GPUReady\",K87=\"Nvidia A40\"),0,IF(AND($AA$11=\"GPUReady\",(SUM(W87:X87)=0)),0,IF(AND($AA$11=\"GPUReady\",(SUM(W87:X87)>0)),VLOOKUP($K87,TS4L4_GPU,10,FALSE),VLOOKUP($K87,TS4L4_PCI,10,FALSE)))))","v":0},{"$f":"IF(AND($AA$11<>\"GPUReady\",K87=\"Nvidia A30\"),0,IF(AND($AA$11<>\"GPUReady\",K87=\"Nvidia A40\"),0,IF(AND($AA$11=\"GPUReady\",(SUM(W87:X87)=0)),0,IF(AND($AA$11=\"GPUReady\",(SUM(W87:X87)>0)),VLOOKUP($K87,TS4L4_GPU,11,FALSE),VLOOKUP($K87,TS4L4_PCI,11,FALSE)))))","v":0},{"$f":"IF(AND($AA$11<>\"GPUReady\",K87=\"Nvidia A30\"),\"\",IF(AND($AA$11<>\"GPUReady\",K87=\"Nvidia A40\"),\"\",IF(AND($AA$11=\"GPUReady\",(SUM(W87:X87)=0)),\"\",IF(AND($AA$11=\"GPUReady\",(SUM(W87:X87)>0)),VLOOKUP($K87,TS4L4_GPU,12,FALSE),VLOOKUP($K87,TS4L4_PCI,12,FALSE)))))","v":""},{"$f":"IF(K87=\"Nvidia A30\",1,0)","v":0},{"$f":"IF(K87=\"Nvidia A40\",2,0)","v":0}]
[]
[null,null,null,null,null,null,null,null,null,null,"PCI Slot 2 Processor 1 x8 PCIe Gen4 for HL/FH",null,null,null,null,null,null,null,null,null,null,null,{"$f":"IF(AND(AA11=\"GPUReady\",(SUM(W87:X87))=0,K87<>\"Slot non utilizzato\"),\"Deselezionare scheda PCI o Selezionare GPU\",\"\")","v":""}]
[null,null,null,null,null,null,null,null,null,null,"Slot Non Utilizzato",null,{"$f":"IF(AND(AA11=\"GPUReady\",K90<>\"Slot non utilizzato\"),\"\",VLOOKUP($K90,TS4L4_PCI,13,FALSE))","v":""},{"$f":"IF(AND(AA11=\"GPUReady\",K90<>\"Slot non utilizzato\"),\"\",VLOOKUP($K90,TS4L4_PCI,7,FALSE))","v":""},null,{"$f":"T90+U90","v":0},null,null,null,{"$f":"IF(AND(AA11=\"GPUReady\",K90<>\"Slot non utilizzato\"),0,VLOOKUP($K90,TS4L4_PCI,10,FALSE))","v":0},{"$f":"IF(AND(AA11=\"GPUReady\",K90<>\"Slot non utilizzato\"),0,VLOOKUP($K90,TS4L4_PCI,11,FALSE))","v":0},{"$f":"IF(AND(AA11=\"GPUReady\",K90<>\"Slot non utilizzato\"),\"\",VLOOKUP($K90,TS4L4_PCI,12,FALSE))","v":""}]
[]
[null,null,null,null,null,null,null,null,null,null,"PCI Slot 3 Processor 1 x16 PCIe Gen4 for HL/LP",null,{"$f":"IF(AND(N127<>0,SUM(S102,S93)=0),\"Slot Controller H840 per JBOD\",IF(SUM(S93,S102)>1,\"Selezionare un solo controller H840 a scelta tra slot 3 e 6\",IF(AND(K93=\"PERC H840 RAID Adapter for External JBOD Only\",N127<>1),\"Il controller H840 è compatibile esclusivamente con il  JBOD, aggiungere JBOD nelle successive opzioni\",IF(AND(K93<>\"Slot non Utilizzato\",N23<>1),\"Selezionare Processore Aggiuntivo per Abilitare Ulteriori Slot PCI\",\"\"))))","v":""}]
[null,null,null,null,null,null,null,null,null,null,"Slot Non Utilizzato",null,{"$f":"IF($Z$11=\"nutanix\",\"\",VLOOKUP($K93,TS4L4_PCI_LP,13,FALSE))","v":""},{"$f":"IF($Z$11=\"nutanix\",\"\",VLOOKUP($K93,TS4L4_PCI_LP,7,FALSE))","v":""},null,{"$f":"T93+U93","v":0},null,null,{"$f":"IF(K93=\"PERC H840 RAID Adapter for External JBOD Only\",1,0)","v":0},{"$f":"IF($Z$11=\"nutanix\",0,VLOOKUP($K93,TS4L4_PCI_LP,10,FALSE))","v":0},{"$f":"IF($Z$11=\"nutanix\",0,VLOOKUP($K93,TS4L4_PCI_LP,11,FALSE))","v":0},{"$f":"IF($Z$11=\"nutanix\",\"\",VLOOKUP($K93,TS4L4_PCI_LP,12,FALSE))","v":0}]
[]
[null,null,null,null,null,null,null,null,{"$f":"IF(AA11=\"GPUReady\",\"Slot per GPU 2 Double Wide (Occupa 2 Slot PCI, 4 e 5)\",\"\")","v":""},{"$f":"IF($X$82=\"SW\",\"GPU Slot\",IF($X$82=\"DW\",\"GPU Slot\",\"\"))","v":""},"PCI Slot 4 Processor 2 x8 PCIe Gen4 for HL/FH",{"$f":"IF($X$82=\"SW\",\"GPU Slot\",IF($X$82=\"DW\",\"GPU Slot\",\"\"))","v":""},{"$f":"IF(AND(K96=\"Nvidia A30\",$AA$11<>\"GPUReady\"),\"Selezionare server GPU Ready o deselezionare Scheda GPU\",IF(AND(K96=\"Nvidia A40\",$AA$11<>\"GPUReady\"),\"Selezionare server GPU Ready o deselezionare Scheda GPU\",\"\"))","v":""}]
[null,null,null,null,null,null,null,null,null,null,"Slot Non Utilizzato",null,{"$f":"IF(AND($AA$11<>\"GPUREADY\",K96=\"Nvidia A30\"),\"\",IF(AND($AA$11<>\"GPUREADY\",K96=\"Nvidia A40\"),\"\",IF($AA$11=\"GPUReady\",VLOOKUP($K96,TS4L4_GPU,13,FALSE),VLOOKUP($K96,TS4L4_PCI,13,))))","v":""},{"$f":"IF(AND($AA$11<>\"GPUREADY\",K96=\"Nvidia A30\"),\"\",IF(AND($AA$11<>\"GPUREADY\",K96=\"Nvidia A40\"),\"\",IF($AA$11=\"GPUReady\",VLOOKUP($K96,TS4L4_GPU,7,FALSE),VLOOKUP($K96,TS4L4_PCI,7,FALSE))))","v":""},null,{"$f":"T96+U96","v":0},null,null,null,{"$f":"IF(AND($AA$11<>\"GPUREADY\",K96=\"Nvidia A30\"),0,IF(AND($AA$11<>\"GPUREADY\",K96=\"Nvidia A40\"),0,IF($AA$11=\"GPUReady\",VLOOKUP($K96,TS4L4_GPU,10,FALSE),VLOOKUP($K96,TS4L4_PCI,10,FALSE))))","v":0},{"$f":"IF(AND($AA$11<>\"GPUREADY\",K96=\"Nvidia A30\"),0,IF(AND($AA$11<>\"GPUREADY\",K96=\"Nvidia A40\"),0,IF($AA$11=\"GPUReady\",VLOOKUP($K96,TS4L4_GPU,11,FALSE),VLOOKUP($K96,TS4L4_PCI,11,FALSE))))","v":0},{"$f":"IF(AND($AA$11<>\"GPUREADY\",K96=\"Nvidia A30\"),\"\",IF(AND($AA$11<>\"GPUREADY\",K96=\"Nvidia A40\"),\"\",IF($AA$11=\"GPUReady\",VLOOKUP($K96,TS4L4_GPU,12,FALSE),VLOOKUP($K96,TS4L4_PCI,12,FALSE))))","v":""}]
[]
[null,null,null,null,null,null,null,null,null,{"$f":"IF($X$82=\"SW\",\"GPU Slot\",\"\")","v":""},"PCI Slot 5 Processor 2 x8 PCIe Gen4 for HL/FH",{"$f":"IF($X$82=\"SW\",\"GPU Slot\",\"\")","v":""}]
[null,null,null,null,null,null,null,null,null,null,"Slot Non Utilizzato",null,{"$f":"IF(AND(AA11=\"GPUReady\",K99<>\"Slot non utilizzato\"),\"\",VLOOKUP($K99,TS4L4_PCI,13,FALSE))","v":""},{"$f":"IF(AND(AA11=\"GPUReady\",K99<>\"Slot non utilizzato\"),\"\",VLOOKUP($K99,TS4L4_PCI,7,FALSE))","v":""},null,{"$f":"T99+U99","v":0},null,null,null,{"$f":"IF(AND(AA11=\"GPUReady\",K99<>\"Slot non utilizzato\"),0,VLOOKUP($K99,TS4L4_PCI,10,FALSE))","v":0},{"$f":"IF(AND(AA11=\"GPUReady\",K99<>\"Slot non utilizzato\"),0,VLOOKUP($K99,TS4L4_PCI,11,FALSE))","v":0},{"$f":"IF(AND(AA11=\"GPUReady\",K99<>\"Slot non utilizzato\"),\"\",VLOOKUP($K99,TS4L4_PCI,12,FALSE))","v":""}]
[]
[null,null,null,null,null,null,null,null,null,null,"PCI Slot 6 Processor 2 x16 PCIe Gen4 for HL/LP",null,{"$f":"IF(AND(N127<>0,SUM(S102,S93)=0),\"Slot Controller H840 per JBOD\",IF(SUM(S93,S102)>1,\"Selezionare un solo controller H840 a scelta tra slot 3 e 6\",IF(AND(K102=\"PERC H840 RAID Adapter for External JBOD Only\",N127<>1),\"Il controller H840 è compatibile esclusivamente con il  JBOD, aggiungere JBOD nelle successive opzioni\",IF(AND(N23<>1,K102<>\"Slot non Utilizzato\"),\"Selezionare Processore Aggiuntivo per Abilitare Ulteriori Slot PCI\",\"\"))))","v":""}]
[null,null,null,null,null,null,null,null,null,null,"Slot Non Utilizzato",null,{"$f":"VLOOKUP($K102,TS4L4_PCI_LP,13,FALSE)","v":""},{"$f":"VLOOKUP($K102,TS4L4_PCI_LP,7,FALSE)","v":""},null,{"$f":"T102+U102","v":0},null,null,{"$f":"IF(K102=\"PERC H840 RAID Adapter for External JBOD Only\",1,0)","v":0},{"$f":"IF($Z$11=\"nutanix\",0,VLOOKUP($K102,TS4L4_PCI_LP,10,FALSE))","v":0},{"$f":"IF($Z$11=\"nutanix\",0,VLOOKUP($K102,TS4L4_PCI_LP,11,FALSE))","v":0},{"$f":"IF($Z$11=\"nutanix\",\"\",VLOOKUP($K102,TS4L4_PCI_LP,12,FALSE))","v":0}]
[]
[null,null,null,null,null,null,null,null,{"$f":"IF(AA11=\"GPUReady\",\"Slot per GPU 3 Double Wide (Occupa 2 Slot PCI,7 e 8)\",\"\")","v":""},{"$f":"IF($X$82=\"SW\",\"GPU Slot\",\"\")","v":""},"PCI Slot 7 Processor 2 x8 PCIe Gen4 for HL/FH",{"$f":"IF($X$82=\"SW\",\"GPU Slot\",\"\")","v":""},{"$f":"IF(AND(K105=\"Nvidia A30\",$AA$11<>\"GPUReady\"),\"Selezionare server GPU Ready o deselezionare Scheda GPU\",IF(AND(K105=\"Nvidia A40\",$AA$11<>\"GPUReady\"),\"Selezionare server GPU Ready o deselezionare Scheda GPU\",\"\"))","v":""}]
[null,null,null,null,null,null,null,null,null,null,"Slot Non Utilizzato",null,{"$f":"IF(AND($AA$11<>\"GPUREADY\",K105=\"Nvidia A30\"),\"\",IF(AND($AA$11<>\"GPUREADY\",K105=\"Nvidia A40\"),\"\",IF($AA$11=\"GPUReady\",VLOOKUP($K105,TS4L4_GPU,13,FALSE),VLOOKUP($K105,TS4L4_PCI,13,))))","v":""},{"$f":"IF(AND($AA$11<>\"GPUREADY\",K105=\"Nvidia A30\"),\"\",IF(AND($AA$11<>\"GPUREADY\",K105=\"Nvidia A40\"),\"\",IF($AA$11=\"GPUReady\",VLOOKUP($K105,TS4L4_GPU,7,FALSE),VLOOKUP($K105,TS4L4_PCI,7,FALSE))))","v":""},null,{"$f":"T105+U105","v":0},null,null,null,{"$f":"IF(AND($AA$11<>\"GPUREADY\",K105=\"Nvidia A30\"),0,IF(AND($AA$11<>\"GPUREADY\",K105=\"Nvidia A40\"),0,IF($AA$11=\"GPUReady\",VLOOKUP($K105,TS4L4_GPU,10,FALSE),VLOOKUP($K105,TS4L4_PCI,10,FALSE))))","v":0},{"$f":"IF(AND($AA$11<>\"GPUREADY\",K105=\"Nvidia A30\"),0,IF(AND($AA$11<>\"GPUREADY\",K105=\"Nvidia A40\"),0,IF($AA$11=\"GPUReady\",VLOOKUP($K105,TS4L4_GPU,11,FALSE),VLOOKUP($K105,TS4L4_PCI,11,FALSE))))","v":0},{"$f":"IF(AND($AA$11<>\"GPUREADY\",K105=\"Nvidia A30\"),\"\",IF(AND($AA$11<>\"GPUREADY\",K105=\"Nvidia A40\"),\"\",IF($AA$11=\"GPUReady\",VLOOKUP($K105,TS4L4_GPU,12,FALSE),VLOOKUP($K105,TS4L4_PCI,12,FALSE))))","v":""}]
[]
[null,null,null,null,null,null,null,null,null,{"$f":"IF($X$82=\"SW\",\"GPU Slot\",IF($X$82=\"DW\",\"GPU Slot\",\"\"))","v":""},"PCI Slot 8 Processor 2 x8 PCIe Gen4 for HL/FH",{"$f":"IF($X$82=\"SW\",\"GPU Slot\",IF($X$82=\"DW\",\"GPU Slot\",\"\"))","v":""}]
[null,null,null,null,null,null,null,null,null,null,"Slot Non Utilizzato",null,{"$f":"IF(AND(AA11=\"GPUReady\",K108<>\"Slot non utilizzato\"),\"\",VLOOKUP($K108,TS4L4_PCI,13,FALSE))","v":""},{"$f":"IF(AND(AA11=\"GPUReady\",K108<>\"Slot non utilizzato\"),\"\",VLOOKUP($K108,TS4L4_PCI,7,FALSE))","v":""},null,{"$f":"T108+U108","v":0},null,null,null,{"$f":"IF(AND(AA11=\"GPUReady\",K108<>\"Slot non utilizzato\"),0,VLOOKUP($K108,TS4L4_PCI,10,FALSE))","v":0},{"$f":"IF(AND(AA11=\"GPUReady\",K108<>\"Slot non utilizzato\"),0,VLOOKUP($K108,TS4L4_PCI,11,FALSE))","v":0},{"$f":"IF(AND(AA11=\"GPUReady\",K108<>\"Slot non utilizzato\"),\"\",VLOOKUP($K108,TS4L4_PCI,12,FALSE))","v":""}]
[null,null,null,null,null,null,null,null,null,null,null,null,null,null,null,{"$f":"IF(V108=\"L4N33\",IF($W$108>1,\"ERRORE: SOLO UNA BOSS CARD PUO' ESSERE CONFIGURATA\",\"\"),\"\")","v":""}]
[]
[null,null,null,null,null,null,null,null,null,null,null,null,null,null,null,{"$f":"IF(V110=\"L4N33\",IF($W$108>1,\"ERRORE: SOLO UNA BOSS CARD PUO' ESSERE CONFIGURATA\",\"\"),\"\")","v":""}]
[]
[null,null,null,null,null,null,null,null,"Transceiver per Schede LAN 20%\n(Mellanox HDR, Broadcom 57508)",null,"SFP+ Transceivers 10 Gbps"]
[null,null,null,null,null,null,null,null,null,null,{"$f":"ConfigurationTS4L4!A136","v":"SFP+ SR Optic for all SFP+ ports except High temperature Cards"},null,{"$f":"VLOOKUP($K114,TS4L4_SFP,13,FALSE)","v":"TS4L4-OT10GB"},0,null,{"$f":"T114+U114","v":0},null,null,null,{"$f":"VLOOKUP($K114,TS4L4_SFP,10,FALSE)","v":0},{"$f":"VLOOKUP($K114,TS4L4_SFP,11,FALSE)*ConfigurationTS4L4!G136*N114","v":0},{"$f":"VLOOKUP($K114,TS4L4_SFP,12,FALSE)","v":"L4N109"}]
[]
[null,null,null,null,null,null,null,null,null,null,"SFP28 - 25GbE"]
[null,null,null,null,null,null,null,null,null,null,{"$f":"ConfigurationTS4L4!A137","v":"SFP28 SR Optic, 25GbE, 85C, for all SFP28 ports"},null,{"$f":"VLOOKUP($K117,TS4L4_SFP,13,FALSE)","v":"TS4L4-OT25GB"},0,null,{"$f":"T117+U117","v":0},null,null,null,{"$f":"VLOOKUP($K117,TS4L4_SFP,10,FALSE)","v":0},{"$f":"VLOOKUP($K117,TS4L4_SFP,11,FALSE)*N117","v":0},{"$f":"VLOOKUP($K117,TS4L4_SFP,12,FALSE)","v":"L4N110"}]
[]
[null,null,null,null,null,null,null,null,null,null,"QSFP28 Transceivers"]
[null,null,null,null,null,null,null,null,null,null,{"$f":"ConfigurationTS4L4!A138","v":"Dell EMC PowerEdge QSFP28 SR4 100GbE 85C optic"},null,{"$f":"VLOOKUP($K120,TS4L4_SFP,13,FALSE)","v":"TS4L4-OT100GB"},0,null,{"$f":"T120+U120","v":0},null,null,null,{"$f":"VLOOKUP($K120,TS4L4_SFP,10,FALSE)","v":0},{"$f":"VLOOKUP($K120,TS4L4_SFP,11,FALSE)*N120","v":0},{"$f":"VLOOKUP($K120,TS4L4_SFP,12,FALSE)","v":"L4N111"}]
[]
[]
[null,null,null,null,null,null,null,null,null,null,"Enclosure JBOD da 12 Slot 3,5'' e dishi SAS da inserire nell'Enclosure.\nUna volta selezionato il JBOD e i dischi a corredo si deve obbligatoriamente compilare uno slot PCI a scelta tra lo Slot 3 e lo Slot 6 dove inserire il controller H840 compreso nel Kit JBOD\n"]
[]
[]
[null,null,null,null,null,null,null,null,"Enclosure JBOD Esterno 2 RU comprensivo di connessione con Controller RAID H840 (solo per JBOD) Installabile su Slot PCI low Profile \n(Slot 3-6).\n\n\nI dischi da 12TB, 16TB e 20TB possono essere installati ESCLUSIVAMENTE nel JBOD",null,"Opz JBOD (NO DISK)",null,{"$f":"IF(AND(N127<>0,SUM(S102,S93)=0),\"Selezionare Controller H840 negli slot PCI a scelta a tra 3 e 6\",IF(AND(N127=0,SUM(N130:N136)>0),\"Selezionare JBOD per aggiugere dischi SAS JBOD\",IF(AND(N127<> 0,SUM(N130:N136)=0),\"Il JBOD non ha dischi al suo interno, selezionare dischi da 12TB, 16TB o 20TB per un massimo di 12 dischi.\",IF(AND(N127=1,SUM(N130:N136)>12),\"Superato Numero dischi disponibili per JBOD\",\"\"))))","v":""}]
[null,null,null,null,null,null,null,null,null,null,{"$f":"Tabella_prezzi!H80","v":"Enclosure di espansione JBOD 12 slot 3,5'' + HBA (H840)  "},null,{"$f":"VLOOKUP($K127,TS4L4_20X100,13,FALSE)","v":"TS4L4-JBOD"},0,null,{"$f":"T127+U127","v":0},null,null,null,{"$f":"VLOOKUP($K127,TS4L4_20X100,10,FALSE)*N127","v":0},{"$f":"VLOOKUP($K127,TS4L4_20X100,11,FALSE)*N127","v":0},{"$f":"VLOOKUP($K127,TS4L4_20X100,12,FALSE)","v":"L4N122"}]
[]
[null,null,null,null,null,null,null,null,null,null,"Opz 12TB 7,2 RPM - per JBOD"]
[null,null,null,null,null,null,null,null,null,null,{"$f":"Tabella_prezzi!H81","v":"12TB 7.2K RPM NLSAS ISE 12Gbps 512e 3.5in Hot-plug Hard Drive"},null,{"$f":"VLOOKUP($K130,TS4L4_20X100,13,FALSE)","v":"TS4L4-12TBNLSAS"},0,{"$f":"IF(AND(M126=\"Superato numero dischi disponibili per JBOD\",N130>0),\"!\",\"\")","v":""},{"$f":"T130+U130","v":0},null,null,null,{"$f":"VLOOKUP($K130,TS4L4_20X100,10,FALSE)*N130","v":0},{"$f":"IF(M126<>\"\",0,VLOOKUP($K130,TS4L4_20X100,11,FALSE)*N130)","v":0},{"$f":"VLOOKUP($K130,TS4L4_20X100,12,FALSE)","v":"L4N123"}]
[]
[null,null,null,null,null,null,null,null,null,null,"Opz 16TB 7,2 RPM - per JBOD"]
[null,null,null,null,null,null,null,null,null,null,{"$f":"Tabella_prezzi!H82","v":"16TB Hard Drive SAS ISE 12Gbps 7.2K 512e 3.5in Hot-Plug"},null,{"$f":"VLOOKUP($K133,TS4L4_20X100,13,FALSE)","v":"TS4L4-16TBSAS"},0,null,{"$f":"T133+U133","v":0},null,null,null,{"$f":"VLOOKUP($K133,TS4L4_20X100,10,FALSE)*N133","v":0},{"$f":"IF(M126<>\"\",0,VLOOKUP($K133,TS4L4_20X100,11,FALSE)*N133)","v":0},{"$f":"VLOOKUP($K133,TS4L4_20X100,12,FALSE)","v":"L4N124"}]
[]
[null,null,null,null,null,null,null,null,null,null,"Opz 20TB 7,2 RPM - per JBOD"]
[null,null,null,null,null,null,null,null,null,null,{"$f":"Tabella_prezzi!H83","v":"20TB HDD SAS ISE 12Gbps 7.2K 512e 3.5in Hot-Plug"},null,{"$f":"VLOOKUP($K136,TS4L4_20X100,13,FALSE)","v":"TS4L4-20TBSAS"},0,null,{"$f":"T136+U136","v":0},null,null,null,{"$f":"VLOOKUP($K136,TS4L4_20X100,10,FALSE)*N136","v":0},{"$f":"IF(M126<>\"\",0,VLOOKUP($K136,TS4L4_20X100,11,FALSE)*N136)","v":0},{"$f":"VLOOKUP($K136,TS4L4_20X100,12,FALSE)","v":"L4N125"}]
[]
[]
[null,null,null,null,null,null,null,null,null,null,"Estensione di Garanzia e Hard Disk Retention"]
[]
[]
[null,null,null,null,null,null,null,null,null,null,"Garanzia"]
[null,null,null,null,null,null,null,null,null,null,"Manutenzione in garanzia (36 mesi)",null,{"$f":"VLOOKUP($K143,TS4L4_WARR,13,FALSE)","v":""},{"$f":"VLOOKUP($K143,TS4L4_WARR,7,FALSE)","v":""},null,{"$f":"T143","v":0},null,null,null,{"$f":"VLOOKUP($K143,TS4L4_WARR,10,FALSE)","v":0},{"$f":"VLOOKUP($K143,TS4L4_WARR,11,FALSE)","v":0},{"$f":"VLOOKUP($K143,TS4L4_WARR,12,FALSE)","v":""}]
[]
[null,null,null,null,null,null,null,null,null,null,"Hard Disk Retention",null,null,{"$f":"IF(AND($K$146=\"Hard Disk Retention 60 mesi\",$N$143=\"\"),\"Selezionare Estensione di Garanzia 24 Mesi\",\"\")","v":""}]
[null,null,null,null,null,null,null,null,null,null,"No Hard Disk Retention",null,{"$f":"VLOOKUP(K146,TS4L4_HDDRET,13,FALSE)","v":""},{"$f":"IF(K146=\"No Hard Disk Retention\",\"\",1)","v":""},null,{"$f":"T146","v":0},null,null,null,{"$f":"IF(AND(K146=\"Hard Disk Retention 60 mesi\",N143=\"\"),\"\",VLOOKUP(K146,TS4L4_HDDRET,10,FALSE))","v":0},{"$f":"IFERROR(Z146,VLOOKUP(K146,TS4L4_HDDRET,11,FALSE))","v":0},{"$f":"IF(AND(K146=\"Hard Disk Retention 60 mesi\",N143=\"\"),\"\",VLOOKUP(K146,TS4L4_HDDRET,12,FALSE))","v":""}]
[]
[null,null,null,null,null,null,null,null,null,null,null,null,"Configurazione",{"$f":"SUM(T11:T146)*N8","v":0},null,null,null,null,null,{"$f":"IF(AND($N$146=1,$N$143=\"\"),\"Selezionare Estensione di Garanzia 24 Mesi\",\"\")","v":""}]
[null,null,null,null,null,null,null,null,null,null,null,null,0.2,{"$f":"SUM(U11:U146)*N8","v":0}]
[null,null,null,null,null,null,null,null,null,null,null,null,"Totale",{"$f":"SUM(N148:N149)","v":0}]
[]
[null,null,null,null,null,null,null,null,null,null,"NOTE"]

{"sheet":"Lotto4_R7525_2","index":2,"n_rows":152,"n_cols":32,"rows_kept":152,"cut":false,"hidden":false,"merged":[[122,15,124,15],[3,12,4,12],[5,12,6,12],[9,9,10,9],[15,9,16,9],[18,9,19,9],[39,9,40,9],[1,10,2,10],[3,10,5,10],[112,8,119,8],[122,10,123,13],[9,11,10,11],[15,11,16,11],[18,11,19,11],[39,11,40,11],[39,12,39,15],[42,10,43,10],[42,15,43,15],[60,12,60,13],[60,15,62,15],[74,11,75,11],[76,15,78,16],[125,8,135,8],[125,9,126,9],[125,11,126,11],[125,12,125,15],[128,9,129,9],[128,11,129,11],[131,9,132,9],[131,11,132,11],[134,9,135,9],[77,11,78,11],[82,10,83,13],[85,8,89,8],[85,12,85,13],[77,9,78,9],[91,12,91,13],[94,8,98,8],[94,12,94,13],[100,12,100,13],[103,8,107,8],[103,12,103,13],[151,10,151,13],[152,10,159,13],[134,11,135,11],[138,10,139,13],[141,9,142,9],[141,11,142,11],[144,9,145,9],[144,11,145,11]]}
[]
[null,null,null,null,null,null,null,null,null,null,"Convenzione \nTecnologie Server 4 - Lotto 4",null,{"$f":"IF(W108>1,\"ERRORE NELLA CONFIGURAZIONE\",\"\")","v":""},null,null,{"$f":"IF(Riepilogo_Ordine!K141>Riepilogo_Ordine!G141,\"Superata Quota 20%\",\"\")","v":""},null,null,null,null,null,null,null,null,null,null,null,null,null,"SALVAPDF"]
[null,null,null,null,null,null,null,null,null,null,null,null,null,null,null,"Articoli 20% Totali",null,null,"Check HD 2","Check HDD Nut","Check CPU","Check RAM","Check NVME","Check PCI","Check Win","Check Warr","Check nVME","Check Tot",null,{"$f":"IF(N8>0,1,0)","v":0}]
[null,null,null,null,null,null,null,null,null,null,{"$f":"IF(Z11=\"Nutanix\",\"Selezionando la soluzione Nutanix si accetta la sostituzione del server base con la versione XC comprensivo di HBA355 (Non RAID), BOSS Card e LAN 10 GB su slot OCP\",IF(W15=\"vsan\",\"Selezionando la soluzione vSAN si accetta la sostituzione del controller 745 con il HBA355 (Non RAID), comprensivo di BOSS Card\",\"Selezionare Il server Base e cliccare su 'Compila Configurazione' per inserire le opzioni necessarie e obbligatorie a soddisfare la configurazione selezionata\"))","v":"Selezionare Il server Base e cliccare su 'Compila Configurazione' per inserire le opzioni necessarie e obbligatorie a soddisfare la configurazione selezionata"},null,{"$f":"IF(AB4>1,\"Errori nella Configurazione\",IF(AA4>0,\"Troppi Dischi nVME\",IF(S4>0,\"Troppi Dischi SAS\",IF(U4>0,\"Errore nella Selezione della CPU\",IF(V4>0,\"Errore Nella Selezione della RAM\",IF(W4>0,\"Errore Nella selezione dello Chassis per Dischi nVME\",IF(X4>0,\"Errore nella Selezione Slot PCI\",IF(Y4>0,\"Errore nella Selezione Licenze Windows\",IF(Z4>0,\"Errore Selezione Garanzia o HDD Retention\",IF(T4>0,\"Errore Selezione Dischi\",IF(T6=1,\"Errore Selezione dischi NVMe\",\"\")))))))))))","v":""},"Totale Altre Opzioni",null,{"$f":"Riepilogo_Ordine!K141","v":0},null,null,{"$f":"IF(N44<0,1,0)","v":0},{"$f":"IF(AND(Z11=\"Nutanix\",AF46>1),1,0)","v":0},{"$f":"IF(N22<>\"\",1,0)","v":0},{"$f":"IF(N25<>\"\",1,0)","v":0},{"$f":"IF(M61<>\"\",1,0)","v":0},{"$f":"IF(M86<>\"\",1,0)","v":0},{"$f":"IF(N28<>\"\",1,0)","v":0},{"$f":"IF(N145<>\"\",1,0)","v":0},{"$f":"IF(N63<0,1,0)","v":0},{"$f":"SUM(S4:AA4)+T6","v":0}]
[null,null,null,null,null,null,null,null,null,null,null,null,null,{"$f":"'Altre Opzioni'!L3","v":0},null,"Quota Residua 20 %",null,null,null,"Check NVMe GPU"]
[null,null,null,null,null,null,null,null,null,null,null,null,"Guida alla Convenzione","Totale Configurazione",null,{"$f":"Riepilogo_Ordine!G142","v":0},null,null,null,{"$f":"IF(AND(N64=0,AA11=\"GPUReady\"),1,0)","v":0}]
[null,null,null,null,null,null,null,null,{"$f":"IF(AND(Y11=\"Vsan\",N73=\"\"),\"Utilizzando il controller HBA355 in una soluzione vSAN, per il boot si deve utilizzare la 'BOSS Card'\",IF(AND(Z11=\"Nutanix\",N73=\"\"),\"Utilizzando il controller HBA355 in una soluzione Nutanix, per il boot si deve utilizzare la 'BOSS Card'\",\"\"))","v":""},null,{"$f":"IF(Riepilogo_Ordine!P8>0,\"Compilare i Dati nel Foglio Riepilogo per Stampare in PDF\",\"\")","v":"Compilare i Dati nel Foglio Riepilogo per Stampare in PDF"},null,null,{"$f":"N148+N149","v":0},null,"Totale Ordine\nIva Esclusa",null,null,null,{"$f":"N7+Lotto4_R7525_2!L7","v":0}]
[null,null,null,null,null,null,null,null,null,null,"DELL POWEREDGE R7525",null,"Quantità Server",0,null,{"$f":"Riepilogo_Ordine!K142","v":0}]
[]
[null,null,null,null,null,null,null,null,null,null,"Base",null,null,null,null,null,null,null,null,null,null,null,{"$f":"IF(N127<>0,\"JBOD\",\"\")","v":""},"PowerEdge R7525 Server (General Purpose)",{"$f":"IF(AND(X11=\"\",Y11=\"vSAN\"),1,IF(AND(X11=\"nvme\",Y11=\"\"),3,2))","v":2}]
[null,null,null,null,null,null,null,null,null,null,"PowerEdge R7525 Server (General Purpose)",null,{"$f":"IF($N$8=0,\"\",VLOOKUP(K11,TS4L4_Base,13,FALSE))","v":""},{"$f":"IF($N$8>0,1,\"\")","v":""},null,{"$f":"T11","v":3637.17},null,null,null,{"$f":"VLOOKUP($K$11,TS4L4_Base,10,FALSE)","v":3637.17},null,{"$f":"VLOOKUP($K11,TS4L4_Base,12,FALSE)","v":"L4N01"},null,{"$f":"IF(AND(K11=ConfigurationTS4L4!A13,N23=\"\"),\"nVME1\",IF(AND(K11=ConfigurationTS4L4!A13,N23=1),\"nVME2\",\"\"))","v":""},{"$f":"IF(K11=ConfigurationTS4L4!A14,512,IF(K11=ConfigurationTS4L4!A15,1024,IF(K11=ConfigurationTS4L4!A16,2048,\"\")))","v":""},{"$f":"IF(K11=ConfigurationTS4L4!A17,\"Nutanix\",\"\")","v":""},{"$f":"IF(K11=ConfigurationTS4L4!A9,\"GPUReady\",\"\")","v":""}]
[]
[]
[]
[null,null,null,null,null,null,null,null,null,null,{"$f":"IF(SUM(N64:N70)>0,IF(K11=ConfigurationTS4L4!A3,\"▲ Selezionare chassis NVME, vSAN, Nutanix o ▲ GPUReady \n per Abilitare nVME \",\"\"),\"\")","v":""},null,null,null,null,null,null,null,null,null,null,null,{"$f":"IF(Y11<>\"\",\"vsan\",\"\")","v":""},{"$f":"IF(AND(Y15=\"GP1\",K26>512),\"Selezionare RAM Corretta\",\"\")","v":""},{"$f":"IF(AND(K11=ConfigurationTS4L4!A12,N23=\"\"),\"GP1\",IF(AND(K11=ConfigurationTS4L4!A12,N23=1),\"GP2\",\"\"))","v":"GP1"}]
[null,null,null,null,null,null,null,null,null,null,"Chassis Configuration",null,{"$f":"IF($X$82=\"SW\",\"MAX 4 GPU\",IF($X$82=\"DW\",\"MAX 2 GPU\",\"\"))","v":""}]
[null,null,null,null,null,null,null,null,null,null,{"$f":"IF(N23=1,VLOOKUP($K$11,TS4L4_Chassis,3,FALSE),VLOOKUP($K$11,TS4L4_Chassis,2,FALSE))","v":"Chassis with Up to 16 x 2.5 Hard Drives for 1CPU Configuration"},null,{"$f":"IF($N$23=1,VLOOKUP($K$11,TS4L4_Chassis,11,FALSE),VLOOKUP($K$11,TS4L4_Chassis,9,FALSE))","v":"TS4L4-Opz1CPU"},{"$f":"VLOOKUP(K11,TS4L4_Chassis,7,0)","v":0},null,{"$f":"T17+U17","v":0},null,null,null,null,{"$f":"VLOOKUP($K$11,TS4L4_Chassis,10,FALSE)*N17","v":0},{"$f":"IF(N17=0,\"\",(VLOOKUP($K11,TS4L4_Chassis,12,FALSE)))","v":""},null,"Chassis with Up to 24 x 2.5'' Hard Drives for 2CPU Configuration",1]
[]
[null,null,null,null,null,null,null,null,null,null,"Processor"]
[null,null,null,null,null,null,null,null,null,null,"AMD7413 2.65GHz,24C/48T,128M,180W,3200CK",null,null,null,null,null,null,null,null,{"$f":"IF(N17=1,VLOOKUP($K$20,TS4L4_CPU,11,FALSE),VLOOKUP($K$20,TS4L4_CPU,11,FALSE))","v":0},{"$f":"IF(N17=1,VLOOKUP($K$20,TS4L4_CPU,11,FALSE),VLOOKUP($K$20,TS4L4_CPU,11,FALSE))","v":0},{"$f":"IF(U20=0,0,VLOOKUP($K20,TS4L4_CPU,12,FALSE))","v":0}]
[]
[null,null,null,null,null,null,null,null,null,null,"Additional Processor",null,null,{"$f":"IF(AND(Y11=512,N23=\"\"),\"Selezionare Processore Aggiuntivo per Configurazione vSAN\",IF(AND(X11=\"nVME1\",N23=\"\"),\"Selezionare Processore Aggiuntivo per Configurazione nVME\",IF(AND(Y11=1024,N23=\"\"),\"Selezionare Processore Aggiuntivo per Configurazione vSAN\",IF(AND(Y11=2048,N23=\"\"),\"Selezionare Processore Aggiuntivo per Configurazione vSAN\",IF(AND(Z11=\"Nutanix\",N23=\"\"),\"Selezionare Processore Aggiuntivo per Configurazione Nutanix\",IF(AND(AA11=\"GPUReady\",N23=\"\"),\"Selezionare Processore Aggiuntivo per Configurazione GPUReady\",\"\"))))))","v":""}]
[null,null,null,null,null,null,null,null,{"$f":"IF(AND(K23=\"No Additional Processor\",SUM(L90:L105)>0),\"Selezionare Processore Aggiuntivo o Deselezionare Schede PCI\",\"\")","v":""},null,"No Additional Processor",null,{"$f":"IF(N17=1,VLOOKUP($K$20,TS4L4_CPU,13,FALSE),VLOOKUP($K$23,TS4L4_CPU,13,FALSE))","v":""},{"$f":"IF(N17=1,VLOOKUP($K$23,TS4L4_CPU,7,FALSE),VLOOKUP($K$23,TS4L4_CPU,7,FALSE))","v":""},null,{"$f":"T23","v":0},null,null,null,{"$f":"IF(N17=1,VLOOKUP($K$20,TS4L4_CPU,10,FALSE),VLOOKUP($K$23,TS4L4_CPU,10,FALSE))","v":0},{"$f":"IF(N17=1,VLOOKUP($K$20,TS4L4_CPU,11,FALSE),VLOOKUP($K$23,TS4L4_CPU,11,FALSE))","v":0},{"$f":"IF(N17=1,VLOOKUP(K20,TS4L4_CPU,12,FALSE),VLOOKUP($K23,TS4L4_CPU,12,FALSE))","v":""},null,{"$f":"IF(N23=1,\"AMD7413 2.65GHz,24C/48T,128M,180W,3200CK\",K23)","v":"No Additional Processor"}]
[]
[null,null,null,null,null,null,null,null,null,null,"Memory Capacity (GB)",null,null,{"$f":"IF(AND(Y11=512,K26<>512),\"Selezionare 512 GB Ram'\",IF(AND(Y11=1024,K26<>1024),\"Selezionare 1 TB RAM\",IF(AND(Y11=2048,K26<>2048),\"Selezionare 2 TB RAM\",IF(AND(Z11=\"Nutanix\",K26<>2048),\"Selezionare 2TB RAM\",IF(AND(Y15=\"GP1\",K26>512),\"Selezionare RAM Corretta\",IF(AND(Y15=\"GP2\",K26>1536),\"Selezionare RAM Corretta\",IF(AND(X11=\"nVME1\",K26>512),\"Selezionare RAM Corretta\",IF(AND(X11=\"nVME2\",K26>1536),\"Selezionare RAM Corretta\",IF(AND(AA11=\"GPUReady\",K26<>2048),\"Selezionare Base GPUReady e cliccare su 'Compila Configurazione'\",\"\")))))))))","v":""}]
[null,null,null,null,null,null,null,null,null,null,256,null,{"$f":"IF(K23=\"No Additional Processor\",VLOOKUP(K26,TS4L4_RAM2CPU,13,FALSE),VLOOKUP(K26,TS4L4_RAM2CPU,13,FALSE))","v":"TS4L4-RAM32"},{"$f":"IF(N25<>\"\",0,Y26)","v":0},null,{"$f":"T26","v":0},null,null,null,{"$f":"IF(N25<>\"\",0,IF(K23=\"No Additional Processor\",VLOOKUP(K26,TS4L4_RAM2CPU,10,FALSE),VLOOKUP(K26,TS4L4_RAM2CPU,10,FALSE)))","v":0},null,{"$f":"IF(N25<>\"\",0,AA26)","v":""},null,{"$f":"IF($N$23=1,VLOOKUP($K$26,TS4L4_RAM2CPU,13,FALSE),VLOOKUP($K$26,TS4L4_RAM1Cpu,13,FALSE))","v":"TS4L4-RAM32"},{"$f":"IF($N$23=1,VLOOKUP($K$26,TS4L4_RAM2CPU,7,FALSE),VLOOKUP($K$26,TS4L4_RAM1Cpu,7,FALSE))","v":0},{"$f":"IF($N$23=1,VLOOKUP($K$26,TS4L4_RAM2CPU,10,FALSE),VLOOKUP($K$26,TS4L4_RAM1Cpu,10,FALSE))","v":0},{"$f":"IF($N$23=1,VLOOKUP($K$26,TS4L4_RAM2CPU,12,FALSE),VLOOKUP($K$26,TS4L4_RAM1Cpu,12,FALSE))","v":""}]
[]
[null,null,null,null,null,null,null,null,null,null,"Operating System STANDARD",null,null,{"$f":"IF(AND(K29=\"No Operating System\",N29>0),\"Selezionare Sistema Operativo\",IF(AND(K29=\"Ubuntu 22.04 LTS 64 Bit\",N29>1),\"Selezionare Licenze Corrette\",IF(AND(K29=\"Ubuntu 22.04 LTS 64 Bit\",N23=1),\"\",IF(AND(N23=1,K29=\"No Operating System\"),\"\",IF(AND(N23=1,N29<3),\"Selezionare Licenze Corrette\",IF(AND(N23<>1,N29>4),\"Selezionare Licenze Corrette\",IF(AND(K29=\"Windows Server 2022,Standard,ROK,16CORE\",N29=\"\"),\"Selezionare numero Licenze\",\"\")))))))","v":""}]
[null,null,null,null,null,null,null,null,null,null,"No Operating System",null,{"$f":"VLOOKUP($K$29,TS4L4_OS,13,FALSE)","v":""},0,null,{"$f":"T29","v":0},null,null,null,{"$f":"IF(N33>0,0,VLOOKUP($K$29,TS4L4_OS,10,FALSE))*N29","v":0},{"$f":"VLOOKUP($K$29,TS4L4_OS,11,FALSE)","v":0},{"$f":"IF(N33>0,0,VLOOKUP($K29,TS4L4_OS,12,FALSE))","v":""},null,{"$f":"IF(AND(K23=\"No Additional Processor\",N29>=3),TRUE,FALSE)","v":false}]
[null,null,null,null,null,null,null,null,null,null,"Windows Server 2022 Standard Edition, Add License,2CORE",null,{"$f":"VLOOKUP($K$30,TS4L4_OS,13,FALSE)","v":"TS4L4-WINSRV2C"},{"$f":"IF(K29=\"No Operating System\",0,IF(AND(K29=\"Windows Server 2022,Standard,ROK,16CORE\",N29=0),0,IF($K$29=\"Ubuntu 22.04 LTS 64 Bit\",0,IF(N29=1,VLOOKUP($K$29,TS4L4_OS,7,FALSE)*4,IF(N29=3,0,IF(N29=6,0,IF(N29=9,0,IF(N29=\"\",0,IF(N29=4,4)))))))))","v":0},null,{"$f":"T30","v":0},null,null,null,{"$f":"VLOOKUP($K$30,TS4L4_OS,10,FALSE)*N30","v":0},{"$f":"VLOOKUP($K$29,TS4L4_OS,11,FALSE)","v":0},{"$f":"IF(N33>0,0,VLOOKUP($K30,TS4L4_OS,12,FALSE))","v":"L4N25"},null,{"$f":"IF(AND(K23<>\"No Additional Processor\",N29>=3),TRUE,FALSE)","v":false}]
[]
[null,null,null,null,null,null,null,null,null,null,"Operating System DATACENTER"]
[null,null,null,null,null,null,null,null,null,null,"No Operating System",null,{"$f":"VLOOKUP($K$33,ConfigurationTS4L4!A67:W76,13,FALSE)","v":""},{"$f":"IF(K33=\"Windows Server 2022,Datacenter,ROK,16CORE\",1,0)","v":0},null,{"$f":"T33","v":0},null,null,null,{"$f":"IF(N29>0,0,VLOOKUP($K$33,TS4L4_OS,10,FALSE))*N33","v":0},{"$f":"VLOOKUP($K$29,TS4L4_OS,11,FALSE)","v":0},{"$f":"IF(N29>0,0,VLOOKUP($K33,TS4L4_OS,12,FALSE))","v":""},null,{"$f":"IF(AND(N23=1,N33=1),16,IF(AND(N23=1,N33=\"\"),0,IF(AND(N23=\"\",N33=1),4,FALSE)))","v":false}]
[null,null,null,null,null,null,null,null,null,null,"Windows Server 2022 / 2019 Datacenter Edition,Add License,2CORE",null,{"$f":"VLOOKUP($K$34,TS4L4_OS,13,FALSE)","v":"TS4L4-WinServDC2core"},{"$f":"IF(AND(N23=1,N33=1),16,IF(AND(N23=1,N33=\"\"),0,IF(AND(N23=\"\",N33=1),4,IF(AND(N23=\"\",N33=\"\"),0,\"0\"))))","v":"0"},null,{"$f":"T34","v":0},null,null,null,{"$f":"IF(N29>0,0,VLOOKUP($K$34,TS4L4_OS,10,FALSE))*N34","v":0},{"$f":"VLOOKUP($K$29,TS4L4_OS,11,FALSE)","v":0},{"$f":"IF(N29>0,0,VLOOKUP($K34,TS4L4_OS,12,FALSE))","v":"L4N28"}]
[]
[null,null,null,null,null,null,null,null,null,null,"Operating System Device CAL / User CAL"]
[null,null,null,null,null,null,null,null,null,null,"1-pack of Windows Server 2022/2019 Device CALs (STD or DC)",null,{"$f":"VLOOKUP($K$37,ConfigurationTS4L4!A72:W73,13,FALSE)","v":"TS4L4-WINDEVCAL"},0,null,{"$f":"T37","v":0},null,null,null,{"$f":"VLOOKUP($K$37,ConfigurationTS4L4!A72:N73,10,FALSE)*N37","v":0},{"$f":"VLOOKUP($K$29,TS4L4_OS,11,FALSE)","v":0},{"$f":"VLOOKUP($K37,TS4L4_OS,12,FALSE)","v":"L4N23"}]
[null,null,null,null,null,null,null,null,null,null,"1-pack of Windows Server 2022/2019 User CALs (STD or DC)",null,{"$f":"VLOOKUP($K$38,ConfigurationTS4L4!A73:W74,13,FALSE)","v":"TS4L4-WINUSRCAL"},0,null,{"$f":"T38","v":0},null,null,null,{"$f":"VLOOKUP($K$38,ConfigurationTS4L4!A73:N74,10,FALSE)*N38","v":0},{"$f":"VLOOKUP($K$29,TS4L4_OS,11,FALSE)","v":0},{"$f":"VLOOKUP($K38,TS4L4_OS,12,FALSE)","v":"L4N24"}]
[]
[null,null,null,null,null,null,null,null,null,null,"Disk Controller",null,{"$f":"IF(AND(Y11=\"Vsan\",N73=\"\"),\"Utilizzando il controller HBA355 in una soluzione vSAN, per il boot si deve utilizzare la 'BOSS Card'\",IF(AND(Z11=\"Nutanix\",N73=\"\"),\"Utilizzando il controller HBA355 in una soluzione Nutanix per il boot si deve utilizzare la 'BOSS Card'\",\"\"))","v":""}]
[null,null,null,null,null,null,null,null,null,null,{"$f":"IF(Y11=512,ConfigurationTS4L4!A98,IF(Y11=1024,ConfigurationTS4L4!A98,IF(Y11=2048,ConfigurationTS4L4!A98,IF(Z11=\"Nutanix\",ConfigurationTS4L4!A98,IF(AA11=\"GPUReady\",ConfigurationTS4L4!A98,ConfigurationTS4L4!A97)))))","v":"PERC H745 Controller"},null,{"$f":"VLOOKUP(K41,TS4L4_CRTL,13,FALSE)","v":""},{"$f":"VLOOKUP($K41,TS4L4_CRTL,7,FALSE)","v":""},null,{"$f":"U41","v":0},null,null,null,{"$f":"IF(K41=ConfigurationTS4L4!A46,0,VLOOKUP($K41,TS4L4_CRTL,10,FALSE))","v":0},{"$f":"IF($AA$11=\"GPUReady\",0,IF(W15=\"vsan\",0,IF(Z11=\"Nutanix\",0,VLOOKUP($K41,TS4L4_CRTL,11,FALSE))))","v":0},{"$f":"IF(W15=\"vsan\",0,IF(Z11=\"Nutanix\",0,VLOOKUP($K41,TS4L4_CRTL,12,FALSE)))","v":"L4N44"},null,{"$f":"IF(K11=\"PowerEdge R7525 Server (vSAN Ready)\",\"Vsan\",\"\")","v":""}]
[]
[null,null,null,null,null,null,null,null,null,null,"Hard Drivers Bays n° 16 - 2 bay occupate dai dischi 960GB SSD di base",null,"Usati","Disponibili",null,{"$f":"IF(AND(Z11=\"Nutanix\",AF46>1),\"E' Possibile selezionare solo un modello di Disco\",IF(Z11=\"Nutanix\",\"In una soluzione Nutanix i dischi devono necessariamente essere dello stesso modello\",\"\"))","v":""}]
[null,null,null,null,null,null,null,null,null,null,null,null,{"$f":"N46+N48+N50+N56+N58+N52+N54+N60","v":2},{"$f":"16-M44","v":14}]
[null,null,null,null,null,null,null,null,null,null,null,null,null,null,null,null,null,null,null,null,null,null,null,null,null,null,null,null,null,null,null,"Totale"]
[null,null,null,null,null,null,null,null,null,null,{"$f":"ConfigurationTS4L4!A79","v":"2.4TB 10k SAS ISE 12Gbps"},null,{"$f":"VLOOKUP($K46,TS4L4_HDD,13,FALSE)","v":"TS4L4-HDD2TB"},0,null,{"$f":"T46","v":0},null,null,null,{"$f":"IF(N44<0,0,IF(AND(AF46>1,Z11=\"nutanix\"),0,VLOOKUP($K46,TS4L4_HDD,10,FALSE))*N46)","v":0},{"$f":"IF(N44<0,0,VLOOKUP($K46,TS4L4_HDD,11,FALSE))","v":0},{"$f":"IF(N44<0,\"\",IF(AND(AF46>1,Z11=\"nutanix\"),\"\",VLOOKUP($K46,TS4L4_HDD,12,FALSE)))","v":"L4N11"},null,{"$f":"IF(N46>0,1,0)","v":0},{"$f":"IF(N48>0,1,0)","v":0},{"$f":"IF(N50>0,1,0)","v":0},{"$f":"IF(N52>0,1,0)","v":0},{"$f":"IF(N54>0,1,0)","v":0},{"$f":"IF(N56>0,1,0)","v":1},{"$f":"IF(N58>0,1,0)","v":0},{"$f":"IF(N60>0,1,0)","v":0},{"$f":"SUM(X46:AE46)","v":1}]
[]
[null,null,null,null,null,null,null,null,null,null,{"$f":"ConfigurationTS4L4!A80","v":"1.2TB 10K RPM SAS ISE 12Gbps"},null,{"$f":"VLOOKUP($K48,TS4L4_HDD,13,FALSE)","v":"TS4L4-HDD1TB"},0,null,{"$f":"T48","v":0},null,null,null,{"$f":"IF(N44<0,0,IF(AND(AF46>1,Z11=\"nutanix\"),0,VLOOKUP($K48,TS4L4_HDD,10,FALSE))*N48)","v":0},{"$f":"IF(N44<0,0,VLOOKUP($K48,TS4L4_HDD,11,FALSE))","v":0},{"$f":"IF(N44<0,\"\",IF(AND(AF46>1,Z11=\"nutanix\"),\"\",VLOOKUP($K48,TS4L4_HDD,12,FALSE)))","v":"L4N12"}]
[]
[null,null,null,null,null,null,null,null,null,null,{"$f":"ConfigurationTS4L4!A81","v":"3.84TB SSD SAS ISE RI 12Gbps"},null,{"$f":"VLOOKUP($K50,TS4L4_HDD,13,FALSE)","v":"TS4L4-SSD-RI3,8TB"},0,null,{"$f":"T50","v":0},null,null,null,{"$f":"IF(N44<0,0,IF(AND(AF46>1,Z11=\"nutanix\"),0,VLOOKUP($K50,TS4L4_HDD,10,FALSE))*N50)","v":0},{"$f":"IF(N44<0,0,VLOOKUP($K50,TS4L4_HDD,11,FALSE))","v":0},{"$f":"IF(N44<0,\"\",IF(AND(AF46>1,Z11=\"nutanix\"),\"\",VLOOKUP($K50,TS4L4_HDD,12,FALSE)))","v":"L4N13"}]
[]
[null,null,null,null,null,null,null,null,null,null,{"$f":"ConfigurationTS4L4!A82","v":"1.92TB SSD SAS ISE RI 12Gbps"},null,{"$f":"VLOOKUP($K52,TS4L4_HDD,13,FALSE)","v":"TS4L4-SSD-RI1,6TB"},0,null,{"$f":"T52","v":0},null,null,null,{"$f":"IF(N44<0,0,IF(AND(AF46>1,Z11=\"nutanix\"),0,VLOOKUP($K52,TS4L4_HDD,10,FALSE))*N52)","v":0},{"$f":"VLOOKUP($K52,TS4L4_HDD,11,FALSE)","v":0},{"$f":"IF(N44<0,\"\",IF(AND(AF46>1,Z11=\"nutanix\"),\"\",VLOOKUP($K52,TS4L4_HDD,12,FALSE)))","v":"L4N14"}]
[]
[null,null,null,null,null,null,null,null,null,null,{"$f":"ConfigurationTS4L4!A83","v":"1.6TB SSD SAS ISE MU 12Gbps"},null,{"$f":"VLOOKUP($K54,TS4L4_HDD,13,FALSE)","v":"TS4L4-SSD-MU1,6TB"},0,null,{"$f":"T54","v":0},null,null,null,{"$f":"IF(N44<0,0,IF(AND(AF46>1,Z11=\"nutanix\"),0,VLOOKUP($K54,TS4L4_HDD,10,FALSE))*N54)","v":0},{"$f":"VLOOKUP($K54,TS4L4_HDD,11,FALSE)","v":0},{"$f":"IF(N44<0,\"\",IF(AND(AF46>1,Z11=\"nutanix\"),\"\",VLOOKUP($K54,TS4L4_HDD,12,FALSE)))","v":"L4N15"}]
[]
[null,null,null,null,null,null,null,null,null,null,{"$f":"ConfigurationTS4L4!A84","v":"960GB SSD SAS ISE RI 12Gbps"},null,{"$f":"VLOOKUP($K56,TS4L4_HDD,13,FALSE)","v":"TS4L4-SSD-RI800GB"},2,null,{"$f":"T56","v":0},null,null,null,{"$f":"IF(N44<0,0,IF(AND(AF46>1,Z11=\"nutanix\"),0,IF(N56>2,(VLOOKUP($K56,TS4L4_HDD,10,FALSE)*(N56-2)),0)))","v":0},{"$f":"VLOOKUP($K56,TS4L4_HDD,11,FALSE)*N56","v":0},{"$f":"IF(N44<0,\"\",IF(AND(AF46>1,Z11=\"nutanix\"),\"\",VLOOKUP($K56,TS4L4_HDD,12,FALSE)))","v":"L4N16"}]
[]
[null,null,null,null,null,null,null,null,null,null,{"$f":"ConfigurationTS4L4!A85","v":"800GB SSD SAS ISE Mix Use 12Gbps"},null,{"$f":"VLOOKUP($K58,TS4L4_HDD,13,FALSE)","v":"TS4L4-SSD-MU800GB"},0,null,{"$f":"T58","v":0},null,null,null,{"$f":"IF(N44<0,0,IF(AND(AF46>1,Z11=\"nutanix\"),0,VLOOKUP($K58,TS4L4_HDD,10,FALSE))*N58)","v":0},{"$f":"VLOOKUP($K58,TS4L4_HDD,11,FALSE)*N58","v":0},{"$f":"IF(N44<0,\"\",IF(AND(AF46>1,Z11=\"nutanix\"),\"\",VLOOKUP($K58,TS4L4_HDD,12,FALSE)))","v":"L4N17"}]
[]
[null,null,null,null,null,null,null,null,null,null,{"$f":"ConfigurationTS4L4!A87","v":"7.68TB SSD RI SAS ISE 12Gbps"},null,{"$f":"VLOOKUP($K60,TS4L4_HDD,13,FALSE)","v":"TS4L4-SSD7.68RI"},0,null,{"$f":"U60","v":0},null,null,null,null,{"$f":"IF(N44<0,0,IF(AND(AF46>1,Z11=\"nutanix\"),0,VLOOKUP($K60,TS4L4_HDD,11,FALSE))*N60)","v":0},{"$f":"IF(N44<0,\"\",IF(AND(AF46>1,Z11=\"nutanix\"),\"\",VLOOKUP($K60,TS4L4_HDD,12,FALSE)))","v":"L4N32"}]
[null,null,null,null,null,null,null,null,null,null,null,null,{"$f":"IF(SUM(N64:N70)>0,IF(K11=ConfigurationTS4L4!A3,\"▲ Selezionare chassis NVME, vSAN, Nutanix o GPU Ready ▲ \nper abilitare dischi nVME\",\"\"),\"\")","v":""},null,null,{"$f":"IF(AND(N64<2,AA11=\"GPUReady\"),\"Selezionare almeno 2 dischi NVMe 1.6\",IF(N63<0,\"Troppi Dischi NVMe\",IF(SUM(N64:N70)>0,\"Sui dischi NVMe non è supportato il RAID Hardware\",\"\")))","v":""}]
[null,null,null,null,null,null,null,null,null,null,"NVMe Bays N° 8",null,"Usati","Disponibili"]
[null,null,null,null,null,null,null,null,null,null,null,null,{"$f":"SUM(N64:N70)","v":0},{"$f":"8-(N64+N66+N68+N70)","v":8}]
[null,null,null,null,null,null,null,null,null,null,{"$f":"ConfigurationTS4L4!A86","v":"1.6TB Enterprise NVMe Mixed Use Drive U.2"},null,{"$f":"VLOOKUP($K64,TS4L4_HDD,13,FALSE)","v":"TS4L4-NVME1,6TB"},0,{"$f":"IF(AND(N64>0,M61<>\"\"),\"!\",\"\")","v":""},{"$f":"T64","v":0},null,null,null,{"$f":"IF(N63<0,0,IF(AND(K11=\"PowerEdge R7525 Server (General Purpose)\",SUM(N64:N70)>0),0,VLOOKUP($K64,TS4L4_HDD,10,FALSE))*N64)","v":0},{"$f":"VLOOKUP($K64,TS4L4_HDD,11,FALSE)","v":0},{"$f":"IF(N63<0,\"\",IF(AND(K11=\"PowerEdge R7525 Server (General Purpose)\",SUM(N64:N70)>0),\"\",VLOOKUP($K64,TS4L4_HDD,12,FALSE)))","v":"L4N18"}]
[]
[null,null,null,null,null,null,null,null,null,null,{"$f":"ConfigurationTS4L4!A88","v":"3.2TB, Enterprise, NVMe, Mixed Use"},null,{"$f":"VLOOKUP($K66,TS4L4_HDD,13,FALSE)","v":"TS4L4-NVMe3.2MU"},0,{"$f":"IF(AND(N66>0,M61<>\"\"),\"!\",\"\")","v":""},{"$f":"U66","v":0},null,null,null,null,{"$f":"IF(N63<0,0,IF(AND(K11=\"PowerEdge R7525 Server (General Purpose)\",SUM(N64:N70)>0),0,VLOOKUP($K66,TS4L4_HDD,11,FALSE))*N66)","v":0},{"$f":"IF(N63<0,\"\",IF(AND(K11=\"PowerEdge R7525 Server (General Purpose)\",SUM(N64:N70)>0),\"\",VLOOKUP($K66,TS4L4_HDD,12,FALSE)))","v":"L4N33"}]
[]
[null,null,null,null,null,null,null,null,null,null,{"$f":"ConfigurationTS4L4!A89","v":"1.92TB, Enterprise, NVMe, Read Intensive"},null,{"$f":"VLOOKUP($K68,TS4L4_HDD,13,FALSE)","v":"TS4L4-NVMe1.92RI"},0,{"$f":"IF(AND(N68>0,M61<>\"\"),\"!\",\"\")","v":""},{"$f":"U68","v":0},null,null,null,null,{"$f":"IF(N63<0,0,IF(AND(K11=\"PowerEdge R7525 Server (General Purpose)\",SUM(N64:N70)>0),0,VLOOKUP($K68,TS4L4_HDD,11,FALSE))*N68)","v":0},{"$f":"IF(N63<0,\"\",IF(AND(K11=\"PowerEdge R7525 Server (General Purpose)\",SUM(N64:N70)>0),\"\",VLOOKUP($K68,TS4L4_HDD,12,FALSE)))","v":"L4N34"}]
[]
[null,null,null,null,null,null,null,null,null,null,{"$f":"ConfigurationTS4L4!A90","v":"3.84TB, Enterprise, NVMe, Read Intensive"},null,{"$f":"VLOOKUP($K70,TS4L4_HDD,13,FALSE)","v":"TS4L4-NVMe3.84RI"},0,{"$f":"IF(AND(N70>0,M61<>\"\"),\"!\",\"\")","v":""},{"$f":"U70","v":0},null,null,null,null,{"$f":"IF(N63<0,0,IF(AND(K11=\"PowerEdge R7525 Server (General Purpose)\",SUM(N64:N70)>0),0,VLOOKUP($K70,TS4L4_HDD,11,FALSE))*N70)","v":0},{"$f":"IF(N63<0,\"\",IF(AND(K11=\"PowerEdge R7525 Server (General Purpose)\",SUM(N64:N70)>0),\"\",VLOOKUP($K70,TS4L4_HDD,12,FALSE)))","v":"L4N35"}]
[]
[null,null,null,null,null,null,null,null,null,null,"BOSS controller card"]
[null,null,null,null,null,null,null,null,null,null,{"$f":"IF(N41=1,ConfigurationTS4L4!A108,ConfigurationTS4L4!A107)","v":"No Boss card"},null,{"$f":"IF(U73>0,VLOOKUP($K73,TS4L4_BOSS,13,FALSE),\"\")","v":""},{"$f":"VLOOKUP($K73,TS4L4_BOSS,7,FALSE)","v":""},null,{"$f":"U73","v":0},null,null,null,{"$f":"VLOOKUP($K73,TS4L4_BOSS,10,FALSE)","v":0},{"$f":"IF(W10=\"JBOD\",0,IF(W15=\"vsan\",0,IF(Z11=\"Nutanix\",0,VLOOKUP($K73,TS4L4_BOSS,11,FALSE))))","v":0},{"$f":"IF(W15=\"vsan\",0,IF(Z11=\"Nutanix\",0,VLOOKUP($K73,TS4L4_BOSS,12,FALSE)))","v":""}]
[]
[null,null,null,null,null,null,null,null,null,{"$f":"IF(N75=\"\",\"\",U76)","v":""},"Power Supply",{"$f":"IF(P75=\"\",\"\",W76)","v":""}]
[null,null,null,null,null,null,null,null,null,null,{"$f":"IF(Y17=1,\"Dual, Hot-plug Power Supply (1+1), 1400W\",IF($M$17=\"TS3L4-GPUDW\",\"Dual, Hot-plug Power Supply (1+1), 2000W\",IF($M$17=\"TS3L4-GPUSW\",\"Dual, Hot-plug Power Supply (1+1), 2000W\",\"Dual, Hot-plug, Redundant Power Supply (1+1), 750W\")))","v":"Dual, Hot-plug Power Supply (1+1), 1400W"},null,{"$f":"VLOOKUP($K76,TS4L4_PSU,13,FALSE)","v":"TS4L4-PSU1400W"},{"$f":"VLOOKUP($K76,TS4L4_PSU,7,FALSE)","v":1},null,null,null,null,null,{"$f":"VLOOKUP($K76,TS4L4_PSU,10,FALSE)","v":0},{"$f":"VLOOKUP($K76,TS4L4_PSU,11,FALSE)","v":0},{"$f":"VLOOKUP($K76,TS4L4_PSU,12,FALSE)","v":"L4N49"}]
[]
[null,null,null,null,null,null,null,null,null,null,"Embedded Systems Management"]
[null,null,null,null,null,null,null,null,null,null,"iDRAC9,Enterprise"]
[]
[]
[]
[null,null,null,null,null,null,null,null,null,null,"Slot PCI\nIn questa sezione è possibile selezionare la configurazione degli Slot PCI"]
[]
[]
[null,null,null,null,null,null,null,null,{"$f":"IF(AA11=\"GPUReady\",\"Slot per GPU 1 Double Wide (Occupa 2 Slot PCI, 1 e 2)\",\"\")","v":""},null,"PCI Slot 1 Processor 1 x8 PCIe Gen4 for HL/FH",null,{"$f":"IF(AND(K23=\"No Additional Processor\",SUM(N93:N108)>0),\"Selezionare Processore Aggiuntivo o Deselezionare Schede PCI\",IF(AND(K87=\"Nvidia A30\",$AA$11<>\"GPUReady\"),\"Selezionare server GPU Ready o deselezionare Scheda GPU\",IF(AND(K87=\"Nvidia A40\",$AA$11<>\"GPUReady\"),\"Selezionare server GPU Ready o deselezionare Scheda GPU\",IF(AND(AA11=\"GPUReady\",(SUM(W87:X87))=0,K87<>\"Slot non utilizzato\"),\"Deselezionare scheda PCI o Selezionare GPU\",\"\"))))","v":""}]
[null,null,null,null,null,null,null,null,null,null,"Slot Non Utilizzato",null,{"$f":"IF(AND($AA$11<>\"GPUReady\",K87=\"Nvidia A30\"),\"\",IF(AND($AA$11<>\"GPUReady\",K87=\"Nvidia A40\"),\"\",IF(AND($AA$11=\"GPUReady\",(SUM(W87:X87)=0)),\"\",IF(AND($AA$11=\"GPUReady\",(SUM(W87:X87)>0)),VLOOKUP($K87,TS4L4_GPU,13,FALSE),VLOOKUP($K87,TS4L4_PCI,13,)))))","v":""},{"$f":"IF(AND($AA$11<>\"GPUReady\",K87=\"Nvidia A30\"),\"\",IF(AND($AA$11<>\"GPUReady\",K87=\"Nvidia A40\"),\"\",IF(AND($AA$11=\"GPUReady\",(SUM(W87:X87)=0)),\"\",IF(AND($AA$11=\"GPUReady\",(SUM(W87:X87)>0)),VLOOKUP($K87,TS4L4_GPU,7,FALSE),VLOOKUP($K87,TS4L4_PCI,7,FALSE)))))","v":""},null,{"$f":"T87+U87","v":0},null,null,null,{"$f":"IF(AND($AA$11<>\"GPUReady\",K87=\"Nvidia A30\"),0,IF(AND($AA$11<>\"GPUReady\",K87=\"Nvidia A40\"),0,IF(AND($AA$11=\"GPUReady\",(SUM(W87:X87)=0)),0,IF(AND($AA$11=\"GPUReady\",(SUM(W87:X87)>0)),VLOOKUP($K87,TS4L4_GPU,10,FALSE),VLOOKUP($K87,TS4L4_PCI,10,FALSE)))))","v":0},{"$f":"IF(AND($AA$11<>\"GPUReady\",K87=\"Nvidia A30\"),0,IF(AND($AA$11<>\"GPUReady\",K87=\"Nvidia A40\"),0,IF(AND($AA$11=\"GPUReady\",(SUM(W87:X87)=0)),0,IF(AND($AA$11=\"GPUReady\",(SUM(W87:X87)>0)),VLOOKUP($K87,TS4L4_GPU,11,FALSE),VLOOKUP($K87,TS4L4_PCI,11,FALSE)))))","v":0},{"$f":"IF(AND($AA$11<>\"GPUReady\",K87=\"Nvidia A30\"),\"\",IF(AND($AA$11<>\"GPUReady\",K87=\"Nvidia A40\"),\"\",IF(AND($AA$11=\"GPUReady\",(SUM(W87:X87)=0)),\"\",IF(AND($AA$11=\"GPUReady\",(SUM(W87:X87)>0)),VLOOKUP($K87,TS4L4_GPU,12,FALSE),VLOOKUP($K87,TS4L4_PCI,12,FALSE)))))","v":""},{"$f":"IF(K87=\"Nvidia A30\",1,0)","v":0},{"$f":"IF(K87=\"Nvidia A40\",2,0)","v":0}]
[]
[null,null,null,null,null,null,null,null,null,null,"PCI Slot 2 Processor 1 x8 PCIe Gen4 for HL/FH",null,null,null,null,null,null,null,null,null,null,null,{"$f":"IF(AND(AA11=\"GPUReady\",(SUM(W87:X87))=0,K87<>\"Slot non utilizzato\"),\"Deselezionare scheda PCI o Selezionare GPU\",\"\")","v":""}]
[null,null,null,null,null,null,null,null,null,null,"Slot Non Utilizzato",null,{"$f":"IF(AND(AA11=\"GPUReady\",K90<>\"Slot non utilizzato\"),\"\",VLOOKUP($K90,TS4L4_PCI,13,FALSE))","v":""},{"$f":"IF(AND(AA11=\"GPUReady\",K90<>\"Slot non utilizzato\"),\"\",VLOOKUP($K90,TS4L4_PCI,7,FALSE))","v":""},null,{"$f":"T90+U90","v":0},null,null,null,{"$f":"IF(AND(AA11=\"GPUReady\",K90<>\"Slot non utilizzato\"),0,VLOOKUP($K90,TS4L4_PCI,10,FALSE))","v":0},{"$f":"IF(AND(AA11=\"GPUReady\",K90<>\"Slot non utilizzato\"),0,VLOOKUP($K90,TS4L4_PCI,11,FALSE))","v":0},{"$f":"IF(AND(AA11=\"GPUReady\",K90<>\"Slot non utilizzato\"),\"\",VLOOKUP($K90,TS4L4_PCI,12,FALSE))","v":""}]
[]
[null,null,null,null,null,null,null,null,null,null,"PCI Slot 3 Processor 1 x16 PCIe Gen4 for HL/LP",null,{"$f":"IF(AND(N127<>0,SUM(S102,S93)=0),\"Slot Controller H840 per JBOD\",IF(SUM(S93,S102)>1,\"Selezionare un solo controller H840 a scelta tra slot 3 e 6\",IF(AND(K102=\"PERC H840 RAID Adapter for External JBOD Only\",N127<>1),\"Il controller H840 è compatibile esclusivamente con il  JBOD, aggiungere JBOD nelle successive opzioni\",IF(AND(N23<>1,K102<>\"Slot non Utilizzato\"),\"Selezionare Processore Aggiuntivo per Abilitare Ulteriori Slot PCI\",\"\"))))","v":""}]
[null,null,null,null,null,null,null,null,null,null,"Slot Non Utilizzato",null,{"$f":"IF($Z$11=\"nutanix\",\"\",VLOOKUP($K93,TS4L4_PCI_LP,13,FALSE))","v":""},{"$f":"IF($Z$11=\"nutanix\",\"\",VLOOKUP($K93,TS4L4_PCI_LP,7,FALSE))","v":""},null,{"$f":"T93+U93","v":0},null,null,{"$f":"IF(K93=\"PERC H840 RAID Adapter for External JBOD Only\",1,0)","v":0},{"$f":"IF($Z$11=\"nutanix\",0,VLOOKUP($K93,TS4L4_PCI_LP,10,FALSE))","v":0},{"$f":"IF($Z$11=\"nutanix\",0,VLOOKUP($K93,TS4L4_PCI_LP,11,FALSE))","v":0},{"$f":"IF($Z$11=\"nutanix\",\"\",VLOOKUP($K93,TS4L4_PCI_LP,12,FALSE))","v":0}]
[]
[null,null,null,null,null,null,null,null,{"$f":"IF(AA11=\"GPUReady\",\"Slot per GPU 2 Double Wide (Occupa 2 Slot PCI, 4 e 5)\",\"\")","v":""},{"$f":"IF($X$82=\"SW\",\"GPU Slot\",IF($X$82=\"DW\",\"GPU Slot\",\"\"))","v":""},"PCI Slot 4 Processor 2 x8 PCIe Gen4 for HL/FH",{"$f":"IF($X$82=\"SW\",\"GPU Slot\",IF($X$82=\"DW\",\"GPU Slot\",\"\"))","v":""},{"$f":"IF(AND(K96=\"Nvidia A30\",$AA$11<>\"GPUReady\"),\"Selezionare server GPU Ready o deselezionare Scheda GPU\",IF(AND(K96=\"Nvidia A40\",$AA$11<>\"GPUReady\"),\"Selezionare server GPU Ready o deselezionare Scheda GPU\",\"\"))","v":""}]
[null,null,null,null,null,null,null,null,null,null,"Slot Non Utilizzato",null,{"$f":"IF(AND($AA$11<>\"GPUREADY\",K96=\"Nvidia A30\"),\"\",IF(AND($AA$11<>\"GPUREADY\",K96=\"Nvidia A40\"),\"\",IF($AA$11=\"GPUReady\",VLOOKUP($K96,TS4L4_GPU,13,FALSE),VLOOKUP($K96,TS4L4_PCI,13,))))","v":""},{"$f":"IF(AND($AA$11<>\"GPUREADY\",K96=\"Nvidia A30\"),\"\",IF(AND($AA$11<>\"GPUREADY\",K96=\"Nvidia A40\"),\"\",IF($AA$11=\"GPUReady\",VLOOKUP($K96,TS4L4_GPU,7,FALSE),VLOOKUP($K96,TS4L4_PCI,7,FALSE))))","v":""},null,{"$f":"T96+U96","v":0},null,null,null,{"$f":"IF(AND($AA$11<>\"GPUREADY\",K96=\"Nvidia A30\"),0,IF(AND($AA$11<>\"GPUREADY\",K96=\"Nvidia A40\"),0,IF($AA$11=\"GPUReady\",VLOOKUP($K96,TS4L4_GPU,10,FALSE),VLOOKUP($K96,TS4L4_PCI,10,FALSE))))","v":0},{"$f":"IF(AND($AA$11<>\"GPUREADY\",K96=\"Nvidia A30\"),0,IF(AND($AA$11<>\"GPUREADY\",K96=\"Nvidia A40\"),0,IF($AA$11=\"GPUReady\",VLOOKUP($K96,TS4L4_GPU,11,FALSE),VLOOKUP($K96,TS4L4_PCI,11,FALSE))))","v":0},{"$f":"IF(AND($AA$11<>\"GPUREADY\",K96=\"Nvidia A30\"),\"\",IF(AND($AA$11<>\"GPUREADY\",K96=\"Nvidia A40\"),\"\",IF($AA$11=\"GPUReady\",VLOOKUP($K96,TS4L4_GPU,12,FALSE),VLOOKUP($K96,TS4L4_PCI,12,FALSE))))","v":""}]
[]
[null,null,null,null,null,null,null,null,null,{"$f":"IF($X$82=\"SW\",\"GPU Slot\",\"\")","v":""},"PCI Slot 5 Processor 2 x8 PCIe Gen4 for HL/FH",{"$f":"IF($X$82=\"SW\",\"GPU Slot\",\"\")","v":""}]
[null,null,null,null,null,null,null,null,null,null,"Slot Non Utilizzato",null,{"$f":"IF(AND(AA11=\"GPUReady\",K99<>\"Slot non utilizzato\"),\"\",VLOOKUP($K99,TS4L4_PCI,13,FALSE))","v":""},{"$f":"IF(AND(AA11=\"GPUReady\",K99<>\"Slot non utilizzato\"),\"\",VLOOKUP($K99,TS4L4_PCI,7,FALSE))","v":""},null,{"$f":"T99+U99","v":0},null,null,null,{"$f":"IF(AND(AA11=\"GPUReady\",K99<>\"Slot non utilizzato\"),0,VLOOKUP($K99,TS4L4_PCI,10,FALSE))","v":0},{"$f":"IF(AND(AA11=\"GPUReady\",K99<>\"Slot non utilizzato\"),0,VLOOKUP($K99,TS4L4_PCI,11,FALSE))","v":0},{"$f":"IF(AND(AA11=\"GPUReady\",K99<>\"Slot non utilizzato\"),\"\",VLOOKUP($K99,TS4L4_PCI,12,FALSE))","v":""}]
[]
[null,null,null,null,null,null,null,null,null,null,"PCI Slot 6 Processor 2 x16 PCIe Gen4 for HL/LP",null,{"$f":"IF(AND(N127<>0,SUM(S102,S93)=0),\"Slot Controller H840 per JBOD\",IF(SUM(S93,S102)>1,\"Selezionare un solo controller H840 a scelta tra slot 3 e 6\",IF(AND(K102=\"PERC H840 RAID Adapter for External JBOD Only\",N127<>1),\"Il controller H840 è compatibile esclusivamente con il  JBOD, aggiungere JBOD nelle successive opzioni\",IF(AND(N23<>1,K102<>\"Slot non Utilizzato\"),\"Selezionare Processore Aggiuntivo per Abilitare Ulteriori Slot PCI\",\"\"))))","v":""}]
[null,null,null,null,null,null,null,null,null,null,"Slot Non Utilizzato",null,{"$f":"VLOOKUP($K102,TS4L4_PCI_LP,13,FALSE)","v":""},{"$f":"VLOOKUP($K102,TS4L4_PCI_LP,7,FALSE)","v":""},null,{"$f":"T102+U102","v":0},null,null,{"$f":"IF(K102=\"PERC H840 RAID Adapter for External JBOD Only\",1,0)","v":0},{"$f":"IF($Z$11=\"nutanix\",0,VLOOKUP($K102,TS4L4_PCI_LP,10,FALSE))","v":0},{"$f":"IF($Z$11=\"nutanix\",0,VLOOKUP($K102,TS4L4_PCI_LP,11,FALSE))","v":0},{"$f":"IF($Z$11=\"nutanix\",\"\",VLOOKUP($K102,TS4L4_PCI_LP,12,FALSE))","v":0}]
[]
[null,null,null,null,null,null,null,null,{"$f":"IF(AA11=\"GPUReady\",\"Slot per GPU 3 Double Wide (Occupa 2 Slot PCI,7 e 8)\",\"\")","v":""},{"$f":"IF($X$82=\"SW\",\"GPU Slot\",\"\")","v":""},"PCI Slot 7 Processor 2 x8 PCIe Gen4 for HL/FH",{"$f":"IF($X$82=\"SW\",\"GPU Slot\",\"\")","v":""},{"$f":"IF(AND(K105=\"Nvidia A30\",$AA$11<>\"GPUReady\"),\"Selezionare server GPU Ready o deselezionare Scheda GPU\",IF(AND(K105=\"Nvidia A40\",$AA$11<>\"GPUReady\"),\"Selezionare server GPU Ready o deselezionare Scheda GPU\",\"\"))","v":""}]
[null,null,null,null,null,null,null,null,null,null,"Slot Non Utilizzato",null,{"$f":"IF(AND($AA$11<>\"GPUREADY\",K105=\"Nvidia A30\"),\"\",IF(AND($AA$11<>\"GPUREADY\",K105=\"Nvidia A40\"),\"\",IF($AA$11=\"GPUReady\",VLOOKUP($K105,TS4L4_GPU,13,FALSE),VLOOKUP($K105,TS4L4_PCI,13,))))","v":""},{"$f":"IF(AND($AA$11<>\"GPUREADY\",K105=\"Nvidia A30\"),\"\",IF(AND($AA$11<>\"GPUREADY\",K105=\"Nvidia A40\"),\"\",IF($AA$11=\"GPUReady\",VLOOKUP($K105,TS4L4_GPU,7,FALSE),VLOOKUP($K105,TS4L4_PCI,7,FALSE))))","v":""},null,{"$f":"T105+U105","v":0},null,null,null,{"$f":"IF(AND($AA$11<>\"GPUREADY\",K105=\"Nvidia A30\"),0,IF(AND($AA$11<>\"GPUREADY\",K105=\"Nvidia A40\"),0,IF($AA$11=\"GPUReady\",VLOOKUP($K105,TS4L4_GPU,10,FALSE),VLOOKUP($K105,TS4L4_PCI,10,FALSE))))","v":0},{"$f":"IF(AND($AA$11<>\"GPUREADY\",K105=\"Nvidia A30\"),0,IF(AND($AA$11<>\"GPUREADY\",K105=\"Nvidia A40\"),0,IF($AA$11=\"GPUReady\",VLOOKUP($K105,TS4L4_GPU,11,FALSE),VLOOKUP($K105,TS4L4_PCI,11,FALSE))))","v":0},{"$f":"IF(AND($AA$11<>\"GPUREADY\",K105=\"Nvidia A30\"),\"\",IF(AND($AA$11<>\"GPUREADY\",K105=\"Nvidia A40\"),\"\",IF($AA$11=\"GPUReady\",VLOOKUP($K105,TS4L4_GPU,12,FALSE),VLOOKUP($K105,TS4L4_PCI,12,FALSE))))","v":""}]
[]
[null,null,null,null,null,null,null,null,null,{"$f":"IF($X$82=\"SW\",\"GPU Slot\",IF($X$82=\"DW\",\"GPU Slot\",\"\"))","v":""},"PCI Slot 8 Processor 2 x8 PCIe Gen4 for HL/FH",{"$f":"IF($X$82=\"SW\",\"GPU Slot\",IF($X$82=\"DW\",\"GPU Slot\",\"\"))","v":""}]
[null,null,null,null,null,null,null,null,null,null,"Slot Non Utilizzato",null,{"$f":"IF(AND(AA11=\"GPUReady\",K108<>\"Slot non utilizzato\"),\"\",VLOOKUP($K108,TS4L4_PCI,13,FALSE))","v":""},{"$f":"IF(AND(AA11=\"GPUReady\",K108<>\"Slot non utilizzato\"),\"\",VLOOKUP($K108,TS4L4_PCI,7,FALSE))","v":""},null,{"$f":"T108+U108","v":0},null,null,null,{"$f":"IF(AND(AA11=\"GPUReady\",K108<>\"Slot non utilizzato\"),0,VLOOKUP($K108,TS4L4_PCI,10,FALSE))","v":0},{"$f":"IF(AND(AA11=\"GPUReady\",K108<>\"Slot non utilizzato\"),0,VLOOKUP($K108,TS4L4_PCI,11,FALSE))","v":0},{"$f":"IF(AND(AA11=\"GPUReady\",K108<>\"Slot non utilizzato\"),\"\",VLOOKUP($K108,TS4L4_PCI,12,FALSE))","v":""}]
[null,null,null,null,null,null,null,null,null,null,null,null,null,null,null,{"$f":"IF(V108=\"L4N33\",IF($W$108>1,\"ERRORE: SOLO UNA BOSS CARD PUO' ESSERE CONFIGURATA\",\"\"),\"\")","v":""}]
[]
[null,null,null,null,null,null,null,null,null,null,null,null,null,null,null,{"$f":"IF(V110=\"L4N33\",IF($W$108>1,\"ERRORE: SOLO UNA BOSS CARD PUO' ESSERE CONFIGURATA\",\"\"),\"\")","v":""}]
[]
[null,null,null,null,null,null,null,null,"Transceiver per Schede LAN 20%\n(Mellanox HDR, Broadcom 57508)",null,"SFP+ Transceivers 10 Gbps"]
[null,null,null,null,null,null,null,null,null,null,{"$f":"ConfigurationTS4L4!A136","v":"SFP+ SR Optic for all SFP+ ports except High temperature Cards"},null,{"$f":"VLOOKUP($K114,TS4L4_SFP,13,FALSE)","v":"TS4L4-OT10GB"},0,null,{"$f":"T114+U114","v":0},null,null,null,{"$f":"VLOOKUP($K114,TS4L4_SFP,10,FALSE)","v":0},{"$f":"VLOOKUP($K114,TS4L4_SFP,11,FALSE)*ConfigurationTS4L4!G136*N114","v":0},{"$f":"VLOOKUP($K114,TS4L4_SFP,12,FALSE)","v":"L4N109"}]
[]
[null,null,null,null,null,null,null,null,null,null,"SFP28 - 25GbE"]
[null,null,null,null,null,null,null,null,null,null,{"$f":"ConfigurationTS4L4!A137","v":"SFP28 SR Optic, 25GbE, 85C, for all SFP28 ports"},null,{"$f":"VLOOKUP($K117,TS4L4_SFP,13,FALSE)","v":"TS4L4-OT25GB"},0,null,{"$f":"T117+U117","v":0},null,null,null,{"$f":"VLOOKUP($K117,TS4L4_SFP,10,FALSE)","v":0},{"$f":"VLOOKUP($K117,TS4L4_SFP,11,FALSE)*N117","v":0},{"$f":"VLOOKUP($K117,TS4L4_SFP,12,FALSE)","v":"L4N110"}]
[]
[null,null,null,null,null,null,null,null,null,null,"QSFP28 Transceivers"]
[null,null,null,null,null,null,null,null,null,null,{"$f":"ConfigurationTS4L4!A138","v":"Dell EMC PowerEdge QSFP28 SR4 100GbE 85C optic"},null,{"$f":"VLOOKUP($K120,TS4L4_SFP,13,FALSE)","v":"TS4L4-OT100GB"},0,null,{"$f":"T120+U120","v":0},null,null,null,{"$f":"VLOOKUP($K120,TS4L4_SFP,10,FALSE)","v":0},{"$f":"VLOOKUP($K120,TS4L4_SFP,11,FALSE)*N120","v":0},{"$f":"VLOOKUP($K120,TS4L4_SFP,12,FALSE)","v":"L4N111"}]
[]
[]
[null,null,null,null,null,null,null,null,null,null,"Enclosure JBOD da 12 Slot 3,5'' e dishi SAS da inserire nell'Enclosure.\nUna volta selezionato il JBOD e i dischi a corredo si deve obbligatoriamente compilare uno slot PCI a scelta tra lo Slot 3 e lo Slot 6 dove inserire il controller H840 compreso nel Kit JBOD\n"]
[]
[]
[null,null,null,null,null,null,null,null,"Enclosure JBOD Esterno 2 RU comprensivo di connessione con Controller RAID H840 (solo per JBOD) Installabile su Slot PCI low Profile \n(Slot 3-6).\n\n\nI dischi da 12TB, 16TB e 20TB possono essere installati ESCLUSIVAMENTE nel JBOD",null,"Opz JBOD (NO DISK)",null,{"$f":"IF(AND(N127<>0,SUM(S102,S93)=0),\"Selezionare Controller H840 negli slot PCI a scelta a tra 3 e 6\",IF(AND(N127=0,SUM(N130:N136)>0),\"Selezionare JBOD per aggiugere dischi SAS JBOD\",IF(AND(N127<> 0,SUM(N130:N136)=0),\"Il JBOD non ha dischi al suo interno, selezionare dischi da 12TB, 16TB o 20TB per un massimo di 12 dischi.\",IF(AND(N127=1,SUM(N130:N136)>12),\"Superato Numero dischi disponibili per JBOD\",\"\"))))","v":""}]
[null,null,null,null,null,null,null,null,null,null,{"$f":"Tabella_prezzi!H80","v":"Enclosure di espansione JBOD 12 slot 3,5'' + HBA (H840)  "},null,{"$f":"VLOOKUP($K127,TS4L4_20X100,13,FALSE)","v":"TS4L4-JBOD"},0,null,{"$f":"T127+U127","v":0},null,null,null,{"$f":"VLOOKUP($K127,TS4L4_20X100,10,FALSE)*N127","v":0},{"$f":"VLOOKUP($K127,TS4L4_20X100,11,FALSE)*N127","v":0},{"$f":"VLOOKUP($K127,TS4L4_20X100,12,FALSE)","v":"L4N122"}]
[]
[null,null,null,null,null,null,null,null,null,null,"Opz 12TB 7,2 RPM - per JBOD"]
[null,null,null,null,null,null,null,null,null,null,{"$f":"Tabella_prezzi!H81","v":"12TB 7.2K RPM NLSAS ISE 12Gbps 512e 3.5in Hot-plug Hard Drive"},null,{"$f":"VLOOKUP($K130,TS4L4_20X100,13,FALSE)","v":"TS4L4-12TBNLSAS"},0,null,{"$f":"T130+U130","v":0},null,null,null,{"$f":"VLOOKUP($K130,TS4L4_20X100,10,FALSE)*N130","v":0},{"$f":"IF(M126<>\"\",0,VLOOKUP($K130,TS4L4_20X100,11,FALSE)*N130)","v":0},{"$f":"VLOOKUP($K130,TS4L4_20X100,12,FALSE)","v":"L4N123"}]
[]
[null,null,null,null,null,null,null,null,null,null,"Opz 16TB 7,2 RPM - per JBOD"]
[null,null,null,null,null,null,null,null,null,null,{"$f":"Tabella_prezzi!H82","v":"16TB Hard Drive SAS ISE 12Gbps 7.2K 512e 3.5in Hot-Plug"},null,{"$f":"VLOOKUP($K133,TS4L4_20X100,13,FALSE)","v":"TS4L4-16TBSAS"},0,null,{"$f":"T133+U133","v":0},null,null,null,{"$f":"VLOOKUP($K133,TS4L4_20X100,10,FALSE)*N133","v":0},{"$f":"IF(M126<>\"\",0,VLOOKUP($K133,TS4L4_20X100,11,FALSE)*N133)","v":0},{"$f":"VLOOKUP($K133,TS4L4_20X100,12,FALSE)","v":"L4N124"}]
[]
[null,null,null,null,null,null,null,null,null,null,"Opz 20TB 7,2 RPM - per JBOD"]
[null,null,null,null,null,null,null,null,null,null,{"$f":"Tabella_prezzi!H83","v":"20TB HDD SAS ISE 12Gbps 7.2K 512e 3.5in Hot-Plug"},null,{"$f":"VLOOKUP($K136,TS4L4_20X100,13,FALSE)","v":"TS4L4-20TBSAS"},0,null,{"$f":"T136+U136","v":0},null,null,null,{"$f":"VLOOKUP($K136,TS4L4_20X100,10,FALSE)*N136","v":0},{"$f":"IF(M126<>\"\",0,VLOOKUP($K136,TS4L4_20X100,11,FALSE)*N136)","v":0},{"$f":"VLOOKUP($K136,TS4L4_20X100,12,FALSE)","v":"L4N125"}]
[]
[]
[null,null,null,null,null,null,null,null,null,null,"Estensione di Garanzia e Hard Disk Retention"]
[]
[]
[null,null,null,null,null,null,null,null,null,null,"Garanzia"]
[null,null,null,null,null,null,null,null,null,null,"Manutenzione in garanzia (36 mesi)",null,{"$f":"VLOOKUP($K143,TS4L4_WARR,13,FALSE)","v":""},{"$f":"VLOOKUP($K143,TS4L4_WARR,7,FALSE)","v":""},null,{"$f":"T143","v":0},null,null,null,{"$f":"VLOOKUP($K143,TS4L4_WARR,10,FALSE)","v":0},{"$f":"VLOOKUP($K143,TS4L4_WARR,11,FALSE)","v":0},{"$f":"VLOOKUP($K143,TS4L4_WARR,12,FALSE)","v":""}]
[]
[null,null,null,null,null,null,null,null,null,null,"Hard Disk Retention",null,null,{"$f":"IF(AND($K$146=\"Hard Disk Retention 60 mesi\",$N$143=\"\"),\"Selezionare Estensione di Garanzia 24 Mesi\",\"\")","v":""}]
[null,null,null,null,null,null,null,null,null,null,"No Hard Disk Retention",null,{"$f":"VLOOKUP(K146,TS4L4_HDDRET,13,FALSE)","v":""},{"$f":"IF(K146=\"No Hard Disk Retention\",\"\",1)","v":""},null,{"$f":"T146","v":0},null,null,null,{"$f":"IF(AND(K146=\"Hard Disk Retention 60 mesi\",N143=\"\"),\"\",VLOOKUP(K146,TS4L4_HDDRET,10,FALSE))","v":0},{"$f":"IFERROR(Z146,VLOOKUP(K146,TS4L4_HDDRET,11,FALSE))","v":0},{"$f":"IF(AND(K146=\"Hard Disk Retention 60 mesi\",N143=\"\"),\"\",VLOOKUP(K146,TS4L4_HDDRET,12,FALSE))","v":""}]
[]
[null,null,null,null,null,null,null,null,null,null,null,null,"Configurazione",{"$f":"SUM(T11:T146)*N8","v":0},null,null,null,null,null,{"$f":"IF(AND($N$146=1,$N$143=\"\"),\"Selezionare Estensione di Garanzia 24 Mesi\",\"\")","v":""}]
[null,null,null,null,null,null,null,null,null,null,null,null,0.2,{"$f":"SUM(U11:U146)*N8","v":0}]
[null,null,null,null,null,null,null,null,null,null,null,null,"Totale",{"$f":"SUM(N148:N149)","v":0}]
[]
[null,null,null,null,null,null,null,null,null,null,"NOTE"]

{"sheet":"Lotto4_R7525_3","index":3,"n_rows":152,"n_cols":32,"rows_kept":152,"cut":false,"hidden":false,"merged":[[3,12,4,12],[5,12,6,12],[9,9,10,9],[15,9,16,9],[18,9,19,9],[39,9,40,9],[1,10,2,10],[3,10,5,10],[112,8,119,8],[122,10,123,13],[9,11,10,11],[15,11,16,11],[18,11,19,11],[39,11,40,11],[39,12,39,15],[42,10,43,10],[42,15,43,15],[60,12,60,13],[60,15,62,15],[74,11,75,11],[76,15,78,16],[125,8,135,8],[125,9,126,9],[125,11,126,11],[125,12,125,15],[128,9,129,9],[128,11,129,11],[131,9,132,9],[131,11,132,11],[134,9,135,9],[77,11,78,11],[82,10,83,13],[85,8,89,8],[85,12,85,13],[77,9,78,9],[91,12,91,13],[94,8,98,8],[94,12,94,13],[100,12,100,13],[103,8,107,8],[103,12,103,13],[151,10,151,13],[152,10,158,13],[134,11,135,11],[138,10,139,13],[141,9,142,9],[141,11,142,11],[144,9,145,9],[144,11,145,11]]}
[]
[null,null,null,null,null,null,null,null,null,null,"Convenzione \nTecnologie Server 4 - Lotto 4",null,{"$f":"IF(W108>1,\"ERRORE NELLA CONFIGURAZIONE\",\"\")","v":""},null,null,{"$f":"IF(Riepilogo_Ordine!K141>Riepilogo_Ordine!G141,\"Superata Quota 20%\",\"\")","v":""},null,null,null,null,null,null,null,null,null,null,null,null,null,"SALVAPDF"]
[null,null,null,null,null,null,null,null,null,null,null,null,null,null,null,"Articoli 20% Totali",null,null,"Check HD 2","Check HDD Nut","Check CPU","Check RAM","Check NVME","Check PCI","Check Win","Check Warr","Check nVME","Check Tot",null,{"$f":"IF(N8>0,1,0)","v":0}]
[null,null,null,null,null,null,null,null,null,null,{"$f":"IF(Z11=\"Nutanix\",\"Selezionando la soluzione Nutanix si accetta la sostituzione del server base con la versione XC comprensivo di HBA355 (Non RAID), BOSS Card e LAN 10 GB su slot OCP\",IF(W15=\"vsan\",\"Selezionando la soluzione vSAN si accetta la sostituzione del controller 745 con il HBA355 (Non RAID), comprensivo di BOSS Card\",\"Selezionare Il server Base e cliccare su 'Compila Configurazione' per inserire le opzioni necessarie e obbligatorie a soddisfare la configurazione selezionata\"))","v":"Selezionare Il server Base e cliccare su 'Compila Configurazione' per inserire le opzioni necessarie e obbligatorie a soddisfare la configurazione selezionata"},null,{"$f":"IF(AB4>1,\"Errori nella Configurazione\",IF(AA4>0,\"Troppi Dischi nVME\",IF(S4>0,\"Troppi Dischi SAS\",IF(U4>0,\"Errore nella Selezione della CPU\",IF(V4>0,\"Errore Nella Selezione della RAM\",IF(W4>0,\"Errore Nella selezione dello Chassis per Dischi nVME\",IF(X4>0,\"Errore nella Selezione Slot PCI\",IF(Y4>0,\"Errore nella Selezione Licenze Windows\",IF(Z4>0,\"Errore Selezione Garanzia o HDD Retention\",IF(T4>0,\"Errore Selezione Dischi\",IF(T6=1,\"Errore Selezione dischi NVMe\",\"\")))))))))))","v":""},"Totale Altre Opzioni",null,{"$f":"Riepilogo_Ordine!K141","v":0},null,null,{"$f":"IF(N44<0,1,0)","v":0},{"$f":"IF(AND(Z11=\"Nutanix\",AF46>1),1,0)","v":0},{"$f":"IF(N22<>\"\",1,0)","v":0},{"$f":"IF(N25<>\"\",1,0)","v":0},{"$f":"IF(M61<>\"\",1,0)","v":0},{"$f":"IF(M86<>\"\",1,0)","v":0},{"$f":"IF(N28<>\"\",1,0)","v":0},{"$f":"IF(N145<>\"\",1,0)","v":0},{"$f":"IF(N63<0,1,0)","v":0},{"$f":"SUM(S4:AA4)+T6","v":0}]
[null,null,null,null,null,null,null,null,null,null,null,null,null,{"$f":"'Altre Opzioni'!L3","v":0},null,"Quota Residua 20 %",null,null,null,"Check NVMe GPU"]
[null,null,null,null,null,null,null,null,null,null,null,null,"Guida alla Convenzione","Totale Configurazione",null,{"$f":"Riepilogo_Ordine!G142","v":0},null,null,null,{"$f":"IF(AND(N64=0,AA11=\"GPUReady\"),1,0)","v":0}]
[null,null,null,null,null,null,null,null,{"$f":"IF(AND(Y11=\"Vsan\",N73=\"\"),\"Utilizzando il controller HBA355 in una soluzione vSAN, per il boot si deve utilizzare la 'BOSS Card'\",IF(AND(Z11=\"Nutanix\",N73=\"\"),\"Utilizzando il controller HBA355 in una soluzione Nutanix, per il boot si deve utilizzare la 'BOSS Card'\",\"\"))","v":""},null,{"$f":"IF(Riepilogo_Ordine!P8>0,\"Compilare i Dati nel Foglio Riepilogo per Stampare in PDF\",\"\")","v":"Compilare i Dati nel Foglio Riepilogo per Stampare in PDF"},null,null,{"$f":"N148+N149","v":0},null,"Totale Ordine\nIva Esclusa",null,null,null,{"$f":"N7+Lotto4_R7525_2!L7","v":0}]
[null,null,null,null,null,null,null,null,null,null,"DELL POWEREDGE R7525",null,"Quantità Server",0,null,{"$f":"Riepilogo_Ordine!K142","v":0}]
[]
[null,null,null,null,null,null,null,null,null,null,"Base",null,null,null,null,null,null,null,null,null,null,null,{"$f":"IF(N127<>0,\"JBOD\",\"\")","v":""},"PowerEdge R7525 Server (General Purpose)",{"$f":"IF(AND(X11=\"\",Y11=\"vSAN\"),1,IF(AND(X11=\"nvme\",Y11=\"\"),3,2))","v":2}]
[null,null,null,null,null,null,null,null,null,null,"PowerEdge R7525 Server (General Purpose)",null,{"$f":"IF($N$8=0,\"\",VLOOKUP(K11,TS4L4_Base,13,FALSE))","v":""},{"$f":"IF($N$8>0,1,\"\")","v":""},null,{"$f":"T11","v":3637.17},null,null,null,{"$f":"VLOOKUP($K$11,TS4L4_Base,10,FALSE)","v":3637.17},null,{"$f":"VLOOKUP($K11,TS4L4_Base,12,FALSE)","v":"L4N01"},null,{"$f":"IF(AND(K11=ConfigurationTS4L4!A13,N23=\"\"),\"nVME1\",IF(AND(K11=ConfigurationTS4L4!A13,N23=1),\"nVME2\",\"\"))","v":""},{"$f":"IF(K11=ConfigurationTS4L4!A14,512,IF(K11=ConfigurationTS4L4!A15,1024,IF(K11=ConfigurationTS4L4!A16,2048,\"\")))","v":""},{"$f":"IF(K11=ConfigurationTS4L4!A17,\"Nutanix\",\"\")","v":""},{"$f":"IF(K11=ConfigurationTS4L4!A9,\"GPUReady\",\"\")","v":""}]
[]
[]
[]
[null,null,null,null,null,null,null,null,null,null,{"$f":"IF(SUM(N64:N70)>0,IF(K11=ConfigurationTS4L4!A3,\"▲ Selezionare chassis NVME, vSAN, Nutanix o ▲ GPUReady \n per Abilitare nVME \",\"\"),\"\")","v":""},null,null,null,null,null,null,null,null,null,null,null,{"$f":"IF(Y11<>\"\",\"vsan\",\"\")","v":""},{"$f":"IF(AND(Y15=\"GP1\",K26>512),\"Selezionare RAM Corretta\",\"\")","v":""},{"$f":"IF(AND(K11=ConfigurationTS4L4!A12,N23=\"\"),\"GP1\",IF(AND(K11=ConfigurationTS4L4!A12,N23=1),\"GP2\",\"\"))","v":"GP1"}]
[null,null,null,null,null,null,null,null,null,null,"Chassis Configuration",null,{"$f":"IF($X$82=\"SW\",\"MAX 4 GPU\",IF($X$82=\"DW\",\"MAX 2 GPU\",\"\"))","v":""}]
[null,null,null,null,null,null,null,null,null,null,{"$f":"IF(N23=1,VLOOKUP($K$11,TS4L4_Chassis,3,FALSE),VLOOKUP($K$11,TS4L4_Chassis,2,FALSE))","v":"Chassis with Up to 16 x 2.5 Hard Drives for 1CPU Configuration"},null,{"$f":"IF($N$23=1,VLOOKUP($K$11,TS4L4_Chassis,11,FALSE),VLOOKUP($K$11,TS4L4_Chassis,9,FALSE))","v":"TS4L4-Opz1CPU"},{"$f":"VLOOKUP(K11,TS4L4_Chassis,7,0)","v":0},null,{"$f":"T17+U17","v":0},null,null,null,null,{"$f":"VLOOKUP($K$11,TS4L4_Chassis,10,FALSE)*N17","v":0},{"$f":"IF(N17=0,\"\",(VLOOKUP($K11,TS4L4_Chassis,12,FALSE)))","v":""},null,"Chassis with Up to 24 x 2.5'' Hard Drives for 2CPU Configuration",1]
[]
[null,null,null,null,null,null,null,null,null,null,"Processor"]
[null,null,null,null,null,null,null,null,null,null,"AMD7413 2.65GHz,24C/48T,128M,180W,3200CK",null,null,null,null,null,null,null,null,{"$f":"IF(N17=1,VLOOKUP($K$20,TS4L4_CPU,11,FALSE),VLOOKUP($K$20,TS4L4_CPU,11,FALSE))","v":0},{"$f":"IF(N17=1,VLOOKUP($K$20,TS4L4_CPU,11,FALSE),VLOOKUP($K$20,TS4L4_CPU,11,FALSE))","v":0},{"$f":"IF(U20=0,0,VLOOKUP($K20,TS4L4_CPU,12,FALSE))","v":0}]
[]
[null,null,null,null,null,null,null,null,null,null,"Additional Processor",null,null,{"$f":"IF(AND(Y11=512,N23=\"\"),\"Selezionare Processore Aggiuntivo per Configurazione vSAN\",IF(AND(X11=\"nVME1\",N23=\"\"),\"Selezionare Processore Aggiuntivo per Configurazione nVME\",IF(AND(Y11=1024,N23=\"\"),\"Selezionare Processore Aggiuntivo per Configurazione vSAN\",IF(AND(Y11=2048,N23=\"\"),\"Selezionare Processore Aggiuntivo per Configurazione vSAN\",IF(AND(Z11=\"Nutanix\",N23=\"\"),\"Selezionare Processore Aggiuntivo per Configurazione Nutanix\",IF(AND(AA11=\"GPUReady\",N23=\"\"),\"Selezionare Processore Aggiuntivo per Configurazione GPUReady\",\"\"))))))","v":""}]
[null,null,null,null,null,null,null,null,{"$f":"IF(AND(K23=\"No Additional Processor\",SUM(L90:L105)>0),\"Selezionare Processore Aggiuntivo o Deselezionare Schede PCI\",\"\")","v":""},null,"No Additional Processor",null,{"$f":"IF(N17=1,VLOOKUP($K$20,TS4L4_CPU,13,FALSE),VLOOKUP($K$23,TS4L4_CPU,13,FALSE))","v":""},{"$f":"IF(N17=1,VLOOKUP($K$23,TS4L4_CPU,7,FALSE),VLOOKUP($K$23,TS4L4_CPU,7,FALSE))","v":""},null,{"$f":"T23","v":0},null,null,null,{"$f":"IF(N17=1,VLOOKUP($K$20,TS4L4_CPU,10,FALSE),VLOOKUP($K$23,TS4L4_CPU,10,FALSE))","v":0},{"$f":"IF(N17=1,VLOOKUP($K$20,TS4L4_CPU,11,FALSE),VLOOKUP($K$23,TS4L4_CPU,11,FALSE))","v":0},{"$f":"IF(N17=1,VLOOKUP(K20,TS4L4_CPU,12,FALSE),VLOOKUP($K23,TS4L4_CPU,12,FALSE))","v":""},null,{"$f":"IF(N23=1,\"AMD7413 2.65GHz,24C/48T,128M,180W,3200CK\",K23)","v":"No Additional Processor"}]
[]
[null,null,null,null,null,null,null,null,null,null,"Memory Capacity (GB)",null,null,{"$f":"IF(AND(Y11=512,K26<>512),\"Selezionare 512 GB Ram'\",IF(AND(Y11=1024,K26<>1024),\"Selezionare 1 TB RAM\",IF(AND(Y11=2048,K26<>2048),\"Selezionare 2 TB RAM\",IF(AND(Z11=\"Nutanix\",K26<>2048),\"Selezionare 2TB RAM\",IF(AND(Y15=\"GP1\",K26>512),\"Selezionare RAM Corretta\",IF(AND(Y15=\"GP2\",K26>1536),\"Selezionare RAM Corretta\",IF(AND(X11=\"nVME1\",K26>512),\"Selezionare RAM Corretta\",IF(AND(X11=\"nVME2\",K26>1536),\"Selezionare RAM Corretta\",IF(AND(AA11=\"GPUReady\",K26<>2048),\"Selezionare Base GPUReady e cliccare su 'Compila Configurazione'\",\"\")))))))))","v":""}]
[null,null,null,null,null,null,null,null,null,null,256,null,{"$f":"IF(K23=\"No Additional Processor\",VLOOKUP(K26,TS4L4_RAM2CPU,13,FALSE),VLOOKUP(K26,TS4L4_RAM2CPU,13,FALSE))","v":"TS4L4-RAM32"},{"$f":"IF(N25<>\"\",0,Y26)","v":0},null,{"$f":"T26","v":0},null,null,null,{"$f":"IF(N25<>\"\",0,IF(K23=\"No Additional Processor\",VLOOKUP(K26,TS4L4_RAM2CPU,10,FALSE),VLOOKUP(K26,TS4L4_RAM2CPU,10,FALSE)))","v":0},null,{"$f":"IF(N25<>\"\",0,AA26)","v":""},null,{"$f":"IF($N$23=1,VLOOKUP($K$26,TS4L4_RAM2CPU,13,FALSE),VLOOKUP($K$26,TS4L4_RAM1Cpu,13,FALSE))","v":"TS4L4-RAM32"},{"$f":"IF($N$23=1,VLOOKUP($K$26,TS4L4_RAM2CPU,7,FALSE),VLOOKUP($K$26,TS4L4_RAM1Cpu,7,FALSE))","v":0},{"$f":"IF($N$23=1,VLOOKUP($K$26,TS4L4_RAM2CPU,10,FALSE),VLOOKUP($K$26,TS4L4_RAM1Cpu,10,FALSE))","v":0},{"$f":"IF($N$23=1,VLOOKUP($K$26,TS4L4_RAM2CPU,12,FALSE),VLOOKUP($K$26,TS4L4_RAM1Cpu,12,FALSE))","v":""}]
[]
[null,null,null,null,null,null,null,null,null,null,"Operating System STANDARD",null,null,{"$f":"IF(AND(K29=\"No Operating System\",N29>0),\"Selezionare Sistema Operativo\",IF(AND(K29=\"Ubuntu 22.04 LTS 64 Bit\",N29>1),\"Selezionare Licenze Corrette\",IF(AND(K29=\"Ubuntu 22.04 LTS 64 Bit\",N23=1),\"\",IF(AND(N23=1,K29=\"No Operating System\"),\"\",IF(AND(N23=1,N29<3),\"Selezionare Licenze Corrette\",IF(AND(N23<>1,N29>4),\"Selezionare Licenze Corrette\",IF(AND(K29=\"Windows Server 2022,Standard,ROK,16CORE\",N29=\"\"),\"Selezionare numero Licenze\",\"\")))))))","v":""}]
[null,null,null,null,null,null,null,null,null,null,"No Operating System",null,{"$f":"VLOOKUP($K$29,TS4L4_OS,13,FALSE)","v":""},0,null,{"$f":"T29","v":0},null,null,null,{"$f":"IF(N33>0,0,VLOOKUP($K$29,TS4L4_OS,10,FALSE))*N29","v":0},{"$f":"VLOOKUP($K$29,TS4L4_OS,11,FALSE)","v":0},{"$f":"IF(N33>0,0,VLOOKUP($K29,TS4L4_OS,12,FALSE))","v":""},null,{"$f":"IF(AND(K23=\"No Additional Processor\",N29>=3),TRUE,FALSE)","v":false}]
[null,null,null,null,null,null,null,null,null,null,"Windows Server 2022 Standard Edition, Add License,2CORE",null,{"$f":"VLOOKUP($K$30,TS4L4_OS,13,FALSE)","v":"TS4L4-WINSRV2C"},{"$f":"IF(K29=\"No Operating System\",0,IF(AND(K29=\"Windows Server 2022,Standard,ROK,16CORE\",N29=0),0,IF($K$29=\"Ubuntu 22.04 LTS 64 Bit\",0,IF(N29=1,VLOOKUP($K$29,TS4L4_OS,7,FALSE)*4,IF(N29=3,0,IF(N29=6,0,IF(N29=9,0,IF(N29=\"\",0,IF(N29=4,4)))))))))","v":0},null,{"$f":"T30","v":0},null,null,null,{"$f":"VLOOKUP($K$30,TS4L4_OS,10,FALSE)*N30","v":0},{"$f":"VLOOKUP($K$29,TS4L4_OS,11,FALSE)","v":0},{"$f":"IF(N33>0,0,VLOOKUP($K30,TS4L4_OS,12,FALSE))","v":"L4N25"},null,{"$f":"IF(AND(K23<>\"No Additional Processor\",N29>=3),TRUE,FALSE)","v":false}]
[]
[null,null,null,null,null,null,null,null,null,null,"Operating System DATACENTER"]
[null,null,null,null,null,null,null,null,null,null,"No Operating System",null,{"$f":"VLOOKUP($K$33,ConfigurationTS4L4!A67:W76,13,FALSE)","v":""},{"$f":"IF(K33=\"Windows Server 2022,Datacenter,ROK,16CORE\",1,0)","v":0},null,{"$f":"T33","v":0},null,null,null,{"$f":"IF(N29>0,0,VLOOKUP($K$33,TS4L4_OS,10,FALSE))*N33","v":0},{"$f":"VLOOKUP($K$29,TS4L4_OS,11,FALSE)","v":0},{"$f":"IF(N29>0,0,VLOOKUP($K33,TS4L4_OS,12,FALSE))","v":""},null,{"$f":"IF(AND(N23=1,N33=1),16,IF(AND(N23=1,N33=\"\"),0,IF(AND(N23=\"\",N33=1),4,FALSE)))","v":false}]
[null,null,null,null,null,null,null,null,null,null,"Windows Server 2022 / 2019 Datacenter Edition,Add License,2CORE",null,{"$f":"VLOOKUP($K$34,TS4L4_OS,13,FALSE)","v":"TS4L4-WinServDC2core"},{"$f":"IF(AND(N23=1,N33=1),16,IF(AND(N23=1,N33=\"\"),0,IF(AND(N23=\"\",N33=1),4,IF(AND(N23=\"\",N33=\"\"),0,\"0\"))))","v":"0"},null,{"$f":"T34","v":0},null,null,null,{"$f":"IF(N29>0,0,VLOOKUP($K$34,TS4L4_OS,10,FALSE))*N34","v":0},{"$f":"VLOOKUP($K$29,TS4L4_OS,11,FALSE)","v":0},{"$f":"IF(N29>0,0,VLOOKUP($K34,TS4L4_OS,12,FALSE))","v":"L4N28"}]
[]
[null,null,null,null,null,null,null,null,null,null,"Operating System Device CAL / User CAL"]
[null,null,null,null,null,null,null,null,null,null,"1-pack of Windows Server 2022/2019 Device CALs (STD or DC)",null,{"$f":"VLOOKUP($K$37,ConfigurationTS4L4!A72:W73,13,FALSE)","v":"TS4L4-WINDEVCAL"},0,null,{"$f":"T37","v":0},null,null,null,{"$f":"VLOOKUP($K$37,ConfigurationTS4L4!A72:N73,10,FALSE)*N37","v":0},{"$f":"VLOOKUP($K$29,TS4L4_OS,11,FALSE)","v":0},{"$f":"VLOOKUP($K37,TS4L4_OS,12,FALSE)","v":"L4N23"}]
[null,null,null,null,null,null,null,null,null,null,"1-pack of Windows Server 2022/2019 User CALs (STD or DC)",null,{"$f":"VLOOKUP($K$38,ConfigurationTS4L4!A73:W74,13,FALSE)","v":"TS4L4-WINUSRCAL"},0,null,{"$f":"T38","v":0},null,null,null,{"$f":"VLOOKUP($K$38,ConfigurationTS4L4!A73:N74,10,FALSE)*N38","v":0},{"$f":"VLOOKUP($K$29,TS4L4_OS,11,FALSE)","v":0},{"$f":"VLOOKUP($K38,TS4L4_OS,12,FALSE)","v":"L4N24"}]
[]
[null,null,null,null,null,null,null,null,null,null,"Disk Controller",null,{"$f":"IF(AND(Y11=\"Vsan\",N73=\"\"),\"Utilizzando il controller HBA355 in una soluzione vSAN, per il boot si deve utilizzare la 'BOSS Card'\",IF(AND(Z11=\"Nutanix\",N73=\"\"),\"Utilizzando il controller HBA355 in una soluzione Nutanix per il boot si deve utilizzare la 'BOSS Card'\",\"\"))","v":""}]
[null,null,null,null,null,null,null,null,null,null,{"$f":"IF(Y11=512,ConfigurationTS4L4!A98,IF(Y11=1024,ConfigurationTS4L4!A98,IF(Y11=2048,ConfigurationTS4L4!A98,IF(Z11=\"Nutanix\",ConfigurationTS4L4!A98,IF(AA11=\"GPUReady\",ConfigurationTS4L4!A98,ConfigurationTS4L4!A97)))))","v":"PERC H745 Controller"},null,{"$f":"VLOOKUP(K41,TS4L4_CRTL,13,FALSE)","v":""},{"$f":"VLOOKUP($K41,TS4L4_CRTL,7,FALSE)","v":""},null,{"$f":"U41","v":0},null,null,null,{"$f":"IF(K41=ConfigurationTS4L4!A46,0,VLOOKUP($K41,TS4L4_CRTL,10,FALSE))","v":0},{"$f":"IF($AA$11=\"GPUReady\",0,IF(W15=\"vsan\",0,IF(Z11=\"Nutanix\",0,VLOOKUP($K41,TS4L4_CRTL,11,FALSE))))","v":0},{"$f":"IF(W15=\"vsan\",0,IF(Z11=\"Nutanix\",0,VLOOKUP($K41,TS4L4_CRTL,12,FALSE)))","v":"L4N44"},null,{"$f":"IF(K11=\"PowerEdge R7525 Server (vSAN Ready)\",\"Vsan\",\"\")","v":""}]
[]
[null,null,null,null,null,null,null,null,null,null,"Hard Drivers Bays n° 16 - 2 bay occupate dai dischi 960GB SSD di base",null,"Usati","Disponibili",null,{"$f":"IF(AND(Z11=\"Nutanix\",AF46>1),\"E' Possibile selezionare solo un modello di Disco\",IF(Z11=\"Nutanix\",\"In una soluzione Nutanix i dischi devono necessariamente essere dello stesso modello\",\"\"))","v":""}]
[null,null,null,null,null,null,null,null,null,null,null,null,{"$f":"N46+N48+N50+N56+N58+N52+N54+N60","v":2},{"$f":"16-M44","v":14}]
[null,null,null,null,null,null,null,null,null,null,null,null,null,null,null,null,null,null,null,null,null,null,null,null,null,null,null,null,null,null,null,"Totale"]
[null,null,null,null,null,null,null,null,null,null,{"$f":"ConfigurationTS4L4!A79","v":"2.4TB 10k SAS ISE 12Gbps"},null,{"$f":"VLOOKUP($K46,TS4L4_HDD,13,FALSE)","v":"TS4L4-HDD2TB"},0,null,{"$f":"T46","v":0},null,null,null,{"$f":"IF(N44<0,0,IF(AND(AF46>1,Z11=\"nutanix\"),0,VLOOKUP($K46,TS4L4_HDD,10,FALSE))*N46)","v":0},{"$f":"IF(N44<0,0,VLOOKUP($K46,TS4L4_HDD,11,FALSE))","v":0},{"$f":"IF(N44<0,\"\",IF(AND(AF46>1,Z11=\"nutanix\"),\"\",VLOOKUP($K46,TS4L4_HDD,12,FALSE)))","v":"L4N11"},null,{"$f":"IF(N46>0,1,0)","v":0},{"$f":"IF(N48>0,1,0)","v":0},{"$f":"IF(N50>0,1,0)","v":0},{"$f":"IF(N52>0,1,0)","v":0},{"$f":"IF(N54>0,1,0)","v":0},{"$f":"IF(N56>0,1,0)","v":1},{"$f":"IF(N58>0,1,0)","v":0},{"$f":"IF(N60>0,1,0)","v":0},{"$f":"SUM(X46:AE46)","v":1}]
[]
[null,null,null,null,null,null,null,null,null,null,{"$f":"ConfigurationTS4L4!A80","v":"1.2TB 10K RPM SAS ISE 12Gbps"},null,{"$f":"VLOOKUP($K48,TS4L4_HDD,13,FALSE)","v":"TS4L4-HDD1TB"},0,null,{"$f":"T48","v":0},null,null,null,{"$f":"IF(N44<0,0,IF(AND(AF46>1,Z11=\"nutanix\"),0,VLOOKUP($K48,TS4L4_HDD,10,FALSE))*N48)","v":0},{"$f":"IF(N44<0,0,VLOOKUP($K48,TS4L4_HDD,11,FALSE))","v":0},{"$f":"IF(N44<0,\"\",IF(AND(AF46>1,Z11=\"nutanix\"),\"\",VLOOKUP($K48,TS4L4_HDD,12,FALSE)))","v":"L4N12"}]
[]
[null,null,null,null,null,null,null,null,null,null,{"$f":"ConfigurationTS4L4!A81","v":"3.84TB SSD SAS ISE RI 12Gbps"},null,{"$f":"VLOOKUP($K50,TS4L4_HDD,13,FALSE)","v":"TS4L4-SSD-RI3,8TB"},0,null,{"$f":"T50","v":0},null,null,null,{"$f":"IF(N44<0,0,IF(AND(AF46>1,Z11=\"nutanix\"),0,VLOOKUP($K50,TS4L4_HDD,10,FALSE))*N50)","v":0},{"$f":"IF(N44<0,0,VLOOKUP($K50,TS4L4_HDD,11,FALSE))","v":0},{"$f":"IF(N44<0,\"\",IF(AND(AF46>1,Z11=\"nutanix\"),\"\",VLOOKUP($K50,TS4L4_HDD,12,FALSE)))","v":"L4N13"}]
[]
[null,null,null,null,null,null,null,null,null,null,{"$f":"ConfigurationTS4L4!A82","v":"1.92TB SSD SAS ISE RI 12Gbps"},null,{"$f":"VLOOKUP($K52,TS4L4_HDD,13,FALSE)","v":"TS4L4-SSD-RI1,6TB"},0,null,{"$f":"T52","v":0},null,null,null,{"$f":"IF(N44<0,0,IF(AND(AF46>1,Z11=\"nutanix\"),0,VLOOKUP($K52,TS4L4_HDD,10,FALSE))*N52)","v":0},{"$f":"VLOOKUP($K52,TS4L4_HDD,11,FALSE)","v":0},{"$f":"IF(N44<0,\"\",IF(AND(AF46>1,Z11=\"nutanix\"),\"\",VLOOKUP($K52,TS4L4_HDD,12,FALSE)))","v":"L4N14"}]
[]
[null,null,null,null,null,null,null,null,null,null,{"$f":"ConfigurationTS4L4!A83","v":"1.6TB SSD SAS ISE MU 12Gbps"},null,{"$f":"VLOOKUP($K54,TS4L4_HDD,13,FALSE)","v":"TS4L4-SSD-MU1,6TB"},0,null,{"$f":"T54","v":0},null,null,null,{"$f":"IF(N44<0,0,IF(AND(AF46>1,Z11=\"nutanix\"),0,VLOOKUP($K54,TS4L4_HDD,10,FALSE))*N54)","v":0},{"$f":"VLOOKUP($K54,TS4L4_HDD,11,FALSE)","v":0},{"$f":"IF(N44<0,\"\",IF(AND(AF46>1,Z11=\"nutanix\"),\"\",VLOOKUP($K54,TS4L4_HDD,12,FALSE)))","v":"L4N15"}]
[]
[null,null,null,null,null,null,null,null,null,null,{"$f":"ConfigurationTS4L4!A84","v":"960GB SSD SAS ISE RI 12Gbps"},null,{"$f":"VLOOKUP($K56,TS4L4_HDD,13,FALSE)","v":"TS4L4-SSD-RI800GB"},2,null,{"$f":"T56","v":0},null,null,null,{"$f":"IF(N44<0,0,IF(AND(AF46>1,Z11=\"nutanix\"),0,IF(N56>2,(VLOOKUP($K56,TS4L4_HDD,10,FALSE)*(N56-2)),0)))","v":0},{"$f":"VLOOKUP($K56,TS4L4_HDD,11,FALSE)*N56","v":0},{"$f":"IF(N44<0,\"\",IF(AND(AF46>1,Z11=\"nutanix\"),\"\",VLOOKUP($K56,TS4L4_HDD,12,FALSE)))","v":"L4N16"}]
[]
[null,null,null,null,null,null,null,null,null,null,{"$f":"ConfigurationTS4L4!A85","v":"800GB SSD SAS ISE Mix Use 12Gbps"},null,{"$f":"VLOOKUP($K58,TS4L4_HDD,13,FALSE)","v":"TS4L4-SSD-MU800GB"},0,null,{"$f":"T58","v":0},null,null,null,{"$f":"IF(N44<0,0,IF(AND(AF46>1,Z11=\"nutanix\"),0,VLOOKUP($K58,TS4L4_HDD,10,FALSE))*N58)","v":0},{"$f":"VLOOKUP($K58,TS4L4_HDD,11,FALSE)*N58","v":0},{"$f":"IF(N44<0,\"\",IF(AND(AF46>1,Z11=\"nutanix\"),\"\",VLOOKUP($K58,TS4L4_HDD,12,FALSE)))","v":"L4N17"}]
[]
[null,null,null,null,null,null,null,null,null,null,{"$f":"ConfigurationTS4L4!A87","v":"7.68TB SSD RI SAS ISE 12Gbps"},null,{"$f":"VLOOKUP($K60,TS4L4_HDD,13,FALSE)","v":"TS4L4-SSD7.68RI"},0,null,{"$f":"U60","v":0},null,null,null,null,{"$f":"IF(N44<0,0,IF(AND(AF46>1,Z11=\"nutanix\"),0,VLOOKUP($K60,TS4L4_HDD,11,FALSE))*N60)","v":0},{"$f":"IF(N44<0,\"\",IF(AND(AF46>1,Z11=\"nutanix\"),\"\",VLOOKUP($K60,TS4L4_HDD,12,FALSE)))","v":"L4N32"}]
[null,null,null,null,null,null,null,null,null,null,null,null,{"$f":"IF(SUM(N64:N70)>0,IF(K11=ConfigurationTS4L4!A3,\"▲ Selezionare chassis NVME, vSAN, Nutanix o GPU Ready ▲ \nper abilitare dischi nVME\",\"\"),\"\")","v":""},null,null,{"$f":"IF(AND(N64<2,AA11=\"GPUReady\"),\"Selezionare almeno 2 dischi NVMe 1.6\",IF(N63<0,\"Troppi Dischi NVMe\",IF(SUM(N64:N70)>0,\"Sui dischi NVMe non è supportato il RAID Hardware\",\"\")))","v":""}]
[null,null,null,null,null,null,null,null,null,null,"NVMe Bays N° 8",null,"Usati","Disponibili"]
[null,null,null,null,null,null,null,null,null,null,null,null,{"$f":"SUM(N64:N70)","v":0},{"$f":"8-(N64+N66+N68+N70)","v":8}]
[null,null,null,null,null,null,null,null,null,null,{"$f":"ConfigurationTS4L4!A86","v":"1.6TB Enterprise NVMe Mixed Use Drive U.2"},null,{"$f":"VLOOKUP($K64,TS4L4_HDD,13,FALSE)","v":"TS4L4-NVME1,6TB"},0,{"$f":"IF(AND(N64>0,M61<>\"\"),\"!\",\"\")","v":""},{"$f":"T64","v":0},null,null,null,{"$f":"IF(N63<0,0,IF(AND(K11=\"PowerEdge R7525 Server (General Purpose)\",SUM(N64:N70)>0),0,VLOOKUP($K64,TS4L4_HDD,10,FALSE))*N64)","v":0},{"$f":"VLOOKUP($K64,TS4L4_HDD,11,FALSE)","v":0},{"$f":"IF(N63<0,\"\",IF(AND(K11=\"PowerEdge R7525 Server (General Purpose)\",SUM(N64:N70)>0),\"\",VLOOKUP($K64,TS4L4_HDD,12,FALSE)))","v":"L4N18"}]
[]
[null,null,null,null,null,null,null,null,null,null,{"$f":"ConfigurationTS4L4!A88","v":"3.2TB, Enterprise, NVMe, Mixed Use"},null,{"$f":"VLOOKUP($K66,TS4L4_HDD,13,FALSE)","v":"TS4L4-NVMe3.2MU"},0,{"$f":"IF(AND(N66>0,M61<>\"\"),\"!\",\"\")","v":""},{"$f":"U66","v":0},null,null,null,null,{"$f":"IF(N63<0,0,IF(AND(K11=\"PowerEdge R7525 Server (General Purpose)\",SUM(N64:N70)>0),0,VLOOKUP($K66,TS4L4_HDD,11,FALSE))*N66)","v":0},{"$f":"IF(N63<0,\"\",IF(AND(K11=\"PowerEdge R7525 Server (General Purpose)\",SUM(N64:N70)>0),\"\",VLOOKUP($K66,TS4L4_HDD,12,FALSE)))","v":"L4N33"}]
[]
[null,null,null,null,null,null,null,null,null,null,{"$f":"ConfigurationTS4L4!A89","v":"1.92TB, Enterprise, NVMe, Read Intensive"},null,{"$f":"VLOOKUP($K68,TS4L4_HDD,13,FALSE)","v":"TS4L4-NVMe1.92RI"},0,{"$f":"IF(AND(N68>0,M61<>\"\"),\"!\",\"\")","v":""},{"$f":"U68","v":0},null,null,null,null,{"$f":"IF(N63<0,0,IF(AND(K11=\"PowerEdge R7525 Server (General Purpose)\",SUM(N64:N70)>0),0,VLOOKUP($K68,TS4L4_HDD,11,FALSE))*N68)","v":0},{"$f":"IF(N63<0,\"\",IF(AND(K11=\"PowerEdge R7525 Server (General Purpose)\",SUM(N64:N70)>0),\"\",VLOOKUP($K68,TS4L4_HDD,12,FALSE)))","v":"L4N34"}]
[]
[null,null,null,null,null,null,null,null,null,null,{"$f":"ConfigurationTS4L4!A90","v":"3.84TB, Enterprise, NVMe, Read Intensive"},null,{"$f":"VLOOKUP($K70,TS4L4_HDD,13,FALSE)","v":"TS4L4-NVMe3.84RI"},0,{"$f":"IF(AND(N70>0,M61<>\"\"),\"!\",\"\")","v":""},{"$f":"U70","v":0},null,null,null,null,{"$f":"IF(N63<0,0,IF(AND(K11=\"PowerEdge R7525 Server (General Purpose)\",SUM(N64:N70)>0),0,VLOOKUP($K70,TS4L4_HDD,11,FALSE))*N70)","v":0},{"$f":"IF(N63<0,\"\",IF(AND(K11=\"PowerEdge R7525 Server (General Purpose)\",SUM(N64:N70)>0),\"\",VLOOKUP($K70,TS4L4_HDD,12,FALSE)))","v":"L4N35"}]
[]
[null,null,null,null,null,null,null,null,null,null,"BOSS controller card"]
[null,null,null,null,null,null,null,null,null,null,{"$f":"IF(N41=1,ConfigurationTS4L4!A108,ConfigurationTS4L4!A107)","v":"No Boss card"},null,{"$f":"IF(U73>0,VLOOKUP($K73,TS4L4_BOSS,13,FALSE),\"\")","v":""},{"$f":"VLOOKUP($K73,TS4L4_BOSS,7,FALSE)","v":""},null,{"$f":"U73","v":0},null,null,null,{"$f":"VLOOKUP($K73,TS4L4_BOSS,10,FALSE)","v":0},{"$f":"IF(W10=\"JBOD\",0,IF(W15=\"vsan\",0,IF(Z11=\"Nutanix\",0,VLOOKUP($K73,TS4L4_BOSS,11,FALSE))))","v":0},{"$f":"IF(W15=\"vsan\",0,IF(Z11=\"Nutanix\",0,VLOOKUP($K73,TS4L4_BOSS,12,FALSE)))","v":""}]
[]
[null,null,null,null,null,null,null,null,null,{"$f":"IF(N75=\"\",\"\",U76)","v":""},"Power Supply",{"$f":"IF(P75=\"\",\"\",W76)","v":""}]
[null,null,null,null,null,null,null,null,null,null,{"$f":"IF(Y17=1,\"Dual, Hot-plug Power Supply (1+1), 1400W\",IF($M$17=\"TS3L4-GPUDW\",\"Dual, Hot-plug Power Supply (1+1), 2000W\",IF($M$17=\"TS3L4-GPUSW\",\"Dual, Hot-plug Power Supply (1+1), 2000W\",\"Dual, Hot-plug, Redundant Power Supply (1+1), 750W\")))","v":"Dual, Hot-plug Power Supply (1+1), 1400W"},null,{"$f":"VLOOKUP($K76,TS4L4_PSU,13,FALSE)","v":"TS4L4-PSU1400W"},{"$f":"VLOOKUP($K76,TS4L4_PSU,7,FALSE)","v":1},null,null,null,null,null,{"$f":"VLOOKUP($K76,TS4L4_PSU,10,FALSE)","v":0},{"$f":"VLOOKUP($K76,TS4L4_PSU,11,FALSE)","v":0},{"$f":"VLOOKUP($K76,TS4L4_PSU,12,FALSE)","v":"L4N49"}]
[]
[null,null,null,null,null,null,null,null,null,null,"Embedded Systems Management"]
[null,null,null,null,null,null,null,null,null,null,"iDRAC9,Enterprise"]
[]
[]
[]
[null,null,null,null,null,null,null,null,null,null,"Slot PCI\nIn questa sezione è possibile selezionare la configurazione degli Slot PCI"]
[]
[]
[null,null,null,null,null,null,null,null,{"$f":"IF(AA11=\"GPUReady\",\"Slot per GPU 1 Double Wide (Occupa 2 Slot PCI, 1 e 2)\",\"\")","v":""},null,"PCI Slot 1 Processor 1 x8 PCIe Gen4 for HL/FH",null,{"$f":"IF(AND(K23=\"No Additional Processor\",SUM(N93:N108)>0),\"Selezionare Processore Aggiuntivo o Deselezionare Schede PCI\",IF(AND(K87=\"Nvidia A30\",$AA$11<>\"GPUReady\"),\"Selezionare server GPU Ready o deselezionare Scheda GPU\",IF(AND(K87=\"Nvidia A40\",$AA$11<>\"GPUReady\"),\"Selezionare server GPU Ready o deselezionare Scheda GPU\",IF(AND(AA11=\"GPUReady\",(SUM(W87:X87))=0,K87<>\"Slot non utilizzato\"),\"Deselezionare scheda PCI o Selezionare GPU\",\"\"))))","v":""}]
[null,null,null,null,null,null,null,null,null,null,"Slot Non Utilizzato",null,{"$f":"IF(AND($AA$11<>\"GPUReady\",K87=\"Nvidia A30\"),\"\",IF(AND($AA$11<>\"GPUReady\",K87=\"Nvidia A40\"),\"\",IF(AND($AA$11=\"GPUReady\",(SUM(W87:X87)=0)),\"\",IF(AND($AA$11=\"GPUReady\",(SUM(W87:X87)>0)),VLOOKUP($K87,TS4L4_GPU,13,FALSE),VLOOKUP($K87,TS4L4_PCI,13,)))))","v":""},{"$f":"IF(AND($AA$11<>\"GPUReady\",K87=\"Nvidia A30\"),\"\",IF(AND($AA$11<>\"GPUReady\",K87=\"Nvidia A40\"),\"\",IF(AND($AA$11=\"GPUReady\",(SUM(W87:X87)=0)),\"\",IF(AND($AA$11=\"GPUReady\",(SUM(W87:X87)>0)),VLOOKUP($K87,TS4L4_GPU,7,FALSE),VLOOKUP($K87,TS4L4_PCI,7,FALSE)))))","v":""},null,{"$f":"T87+U87","v":0},null,null,null,{"$f":"IF(AND($AA$11<>\"GPUReady\",K87=\"Nvidia A30\"),0,IF(AND($AA$11<>\"GPUReady\",K87=\"Nvidia A40\"),0,IF(AND($AA$11=\"GPUReady\",(SUM(W87:X87)=0)),0,IF(AND($AA$11=\"GPUReady\",(SUM(W87:X87)>0)),VLOOKUP($K87,TS4L4_GPU,10,FALSE),VLOOKUP($K87,TS4L4_PCI,10,FALSE)))))","v":0},{"$f":"IF(AND($AA$11<>\"GPUReady\",K87=\"Nvidia A30\"),0,IF(AND($AA$11<>\"GPUReady\",K87=\"Nvidia A40\"),0,IF(AND($AA$11=\"GPUReady\",(SUM(W87:X87)=0)),0,IF(AND($AA$11=\"GPUReady\",(SUM(W87:X87)>0)),VLOOKUP($K87,TS4L4_GPU,11,FALSE),VLOOKUP($K87,TS4L4_PCI,11,FALSE)))))","v":0},{"$f":"IF(AND($AA$11<>\"GPUReady\",K87=\"Nvidia A30\"),\"\",IF(AND($AA$11<>\"GPUReady\",K87=\"Nvidia A40\"),\"\",IF(AND($AA$11=\"GPUReady\",(SUM(W87:X87)=0)),\"\",IF(AND($AA$11=\"GPUReady\",(SUM(W87:X87)>0)),VLOOKUP($K87,TS4L4_GPU,12,FALSE),VLOOKUP($K87,TS4L4_PCI,12,FALSE)))))","v":""},{"$f":"IF(K87=\"Nvidia A30\",1,0)","v":0},{"$f":"IF(K87=\"Nvidia A40\",2,0)","v":0}]
[]
[null,null,null,null,null,null,null,null,null,null,"PCI Slot 2 Processor 1 x8 PCIe Gen4 for HL/FH",null,null,null,null,null,null,null,null,null,null,null,{"$f":"IF(AND(AA11=\"GPUReady\",(SUM(W87:X87))=0,K87<>\"Slot non utilizzato\"),\"Deselezionare scheda PCI o Selezionare GPU\",\"\")","v":""}]
[null,null,null,null,null,null,null,null,null,null,"Slot Non Utilizzato",null,{"$f":"IF(AND(AA11=\"GPUReady\",K90<>\"Slot non utilizzato\"),\"\",VLOOKUP($K90,TS4L4_PCI,13,FALSE))","v":""},{"$f":"IF(AND(AA11=\"GPUReady\",K90<>\"Slot non utilizzato\"),\"\",VLOOKUP($K90,TS4L4_PCI,7,FALSE))","v":""},null,{"$f":"T90+U90","v":0},null,null,null,{"$f":"IF(AND(AA11=\"GPUReady\",K90<>\"Slot non utilizzato\"),0,VLOOKUP($K90,TS4L4_PCI,10,FALSE))","v":0},{"$f":"IF(AND(AA11=\"GPUReady\",K90<>\"Slot non utilizzato\"),0,VLOOKUP($K90,TS4L4_PCI,11,FALSE))","v":0},{"$f":"IF(AND(AA11=\"GPUReady\",K90<>\"Slot non utilizzato\"),\"\",VLOOKUP($K90,TS4L4_PCI,12,FALSE))","v":""}]
[]
[null,null,null,null,null,null,null,null,null,null,"PCI Slot 3 Processor 1 x16 PCIe Gen4 for HL/LP",null,{"$f":"IF(SUM(S93,S102)>1,\"Selezionare un solo controller H840 a scelta tra slot 3 e 6\",IF(AND(K93=\"PERC H840 RAID Adapter for External JBOD Only\",N127<>1),\"Il controller H840 è compatibile esclusivamente con il  JBOD, aggiungere JBOD nelle successive opzioni\",IF(AND(K93<>\"Slot non Utilizzato\",N23<>1),\"Selezionare Processore Aggiuntivo per Abilitare Ulteriori Slot PCI\",\"\")))","v":""}]
[null,null,null,null,null,null,null,null,null,null,"Slot Non Utilizzato",null,{"$f":"IF($Z$11=\"nutanix\",\"\",VLOOKUP($K93,TS4L4_PCI_LP,13,FALSE))","v":""},{"$f":"IF($Z$11=\"nutanix\",\"\",VLOOKUP($K93,TS4L4_PCI_LP,7,FALSE))","v":""},null,{"$f":"T93+U93","v":0},null,null,{"$f":"IF(K93=\"PERC H840 RAID Adapter for External JBOD Only\",1,0)","v":0},{"$f":"IF($Z$11=\"nutanix\",0,VLOOKUP($K93,TS4L4_PCI_LP,10,FALSE))","v":0},{"$f":"IF($Z$11=\"nutanix\",0,VLOOKUP($K93,TS4L4_PCI_LP,11,FALSE))","v":0},{"$f":"IF($Z$11=\"nutanix\",\"\",VLOOKUP($K93,TS4L4_PCI_LP,12,FALSE))","v":0}]
[]
[null,null,null,null,null,null,null,null,{"$f":"IF(AA11=\"GPUReady\",\"Slot per GPU 2 Double Wide (Occupa 2 Slot PCI, 4 e 5)\",\"\")","v":""},{"$f":"IF($X$82=\"SW\",\"GPU Slot\",IF($X$82=\"DW\",\"GPU Slot\",\"\"))","v":""},"PCI Slot 4 Processor 2 x8 PCIe Gen4 for HL/FH",{"$f":"IF($X$82=\"SW\",\"GPU Slot\",IF($X$82=\"DW\",\"GPU Slot\",\"\"))","v":""},{"$f":"IF(AND(K96=\"Nvidia A30\",$AA$11<>\"GPUReady\"),\"Selezionare server GPU Ready o deselezionare Scheda GPU\",IF(AND(K96=\"Nvidia A40\",$AA$11<>\"GPUReady\"),\"Selezionare server GPU Ready o deselezionare Scheda GPU\",\"\"))","v":""}]
[null,null,null,null,null,null,null,null,null,null,"Slot Non Utilizzato",null,{"$f":"IF(AND($AA$11<>\"GPUREADY\",K96=\"Nvidia A30\"),\"\",IF(AND($AA$11<>\"GPUREADY\",K96=\"Nvidia A40\"),\"\",IF($AA$11=\"GPUReady\",VLOOKUP($K96,TS4L4_GPU,13,FALSE),VLOOKUP($K96,TS4L4_PCI,13,))))","v":""},{"$f":"IF(AND($AA$11<>\"GPUREADY\",K96=\"Nvidia A30\"),\"\",IF(AND($AA$11<>\"GPUREADY\",K96=\"Nvidia A40\"),\"\",IF($AA$11=\"GPUReady\",VLOOKUP($K96,TS4L4_GPU,7,FALSE),VLOOKUP($K96,TS4L4_PCI,7,FALSE))))","v":""},null,{"$f":"T96+U96","v":0},null,null,null,{"$f":"IF(AND($AA$11<>\"GPUREADY\",K96=\"Nvidia A30\"),0,IF(AND($AA$11<>\"GPUREADY\",K96=\"Nvidia A40\"),0,IF($AA$11=\"GPUReady\",VLOOKUP($K96,TS4L4_GPU,10,FALSE),VLOOKUP($K96,TS4L4_PCI,10,FALSE))))","v":0},{"$f":"IF(AND($AA$11<>\"GPUREADY\",K96=\"Nvidia A30\"),0,IF(AND($AA$11<>\"GPUREADY\",K96=\"Nvidia A40\"),0,IF($AA$11=\"GPUReady\",VLOOKUP($K96,TS4L4_GPU,11,FALSE),VLOOKUP($K96,TS4L4_PCI,11,FALSE))))","v":0},{"$f":"IF(AND($AA$11<>\"GPUREADY\",K96=\"Nvidia A30\"),\"\",IF(AND($AA$11<>\"GPUREADY\",K96=\"Nvidia A40\"),\"\",IF($AA$11=\"GPUReady\",VLOOKUP($K96,TS4L4_GPU,12,FALSE),VLOOKUP($K96,TS4L4_PCI,12,FALSE))))","v":""}]
[]
[null,null,null,null,null,null,null,null,null,{"$f":"IF($X$82=\"SW\",\"GPU Slot\",\"\")","v":""},"PCI Slot 5 Processor 2 x8 PCIe Gen4 for HL/FH",{"$f":"IF($X$82=\"SW\",\"GPU Slot\",\"\")","v":""}]
[null,null,null,null,null,null,null,null,null,null,"Slot Non Utilizzato",null,{"$f":"IF(AND(AA11=\"GPUReady\",K99<>\"Slot non utilizzato\"),\"\",VLOOKUP($K99,TS4L4_PCI,13,FALSE))","v":""},{"$f":"IF(AND(AA11=\"GPUReady\",K99<>\"Slot non utilizzato\"),\"\",VLOOKUP($K99,TS4L4_PCI,7,FALSE))","v":""},null,{"$f":"T99+U99","v":0},null,null,null,{"$f":"IF(AND(AA11=\"GPUReady\",K99<>\"Slot non utilizzato\"),0,VLOOKUP($K99,TS4L4_PCI,10,FALSE))","v":0},{"$f":"IF(AND(AA11=\"GPUReady\",K99<>\"Slot non utilizzato\"),0,VLOOKUP($K99,TS4L4_PCI,11,FALSE))","v":0},{"$f":"IF(AND(AA11=\"GPUReady\",K99<>\"Slot non utilizzato\"),\"\",VLOOKUP($K99,TS4L4_PCI,12,FALSE))","v":""}]
[]
[null,null,null,null,null,null,null,null,null,null,"PCI Slot 6 Processor 2 x16 PCIe Gen4 for HL/LP",null,{"$f":"IF(SUM(S93,S102)>1,\"Selezionare un solo controller H840 a scelta tra slot 3 e 6\",IF(AND(K102=\"PERC H840 RAID Adapter for External JBOD Only\",N127<>1),\"Il controller H840 è compatibile esclusivamente con il  JBOD, aggiungere JBOD nelle successive opzioni\",IF(AND(N23<>1,K102<>\"Slot non Utilizzato\"),\"Selezionare Processore Aggiuntivo per Abilitare Ulteriori Slot PCI\",\"\")))","v":""}]
[null,null,null,null,null,null,null,null,null,null,"Slot Non Utilizzato",null,{"$f":"VLOOKUP($K102,TS4L4_PCI_LP,13,FALSE)","v":""},{"$f":"VLOOKUP($K102,TS4L4_PCI_LP,7,FALSE)","v":""},null,{"$f":"T102+U102","v":0},null,null,{"$f":"IF(K102=\"PERC H840 RAID Adapter for External JBOD Only\",1,0)","v":0},{"$f":"IF($Z$11=\"nutanix\",0,VLOOKUP($K102,TS4L4_PCI_LP,10,FALSE))","v":0},{"$f":"IF($Z$11=\"nutanix\",0,VLOOKUP($K102,TS4L4_PCI_LP,11,FALSE))","v":0},{"$f":"IF($Z$11=\"nutanix\",\"\",VLOOKUP($K102,TS4L4_PCI_LP,12,FALSE))","v":0}]
[]
[null,null,null,null,null,null,null,null,{"$f":"IF(AA11=\"GPUReady\",\"Slot per GPU 3 Double Wide (Occupa 2 Slot PCI,7 e 8)\",\"\")","v":""},{"$f":"IF($X$82=\"SW\",\"GPU Slot\",\"\")","v":""},"PCI Slot 7 Processor 2 x8 PCIe Gen4 for HL/FH",{"$f":"IF($X$82=\"SW\",\"GPU Slot\",\"\")","v":""},{"$f":"IF(AND(K105=\"Nvidia A30\",$AA$11<>\"GPUReady\"),\"Selezionare server GPU Ready o deselezionare Scheda GPU\",IF(AND(K105=\"Nvidia A40\",$AA$11<>\"GPUReady\"),\"Selezionare server GPU Ready o deselezionare Scheda GPU\",\"\"))","v":""}]
[null,null,null,null,null,null,null,null,null,null,"Slot Non Utilizzato",null,{"$f":"IF(AND($AA$11<>\"GPUREADY\",K105=\"Nvidia A30\"),\"\",IF(AND($AA$11<>\"GPUREADY\",K105=\"Nvidia A40\"),\"\",IF($AA$11=\"GPUReady\",VLOOKUP($K105,TS4L4_GPU,13,FALSE),VLOOKUP($K105,TS4L4_PCI,13,))))","v":""},{"$f":"IF(AND($AA$11<>\"GPUREADY\",K105=\"Nvidia A30\"),\"\",IF(AND($AA$11<>\"GPUREADY\",K105=\"Nvidia A40\"),\"\",IF($AA$11=\"GPUReady\",VLOOKUP($K105,TS4L4_GPU,7,FALSE),VLOOKUP($K105,TS4L4_PCI,7,FALSE))))","v":""},null,{"$f":"T105+U105","v":0},null,null,null,{"$f":"IF(AND($AA$11<>\"GPUREADY\",K105=\"Nvidia A30\"),0,IF(AND($AA$11<>\"GPUREADY\",K105=\"Nvidia A40\"),0,IF($AA$11=\"GPUReady\",VLOOKUP($K105,TS4L4_GPU,10,FALSE),VLOOKUP($K105,TS4L4_PCI,10,FALSE))))","v":0},{"$f":"IF(AND($AA$11<>\"GPUREADY\",K105=\"Nvidia A30\"),0,IF(AND($AA$11<>\"GPUREADY\",K105=\"Nvidia A40\"),0,IF($AA$11=\"GPUReady\",VLOOKUP($K105,TS4L4_GPU,11,FALSE),VLOOKUP($K105,TS4L4_PCI,11,FALSE))))","v":0},{"$f":"IF(AND($AA$11<>\"GPUREADY\",K105=\"Nvidia A30\"),\"\",IF(AND($AA$11<>\"GPUREADY\",K105=\"Nvidia A40\"),\"\",IF($AA$11=\"GPUReady\",VLOOKUP($K105,TS4L4_GPU,12,FALSE),VLOOKUP($K105,TS4L4_PCI,12,FALSE))))","v":""}]
[]
[null,null,null,null,null,null,null,null,null,{"$f":"IF($X$82=\"SW\",\"GPU Slot\",IF($X$82=\"DW\",\"GPU Slot\",\"\"))","v":""},"PCI Slot 8 Processor 2 x8 PCIe Gen4 for HL/FH",{"$f":"IF($X$82=\"SW\",\"GPU Slot\",IF($X$82=\"DW\",\"GPU Slot\",\"\"))","v":""}]
[null,null,null,null,null,null,null,null,null,null,"Slot Non Utilizzato",null,{"$f":"IF(AND(AA11=\"GPUReady\",K108<>\"Slot non utilizzato\"),\"\",VLOOKUP($K108,TS4L4_PCI,13,FALSE))","v":""},{"$f":"IF(AND(AA11=\"GPUReady\",K108<>\"Slot non utilizzato\"),\"\",VLOOKUP($K108,TS4L4_PCI,7,FALSE))","v":""},null,{"$f":"T108+U108","v":0},null,null,null,{"$f":"IF(AND(AA11=\"GPUReady\",K108<>\"Slot non utilizzato\"),0,VLOOKUP($K108,TS4L4_PCI,10,FALSE))","v":0},{"$f":"IF(AND(AA11=\"GPUReady\",K108<>\"Slot non utilizzato\"),0,VLOOKUP($K108,TS4L4_PCI,11,FALSE))","v":0},{"$f":"IF(AND(AA11=\"GPUReady\",K108<>\"Slot non utilizzato\"),\"\",VLOOKUP($K108,TS4L4_PCI,12,FALSE))","v":""}]
[null,null,null,null,null,null,null,null,null,null,null,null,null,null,null,{"$f":"IF(V108=\"L4N33\",IF($W$108>1,\"ERRORE: SOLO UNA BOSS CARD PUO' ESSERE CONFIGURATA\",\"\"),\"\")","v":""}]
[]
[null,null,null,null,null,null,null,null,null,null,null,null,null,null,null,{"$f":"IF(V110=\"L4N33\",IF($W$108>1,\"ERRORE: SOLO UNA BOSS CARD PUO' ESSERE CONFIGURATA\",\"\"),\"\")","v":""}]
[]
[null,null,null,null,null,null,null,null,"Transceiver per Schede LAN 20%\n(Mellanox HDR, Broadcom 57508)",null,"SFP+ Transceivers 10 Gbps"]
[null,null,null,null,null,null,null,null,null,null,{"$f":"ConfigurationTS4L4!A136","v":"SFP+ SR Optic for all SFP+ ports except High temperature Cards"},null,{"$f":"VLOOKUP($K114,TS4L4_SFP,13,FALSE)","v":"TS4L4-OT10GB"},0,null,{"$f":"T114+U114","v":0},null,null,null,{"$f":"VLOOKUP($K114,TS4L4_SFP,10,FALSE)","v":0},{"$f":"VLOOKUP($K114,TS4L4_SFP,11,FALSE)*ConfigurationTS4L4!G136*N114","v":0},{"$f":"VLOOKUP($K114,TS4L4_SFP,12,FALSE)","v":"L4N109"}]
[]
[null,null,null,null,null,null,null,null,null,null,"SFP28 - 25GbE"]
[null,null,null,null,null,null,null,null,null,null,{"$f":"ConfigurationTS4L4!A137","v":"SFP28 SR Optic, 25GbE, 85C, for all SFP28 ports"},null,{"$f":"VLOOKUP($K117,TS4L4_SFP,13,FALSE)","v":"TS4L4-OT25GB"},0,null,{"$f":"T117+U117","v":0},null,null,null,{"$f":"VLOOKUP($K117,TS4L4_SFP,10,FALSE)","v":0},{"$f":"VLOOKUP($K117,TS4L4_SFP,11,FALSE)*N117","v":0},{"$f":"VLOOKUP($K117,TS4L4_SFP,12,FALSE)","v":"L4N110"}]
[]
[null,null,null,null,null,null,null,null,null,null,"QSFP28 Transceivers"]
[null,null,null,null,null,null,null,null,null,null,{"$f":"ConfigurationTS4L4!A138","v":"Dell EMC PowerEdge QSFP28 SR4 100GbE 85C optic"},null,{"$f":"VLOOKUP($K120,TS4L4_SFP,13,FALSE)","v":"TS4L4-OT100GB"},0,null,{"$f":"T120+U120","v":0},null,null,null,{"$f":"VLOOKUP($K120,TS4L4_SFP,10,FALSE)","v":0},{"$f":"VLOOKUP($K120,TS4L4_SFP,11,FALSE)*N120","v":0},{"$f":"VLOOKUP($K120,TS4L4_SFP,12,FALSE)","v":"L4N111"}]
[]
[]
[null,null,null,null,null,null,null,null,null,null,"Enclosure JBOD da 12 Slot 3,5'' e dishi SAS da inserire nell'Enclosure.\nUna volta selezionato il JBOD e i dischi a corredo si deve obbligatoriamente compilare uno slot PCI a scelta tra lo Slot 3 e lo Slot 6 dove inserire il controller H840 compreso nel Kit JBOD\n"]
[]
[]
[null,null,null,null,null,null,null,null,"Enclosure JBOD Esterno 2 RU comprensivo di connessione con Controller RAID H840 (solo per JBOD) Installabile su Slot PCI low Profile \n(Slot 3-6).\n\n\nI dischi da 12TB, 16TB e 20TB possono essere installati ESCLUSIVAMENTE nel JBOD",null,"Opz JBOD (NO DISK)",null,{"$f":"IF(AND(N127<>0,SUM(S102,S93)=0),\"Selezionare Controller H840 negli slot PCI a scelta a tra 3 e 6\",IF(AND(N127=0,SUM(N130:N136)>0),\"Selezionare JBOD per aggiugere dischi SAS JBOD\",IF(AND(N127<> 0,SUM(N130:N136)=0),\"Il JBOD non ha dischi al suo interno, selezionare dischi da 12TB, 16TB o 20TB per un massimo di 12 dischi.\",IF(AND(N127=1,SUM(N130:N136)>12),\"Superato Numero dischi disponibili per JBOD\",\"\"))))","v":""}]
[null,null,null,null,null,null,null,null,null,null,{"$f":"Tabella_prezzi!H80","v":"Enclosure di espansione JBOD 12 slot 3,5'' + HBA (H840)  "},null,{"$f":"VLOOKUP($K127,TS4L4_20X100,13,FALSE)","v":"TS4L4-JBOD"},0,null,{"$f":"T127+U127","v":0},null,null,null,{"$f":"VLOOKUP($K127,TS4L4_20X100,10,FALSE)*N127","v":0},{"$f":"VLOOKUP($K127,TS4L4_20X100,11,FALSE)*N127","v":0},{"$f":"VLOOKUP($K127,TS4L4_20X100,12,FALSE)","v":"L4N122"}]
[]
[null,null,null,null,null,null,null,null,null,null,"Opz 12TB 7,2 RPM - per JBOD"]
[null,null,null,null,null,null,null,null,null,null,{"$f":"Tabella_prezzi!H81","v":"12TB 7.2K RPM NLSAS ISE 12Gbps 512e 3.5in Hot-plug Hard Drive"},null,{"$f":"VLOOKUP($K130,TS4L4_20X100,13,FALSE)","v":"TS4L4-12TBNLSAS"},0,null,{"$f":"T130+U130","v":0},null,null,null,{"$f":"VLOOKUP($K130,TS4L4_20X100,10,FALSE)*N130","v":0},{"$f":"IF(M126<>\"\",0,VLOOKUP($K130,TS4L4_20X100,11,FALSE)*N130)","v":0},{"$f":"VLOOKUP($K130,TS4L4_20X100,12,FALSE)","v":"L4N123"}]
[]
[null,null,null,null,null,null,null,null,null,null,"Opz 16TB 7,2 RPM - per JBOD"]
[null,null,null,null,null,null,null,null,null,null,{"$f":"Tabella_prezzi!H82","v":"16TB Hard Drive SAS ISE 12Gbps 7.2K 512e 3.5in Hot-Plug"},null,{"$f":"VLOOKUP($K133,TS4L4_20X100,13,FALSE)","v":"TS4L4-16TBSAS"},0,null,{"$f":"T133+U133","v":0},null,null,null,{"$f":"VLOOKUP($K133,TS4L4_20X100,10,FALSE)*N133","v":0},{"$f":"IF(M126<>\"\",0,VLOOKUP($K133,TS4L4_20X100,11,FALSE)*N133)","v":0},{"$f":"VLOOKUP($K133,TS4L4_20X100,12,FALSE)","v":"L4N124"}]
[]
[null,null,null,null,null,null,null,null,null,null,"Opz 20TB 7,2 RPM - per JBOD"]
[null,null,null,null,null,null,null,null,null,null,{"$f":"Tabella_prezzi!H83","v":"20TB HDD SAS ISE 12Gbps 7.2K 512e 3.5in Hot-Plug"},null,{"$f":"VLOOKUP($K136,TS4L4_20X100,13,FALSE)","v":"TS4L4-20TBSAS"},0,null,{"$f":"T136+U136","v":0},null,null,null,{"$f":"VLOOKUP($K136,TS4L4_20X100,10,FALSE)*N136","v":0},{"$f":"IF(M126<>\"\",0,VLOOKUP($K136,TS4L4_20X100,11,FALSE)*N136)","v":0},{"$f":"VLOOKUP($K136,TS4L4_20X100,12,FALSE)","v":"L4N125"}]
[]
[]
[null,null,null,null,null,null,null,null,null,null,"Estensione di Garanzia e Hard Disk Retention"]
[]
[]
[null,null,null,null,null,null,null,null,null,null,"Garanzia"]
[null,null,null,null,null,null,null,null,null,null,"Manutenzione in garanzia (36 mesi)",null,{"$f":"VLOOKUP($K143,TS4L4_WARR,13,FALSE)","v":""},{"$f":"VLOOKUP($K143,TS4L4_WARR,7,FALSE)","v":""},null,{"$f":"T143","v":0},null,null,null,{"$f":"VLOOKUP($K143,TS4L4_WARR,10,FALSE)","v":0},{"$f":"VLOOKUP($K143,TS4L4_WARR,11,FALSE)","v":0},{"$f":"VLOOKUP($K143,TS4L4_WARR,12,FALSE)","v":""}]
[]
[null,null,null,null,null,null,null,null,null,null,"Hard Disk Retention",null,null,{"$f":"IF(AND($K$146=\"Hard Disk Retention 60 mesi\",$N$143=\"\"),\"Selezionare Estensione di Garanzia 24 Mesi\",\"\")","v":""}]
[null,null,null,null,null,null,null,null,null,null,"No Hard Disk Retention",null,{"$f":"VLOOKUP(K146,TS4L4_HDDRET,13,FALSE)","v":""},{"$f":"IF(K146=\"No Hard Disk Retention\",\"\",1)","v":""},null,{"$f":"T146","v":0},null,null,null,{"$f":"IF(AND(K146=\"Hard Disk Retention 60 mesi\",N143=\"\"),\"\",VLOOKUP(K146,TS4L4_HDDRET,10,FALSE))","v":0},{"$f":"IFERROR(Z146,VLOOKUP(K146,TS4L4_HDDRET,11,FALSE))","v":0},{"$f":"IF(AND(K146=\"Hard Disk Retention 60 mesi\",N143=\"\"),\"\",VLOOKUP(K146,TS4L4_HDDRET,12,FALSE))","v":""}]
[]
[null,null,null,null,null,null,null,null,null,null,null,null,"Configurazione",{"$f":"SUM(T11:T146)*N8","v":0},null,null,null,null,null,{"$f":"IF(AND($N$146=1,$N$143=\"\"),\"Selezionare Estensione di Garanzia 24 Mesi\",\"\")","v":""}]
[null,null,null,null,null,null,null,null,null,null,null,null,0.2,{"$f":"SUM(U11:U146)*N8","v":0}]
[null,null,null,null,null,null,null,null,null,null,null,null,"Totale",{"$f":"SUM(N148:N149)","v":0}]
[]
[null,null,null,null,null,null,null,null,null,null,"NOTE"]

{"sheet":"Altre Opzioni","index":4,"n_rows":34,"n_cols":30,"rows_kept":34,"cut":false,"hidden":false,"merged":[[1,11,1,13],[5,9,6,9],[8,9,9,9],[11,9,12,9],[14,9,15,9],[28,9,29,9],[32,9,33,9],[21,9,22,9],[24,9,25,9],[17,9,18,9]]}
[]
[null,null,null,null,null,null,null,null,"Altre Opzioni",null,null,"Totale altre opzioni"]
[null,null,null,null,null,null,null,null,null,null,null,{"$f":"SUM(P6:Q34)","v":0},null,null,null,null,null,null,null,null,null,null,null,null,null,null,null,null,null,{"$f":"IF(L3<>0,1,0)","v":0}]
[]
[]
[null,null,null,null,null,null,null,null,"OpzRack DELL"]
[null,null,null,null,null,null,null,null,{"$f":"Tabella_prezzi!H74","v":"Rack 42RU DellEmc"},null,{"$f":"VLOOKUP(I7,TS4L4_20X100,13,FALSE)","v":"TS4L4-RACK-D"},0,null,{"$f":"P7+Q7","v":0},null,{"$f":"VLOOKUP($I7,TS4L4_20X100,10,FALSE)*L7","v":0},{"$f":"VLOOKUP($I7,TS4L4_20X100,11,FALSE)*L7","v":0},{"$f":"VLOOKUP($I7,TS4L4_20X100,12,FALSE)","v":"L4N116"}]
[]
[null,null,null,null,null,null,null,null,"OpzPDU Mono"]
[null,null,null,null,null,null,null,null,{"$f":"Tabella_prezzi!H75","v":"PDU 220 mono output 20-C13 + 4-C19 IEC 320, input C20"},null,{"$f":"VLOOKUP($I10,TS4L4_20X100,13,FALSE)","v":"TS4L4-PDU-M"},0,null,{"$f":"P10+Q10","v":0},null,{"$f":"VLOOKUP($I10,TS4L4_20X100,10,FALSE)*L10","v":0},{"$f":"VLOOKUP($I10,TS4L4_20X100,11,FALSE)*L10","v":0},{"$f":"VLOOKUP($I10,TS4L4_20X100,12,FALSE)","v":"L4N117"}]
[]
[null,null,null,null,null,null,null,null,"OpzPDU Trifase"]
[null,null,null,null,null,null,null,null,{"$f":"Tabella_prezzi!H76","v":"PDU 220 Trifase output 6-C19 e 36-C13, input Spina 3P+T 400V 16A"},null,{"$f":"VLOOKUP($I13,TS4L4_20X100,13,FALSE)","v":"TS4L4-PDU-T"},0,null,{"$f":"P13+Q13","v":0},null,{"$f":"VLOOKUP($I13,TS4L4_20X100,10,FALSE)*L13","v":0},{"$f":"VLOOKUP($I13,TS4L4_20X100,11,FALSE)*L13","v":0},{"$f":"VLOOKUP($I13,TS4L4_20X100,12,FALSE)","v":"L4N118"}]
[]
[null,null,null,null,null,null,null,null,"OpzKVM DELL"]
[null,null,null,null,null,null,null,null,{"$f":"Tabella_prezzi!H77","v":"Dell KVM + Switch 8 porte + cavi "},null,{"$f":"VLOOKUP($I16,TS4L4_20X100,13,FALSE)","v":"TS4L4-KVM-D"},0,null,{"$f":"P16+Q16","v":0},null,{"$f":"VLOOKUP($I16,TS4L4_20X100,10,FALSE)*L16","v":0},{"$f":"VLOOKUP($I16,TS4L4_20X100,11,FALSE)*L16","v":0},{"$f":"VLOOKUP($I16,TS4L4_20X100,12,FALSE)","v":"L4N119"}]
[]
[null,null,null,null,null,null,null,null,"Opz CMA"]
[null,null,null,null,null,null,null,null,{"$f":"Tabella_prezzi!H79","v":"Cable Management Arm for PowerEdge Systems"},null,{"$f":"VLOOKUP($I19,TS4L4_20X100,13,FALSE)","v":"TS4L4-CMA"},0,null,{"$f":"P19+Q19","v":0},null,{"$f":"VLOOKUP($I19,TS4L4_20X100,10,FALSE)*L19","v":0},{"$f":"VLOOKUP($I19,TS4L4_20X100,11,FALSE)*L19","v":0},{"$f":"VLOOKUP($I19,TS4L4_20X100,12,FALSE)","v":"L4N121"}]
[]
[]
[null,null,null,null,null,null,null,null,"OpzRack"]
[null,null,null,null,null,null,null,null,{"$f":"ConfigurationTS4L4!A121","v":"Armadio Rack 42U"},null,{"$f":"VLOOKUP($I23,ConfigurationTS4L4!1:1048576,13,FALSE)","v":"TS4L4-RACK"},0,null,{"$f":"P23","v":0},null,{"$f":"VLOOKUP($I23,ConfigurationTS4L4!1:1048576,10,FALSE)*L23","v":0},{"$f":"VLOOKUP($I23,ConfigurationTS4L4!1:1048576,11,FALSE)","v":0},{"$f":"VLOOKUP($I23,ConfigurationTS4L4!1:1048576,12,FALSE)","v":"L4N31"}]
[]
[null,null,null,null,null,null,null,null,"OpzUps (3000VA)"]
[null,null,null,null,null,null,null,null,{"$f":"ConfigurationTS4L4!A125","v":"UPS PowerMe RPMM/9K - 3000VA"},null,{"$f":"VLOOKUP($I26,ConfigurationTS4L4!1:1048576,13,FALSE)","v":"TS4L4-UPS"},0,null,{"$f":"P26","v":0},null,{"$f":"VLOOKUP($I26,ConfigurationTS4L4!1:1048576,10,FALSE)*L26","v":0},{"$f":"VLOOKUP($I26,ConfigurationTS4L4!1:1048576,11,FALSE)*M26","v":0},{"$f":"VLOOKUP($I26,ConfigurationTS4L4!1:1048576,12,FALSE)","v":"L4N19"}]
[]
[]
[null,null,null,null,null,null,null,null,"OpzGUI"]
[null,null,null,null,null,null,null,null,{"$f":"ConfigurationTS4L4!A129","v":"Unità KVM - monitor 17\", cavo combi PS/2&USB"},null,{"$f":"VLOOKUP($I30,ConfigurationTS4L4!1:1048576,13,FALSE)","v":"TS4L4-GUI"},0,null,{"$f":"P30","v":0},null,{"$f":"VLOOKUP($I30,ConfigurationTS4L4!1:1048576,10,FALSE)*L30","v":0},{"$f":"VLOOKUP($I30,ConfigurationTS4L4!1:1048576,11,FALSE)*L30","v":0},{"$f":"VLOOKUP($I30,ConfigurationTS4L4!1:1048576,12,FALSE)","v":"L4N20"}]
[]
[]
[null,null,null,null,null,null,null,null,"OpzKVM"]
[null,null,null,null,null,null,null,null,{"$f":"ConfigurationTS4L4!A133","v":"KVM Switch IP per GUI 16P"},null,{"$f":"VLOOKUP($I34,ConfigurationTS4L4!1:1048576,13,FALSE)","v":"TS4L4-KVM"},0,null,{"$f":"P34","v":0},null,{"$f":"VLOOKUP($I34,ConfigurationTS4L4!1:1048576,10,FALSE)*L34","v":0},{"$f":"VLOOKUP($I34,ConfigurationTS4L4!1:1048576,11,FALSE)*L34","v":0},{"$f":"VLOOKUP($I34,ConfigurationTS4L4!1:1048576,12,FALSE)","v":"L4N21"}]

{"sheet":"Riepilogo_Ordine","index":5,"n_rows":144,"n_cols":30,"rows_kept":144,"cut":false,"hidden":false,"merged":[[4,10,5,10],[1,5,1,7],[1,8,3,10],[2,5,2,7],[3,5,3,7],[4,5,4,7],[4,8,4,9],[5,5,5,7],[5,8,5,9],[6,5,6,6],[6,7,6,8],[6,9,6,10],[7,5,7,6],[7,7,7,8],[7,9,7,10],[8,5,8,6],[8,7,8,8],[8,9,8,10],[9,5,9,6],[9,7,9,8],[9,9,9,10],[140,8,140,9],[141,8,141,9],[142,5,142,6],[142,8,142,9],[10,5,10,6],[10,8,10,10],[11,5,11,10],[91,5,91,10],[92,5,92,10],[139,5,139,6],[139,8,139,9]]}
[]
[null,null,null,null,null,"Convenzione \nTecnologie Server 4 - Lotto 4",null,null,{"$f":"IF(P8>0,\"Compilare i Dati Necessari (*) all'Ordine o controllare le Configurazioni per Stampare in PDF\",\"Dati Completi\")","v":"Compilare i Dati Necessari (*) all'Ordine o controllare le Configurazioni per Stampare in PDF"},null,null,null,null,null,null,null,null,null,null,null,null,null,null,null,"SI"]
[null,null,null,null,null,"Riepilogo Ordine Consip N° (*)",null,null,null,null,null,null,null,null,null,null,null,{"$f":"IF(Lotto4_R7525_1!N8>0,1,0)","v":0},{"$f":"IF(Lotto4_R7525_2!N8>0,1,0)","v":0},{"$f":"IF(Lotto4_R7525_3!N8>0,1,0)","v":0},null,{"$f":"SUM(R3:T3)","v":0},null,null,"SI",null,null,null,null,1]
[null,null,null,null,null,null,null,null,null,null,null,null,null,null,null,null,null,null,null,null,null,null,null,null,"SI"]
[null,null,null,null,null,"Ente Ordinante (*)",null,null,"Data Ordine  (*)",null,null,null,null,null,null,"Ordine","Ente","data","Ref Cons","mail","tel","Ref Inst","mail","Tel","SI"]
[null,null,null,null,null,null,null,null,null,null,null,null,null,null,null,{"$f":"IF(F4>0,0,1)","v":1},{"$f":"IF(F6>0,0,1)","v":1},{"$f":"IF(I6>0,0,1)","v":1},{"$f":"IF(F8>0,0,1)","v":1},{"$f":"IF(H8>0,0,1)","v":1},{"$f":"IF(J8>0,0,1)","v":1},{"$f":"IF(F10>0,0,1)","v":1},{"$f":"IF(H10>0,0,1)","v":1},{"$f":"IF(J10>0,0,1)","v":1},"SI"]
[null,null,null,null,null,"Referente Consegna  (*)",null,"Mail  (*)",null,"Tel  (*)",null,null,null,null,null,null,null,null,null,null,null,null,null,0.2,"SI"]
[null,null,null,null,null,null,null,null,null,null,null,null,null,null,null,{"$f":"SUM(P6:X6)+SUM(R10:T10)+X8","v":9},null,{"$f":"IF(F11<>\"\",1,0)","v":0},{"$f":"IF(H11<>\"\",1,0)","v":0},{"$f":"IF(I11<>\"\",1,0)","v":0},null,{"$f":"SUM(R8:T8)","v":0},null,{"$f":"IF(F92<>\"\",1,0)","v":0},"SI"]
[null,null,null,null,null,"Referente Installazione  (*)",null,"Mail  (*)",null,"Tel  (*)",null,null,null,null,null,null,null,null,null,null,null,null,null,null,"SI"]
[null,null,null,null,null,null,null,null,null,null,null,null,null,null,null,null,null,{"$f":"IF(Lotto4_R7525_1!M4<>\"\",1,0)","v":0},{"$f":"IF(Lotto4_R7525_2!M4<>\"\",1,0)","v":0},{"$f":"IF(Lotto4_R7525_3!M4<>\"\",1,0)","v":0},null,null,null,null,"SI"]
[null,null,null,null,null,{"$f":"IF(R10>0,\"Errore nella Configurazione 1\",\"\")","v":""},null,{"$f":"IF(S10>0,\"Errore nella Configurazione 2\",\"\")","v":""},{"$f":"IF(T10>0,\"Errore nella Configurazione 3\",\"\")","v":""},null,null,null,null,null,null,null,null,null,null,null,null,null,null,null,"SI"]
[null,null,null,null,null,"Articoli in convenzione",null,null,null,null,null,null,null,null,null,null,null,"Config 1","Config 2","Config 3","Totale",null,null,null,"SI"]
[null,null,null,null,null,"Codice Produttore","Codice Convenzione","Descrizione ","Qtà","Costo unitario","Costo Totale",null,null,null,null,"N°","Codice Convenzione",{"$f":"Lotto4_R7525_1!N8","v":0},{"$f":"Lotto4_R7525_2!N8","v":0},{"$f":"Lotto4_R7525_3!N8","v":0},null,null,null,null,"SI"]
[null,null,null,null,null,{"$f":"IF(I14=\"\",\"\",VLOOKUP(P14,Tabella_Prezzi,10,FALSE))","v":""},{"$f":"IF(I14=\"\",\"\",VLOOKUP(P14,Tabella_Prezzi,6,FALSE))","v":""},{"$f":"IF(I14=\"\",\"\",VLOOKUP(P14,Tabella_Prezzi,8,FALSE))","v":""},{"$f":"IF(U14>0,U14,\"\")","v":""},{"$f":"IF(I14=\"\",\"\",VLOOKUP(P14,Tabella_Prezzi,4,FALSE))","v":""},{"$f":"IF(F14=\"\",\"\",J14*I14)","v":""},null,null,null,{"$f":"VLOOKUP(P14,Tabella_Prezzi,11,FALSE)","v":"210-AUVQ"},"L4N01","TS4L4-SRV",{"$f":"COUNTIF(TS4L4_1,P14)*$R$13","v":0},{"$f":"COUNTIF(TS4L4_2,P14)*$S$13","v":0},{"$f":"COUNTIF(TS4L4_3,P14)*$T$13","v":0},{"$f":"SUM(R14:T14)","v":0},null,null,null,{"$f":"IF(I14<>\"\",\"SI\",\"NO\")","v":"NO"}]
[null,null,null,null,null,"","","",{"$f":"IF(U15>0,U15,\"\")","v":""},"",{"$f":"IF(F15=\"\",\"\",J15*I15)","v":""},null,null,null,null,"L4N01-vSAN","TS4L4-SRV-vSAN",{"$f":"COUNTIF(TS4L4_1,P15)*$R$13","v":0},{"$f":"COUNTIF(TS4L4_2,P15)*$S$13","v":0},{"$f":"COUNTIF(TS4L4_3,P15)*$T$13","v":0},0,null,null,null,{"$f":"IF(I15<>\"\",\"SI\",\"NO\")","v":"NO"}]
[null,null,null,null,null,"","","",{"$f":"IF(U16>0,U16,\"\")","v":""},"",{"$f":"IF(F16=\"\",\"\",J16*I16)","v":""},null,null,null,{"$f":"VLOOKUP(P16,Tabella_Prezzi,11,FALSE)","v":"338-BZSB"},"L4N02","TS4L4-CPU",{"$f":"IF($R$14>0,COUNTIF(TS4L4_1,P16)*$R$13,0)","v":0},{"$f":"IF($S$14>0,COUNTIF(TS4L4_2,P16)*$S$13,0)","v":0},{"$f":"IF($T$14>0,COUNTIF(TS4L4_3,P16)*$T$13,0)","v":0},0,null,null,null,{"$f":"IF(I16<>\"\",\"SI\",\"NO\")","v":"NO"}]
[null,null,null,null,null,"","","",{"$f":"IF(U17>0,U17,\"\")","v":""},"",{"$f":"IF(F17=\"\",\"\",J17*I17)","v":""},null,null,null,"370-AEVN","L4N03","TS4L4-RAM32",{"$f":"IF($R$14>0,COUNTIF(TS4L4_1,P17)*Lotto4_R7525_1!N26*$R$13,0)","v":0},{"$f":"IF($S$14>0,COUNTIF(TS4L4_2,P17)*Lotto4_R7525_2!N26*$S$13,0)","v":0},{"$f":"IF($T$14>0,COUNTIF(TS4L4_3,P17)*Lotto4_R7525_2!N26*$T$13,0)","v":0},0,null,null,null,{"$f":"IF(I17<>\"\",\"SI\",\"NO\")","v":"NO"}]
[null,null,null,null,null,"","","","","","",null,null,null,"370-AEVP","L4N04","TS4L4-RAM64",{"$f":"IF($R$14>0,COUNTIF(TS4L4_1,P18)*Lotto4_R7525_1!N26*$R$13,0)","v":0},{"$f":"IF($S$14>0,COUNTIF(TS4L4_2,P18)*Lotto4_R7525_2!N26*$S$13,0)","v":0},{"$f":"IF($T$14>0,COUNTIF(TS4L4_3,P18)*Lotto4_R7525_2!N26*$T$13,0)","v":0},0,null,null,null,"NO"]
[null,null,null,null,null,"","","","","","",null,null,null,"540-BBCW","L4N05","TS4L4-LAN1",{"$f":"IF($R$14>0,COUNTIF(TS4L4_1,P19)*$R$13,0)","v":0},{"$f":"IF($S$14>0,COUNTIF(TS4L4_2,P19)*$S$13,0)","v":0},{"$f":"IF($T$14>0,COUNTIF(TS4L4_3,P19)*$T$13,0)","v":0},0,null,null,null,"NO"]
[null,null,null,null,null,"","","","","","",null,null,null,"540-BBDF","L4N75","TS4L4-LAN1-L",0,0,0,0,null,null,null,"NO"]
[null,null,null,null,null,"","","","","","",null,null,null,"540-BDHF","L4N06","TS4L4-LAN10",0,0,0,0,null,null,null,"NO"]
[null,null,null,null,null,"","","","","","",null,null,null,"540-BDGV","L4N76","TS4L4-LAN10-L",0,0,0,0,null,null,null,"NO"]
[null,null,null,null,null,"","","","","","",null,null,null,"540-BCDH","L4N07","TS4L4-LAN25",0,0,0,0,null,null,null,"NO"]
[null,null,null,null,null,"","","","","","",null,null,null,"540-BCCM","L4N77","TS4L4-LAN25-L",0,0,0,0,null,null,null,"NO"]
[null,null,null,null,null,"","","","","","",null,null,null,"540-BBYL","L4N08","TS4L4-CNA10",0,0,0,0,null,null,null,"NO"]
[null,null,null,null,null,"","","","","","",null,null,null,"540-BBZJ","L4N78","TS4L4-CNA10-L",0,0,0,0,null,null,null,"NO"]
[null,null,null,null,null,"","","","","","",null,null,null,"540-BCRO","L4N09","TS4L4-BaseT",0,0,0,0,null,null,null,"NO"]
[null,null,null,null,null,"","","","","","",null,null,null,"540-BCRO","L4N79","TS4L4-BaseT-L",0,0,0,0,null,null,null,"NO"]
[null,null,null,null,null,"","","","","","",null,null,null,"540-BDHC","L4N10","TS4L4- FibreChannel",0,0,0,0,null,null,null,"NO"]
[null,null,null,null,null,"","","","","","",null,null,null,"540-BDGU","L4N101","TS4L4- FibreChannel-L",0,0,0,0,"Quantità 1","Quantità 2","Quantità 3","NO"]
[null,null,null,null,null,"","","","","","",null,null,null,"400-AVEZ","L4N11","TS4L4-HDD2TB",{"$f":"IF($R$14>0,COUNTIF(TS4L4_1,P31)*V31*$R$13,0)","v":0},{"$f":"IF($S$14>0,COUNTIF(TS4L4_2,P31)*W31*$S$13,0)","v":0},{"$f":"IF($T$14>0,COUNTIF(TS4L4_3,P31)*X31*$T$13,0)","v":0},0,{"$f":"Lotto4_R7525_1!$N$46","v":0},{"$f":"Lotto4_R7525_2!N46","v":0},{"$f":"Lotto4_R7525_3!$N$46","v":0},"NO"]
[null,null,null,null,null,"","","","","","",null,null,null,"400-AVFE","L4N12","TS4L4-HDD1TB",{"$f":"IF($R$14>0,COUNTIF(TS4L4_1,P32)*V32*$R$13,0)","v":0},0,0,0,{"$f":"Lotto4_R7525_1!$N$48","v":0},{"$f":"Lotto4_R7525_2!N48","v":0},{"$f":"Lotto4_R7525_3!$N$48","v":0},"NO"]
[null,null,null,null,null,"","","","","","",null,null,null,"345-BCNU","L4N13","TS4L4-SSD-RI3,8TB",0,0,0,0,{"$f":"Lotto4_R7525_1!$N$50","v":0},{"$f":"Lotto4_R7525_2!N50","v":0},{"$f":"Lotto4_R7525_3!$N$50","v":0},"NO"]
[null,null,null,null,null,"","","","","","",null,null,null,"345-BBVC","L4N14","TS4L4-SSD-RI1,6TB",0,0,0,0,{"$f":"Lotto4_R7525_1!$N$52","v":0},{"$f":"Lotto4_R7525_2!N52","v":0},{"$f":"Lotto4_R7525_3!$N$52","v":0},"NO"]
[null,null,null,null,null,"","","","","","",null,null,null,"400-AZOY","L4N15","TS4L4-SSD-MU1,6TB",0,0,0,0,{"$f":"Lotto4_R7525_1!$N$54","v":0},{"$f":"Lotto4_R7525_2!N54","v":0},{"$f":"Lotto4_R7525_3!$N$54","v":0},"NO"]
[null,null,null,null,null,"","","","","","",null,null,null,"400-AXQU","L4N16","TS4L4-SSD-RI800GB",0,0,0,0,{"$f":"IF(Lotto4_R7525_1!$N$56<=2,0,Lotto4_R7525_1!$N$56-2)","v":0},{"$f":"Lotto4_R7525_2!N56","v":2},{"$f":"IF(Lotto4_R7525_3!$N$56<=2,0,Lotto4_R7525_3!$N$56-2)","v":0},"NO"]
[null,null,null,null,null,"","","","","","",null,null,null,"400-AZQO","L4N17","TS4L4-SSD-MU800GB",0,0,0,0,{"$f":"Lotto4_R7525_1!$N$58","v":0},{"$f":"Lotto4_R7525_2!N58","v":0},{"$f":"Lotto4_R7525_3!$N$58","v":0},"NO"]
[null,null,null,null,null,"","","","","","",null,null,null,"400-BMVM","L4N18","TS4L4-NVMe1,6TB",0,0,0,0,{"$f":"Lotto4_R7525_1!$N$64","v":0},{"$f":"Lotto4_R7525_2!N64","v":0},{"$f":"Lotto4_R7525_3!$N$64","v":0},"NO"]
[null,null,null,null,null,"","","","","","",null,null,null,"RPMM9/3K","L4N19","TS4L4-UPS",null,null,null,{"$f":"'Altre Opzioni'!L26","v":0},null,null,null,"NO"]
[null,null,null,null,null,"","","","","","",null,null,null,"F9857N","L4N20","TS4L4-GUI",null,null,null,{"$f":"'Altre Opzioni'!L30","v":0},null,null,null,"NO"]
[null,null,null,null,null,"","","","","","",null,null,null,"T9816NIP","L4N21","TS4L4-KVM",null,null,null,{"$f":"'Altre Opzioni'!L34","v":0},null,null,null,"NO"]
[null,null,null,null,null,"","","","","","",null,null,null,"634-BYKR","L4N22","TS4L4-WINSRVSTD",{"$f":"IF($R$14>0,COUNTIF(TS4L4_1,P42)*V42*$R$13,0)","v":0},{"$f":"IF($S$14>0,COUNTIF(TS4L4_2,P42)*W42*$S$13,0)","v":0},{"$f":"IF($T$14>0,COUNTIF(TS4L4_3,P42)*X42*$T$13,0)","v":0},0,{"$f":"Lotto4_R7525_1!$N$29","v":0},{"$f":"Lotto4_R7525_2!$N$29","v":0},{"$f":"Lotto4_R7525_3!$N$29","v":0},"NO"]
[null,null,null,null,null,"","","","","","",null,null,null,"634-BYLD","L4N23","TS4L4-WINDEVCAL",0,0,0,0,{"$f":"Lotto4_R7525_1!$N$37","v":0},{"$f":"Lotto4_R7525_2!$N$37","v":0},{"$f":"Lotto4_R7525_3!$N$37","v":0},"NO"]
[null,null,null,null,null,"","","","","","",null,null,null,"634-BYKZ","L4N24","TS4L4-WINUSRCAL",0,0,0,0,{"$f":"Lotto4_R7525_1!$N$38","v":0},{"$f":"Lotto4_R7525_2!$N$38","v":0},{"$f":"Lotto4_R7525_3!$N$38","v":0},"NO"]
[null,null,null,null,null,{"$f":"IF(I45=\"\",\"\",VLOOKUP(P45,Tabella_Prezzi,10,FALSE))","v":""},"",{"$f":"IF(I45=\"\",\"\",VLOOKUP(P45,Tabella_Prezzi,8,FALSE))","v":""},"",{"$f":"IF(I45=\"\",\"\",VLOOKUP(P45,Tabella_Prezzi,4,FALSE))","v":""},"",null,null,null,"634-BYKQ","L4N25","TS4L4-WINSRV2C",0,0,0,0,{"$f":"Lotto4_R7525_1!$N$30","v":0},{"$f":"Lotto4_R7525_2!$N$30","v":0},{"$f":"Lotto4_R7525_3!$N$30","v":0},"NO"]
[null,null,null,null,null,"","","","","","",null,null,null,0,"L4N26","TS4L4-LINUX",0,0,0,0,{"$f":"Lotto4_R7525_1!N29","v":0},{"$f":"Lotto4_R7525_2!$N$29","v":0},{"$f":"Lotto4_R7525_3!$N$29","v":0},"NO"]
[null,null,null,null,null,"","","","","","",null,null,null,"634-BYLC","L4N27","TS4L4-WinServDC",0,0,0,0,{"$f":"Lotto4_R7525_1!N33","v":0},{"$f":"Lotto4_R7525_2!$N$33","v":0},{"$f":"Lotto4_R7525_3!$N$33","v":0},"NO"]
[null,null,null,null,null,"","","","","","",null,null,null,"634-BYKX","L4N28","TS4L4-WinServDC2core",0,0,0,0,{"$f":"Lotto4_R7525_1!$N$34","v":"0"},{"$f":"Lotto4_R7525_2!$N$34","v":"0"},{"$f":"Lotto4_R7525_3!$N$34","v":"0"},"NO"]
[null,null,null,null,null,"","","","","","",null,null,null,"785-10921","L4N29","TS4L4-HDRTN36",{"$f":"IF($R$14>0,COUNTIF(TS4L4_1,P49)*$R$13,0)","v":0},{"$f":"IF($S$14>0,COUNTIF(TS4L4_2,P49)*$S$13,0)","v":0},{"$f":"IF($T$14>0,COUNTIF(TS4L4_3,P49)*$T$13,0)","v":0},0,null,null,null,"NO"]
[null,null,null,null,null,"","","","","","",null,null,null,"785-10921","L4N29e","TS4L4-HDRTN60",{"$f":"IF($R$14>0,COUNTIF(TS4L4_1,P50)*$R$13,0)","v":0},{"$f":"IF($S$14>0,COUNTIF(TS4L4_2,P50)*$S$13,0)","v":0},{"$f":"IF($T$14>0,COUNTIF(TS4L4_3,P50)*$T$13,0)","v":0},0,null,null,null,"NO"]
[null,null,null,null,null,"","","","","","",null,null,null,"P6142NCONSIP","L4N30","TS4L4-OpzEst24",{"$f":"IF($R$14>0,COUNTIF(TS4L4_1,P51)*$R$13,0)","v":0},{"$f":"IF($S$14>0,COUNTIF(TS4L4_2,P51)*$S$13,0)","v":0},{"$f":"IF($T$14>0,COUNTIF(TS4L4_3,P51)*$T$13,0)","v":0},0,null,null,null,"NO"]
[null,null,null,null,null,"","","","","","",null,null,null,"P6142NCONSIP","L4N31","TS4L4-RACK",null,null,null,{"$f":"'Altre Opzioni'!L23","v":0},null,null,null,"NO"]
[null,null,null,null,null,{"$f":"IF(I53=\"\",\"\",VLOOKUP(P53,Tabella_Prezzi,10,FALSE))","v":""},{"$f":"IF(I53=\"\",\"\",VLOOKUP(P53,Tabella_Prezzi,6,FALSE))","v":""},{"$f":"IF(I53=\"\",\"\",VLOOKUP(P53,Tabella_Prezzi,8,FALSE))","v":""},{"$f":"IF(U53>0,U53,\"\")","v":""},{"$f":"IF(I53=\"\",\"\",VLOOKUP(P53,Tabella_Prezzi,4,FALSE))","v":""},{"$f":"IF(F53=\"\",\"\",J53*I53)","v":""},null,null,null,{"$f":"VLOOKUP(P53,Tabella_Prezzi,11,FALSE)","v":"210-AUVQ"},"L4N01-NVMe","TS4L4-SRV-NVMe",{"$f":"COUNTIF(TS4L4_1,P53)*$R$13","v":0},{"$f":"COUNTIF(TS4L4_2,P53)*$S$13","v":0},{"$f":"COUNTIF(TS4L4_3,P53)*$T$13","v":0},{"$f":"SUM(R53:T53)","v":0},null,null,null,{"$f":"IF(I53<>\"\",\"SI\",\"NO\")","v":"NO"}]
[null,null,null,null,null,"",{"$f":"IF(I54=\"\",\"\",VLOOKUP(P54,Tabella_Prezzi,13,FALSE))","v":""},"",{"$f":"IF(U54>0,U54,\"\")","v":""},"",{"$f":"IF(F54=\"\",\"\",J54*I54)","v":""},null,null,null,{"$f":"VLOOKUP(P54,Tabella_Prezzi,11,FALSE)","v":"338-BZSB"},"L4N02","TS4L4-CPU-NVMe",{"$f":"IF(R53>0,COUNTIF(TS4L4_1,P54)*$R$13,0)","v":0},{"$f":"IF(S53>0,COUNTIF(TS4L4_2,P54)*$S$13,0)","v":0},{"$f":"IF(T53>0,COUNTIF(TS4L4_3,P54)*$T$13,0)","v":0},{"$f":"SUM(R54:T54)","v":0},null,null,null,{"$f":"IF(I54<>\"\",\"SI\",\"NO\")","v":"NO"}]
[null,null,null,null,null,"","","",{"$f":"IF(U55>0,U55,\"\")","v":""},"",{"$f":"IF(F55=\"\",\"\",J55*I55)","v":""},null,null,null,"370-AEVN","L4N03","TS4L4-RAM32-NVMe",{"$f":"IF($R$53>0,COUNTIF(TS4L4_1,P55)*Lotto4_R7525_1!N26*$R$13,0)","v":0},{"$f":"IF($S$53>0,COUNTIF(TS4L4_2,P55)*Lotto4_R7525_2!N26*$S$13,0)","v":0},{"$f":"IF($T$53>0,COUNTIF(TS4L4_3,P55)*Lotto4_R7525_3!N26*$T$13,0)","v":0},0,null,null,null,{"$f":"IF(I55<>\"\",\"SI\",\"NO\")","v":"NO"}]
[null,null,null,null,null,"","","","","","",null,null,null,"370-AEVP","L4N04","TS4L4-RAM64-NVMe",{"$f":"IF($R$53>0,COUNTIF(TS4L4_1,P56)*Lotto4_R7525_1!N26*$R$13,0)","v":0},{"$f":"IF($S$53>0,COUNTIF(TS4L4_2,P56)*Lotto4_R7525_2!N26*$S$13,0)","v":0},{"$f":"IF($T$53>0,COUNTIF(TS4L4_3,P56)*Lotto4_R7525_3!N26*$T$13,0)","v":0},0,null,null,null,"NO"]
[null,null,null,null,null,"","","","","","",null,null,null,"540-BBCW","L4N05","TS4L4-LAN1-NVMe",{"$f":"IF($R$53>0,COUNTIF(TS4L4_1,P57)*$R$13,0)","v":0},{"$f":"IF($S$53>0,COUNTIF(TS4L4_2,P57)*$S$13,0)","v":0},{"$f":"IF($T$53>0,COUNTIF(TS4L4_3,P57)*$T$13,0)","v":0},0,null,null,null,"NO"]
[null,null,null,null,null,"","","","","","",null,null,null,"540-BBDF","L4N75","TS4L4-LAN1-L-NVMe",0,0,0,0,null,null,null,"NO"]
[null,null,null,null,null,"","","","","","",null,null,null,"540-BDHF","L4N06","TS4L4-LAN10-NVMe",0,0,0,0,null,null,null,"NO"]
[null,null,null,null,null,"","","","","","",null,null,null,"540-BDGV","L4N76","TS4L4-LAN10-L-NVMe",0,0,0,0,null,null,null,"NO"]
[null,null,null,null,null,"","","","","","",null,null,null,"540-BCDH","L4N07","TS4L4-LAN25-NVMe",0,0,0,0,null,null,null,"NO"]
[null,null,null,null,null,"","","","","","",null,null,null,"540-BCCM","L4N77","TS4L4-LAN25-L-NVMe",0,0,0,0,null,null,null,"NO"]
[null,null,null,null,null,"","","","","","",null,null,null,"540-BBYL","L4N08","TS4L4-CNA10-NVMe",0,0,0,0,null,null,null,"NO"]
[null,null,null,null,null,"","","","","","",null,null,null,"540-BBZJ","L4N78","TS4L4-CNA10-L-NVMe",0,0,0,0,null,null,null,"NO"]
[null,null,null,null,null,"","","","","","",null,null,null,"540-BCRO","L4N09","TS4L4-BaseT-NVMe",0,0,0,0,null,null,null,"NO"]
[null,null,null,null,null,"","","","","","",null,null,null,"540-BCRO","L4N79","TS4L4-BaseT-L-NVMe",0,0,0,0,null,null,null,"NO"]
[null,null,null,null,null,"","","","","","",null,null,null,"540-BDHC","L4N10","TS4L4- FibreChannel-NVMe",0,0,0,0,null,null,null,"NO"]
[null,null,null,null,null,"","","","","","",null,null,null,"540-BDGU","L4N101","TS4L4- FibreChannel-L-NVMe",0,0,0,0,"Quantità 1","Quantità 2","Quantità 3","NO"]
[null,null,null,null,null,"","","","","","",null,null,null,"400-AVEZ","L4N11","TS4L4-HDD2TB-NVMe",{"$f":"IF($R$53>0,COUNTIF(TS4L4_1,P69)*V69*$R$13,0)","v":0},{"$f":"IF($S$53>0,COUNTIF(TS4L4_2,P69)*W69*$S$13,0)","v":0},{"$f":"IF($T$53>0,COUNTIF(TS4L4_3,P69)*X69*$T$13,0)","v":0},0,{"$f":"Lotto4_R7525_1!$N$46","v":0},{"$f":"Lotto4_R7525_2!$N$46","v":0},{"$f":"Lotto4_R7525_3!$N$46","v":0},"NO"]
[null,null,null,null,null,"","","","","","",null,null,null,"400-AVFE","L4N12","TS4L4-HDD1TB-NVMe",0,0,0,0,{"$f":"Lotto4_R7525_1!$N$48","v":0},{"$f":"Lotto4_R7525_2!$N$48","v":0},{"$f":"Lotto4_R7525_3!$N$48","v":0},"NO"]
[null,null,null,null,null,"","","","","","",null,null,null,"345-BCNU","L4N13","TS4L4-SSD-RI3,8TB-NVMe",0,0,0,0,{"$f":"Lotto4_R7525_1!$N$50","v":0},{"$f":"Lotto4_R7525_2!N50","v":0},{"$f":"Lotto4_R7525_3!$N$50","v":0},"NO"]
[null,null,null,null,null,"","","","","","",null,null,null,"345-BBVC","L4N14","TS4L4-SSD-RI1,6TB-NVMe",0,0,0,0,{"$f":"Lotto4_R7525_1!$N$52","v":0},{"$f":"Lotto4_R7525_2!$N$52","v":0},{"$f":"Lotto4_R7525_3!$N$52","v":0},"NO"]
[null,null,null,null,null,"","","","","","",null,null,null,"400-AZOY","L4N15","TS4L4-SSD-MU1,6TB-NVMe",0,0,0,0,{"$f":"Lotto4_R7525_1!$N$54","v":0},{"$f":"Lotto4_R7525_2!$N$54","v":0},{"$f":"Lotto4_R7525_3!$N$54","v":0},"NO"]
[null,null,null,null,null,"","","","","","",null,null,null,"400-AXQU","L4N16","TS4L4-SSD-RI800GB-NVMe",0,0,0,0,{"$f":"IF(Lotto4_R7525_1!$N$56<=2,0,Lotto4_R7525_1!$N$56-2)","v":0},{"$f":"IF(Lotto4_R7525_2!$N$56<=2,0,Lotto4_R7525_2!$N$56-2)","v":0},{"$f":"IF(Lotto4_R7525_3!$N$56<=2,0,Lotto4_R7525_3!$N$56-2)","v":0},"NO"]
[null,null,null,null,null,"","","","","","",null,null,null,"400-AZQO","L4N17","TS4L4-SSD-MU800GB-NVMe",0,0,0,0,{"$f":"Lotto4_R7525_1!$N$58","v":0},{"$f":"Lotto4_R7525_2!$N$58","v":0},{"$f":"Lotto4_R7525_3!$N$58","v":0},"NO"]
[null,null,null,null,null,"","","","","","",null,null,null,"400-BMVM","L4N18","TS4L4-NVMe1,6TB-NVMe",0,0,0,0,{"$f":"Lotto4_R7525_1!$N$64","v":0},{"$f":"Lotto4_R7525_2!$N$64","v":0},{"$f":"Lotto4_R7525_3!$N$64","v":0},"NO"]
[null,null,null,null,null,"","","","","","",null,null,null,"RPMM9/3K","L4N19","TS4L4-UPS-NVMe",null,null,null,null,null,null,null,"NO"]
[null,null,null,null,null,{"$f":"IF(I78=\"\",\"\",VLOOKUP(P78,Tabella_Prezzi,10,FALSE))","v":""},"",{"$f":"IF(I78=\"\",\"\",VLOOKUP(P78,Tabella_Prezzi,8,FALSE))","v":""},"",{"$f":"IF(I78=\"\",\"\",VLOOKUP(P78,Tabella_Prezzi,4,FALSE))","v":""},"",null,null,null,"F9857N","L4N20","TS4L4-GUI-NVMe",null,null,null,null,null,null,null,"NO"]
[null,null,null,null,null,"","","","","","",null,null,null,"T9816NIP","L4N21","TS4L4-KVM-NVMe",null,null,null,null,null,null,null,"NO"]
[null,null,null,null,null,"","","","","","",null,null,null,"634-BYKR","L4N22","TS4L4-WINSRVSTD-NVMe",{"$f":"IF($R$53>0,COUNTIF(TS4L4_1,P80)*V80*$R$13,0)","v":0},{"$f":"IF($S$53>0,COUNTIF(TS4L4_2,P80)*W80*$S$13,0)","v":0},{"$f":"IF($T$53>0,COUNTIF(TS4L4_3,P80)*X80*$T$13,0)","v":0},{"$f":"SUM(R80:T80)","v":0},{"$f":"Lotto4_R7525_1!$N$29","v":0},{"$f":"Lotto4_R7525_2!$N$29","v":0},{"$f":"Lotto4_R7525_3!$N$29","v":0},"NO"]
[null,null,null,null,null,"","","","","","",null,null,null,"634-BYLD","L4N23","TS4L4-WINDEVCAL-NVMe",0,0,0,0,{"$f":"Lotto4_R7525_1!$N$37","v":0},{"$f":"Lotto4_R7525_2!$N$37","v":0},{"$f":"Lotto4_R7525_3!$N$37","v":0},"NO"]
[null,null,null,null,null,"","","","","","",null,null,null,"634-BYKZ","L4N24","TS4L4-WINUSRCAL-NVMe",0,0,0,0,{"$f":"Lotto4_R7525_1!$N$38","v":0},{"$f":"Lotto4_R7525_2!$N$38","v":0},{"$f":"Lotto4_R7525_3!$N$38","v":0},"NO"]
[null,null,null,null,null,"","","","","","",null,null,null,"634-BYKQ","L4N25","TS4L4-WINSRV2C-NVMe",0,0,0,0,{"$f":"Lotto4_R7525_1!$N$30","v":0},{"$f":"Lotto4_R7525_2!$N$30","v":0},{"$f":"Lotto4_R7525_3!$N$30","v":0},"NO"]
[null,null,null,null,null,"","","","","","",null,null,null,0,"L4N26","TS4L4-LINUX-NVMe",0,0,0,0,{"$f":"Lotto4_R7525_1!$N$33","v":0},{"$f":"Lotto4_R7525_2!$N$33","v":0},{"$f":"Lotto4_R7525_3!$N$33","v":0},"NO"]
[null,null,null,null,null,"","","","","","",null,null,null,"634-BYLC","L4N27","TS4L4-WinServDC-NVMe",0,0,0,0,{"$f":"Lotto4_R7525_1!$N$33","v":0},{"$f":"Lotto4_R7525_2!$N$33","v":0},{"$f":"Lotto4_R7525_3!$N$33","v":0},"NO"]
[null,null,null,null,null,"","","","","","",null,null,null,"634-BYKX","L4N28","TS4L4-WinServDC2core-NVMe",0,0,0,0,{"$f":"Lotto4_R7525_1!$N$34","v":"0"},{"$f":"Lotto4_R7525_2!$N$34","v":"0"},{"$f":"Lotto4_R7525_3!$N$34","v":"0"},"NO"]
[null,null,null,null,null,"","","","","","",null,null,null,"785-10921","L4N29","TS4L4-HDRTN36-NVMe",{"$f":"IF($R$53>0,COUNTIF(TS4L4_1,P87)*$R$13,0)","v":0},{"$f":"IF($S$53>0,COUNTIF(TS4L4_2,P87)*$S$13,0)","v":0},{"$f":"IF($T$53>0,COUNTIF(TS4L4_3,P87)*$T$13,0)","v":0},0,null,null,null,"NO"]
[null,null,null,null,null,"","","","","","",null,null,null,"785-10921","L4N29e","TS4L4-HDRTN60-NVMe",{"$f":"IF($R$53>0,COUNTIF(TS4L4_1,P88)*$R$13,0)","v":0},{"$f":"IF($S$53>0,COUNTIF(TS4L4_2,P88)*$S$13,0)","v":0},{"$f":"IF($T$53>0,COUNTIF(TS4L4_3,P88)*$T$13,0)","v":0},0,null,null,null,"NO"]
[null,null,null,null,null,"","","","","","",null,null,null,"P6142NCONSIP","L4N30","TS4L4-OpzEst24-NVMe",{"$f":"IF($R$53>0,COUNTIF(TS4L4_1,P89)*$R$13,0)","v":0},{"$f":"IF($S$53>0,COUNTIF(TS4L4_2,P89)*$S$13,0)","v":0},{"$f":"IF($T$53>0,COUNTIF(TS4L4_3,P89)*$T$13,0)","v":0},0,null,null,null,"NO"]
[null,null,null,null,null,"","","","","","",null,null,null,"P6142NCONSIP","L4N31","TS4L4-RACK-NVMe",null,null,null,null,null,null,null,"NO"]
[null,null,null,null,null,null,null,null,null,null,null,null,null,null,null,null,null,null,null,null,null,null,null,null,"SI"]
[null,null,null,null,null,{"$f":"IF(G142<0,\"Superata Quota 20%\",\"\")","v":""},null,null,null,null,null,null,null,null,null,null,null,null,null,null,null,null,null,null,{"$f":"IF($K$141>0,\"SI\",\"NO\")","v":"NO"}]
[null,null,null,null,null,"Opzioni 20 %",null,null,null,null,null,null,null,null,null,null,null,"Config 1","Config 2","Config 3","Totale",null,null,null,{"$f":"IF($K$141>0,\"SI\",\"NO\")","v":"NO"}]
[null,null,null,null,null,"Codice Produttore","Codice Convenzione","Descrizione ","Qtà","Costo unitario","Costo Totale",null,null,null,null,"N°","Codice Convenzione",{"$f":"Lotto4_R7525_1!N8","v":0},{"$f":"Lotto4_R7525_2!N8","v":0},{"$f":"Lotto4_R7525_3!N8","v":0},{"$f":"SUM(R94:T94)","v":0},"Quantità 1","Quantità 2","Quantità 3",{"$f":"IF($K$141>0,\"SI\",\"NO\")","v":"NO"}]
[null,null,null,null,null,{"$f":"IF(I95=\"\",\"\",VLOOKUP(P95,Tabella_prezzi!$A$1:$K$142,10,FALSE))","v":""},{"$f":"IF(I95=\"\",\"\",VLOOKUP(P95,Tabella_Prezzi,6,FALSE))","v":""},{"$f":"IF(I95=\"\",\"\",VLOOKUP(P95,Tabella_prezzi!$A$1:$K$142,8,FALSE))","v":""},{"$f":"IF(U95>0,U95,\"\")","v":""},{"$f":"IF(I95=\"\",\"\",VLOOKUP(P95,Tabella_prezzi!A43:D73,4,FALSE))","v":""},{"$f":"IF(F95=\"\",\"\",J95*I95)","v":""},null,null,null,{"$f":"VLOOKUP(P95,Tabella_Prezzi,11,FALSE)","v":"540-BBVM"},"L4N32","TS4L4-OpzSSD7,68",{"$f":"IF($R$14>0,COUNTIF(TS4L4_1,P95)*$V$95*$R$13,0)","v":0},{"$f":"IF($S$14>0,COUNTIF(TS4L4_2,P95)*$W$95*$S$13,0)","v":0},{"$f":"IF($T$14>0,COUNTIF(TS4L4_3,P95)*$X$95*T94,0)","v":0},{"$f":"SUM(R95:T95)","v":0},{"$f":"Lotto4_R7525_1!$N$60","v":0},{"$f":"Lotto4_R7525_2!$N$60","v":0},{"$f":"Lotto4_R7525_3!$N$60","v":0},{"$f":"IF($I95<>\"\",\"SI\",\"NO\")","v":"NO"}]
[null,null,null,null,null,{"$f":"IF(I96=\"\",\"\",VLOOKUP(P96,Tabella_prezzi!$A$1:$K$142,10,FALSE))","v":""},"",{"$f":"IF(I96=\"\",\"\",VLOOKUP(P96,Tabella_prezzi!$A$1:$K$142,8,FALSE))","v":""},{"$f":"IF(U96>0,U96,\"\")","v":""},{"$f":"IF(I96=\"\",\"\",VLOOKUP(P96,Tabella_prezzi!A44:D73,4,FALSE))","v":""},{"$f":"IF(F96=\"\",\"\",J96*I96)","v":""},null,null,null,"403-BBVQ","L4N33","TS4L4-OpzNVMe3,2",{"$f":"IF($R$14>0,COUNTIF(TS4L4_1,P96)*$V$96*$R$13,0)","v":0},{"$f":"IF($S$14>0,COUNTIF(TS4L4_2,$P$96)*W96*$S$13,0)","v":0},{"$f":"IF($T$14>0,COUNTIF(TS4L4_3,P96)*$X$96*T94,0)","v":0},0,{"$f":"Lotto4_R7525_1!$N$66","v":0},{"$f":"Lotto4_R7525_2!$N$66","v":0},{"$f":"Lotto4_R7525_3!$N$66","v":0},{"$f":"IF($I96<>\"\",\"SI\",\"NO\")","v":"NO"}]
[null,null,null,null,null,{"$f":"IF(I97=\"\",\"\",VLOOKUP(P97,Tabella_prezzi!$A$1:$K$142,10,FALSE))","v":""},"",{"$f":"IF(I97=\"\",\"\",VLOOKUP(P97,Tabella_prezzi!$A$1:$K$142,8,FALSE))","v":""},"",{"$f":"IF(I97=\"\",\"\",VLOOKUP(P97,Tabella_prezzi!A45:D73,4,FALSE))","v":""},"",null,null,null,"403-BBVQ","L4N34","TS4L4-OpzNVMe1,92",{"$f":"IF($R$14>0,COUNTIF(TS4L4_1,P97)*$V$97*$R$13,0)","v":0},{"$f":"IF($S$14>0,COUNTIF(TS4L4_2,P97)*W97*$S$13,0)","v":0},{"$f":"IF($T$14>0,COUNTIF(TS4L4_3,P97)*$X$97*T94,0)","v":0},0,{"$f":"Lotto4_R7525_1!$N$68","v":0},{"$f":"Lotto4_R7525_2!$N$68","v":0},{"$f":"Lotto4_R7525_3!$N$68","v":0},"NO"]
[null,null,null,null,null,{"$f":"IF(I98=\"\",\"\",VLOOKUP(P98,Tabella_prezzi!$A$1:$K$142,10,FALSE))","v":""},"",{"$f":"IF(I98=\"\",\"\",VLOOKUP(P98,Tabella_prezzi!$A$1:$K$142,8,FALSE))","v":""},"",{"$f":"IF(I98=\"\",\"\",VLOOKUP(P98,Tabella_prezzi!A46:D73,4,FALSE))","v":""},"",null,null,null,"403-BBVQ","L4N35","TS4L4-OpzNVMe3,84",{"$f":"IF($R$14>0,COUNTIF(TS4L4_1,P98)*$V$98*$R$13,0)","v":0},{"$f":"IF($S$14>0,COUNTIF(TS4L4_2,P98)*$W$98*$S$13,0)","v":0},{"$f":"IF($T$14>0,COUNTIF(TS4L4_3,P98)*$X$98*T94,0)","v":0},0,{"$f":"Lotto4_R7525_1!$N$70","v":0},{"$f":"Lotto4_R7525_2!$N$70","v":0},{"$f":"Lotto4_R7525_3!$N$70","v":0},"NO"]
[null,null,null,null,null,{"$f":"IF(I99=\"\",\"\",VLOOKUP(P99,Tabella_prezzi!$A$1:$K$142,10,FALSE))","v":""},"",{"$f":"IF(I99=\"\",\"\",VLOOKUP(P99,Tabella_prezzi!$A$1:$K$142,8,FALSE))","v":""},{"$f":"IF(U99>0,U99,\"\")","v":""},{"$f":"IF(I99=\"\",\"\",VLOOKUP(P99,Tabella_prezzi!A54:D73,4,FALSE))","v":""},{"$f":"IF(F99=\"\",\"\",J99*I99)","v":""},null,null,null,"405-AANM","L4N36","TS4L4-HBA355i-L",{"$f":"IF($R$14>0,COUNTIF(TS4L4_1,P99)*$R$94,0)","v":0},{"$f":"IF($S$14>0,COUNTIF(TS4L4_2,P99)*$S$13,0)","v":0},{"$f":"IF($T$14>0,COUNTIF(TS4L4_3,P99)*T94,0)","v":0},{"$f":"SUM(R99:T99)","v":0},null,null,null,{"$f":"IF($I99<>\"\",\"SI\",\"NO\")","v":"NO"}]
[null,null,null,null,null,{"$f":"IF(I100=\"\",\"\",VLOOKUP(P100,Tabella_prezzi!$A$1:$K$142,10,FALSE))","v":""},"",{"$f":"IF(I100=\"\",\"\",VLOOKUP(P100,Tabella_prezzi!$A$1:$K$142,8,FALSE))","v":""},{"$f":"IF(U100>0,U100,\"\")","v":""},{"$f":"IF(I100=\"\",\"\",VLOOKUP(P100,Tabella_prezzi!A48:D73,4,FALSE))","v":""},{"$f":"IF(F100=\"\",\"\",J100*I100)","v":""},null,null,null,"405-AAJW","L4N37","TS4L4-100GBs_B",{"$f":"IF($R$14>0,COUNTIF(TS4L4_1,P100)*$R$94,0)","v":0},{"$f":"IF($S$14>0,COUNTIF(TS4L4_2,P100)*$S$13,0)","v":0},{"$f":"IF($T$14>0,COUNTIF(TS4L4_3,P100)*T94,0)","v":0},{"$f":"SUM(R100:T100)","v":0},null,null,null,"NO"]
[null,null,null,null,null,{"$f":"IF(I101=\"\",\"\",VLOOKUP(P101,Tabella_prezzi!$A$1:$K$142,10,FALSE))","v":""},"",{"$f":"IF(I101=\"\",\"\",VLOOKUP(P101,Tabella_prezzi!$A$1:$K$142,8,FALSE))","v":""},"",{"$f":"IF(I101=\"\",\"\",VLOOKUP(P101,Tabella_prezzi!A49:D73,4,FALSE))","v":""},"",null,null,null,"490-BEIX","L4N38","TS4L4-100GBs_M",{"$f":"IF($R$14>0,COUNTIF(TS4L4_1,P101)*$R$94,0)","v":0},{"$f":"IF($S$14>0,COUNTIF(TS4L4_2,P101)*$S$13,0)","v":0},{"$f":"IF($T$14>0,COUNTIF(TS4L4_3,P101)*T94,0)","v":0},0,null,null,null,"NO"]
[null,null,null,null,null,{"$f":"IF(I102=\"\",\"\",VLOOKUP(P102,Tabella_prezzi!$A$1:$K$142,10,FALSE))","v":""},"",{"$f":"IF(I102=\"\",\"\",VLOOKUP(P102,Tabella_prezzi!$A$1:$K$142,8,FALSE))","v":""},"",{"$f":"IF(I102=\"\",\"\",VLOOKUP(P102,Tabella_prezzi!A50:D73,4,FALSE))","v":""},"",null,null,null,"540-BCNL","L4N39","TS4L4-100GBs_INF",{"$f":"IF($R$14>0,COUNTIF(TS4L4_1,P102)*$R$94,0)","v":0},{"$f":"IF($S$14>0,COUNTIF(TS4L4_2,P102)*$S$13,0)","v":0},{"$f":"IF($T$14>0,COUNTIF(TS4L4_3,P102)*T94,0)","v":0},0,null,null,null,"NO"]
[null,null,null,null,null,{"$f":"IF(I103=\"\",\"\",VLOOKUP(P103,Tabella_prezzi!$A$1:$K$142,10,FALSE))","v":""},"",{"$f":"IF(I103=\"\",\"\",VLOOKUP(P103,Tabella_prezzi!$A$1:$K$142,8,FALSE))","v":""},{"$f":"IF(U103>0,U103,\"\")","v":""},{"$f":"IF(I103=\"\",\"\",VLOOKUP(P103,Tabella_prezzi!A47:D73,4,FALSE))","v":""},{"$f":"IF(F103=\"\",\"\",J103*I103)","v":""},null,null,null,"405-AAMX","L4N40","TS4L4-BOSS",{"$f":"IF($R$14>0,COUNTIF(TS4L4_1,P103)*$R$94,0)","v":0},{"$f":"IF($S$14>0,COUNTIF(TS4L4_2,P103)*$S$13,0)","v":0},{"$f":"IF($T$14>0,COUNTIF(TS4L4_3,P103)*T94,0)","v":0},{"$f":"SUM(R103:T103)","v":0},null,null,null,{"$f":"IF($I103<>\"\",\"SI\",\"NO\")","v":"NO"}]
[null,null,null,null,null,{"$f":"IF(I104=\"\",\"\",VLOOKUP(P104,Tabella_prezzi!$A$1:$K$142,10,FALSE))","v":""},"",{"$f":"IF(I104=\"\",\"\",VLOOKUP(P104,Tabella_prezzi!$A$1:$K$142,8,FALSE))","v":""},{"$f":"IF(U104>0,U104,\"\")","v":""},{"$f":"IF(I104=\"\",\"\",VLOOKUP(P104,Tabella_prezzi!A51:D73,4,FALSE))","v":""},{"$f":"IF(F104=\"\",\"\",J104*I104)","v":""},null,null,null,"407-BCBN","L4N109","TS4L4_OT10GB",{"$f":"IF($R$14>0,COUNTIF(TS4L4_1,P104)*V104*R13,0)","v":0},{"$f":"IF($S$14>0,COUNTIF(TS4L4_2,P104)*W104*S94,0)","v":0},{"$f":"IF($T$14>0,COUNTIF(TS4L4_3,P104)*X104*$T$94,0)","v":0},{"$f":"SUM(R104:T104)","v":0},{"$f":"Lotto4_R7525_1!$N$114","v":0},{"$f":"Lotto4_R7525_2!N114","v":0},{"$f":"Lotto4_R7525_3!$N$114","v":0},"NO"]
[null,null,null,null,null,{"$f":"IF(I105=\"\",\"\",VLOOKUP(P105,Tabella_prezzi!$A$1:$K$142,10,FALSE))","v":""},"",{"$f":"IF(I105=\"\",\"\",VLOOKUP(P105,Tabella_prezzi!$A$1:$K$142,8,FALSE))","v":""},"",{"$f":"IF(I105=\"\",\"\",VLOOKUP(P105,Tabella_prezzi!A52:D73,4,FALSE))","v":""},"",null,null,null,"407-BCGJ","L4N110","TS4L4_OT25GB",{"$f":"IF($R$14>0,COUNTIF(TS4L4_1,P105)*V105*R13,0)","v":0},{"$f":"IF($S$14>0,COUNTIF(TS4L4_2,P105)*W105*$S$94,0)","v":0},{"$f":"IF($T$14>0,COUNTIF(TS4L4_3,P105)*X105*$T$94,0)","v":0},0,{"$f":"Lotto4_R7525_1!$N$117","v":0},{"$f":"Lotto4_R7525_2!$N$117","v":0},{"$f":"Lotto4_R7525_3!$N$117","v":0},"NO"]
[null,null,null,null,null,{"$f":"IF(I106=\"\",\"\",VLOOKUP(P106,Tabella_prezzi!$A$1:$K$142,10,FALSE))","v":""},"",{"$f":"IF(I106=\"\",\"\",VLOOKUP(P106,Tabella_prezzi!$A$1:$K$142,8,FALSE))","v":""},"",{"$f":"IF(I106=\"\",\"\",VLOOKUP(P106,Tabella_prezzi!A53:D73,4,FALSE))","v":""},"",null,null,null,"407-BCEQ","L4N111","TS4L4-OT100GB",{"$f":"IF($R$14>0,COUNTIF(TS4L4_1,P106)*V106*R13,0)","v":0},{"$f":"IF($S$14>0,COUNTIF(TS4L4_2,P106)*W106*$S$94,0)","v":0},{"$f":"IF($T$14>0,COUNTIF(TS4L4_3,P106)*X106*$T$94,0)","v":0},0,{"$f":"Lotto4_R7525_1!$N$120","v":0},{"$f":"Lotto4_R7525_2!$N$120","v":0},{"$f":"Lotto4_R7525_3!$N$120","v":0},"NO"]
[null,null,null,null,null,{"$f":"IF(I107=\"\",\"\",VLOOKUP(P107,Tabella_prezzi!$A$1:$K$142,10,FALSE))","v":""},{"$f":"IF(I107=\"\",\"\",VLOOKUP(P107,Tabella_Prezzi,13,FALSE))","v":""},{"$f":"IF(I107=\"\",\"\",VLOOKUP(P107,Tabella_prezzi!$A$1:$K$142,8,FALSE))","v":""},{"$f":"IF(U107>0,U107,\"\")","v":""},{"$f":"IF(I107=\"\",\"\",VLOOKUP(P107,Tabella_prezzi!A55:D85,4,FALSE))","v":""},{"$f":"IF(F107=\"\",\"\",J107*I107)","v":""},null,null,null,{"$f":"VLOOKUP(P107,Tabella_Prezzi,11,FALSE)","v":"540-BBVM"},"L4N32","TS4L4-OpzSSD7,68-NVMe",{"$f":"IF($R$53>0,COUNTIF(TS4L4_1,P107)*$V$95*$R$13,0)","v":0},{"$f":"IF($S$53>0,COUNTIF(TS4L4_2,P107)*$W$95*$S$13,0)","v":0},{"$f":"IF($T$53>0,COUNTIF(TS4L4_3,P107)*$X$95*$T$94,0)","v":0},0,{"$f":"Lotto4_R7525_1!$N$60","v":0},{"$f":"Lotto4_R7525_2!$N$60","v":0},{"$f":"Lotto4_R7525_3!$N$60","v":0},{"$f":"IF($I107<>\"\",\"SI\",\"NO\")","v":"NO"}]
[null,null,null,null,null,{"$f":"IF(I108=\"\",\"\",VLOOKUP(P108,Tabella_prezzi!$A$1:$K$142,10,FALSE))","v":""},"",{"$f":"IF(I108=\"\",\"\",VLOOKUP(P108,Tabella_prezzi!$A$1:$K$142,8,FALSE))","v":""},{"$f":"IF(U108>0,U108,\"\")","v":""},{"$f":"IF(I108=\"\",\"\",VLOOKUP(P108,Tabella_prezzi!A56:D85,4,FALSE))","v":""},{"$f":"IF(F108=\"\",\"\",J108*I108)","v":""},null,null,null,"403-BBVQ","L4N33","TS4L4-OpzNVMe3,2-NVMe",{"$f":"IF($R$53>0,COUNTIF(TS4L4_1,P108)*$V$96*$R$13,0)","v":0},{"$f":"IF($S$53>0,COUNTIF(TS4L4_2,P108)*$W$96*$S$13,0)","v":0},{"$f":"IF($T$53>0,COUNTIF(TS4L4_3,P108)*$X$96*$T$94,0)","v":0},0,{"$f":"Lotto4_R7525_1!$N$66","v":0},{"$f":"Lotto4_R7525_2!$N$66","v":0},{"$f":"Lotto4_R7525_3!$N$66","v":0},"NO"]
[null,null,null,null,null,{"$f":"IF(I109=\"\",\"\",VLOOKUP(P109,Tabella_prezzi!$A$1:$K$142,10,FALSE))","v":""},"",{"$f":"IF(I109=\"\",\"\",VLOOKUP(P109,Tabella_prezzi!$A$1:$K$142,8,FALSE))","v":""},"",{"$f":"IF(I109=\"\",\"\",VLOOKUP(P109,Tabella_prezzi!A57:D85,4,FALSE))","v":""},"",null,null,null,"403-BBVQ","L4N34","TS4L4-OpzNVMe1,92-NVMe",{"$f":"IF($R$53>0,COUNTIF(TS4L4_1,P109)*$V$97*$R$13,0)","v":0},{"$f":"IF($S$53>0,COUNTIF(TS4L4_2,P109)*$W$97*$S$13,0)","v":0},{"$f":"IF($T$53>0,COUNTIF(TS4L4_3,P109)*$X$97*$T$94,0)","v":0},0,{"$f":"Lotto4_R7525_1!$N$68","v":0},{"$f":"Lotto4_R7525_2!$N$68","v":0},{"$f":"Lotto4_R7525_3!$N$68","v":0},"NO"]
[null,null,null,null,null,{"$f":"IF(I110=\"\",\"\",VLOOKUP(P110,Tabella_prezzi!$A$1:$K$142,10,FALSE))","v":""},"",{"$f":"IF(I110=\"\",\"\",VLOOKUP(P110,Tabella_prezzi!$A$1:$K$142,8,FALSE))","v":""},"",{"$f":"IF(I110=\"\",\"\",VLOOKUP(P110,Tabella_prezzi!A58:D85,4,FALSE))","v":""},"",null,null,null,"403-BBVQ","L4N35","TS4L4-OpzNVMe3,84-NVMe",{"$f":"IF($R$53>0,COUNTIF(TS4L4_1,P110)*$V$98*$R$13,0)","v":0},{"$f":"IF($S$53>0,COUNTIF(TS4L4_2,P110)*$W$98*$S$13,0)","v":0},{"$f":"IF($T$53>0,COUNTIF(TS4L4_3,P110)*$X$98*$T$94,0)","v":0},0,{"$f":"Lotto4_R7525_1!$N$70","v":0},{"$f":"Lotto4_R7525_2!$N$70","v":0},{"$f":"Lotto4_R7525_3!$N$70","v":0},"NO"]
[null,null,null,null,null,{"$f":"IF(I111=\"\",\"\",VLOOKUP(P111,Tabella_prezzi!$A$1:$K$142,10,FALSE))","v":""},"",{"$f":"IF(I111=\"\",\"\",VLOOKUP(P111,Tabella_prezzi!$A$1:$K$142,8,FALSE))","v":""},null,{"$f":"IF(I111=\"\",\"\",VLOOKUP(P111,Tabella_prezzi!A1:D85,4,FALSE))","v":""},{"$f":"IF(F111=\"\",\"\",J111*I111)","v":""},null,null,null,"405-AANM","L4N36","TS4L4-HBA355i-L-NVMe",{"$f":"IF($R$53>0,COUNTIF(TS4L4_1,P111)*$R$94,0)","v":0},{"$f":"IF($S$53>0,COUNTIF(TS4L4_2,P111)*$S$13,0)","v":0},{"$f":"IF($T$14>0,COUNTIF(TS4L4_3,P111)*$T$94,0)","v":0},{"$f":"SUM(R111:T111)","v":0},null,null,null,{"$f":"IF($I111<>\"\",\"SI\",\"NO\")","v":"NO"}]
[null,null,null,null,null,{"$f":"IF(I112=\"\",\"\",VLOOKUP(P112,Tabella_prezzi!$A$1:$K$142,10,FALSE))","v":""},"",{"$f":"IF(I112=\"\",\"\",VLOOKUP(P112,Tabella_prezzi!$A$1:$K$142,8,FALSE))","v":""},{"$f":"IF(U112>0,U112,\"\")","v":""},{"$f":"IF(I112=\"\",\"\",VLOOKUP(P112,Tabella_prezzi!A60:D85,4,FALSE))","v":""},{"$f":"IF(F112=\"\",\"\",J112*I112)","v":""},null,null,null,"405-AAJW","L4N37","TS4L4-100GBs_B-NVMe",{"$f":"IF($R$53>0,COUNTIF(TS4L4_1,P112)*$R$94,0)","v":0},{"$f":"IF($S$53>0,COUNTIF(TS4L4_2,P112)*$S$13,0)","v":0},{"$f":"IF($T$14>0,COUNTIF(TS4L4_3,P112)*$T$94,0)","v":0},{"$f":"SUM(R112:T112)","v":0},null,null,null,"NO"]
[null,null,null,null,null,{"$f":"IF(I113=\"\",\"\",VLOOKUP(P113,Tabella_prezzi!$A$1:$K$142,10,FALSE))","v":""},"",{"$f":"IF(I113=\"\",\"\",VLOOKUP(P113,Tabella_prezzi!$A$1:$K$142,8,FALSE))","v":""},"",{"$f":"IF(I113=\"\",\"\",VLOOKUP(P113,Tabella_prezzi!A61:D85,4,FALSE))","v":""},"",null,null,null,"490-BEIX","L4N38","TS4L4-100GBs_M-NVMe",{"$f":"IF($R$53>0,COUNTIF(TS4L4_1,P113)*$R$94,0)","v":0},{"$f":"IF($S$53>0,COUNTIF(TS4L4_2,P113)*$S$13,0)","v":0},{"$f":"IF($T$14>0,COUNTIF(TS4L4_3,P113)*$T$94,0)","v":0},0,null,null,null,"NO"]
[null,null,null,null,null,{"$f":"IF(I114=\"\",\"\",VLOOKUP(P114,Tabella_prezzi!$A$1:$K$142,10,FALSE))","v":""},"",{"$f":"IF(I114=\"\",\"\",VLOOKUP(P114,Tabella_prezzi!$A$1:$K$142,8,FALSE))","v":""},"",{"$f":"IF(I114=\"\",\"\",VLOOKUP(P114,Tabella_prezzi!A62:D85,4,FALSE))","v":""},"",null,null,null,"540-BCNL","L4N39","TS4L4-100GBs_INF-NVMe",{"$f":"IF($R$53>0,COUNTIF(TS4L4_1,P114)*$R$94,0)","v":0},{"$f":"IF($S$53>0,COUNTIF(TS4L4_2,P114)*$S$13,0)","v":0},{"$f":"IF($T$14>0,COUNTIF(TS4L4_3,P114)*$T$94,0)","v":0},0,null,null,null,"NO"]
[null,null,null,null,null,{"$f":"IF(I115=\"\",\"\",VLOOKUP(P115,Tabella_prezzi!$A$1:$K$142,10,FALSE))","v":""},"",{"$f":"IF(I115=\"\",\"\",VLOOKUP(P115,Tabella_prezzi!$A$1:$K$142,8,FALSE))","v":""},null,{"$f":"IF(I115=\"\",\"\",VLOOKUP(P115,Tabella_prezzi!A59:D85,4,FALSE))","v":""},{"$f":"IF(F115=\"\",\"\",J115*I115)","v":""},null,null,null,"405-AAMX","L4N40","TS4L4-BOSS-NVMe",{"$f":"IF($R$53>0,COUNTIF(TS4L4_1,P115)*$R$94,0)","v":0},{"$f":"IF($S$53>0,COUNTIF(TS4L4_2,P115)*$S$13,0)","v":0},{"$f":"IF($T$14>0,COUNTIF(TS4L4_3,P115)*$T$94,0)","v":0},{"$f":"SUM(R115:T115)","v":0},null,null,null,{"$f":"IF($I115<>\"\",\"SI\",\"NO\")","v":"NO"}]
[null,null,null,null,null,{"$f":"IF(I116=\"\",\"\",VLOOKUP(P116,Tabella_prezzi!$A$1:$K$142,10,FALSE))","v":""},"",{"$f":"IF(I116=\"\",\"\",VLOOKUP(P116,Tabella_prezzi!$A$1:$K$142,8,FALSE))","v":""},{"$f":"IF(U116>0,U116,\"\")","v":""},{"$f":"IF(I116=\"\",\"\",VLOOKUP(P116,Tabella_prezzi!A63:D85,4,FALSE))","v":""},{"$f":"IF(F116=\"\",\"\",J116*I116)","v":""},null,null,null,"407-BCBN","L4N109","TS4L4_OT10GB-NVMe",{"$f":"IF($R$53>0,COUNTIF(TS4L4_1,P116)*V116*R13,0)","v":0},{"$f":"IF($S$53>0,COUNTIF(TS4L4_2,P116)*W116*S94,0)","v":0},{"$f":"IF($T$53>0,COUNTIF(TS4L4_3,P116)*X116*$T$94,0)","v":0},{"$f":"SUM(R116:T116)","v":0},{"$f":"Lotto4_R7525_1!$N$114","v":0},{"$f":"Lotto4_R7525_2!N114","v":0},{"$f":"Lotto4_R7525_3!$N$114","v":0},"NO"]
[null,null,null,null,null,{"$f":"IF(I117=\"\",\"\",VLOOKUP(P117,Tabella_prezzi!$A$1:$K$142,10,FALSE))","v":""},"",{"$f":"IF(I117=\"\",\"\",VLOOKUP(P117,Tabella_prezzi!$A$1:$K$142,8,FALSE))","v":""},"",{"$f":"IF(I117=\"\",\"\",VLOOKUP(P117,Tabella_prezzi!A64:D85,4,FALSE))","v":""},"",null,null,null,"407-BCGJ","L4N110","TS4L4_OT25GB-NVMe",{"$f":"IF($R$53>0,COUNTIF(TS4L4_1,P117)*V117*R13,0)","v":0},{"$f":"IF($S$53>0,COUNTIF(TS4L4_2,P117)*W117*S94,0)","v":0},{"$f":"IF($T$53>0,COUNTIF(TS4L4_3,P117)*X117*$T$94,0)","v":0},0,{"$f":"Lotto4_R7525_1!$N$117","v":0},{"$f":"Lotto4_R7525_2!N117","v":0},{"$f":"Lotto4_R7525_3!$N$117","v":0},"NO"]
[null,null,null,null,null,{"$f":"IF(I118=\"\",\"\",VLOOKUP(P118,Tabella_prezzi!$A$1:$K$142,10,FALSE))","v":""},"",{"$f":"IF(I118=\"\",\"\",VLOOKUP(P118,Tabella_prezzi!$A$1:$K$142,8,FALSE))","v":""},"",{"$f":"IF(I118=\"\",\"\",VLOOKUP(P118,Tabella_prezzi!A65:D85,4,FALSE))","v":""},"",null,null,null,"407-BCEQ","L4N111","TS4L4-OT100GB-NVMe",{"$f":"IF($R$53>0,COUNTIF(TS4L4_1,P118)*V118*R13,0)","v":0},{"$f":"IF($S$53>0,COUNTIF(TS4L4_2,P118)*W118*S94,0)","v":0},{"$f":"IF($T$53>0,COUNTIF(TS4L4_3,P118)*X118*$T$94,0)","v":0},0,{"$f":"Lotto4_R7525_1!$N$120","v":0},{"$f":"Lotto4_R7525_2!N120","v":0},{"$f":"Lotto4_R7525_3!$N$120","v":0},"NO"]
[null,null,null,null,null,{"$f":"IF(I119=\"\",\"\",VLOOKUP(P119,Tabella_prezzi!$A$1:$K$142,10,FALSE))","v":""},{"$f":"IF(I119=\"\",\"\",VLOOKUP(P119,Tabella_prezzi!$A$1:$K$142,6,FALSE))","v":""},{"$f":"IF(I119=\"\",\"\",VLOOKUP(P119,Tabella_prezzi!$A$1:$K$142,8,FALSE))","v":""},{"$f":"IF(U119>0,U119,\"\")","v":""},{"$f":"IF(I119=\"\",\"\",VLOOKUP(P119,Tabella_prezzi!A51:D73,4,FALSE))","v":""},{"$f":"IF(F119=\"\",\"\",J119*I119)","v":""},null,null,null,18219176,"L4N112","TS4L4-2CPU-vSAN-512GB",{"$f":"COUNTIF(TS4L4_1,P119)*R94","v":0},{"$f":"COUNTIF(TS4L4_2,P119)*S94","v":0},{"$f":"COUNTIF(TS4L4_3,P119)*T94","v":0},{"$f":"SUM(R119:T119)","v":0},null,null,null,{"$f":"IF($I119<>\"\",\"SI\",\"NO\")","v":"NO"}]
[null,null,null,null,null,{"$f":"IF(I120=\"\",\"\",VLOOKUP(P120,Tabella_prezzi!$A$1:$K$142,10,FALSE))","v":""},{"$f":"IF(I120=\"\",\"\",VLOOKUP(P120,Tabella_prezzi!$A$1:$K$142,6,FALSE))","v":""},{"$f":"IF(I120=\"\",\"\",VLOOKUP(P120,Tabella_prezzi!$A$1:$K$142,8,FALSE))","v":""},{"$f":"IF(U120>0,U120,\"\")","v":""},{"$f":"IF(I120=\"\",\"\",VLOOKUP(P120,Tabella_prezzi!A55:D73,4,FALSE))","v":""},{"$f":"IF(F120=\"\",\"\",J120*I120)","v":""},null,null,null,"18219200-18219187","L4N113","TS4L4-2CPU-vSAN-1TB",{"$f":"COUNTIF(TS4L4_1,P120)*R94","v":0},{"$f":"COUNTIF(TS4L4_2,P120)*S94","v":0},{"$f":"COUNTIF(TS4L4_3,P120)*T94","v":0},{"$f":"SUM(R120:T120)","v":0},null,null,null,"NO"]
[null,null,null,null,null,{"$f":"IF(I121=\"\",\"\",VLOOKUP(P121,Tabella_prezzi!$A$1:$K$142,10,FALSE))","v":""},{"$f":"IF(I121=\"\",\"\",VLOOKUP(P121,Tabella_prezzi!$A$1:$K$142,6,FALSE))","v":""},{"$f":"IF(I121=\"\",\"\",VLOOKUP(P121,Tabella_prezzi!$A$1:$K$142,8,FALSE))","v":""},"",{"$f":"IF(I121=\"\",\"\",VLOOKUP(P121,Tabella_prezzi!A56:D73,4,FALSE))","v":""},"",null,null,null,18221537,"L4N114","TS4L4-2CPU-vSAN-2TB",{"$f":"COUNTIF(TS4L4_1,P121)*$R$94","v":0},{"$f":"COUNTIF(TS4L4_2,P121)*S94","v":0},{"$f":"COUNTIF(TS4L4_3,P121)*$T$94","v":0},0,null,null,null,"NO"]
[null,null,null,null,null,{"$f":"IF(I122=\"\",\"\",VLOOKUP(P122,Tabella_prezzi!$A$1:$K$142,10,FALSE))","v":""},{"$f":"IF(I122=\"\",\"\",VLOOKUP(P122,Tabella_prezzi!$A$1:$K$142,6,FALSE))","v":""},{"$f":"IF(I122=\"\",\"\",VLOOKUP(P122,Tabella_prezzi!$A$1:$K$142,8,FALSE))","v":""},"",{"$f":"IF(I122=\"\",\"\",VLOOKUP(P122,Tabella_prezzi!A57:D73,4,FALSE))","v":""},"",null,null,null,18219226,"L4N115","TS4L4-2CPU-NUT",{"$f":"COUNTIF(TS4L4_1,P122)*R94","v":0},{"$f":"COUNTIF(TS4L4_2,P122)*S94","v":0},{"$f":"COUNTIF(TS4L4_3,P122)*T94","v":0},0,null,null,null,"NO"]
[null,null,null,null,null,{"$f":"IF(I123=\"\",\"\",VLOOKUP(P123,Tabella_prezzi!$A$1:$K$142,10,FALSE))","v":""},{"$f":"IF(I123=\"\",\"\",VLOOKUP(P123,Tabella_Prezzi,6,FALSE))","v":""},{"$f":"IF(I123=\"\",\"\",VLOOKUP(P123,Tabella_prezzi!$A$1:$K$142,8,FALSE))","v":""},"",{"$f":"IF(I123=\"\",\"\",VLOOKUP(P123,Tabella_prezzi!A71:D94,4,FALSE))","v":""},"",null,null,null,0,"L4N116","TS4L4-RACK-D",null,null,null,{"$f":"'Altre Opzioni'!L7","v":0},null,null,null,"NO"]
[null,null,null,null,null,{"$f":"IF(I124=\"\",\"\",VLOOKUP(P124,Tabella_prezzi!$A$1:$K$142,10,FALSE))","v":""},"",{"$f":"IF(I124=\"\",\"\",VLOOKUP(P124,Tabella_prezzi!$A$1:$K$142,8,FALSE))","v":""},"",{"$f":"IF(I124=\"\",\"\",VLOOKUP(P124,Tabella_prezzi!A72:D94,4,FALSE))","v":""},"",null,null,null,0,"L4N117","TS4L4-PDU-M",null,null,null,{"$f":"'Altre Opzioni'!L10","v":0},null,null,null,"NO"]
[null,null,null,null,null,{"$f":"IF(I125=\"\",\"\",VLOOKUP(P125,Tabella_prezzi!$A$1:$K$142,10,FALSE))","v":""},"",{"$f":"IF(I125=\"\",\"\",VLOOKUP(P125,Tabella_prezzi!$A$1:$K$142,8,FALSE))","v":""},{"$f":"IF(U125>0,U125,\"\")","v":""},{"$f":"IF(I125=\"\",\"\",VLOOKUP(P125,Tabella_prezzi!A69:D94,4,FALSE))","v":""},{"$f":"IF(F125=\"\",\"\",J125*I125)","v":""},null,null,null,0,"L4N118","TS4L4-PDU-T",null,null,null,{"$f":"'Altre Opzioni'!L13","v":0},null,null,null,{"$f":"IF($I125<>\"\",\"SI\",\"NO\")","v":"NO"}]
[null,null,null,null,null,{"$f":"IF(I126=\"\",\"\",VLOOKUP(P126,Tabella_prezzi!$A$1:$K$142,10,FALSE))","v":""},"",{"$f":"IF(I126=\"\",\"\",VLOOKUP(P126,Tabella_prezzi!$A$1:$K$142,8,FALSE))","v":""},{"$f":"IF(U126>0,U126,\"\")","v":""},{"$f":"IF(I126=\"\",\"\",VLOOKUP(P126,Tabella_prezzi!A73:D94,4,FALSE))","v":""},{"$f":"IF(F126=\"\",\"\",J126*I126)","v":""},null,null,null,0,"L4N119","TS4L4-KVM-D",null,null,null,{"$f":"'Altre Opzioni'!L16","v":0},null,null,null,"NO"]
[null,null,null,null,null,{"$f":"IF(I127=\"\",\"\",VLOOKUP(P127,Tabella_prezzi!$A$1:$K$142,10,FALSE))","v":""},"",{"$f":"IF(I127=\"\",\"\",VLOOKUP(P127,Tabella_prezzi!$A$1:$K$142,8,FALSE))","v":""},"",{"$f":"IF(I127=\"\",\"\",VLOOKUP(P127,Tabella_prezzi!A74:D94,4,FALSE))","v":""},"",null,null,null,0,"L4N120","TS4L4-ROCK",{"$f":"IF($R$13>0,COUNTIF(TS4L4_1,P127)*$R$94,0)","v":0},{"$f":"IF($S$13>0,COUNTIF(TS4L4_2,P127)*$S$13,0)","v":0},{"$f":"IF($T$13>0,COUNTIF(TS4L4_3,P127)*$T$94,0)","v":0},{"$f":"SUM(R127:T127)","v":0},null,null,null,"NO"]
[null,null,null,null,null,{"$f":"IF(I128=\"\",\"\",VLOOKUP(P128,Tabella_prezzi!$A$1:$K$142,10,FALSE))","v":""},"",{"$f":"IF(I128=\"\",\"\",VLOOKUP(P128,Tabella_prezzi!$A$1:$K$142,8,FALSE))","v":""},"",{"$f":"IF(I128=\"\",\"\",VLOOKUP(P128,Tabella_prezzi!A75:D94,4,FALSE))","v":""},"",null,null,null,0,"L4N121","TS4L4-CMA",null,null,null,{"$f":"'Altre Opzioni'!L19","v":0},null,null,null,"NO"]
[null,null,null,null,null,{"$f":"IF(I129=\"\",\"\",VLOOKUP(P129,Tabella_prezzi!$A$1:$K$142,10,FALSE))","v":""},"",{"$f":"IF(I129=\"\",\"\",VLOOKUP(P129,Tabella_prezzi!$A$1:$K$142,8,FALSE))","v":""},{"$f":"IF(U129>0,U129,\"\")","v":""},{"$f":"IF(I129=\"\",\"\",VLOOKUP(P129,Tabella_prezzi!A61:D83,4,FALSE))","v":""},{"$f":"IF(F129=\"\",\"\",J129*I129)","v":""},null,null,null,{"$f":"VLOOKUP(P129,Tabella_Prezzi,11,FALSE)","v":0},"L4N122","TS4L4-JBOD",{"$f":"IF($R$13>0,COUNTIF(TS4L4_1,P129)*V129*$R$94,0)","v":0},{"$f":"IF($S$13>0,COUNTIF(TS4L4_2,P129)*W129*$S$94,0)","v":0},{"$f":"IF($T$13>0,COUNTIF(TS4L4_3,P129)*X129*$T$94,0)","v":0},{"$f":"SUM(R129:T129)","v":0},{"$f":"Lotto4_R7525_1!N127","v":0},{"$f":"Lotto4_R7525_2!N127","v":0},{"$f":"Lotto4_R7525_3!N127","v":0},{"$f":"IF($I129<>\"\",\"SI\",\"NO\")","v":"NO"}]
[null,null,null,null,null,{"$f":"IF(I130=\"\",\"\",VLOOKUP(P130,Tabella_prezzi!$A$1:$K$142,10,FALSE))","v":""},"",{"$f":"IF(I130=\"\",\"\",VLOOKUP(P130,Tabella_prezzi!$A$1:$K$142,8,FALSE))","v":""},{"$f":"IF(U130>0,U130,\"\")","v":""},{"$f":"IF(I130=\"\",\"\",VLOOKUP(P130,Tabella_prezzi!A65:D83,4,FALSE))","v":""},{"$f":"IF(F130=\"\",\"\",J130*I130)","v":""},null,null,null,0,"L4N123","TS4L4-12TBNLSAS",{"$f":"IF($R$13>0,COUNTIF(TS4L4_1,P130)*V130*$R$94,0)","v":0},{"$f":"IF($S$13>0,COUNTIF(TS4L4_2,P130)*W130*$S$94,0)","v":0},{"$f":"IF($T$13>0,COUNTIF(TS4L4_3,P130)*X130*$T$94,0)","v":0},{"$f":"SUM(R130:T130)","v":0},{"$f":"Lotto4_R7525_1!$N$130","v":0},{"$f":"Lotto4_R7525_2!N130","v":0},{"$f":"Lotto4_R7525_3!N130","v":0},"NO"]
[null,null,null,null,null,{"$f":"IF(I131=\"\",\"\",VLOOKUP(P131,Tabella_prezzi!$A$1:$K$142,10,FALSE))","v":""},"",{"$f":"IF(I131=\"\",\"\",VLOOKUP(P131,Tabella_prezzi!$A$1:$K$142,8,FALSE))","v":""},"",{"$f":"IF(I131=\"\",\"\",VLOOKUP(P131,Tabella_prezzi!A66:D83,4,FALSE))","v":""},"",null,null,null,0,"L4N124","TS4L4-16TBSAS",{"$f":"IF($R$13>0,COUNTIF(TS4L4_1,P131)*V131*$R$94,0)","v":0},{"$f":"IF($S$13>0,COUNTIF(TS4L4_2,P131)*W131*$S$94,0)","v":0},{"$f":"IF($T$13>0,COUNTIF(TS4L4_3,P131)*X131*$T$94,0)","v":0},0,{"$f":"Lotto4_R7525_1!N133","v":0},{"$f":"Lotto4_R7525_2!N133","v":0},{"$f":"Lotto4_R7525_3!N133","v":0},"NO"]
[null,null,null,null,null,{"$f":"IF(I132=\"\",\"\",VLOOKUP(P132,Tabella_prezzi!$A$1:$K$142,10,FALSE))","v":""},"",{"$f":"IF(I132=\"\",\"\",VLOOKUP(P132,Tabella_prezzi!$A$1:$K$142,8,FALSE))","v":""},"",{"$f":"IF(I132=\"\",\"\",VLOOKUP(P132,Tabella_prezzi!A67:D83,4,FALSE))","v":""},"",null,null,null,0,"L4N125","TS4L4-20TBSAS",{"$f":"IF($R$13>0,COUNTIF(TS4L4_1,P132)*V132*$R$94,0)","v":0},{"$f":"IF($S$13>0,COUNTIF(TS4L4_2,P132)*W132*$S$94,0)","v":0},{"$f":"IF($T$13>0,COUNTIF(TS4L4_3,P132)*X132*$T$94,0)","v":0},0,{"$f":"Lotto4_R7525_1!N136","v":0},{"$f":"Lotto4_R7525_2!N136","v":0},{"$f":"Lotto4_R7525_3!N136","v":0},"NO"]
[null,null,null,null,null,{"$f":"IF(I133=\"\",\"\",VLOOKUP(P133,Tabella_prezzi!$A$1:$K$142,10,FALSE))","v":""},{"$f":"IF(I133=\"\",\"\",VLOOKUP(P133,Tabella_Prezzi,6,FALSE))","v":""},{"$f":"IF(I133=\"\",\"\",VLOOKUP(P133,Tabella_prezzi!$A$1:$K$142,8,FALSE))","v":""},{"$f":"IF(U133>0,U133,\"\")","v":""},{"$f":"IF(I133=\"\",\"\",VLOOKUP(P133,Tabella_prezzi!A68:D84,4,FALSE))","v":""},{"$f":"IF(F133=\"\",\"\",J133*I133)","v":""},null,null,null,{"$f":"VLOOKUP(P133,Tabella_Prezzi,11,FALSE)","v":0},"L4N126","TS4L4-2CPU-GPUReady",{"$f":"COUNTIF(TS4L4_1,P133)*$R$94","v":0},{"$f":"COUNTIF(TS4L4_2,P133)*$S$94","v":0},{"$f":"COUNTIF(TS4L4_3,P133)*$T$94","v":0},{"$f":"SUM(R133:T133)","v":0},null,null,null,"NO"]
[null,null,null,null,null,{"$f":"IF(I134=\"\",\"\",VLOOKUP(P134,Tabella_prezzi!$A$1:$K$142,10,FALSE))","v":""},{"$f":"IF(I134=\"\",\"\",VLOOKUP(P134,Tabella_Prezzi,6,FALSE))","v":""},{"$f":"IF(I134=\"\",\"\",VLOOKUP(P134,Tabella_prezzi!$A$1:$K$142,8,FALSE))","v":""},{"$f":"IF(U134>0,U134,\"\")","v":""},{"$f":"IF(I134=\"\",\"\",VLOOKUP(P134,Tabella_prezzi!A69:D85,4,FALSE))","v":""},{"$f":"IF(F134=\"\",\"\",J134*I134)","v":""},null,null,null,{"$f":"VLOOKUP(P134,Tabella_Prezzi,11,FALSE)","v":0},"L4N127","TS4L4-GPU-A30",{"$f":"COUNTIF(TS4L4_1,P134)*$R$94","v":0},{"$f":"COUNTIF(TS4L4_2,P134)*$S$94","v":0},{"$f":"COUNTIF(TS4L4_3,P134)*$T$94","v":0},{"$f":"SUM(R134:T134)","v":0},null,null,null,"NO"]
[null,null,null,null,null,{"$f":"IF(I135=\"\",\"\",VLOOKUP(P135,Tabella_prezzi!$A$1:$K$142,10,FALSE))","v":""},{"$f":"IF(I135=\"\",\"\",VLOOKUP(P135,Tabella_Prezzi,6,FALSE))","v":""},{"$f":"IF(I135=\"\",\"\",VLOOKUP(P135,Tabella_prezzi!$A$1:$K$142,8,FALSE))","v":""},{"$f":"IF(U135>0,U135,\"\")","v":""},{"$f":"IF(I135=\"\",\"\",VLOOKUP(P135,Tabella_prezzi!A70:D86,4,FALSE))","v":""},{"$f":"IF(F135=\"\",\"\",J135*I135)","v":""},null,null,null,{"$f":"VLOOKUP(P135,Tabella_Prezzi,11,FALSE)","v":0},"L4N128","TS4L4-GPU-A40",{"$f":"COUNTIF(TS4L4_1,P135)*$R$94","v":0},{"$f":"COUNTIF(TS4L4_2,P135)*$S$94","v":0},{"$f":"COUNTIF(TS4L4_3,P135)*$T$94","v":0},{"$f":"SUM(R135:T135)","v":0},null,null,null,"NO"]
[null,null,null,null,null,null,null,null,null,null,null,null,null,null,null,null,null,null,null,null,null,null,null,null,{"$f":"IF($K$141>0,\"SI\",\"NO\")","v":"NO"}]
[]
[]
[null,null,null,null,null,null,null,null,null,null,null,null,null,null,null,null,null,null,null,null,null,null,null,null,"SI"]
[null,null,null,null,null,null,null,null,"Totale Convenzione",null,{"$f":"SUM(K14:K90)","v":0},null,null,null,null,null,null,null,null,null,null,null,null,null,"SI"]
[null,null,null,null,null,"Quota Massima 20%",{"$f":"K143*20%","v":0},null,"Totale 20%",null,{"$f":"SUM(K95:K135)","v":0},null,null,null,null,null,null,null,null,null,null,null,null,null,"SI"]
[null,null,null,null,null,"Quota Residua 20%",{"$f":"G141-K141","v":0},null,"Totale Iva Esclusa",null,{"$f":"K140+K141","v":0},null,null,null,null,null,null,null,null,null,null,null,null,null,"SI"]
[null,null,null,null,null,null,null,null,"Totale Ordine",null,{"$f":"K142+(K142*22%)","v":0},null,null,null,null,null,null,null,null,null,null,null,null,null,"SI"]
[null,null,null,null,null,null,null,null,null,null,null,null,null,null,null,null,null,null,null,null,null,null,null,null,"SI"]

{"sheet":"Config","index":6,"n_rows":154,"n_cols":18,"rows_kept":154,"cut":false,"hidden":true,"merged":[[1,3,1,10],[3,3,3,4],[4,3,4,4],[6,3,6,4],[5,3,5,4],[7,9,7,10],[10,9,10,10],[5,6,5,7],[6,6,6,7],[10,3,10,4],[9,3,9,4],[7,3,7,4],[8,3,8,4],[7,6,7,7],[8,6,8,7],[9,6,9,7],[10,6,10,7],[8,9,8,10]]}
[]
[null,null,null,"Informazioni di Servizio per processamento Ordine",null,null,null,null,null,null,null,null,null,null,null,null,null,"SI"]
[null,null,null,null,null,null,null,null,null,null,null,null,null,null,null,null,null,"SI"]
[null,null,null,{"$f":"Riepilogo_Ordine!F3","v":"Riepilogo Ordine Consip N° (*)"},null,null,null,null,null,null,null,null,null,null,null,null,null,"SI"]
[null,null,null,{"$f":"Riepilogo_Ordine!F4","v":0},null,null,null,null,null,null,null,null,null,null,null,null,null,"SI"]
[null,null,null,{"$f":"Riepilogo_Ordine!F5","v":"Ente Ordinante (*)"},null,null,{"$f":"Riepilogo_Ordine!I5","v":"Data Ordine  (*)"},null,null,null,null,null,null,null,null,null,null,"SI"]
[null,null,null,{"$f":"Riepilogo_Ordine!F6","v":0},null,null,{"$f":"Riepilogo_Ordine!I6","v":"00:00:00"},null,null,null,null,null,null,null,null,null,null,"SI"]
[null,null,null,{"$f":"Riepilogo_Ordine!F7","v":"Referente Consegna  (*)"},null,null,{"$f":"Riepilogo_Ordine!H7","v":"Mail  (*)"},null,null,{"$f":"Riepilogo_Ordine!J7","v":"Tel  (*)"},null,null,null,null,null,null,null,"SI"]
[null,null,null,{"$f":"Riepilogo_Ordine!F8","v":0},null,null,{"$f":"Riepilogo_Ordine!I8","v":0},null,null,{"$f":"Riepilogo_Ordine!K8","v":0},null,null,null,null,null,null,null,"SI"]
[null,null,null,{"$f":"Riepilogo_Ordine!F9","v":"Referente Installazione  (*)"},null,null,{"$f":"Riepilogo_Ordine!H9","v":"Mail  (*)"},null,null,{"$f":"Riepilogo_Ordine!J9","v":"Tel  (*)"},null,null,null,null,null,null,null,"SI"]
[null,null,null,{"$f":"Riepilogo_Ordine!F10","v":0},null,null,{"$f":"Riepilogo_Ordine!I10","v":0},null,null,{"$f":"Riepilogo_Ordine!K10","v":0},null,null,null,null,null,null,null,"SI"]
[null,null,null,null,null,null,null,null,null,null,null,null,null,null,null,null,null,"SI"]
[null,null,null,null,null,null,null,null,null,null,null,null,null,null,null,null,null,"SI"]
[]
[]
[]
[null,null,null,{"$f":"Lotto4_R7525_1!N8","v":0},"Configurazione 1",null,{"$f":"#REF!","v":{"$error":"#REF!"}},"Configurazione 2",null,{"$f":"#REF!","v":{"$error":"#REF!"}},"Configurazione 3",null,null,null,null,null,null,"SI"]
[null,null,null,null,null,null,null,null,null,null,null,null,null,"conf1","conf2","conf3","tot"]
[null,null,{"$f":"IF(D19<>\"\",1,0)","v":0},{"$f":"IF(Riepilogo_Ordine!R14>0,Riepilogo_Ordine!R14,\"\")","v":""},{"$f":"IF(E71<>\"\",\"\",IF(D19=\"\",\"\",CONCATENATE(Riepilogo_Ordine!Q14)))","v":""},{"$f":"IF(G19<>\"\",1,0)","v":0},{"$f":"IF(Riepilogo_Ordine!S14>0,Riepilogo_Ordine!S14,\"\")","v":""},{"$f":"IF(H71<>\"\",\"\",IF(G19=\"\",\"\",CONCATENATE(Riepilogo_Ordine!Q14)))","v":""},{"$f":"IF(J19<>\"\",1,0)","v":0},{"$f":"IF(Riepilogo_Ordine!T14>0,Riepilogo_Ordine!T14,\"\")","v":""},{"$f":"IF(K71<>\"\",\"\",IF(J19=\"\",\"\",CONCATENATE(Riepilogo_Ordine!Q14)))","v":""},null,null,{"$f":"IF(D19=\"\",0,D19)","v":0},{"$f":"IF(G19=\"\",0,G19)","v":0},{"$f":"IF(J19=\"\",0,J19)","v":0},{"$f":"SUM(N19:P19)","v":0},{"$f":"IF(Q19>0,\"SI\",\"NO\")","v":"NO"}]
[null,null,{"$f":"IF(D20<>\"\",1,0)","v":0},{"$f":"IF(SUM(D66:D69)>0,\"\",IF(D21<>\"\",\"\",IF(Riepilogo_Ordine!R16>0,Riepilogo_Ordine!R16,\"\")))","v":""},{"$f":"IF(E71<>\"\",\"\",IF(E21<>\"\",\"\",IF(D20=\"\",\"\",CONCATENATE(Riepilogo_Ordine!Q16))))","v":""},{"$f":"IF(G20<>\"\",1,0)","v":0},{"$f":"IF(SUM(G66:G69)>0,\"\",IF(G21<>\"\",\"\",IF(Riepilogo_Ordine!S16>0,Riepilogo_Ordine!S16,\"\")))","v":""},{"$f":"IF(H71<>\"\",\"\",IF(H21<>\"\",\"\",IF(G20=\"\",\"\",CONCATENATE(Riepilogo_Ordine!Q16))))","v":""},{"$f":"IF(J20<>\"\",1,0)","v":0},{"$f":"IF(SUM(J66:J69)>0,\"\",IF(J21<>\"\",\"\",IF(Riepilogo_Ordine!T16>0,Riepilogo_Ordine!T16,\"\")))","v":""},{"$f":"IF(K71<>\"\",\"\",IF(K21<>\"\",\"\",IF(J20=\"\",\"\",CONCATENATE(Riepilogo_Ordine!Q16))))","v":""},null,null,{"$f":"IF(D20=\"\",0,D20)","v":0},{"$f":"IF(G20=\"\",0,G20)","v":0},{"$f":"IF(J20=\"\",0,J20)","v":0},{"$f":"SUM(N20:P20)","v":0},{"$f":"IF(Q20>0,\"SI\",\"NO\")","v":"NO"}]
[null,null,null,{"$f":"IF(SUM(D66:D69)>0,\"\",IF(Riepilogo_Ordine!R53>0,Riepilogo_Ordine!R53,\"\"))","v":""},{"$f":"IF(D21=\"\",\"\",CONCATENATE(Riepilogo_Ordine!Q53))","v":""},null,{"$f":"IF(SUM(G66:G69)>0,\"\",IF(Riepilogo_Ordine!S53>0,Riepilogo_Ordine!S53,\"\"))","v":""},{"$f":"IF(G21=\"\",\"\",CONCATENATE(Riepilogo_Ordine!Q53))","v":""},null,{"$f":"IF(SUM(J66:J69)>0,\"\",IF(Riepilogo_Ordine!T53>0,Riepilogo_Ordine!T53,\"\"))","v":""},{"$f":"IF(J21=\"\",\"\",CONCATENATE(Riepilogo_Ordine!Q53))","v":""},null,null,0,0,0,0,"NO"]
[null,null,null,{"$f":"IF(SUM(D66:D69)>0,\"\",IF(Riepilogo_Ordine!R17>0,Riepilogo_Ordine!R17,\"\"))","v":""},{"$f":"IF(D22=\"\",\"\",CONCATENATE(Riepilogo_Ordine!Q17))","v":""},null,{"$f":"IF(SUM(G66:G69)>0,\"\",IF(Riepilogo_Ordine!S17>0,Riepilogo_Ordine!S17,\"\"))","v":""},{"$f":"IF(G22=\"\",\"\",CONCATENATE(Riepilogo_Ordine!Q17))","v":""},null,{"$f":"IF(SUM(J66:J69)>0,\"\",IF(Riepilogo_Ordine!T17>0,Riepilogo_Ordine!T17,\"\"))","v":""},{"$f":"IF(J22=\"\",\"\",CONCATENATE(Riepilogo_Ordine!Q17))","v":""},null,null,0,0,0,0,"NO"]
[null,null,null,{"$f":"IF(SUM(D66:D69)>0,\"\",IF(Riepilogo_Ordine!R18>0,Riepilogo_Ordine!R18,\"\"))","v":""},{"$f":"IF(D23=\"\",\"\",CONCATENATE(Riepilogo_Ordine!Q18))","v":""},null,{"$f":"IF(SUM(G66:G69)>0,\"\",IF(Riepilogo_Ordine!S18>0,Riepilogo_Ordine!S18,\"\"))","v":""},{"$f":"IF(G23=\"\",\"\",CONCATENATE(Riepilogo_Ordine!Q18))","v":""},null,{"$f":"IF(SUM(J66:J69)>0,\"\",IF(Riepilogo_Ordine!T18>0,Riepilogo_Ordine!T18,\"\"))","v":""},{"$f":"IF(J23=\"\",\"\",CONCATENATE(Riepilogo_Ordine!Q18))","v":""},null,null,0,0,0,0,"NO"]
[null,null,null,{"$f":"IF(Riepilogo_Ordine!R19>0,Riepilogo_Ordine!R19,\"\")","v":""},{"$f":"IF(D24=\"\",\"\",CONCATENATE(Riepilogo_Ordine!Q19))","v":""},null,{"$f":"IF(Riepilogo_Ordine!S19>0,Riepilogo_Ordine!S19,\"\")","v":""},{"$f":"IF(G24=\"\",\"\",CONCATENATE(Riepilogo_Ordine!Q19))","v":""},null,{"$f":"IF(Riepilogo_Ordine!T19>0,Riepilogo_Ordine!T19,\"\")","v":""},{"$f":"IF(J24=\"\",\"\",CONCATENATE(Riepilogo_Ordine!Q19))","v":""},null,null,0,0,0,0,"NO"]
[null,null,null,{"$f":"IF(Riepilogo_Ordine!R20>0,Riepilogo_Ordine!R20,\"\")","v":""},{"$f":"IF(D25=\"\",\"\",CONCATENATE(Riepilogo_Ordine!Q20))","v":""},null,{"$f":"IF(Riepilogo_Ordine!S20>0,Riepilogo_Ordine!S20,\"\")","v":""},{"$f":"IF(G25=\"\",\"\",CONCATENATE(Riepilogo_Ordine!Q20))","v":""},null,{"$f":"IF(Riepilogo_Ordine!T20>0,Riepilogo_Ordine!T20,\"\")","v":""},{"$f":"IF(J25=\"\",\"\",CONCATENATE(Riepilogo_Ordine!Q20))","v":""},null,null,0,0,0,0,"NO"]
[null,null,null,{"$f":"IF(Riepilogo_Ordine!R21>0,Riepilogo_Ordine!R21,\"\")","v":""},{"$f":"IF(D26=\"\",\"\",CONCATENATE(Riepilogo_Ordine!Q21))","v":""},null,{"$f":"IF(Riepilogo_Ordine!S21>0,Riepilogo_Ordine!S21,\"\")","v":""},{"$f":"IF(G26=\"\",\"\",CONCATENATE(Riepilogo_Ordine!Q21))","v":""},null,{"$f":"IF(Riepilogo_Ordine!T21>0,Riepilogo_Ordine!T21,\"\")","v":""},{"$f":"IF(J26=\"\",\"\",CONCATENATE(Riepilogo_Ordine!Q21))","v":""},null,null,0,0,0,0,"NO"]
[null,null,null,{"$f":"IF(Riepilogo_Ordine!R22>0,Riepilogo_Ordine!R22,\"\")","v":""},{"$f":"IF(D27=\"\",\"\",CONCATENATE(Riepilogo_Ordine!Q22))","v":""},null,{"$f":"IF(Riepilogo_Ordine!S22>0,Riepilogo_Ordine!S22,\"\")","v":""},{"$f":"IF(G27=\"\",\"\",CONCATENATE(Riepilogo_Ordine!Q22))","v":""},null,{"$f":"IF(Riepilogo_Ordine!T22>0,Riepilogo_Ordine!T22,\"\")","v":""},{"$f":"IF(J27=\"\",\"\",CONCATENATE(Riepilogo_Ordine!Q22))","v":""},null,null,0,0,0,0,"NO"]
[null,null,null,{"$f":"IF(Riepilogo_Ordine!R23>0,Riepilogo_Ordine!R23,\"\")","v":""},{"$f":"IF(D28=\"\",\"\",CONCATENATE(Riepilogo_Ordine!Q23))","v":""},null,{"$f":"IF(Riepilogo_Ordine!S23>0,Riepilogo_Ordine!S23,\"\")","v":""},{"$f":"IF(G28=\"\",\"\",CONCATENATE(Riepilogo_Ordine!Q23))","v":""},null,{"$f":"IF(Riepilogo_Ordine!T23>0,Riepilogo_Ordine!T23,\"\")","v":""},{"$f":"IF(J28=\"\",\"\",CONCATENATE(Riepilogo_Ordine!Q23))","v":""},null,null,0,0,0,0,"NO"]
[null,null,null,{"$f":"IF(Riepilogo_Ordine!R24>0,Riepilogo_Ordine!R24,\"\")","v":""},{"$f":"IF(D29=\"\",\"\",CONCATENATE(Riepilogo_Ordine!Q24))","v":""},null,{"$f":"IF(Riepilogo_Ordine!S24>0,Riepilogo_Ordine!S24,\"\")","v":""},{"$f":"IF(G29=\"\",\"\",CONCATENATE(Riepilogo_Ordine!Q24))","v":""},null,{"$f":"IF(Riepilogo_Ordine!T24>0,Riepilogo_Ordine!T24,\"\")","v":""},{"$f":"IF(J29=\"\",\"\",CONCATENATE(Riepilogo_Ordine!Q24))","v":""},null,null,0,0,0,0,"NO"]
[null,null,null,{"$f":"IF(Riepilogo_Ordine!R25>0,Riepilogo_Ordine!R25,\"\")","v":""},{"$f":"IF(D30=\"\",\"\",CONCATENATE(Riepilogo_Ordine!Q25))","v":""},null,{"$f":"IF(Riepilogo_Ordine!S25>0,Riepilogo_Ordine!S25,\"\")","v":""},{"$f":"IF(G30=\"\",\"\",CONCATENATE(Riepilogo_Ordine!Q25))","v":""},null,{"$f":"IF(Riepilogo_Ordine!T25>0,Riepilogo_Ordine!T25,\"\")","v":""},{"$f":"IF(J30=\"\",\"\",CONCATENATE(Riepilogo_Ordine!Q25))","v":""},null,null,0,0,0,0,"NO"]
[null,null,null,{"$f":"IF(Riepilogo_Ordine!R26>0,Riepilogo_Ordine!R26,\"\")","v":""},{"$f":"IF(D31=\"\",\"\",CONCATENATE(Riepilogo_Ordine!Q26))","v":""},null,{"$f":"IF(Riepilogo_Ordine!S26>0,Riepilogo_Ordine!S26,\"\")","v":""},{"$f":"IF(G31=\"\",\"\",CONCATENATE(Riepilogo_Ordine!Q26))","v":""},null,{"$f":"IF(Riepilogo_Ordine!T26>0,Riepilogo_Ordine!T26,\"\")","v":""},{"$f":"IF(J31=\"\",\"\",CONCATENATE(Riepilogo_Ordine!Q26))","v":""},null,null,0,0,0,0,"NO"]
[null,null,null,{"$f":"IF(Riepilogo_Ordine!R27>0,Riepilogo_Ordine!R27,\"\")","v":""},{"$f":"IF(D32=\"\",\"\",CONCATENATE(Riepilogo_Ordine!Q27))","v":""},null,{"$f":"IF(Riepilogo_Ordine!S27>0,Riepilogo_Ordine!S27,\"\")","v":""},{"$f":"IF(G32=\"\",\"\",CONCATENATE(Riepilogo_Ordine!Q27))","v":""},null,{"$f":"IF(Riepilogo_Ordine!T27>0,Riepilogo_Ordine!T27,\"\")","v":""},{"$f":"IF(J32=\"\",\"\",CONCATENATE(Riepilogo_Ordine!Q27))","v":""},null,null,0,0,0,0,"NO"]
[null,null,null,{"$f":"IF(Riepilogo_Ordine!R28>0,Riepilogo_Ordine!R28,\"\")","v":""},{"$f":"IF(D33=\"\",\"\",CONCATENATE(Riepilogo_Ordine!Q28))","v":""},null,{"$f":"IF(Riepilogo_Ordine!S28>0,Riepilogo_Ordine!S28,\"\")","v":""},{"$f":"IF(G33=\"\",\"\",CONCATENATE(Riepilogo_Ordine!Q28))","v":""},null,{"$f":"IF(Riepilogo_Ordine!T28>0,Riepilogo_Ordine!T28,\"\")","v":""},{"$f":"IF(J33=\"\",\"\",CONCATENATE(Riepilogo_Ordine!Q28))","v":""},null,null,0,0,0,0,"NO"]
[null,null,null,{"$f":"IF(Riepilogo_Ordine!R29>0,Riepilogo_Ordine!R29,\"\")","v":""},{"$f":"IF(D34=\"\",\"\",CONCATENATE(Riepilogo_Ordine!Q29))","v":""},null,{"$f":"IF(Riepilogo_Ordine!S29>0,Riepilogo_Ordine!S29,\"\")","v":""},{"$f":"IF(G34=\"\",\"\",CONCATENATE(Riepilogo_Ordine!Q29))","v":""},null,{"$f":"IF(Riepilogo_Ordine!T29>0,Riepilogo_Ordine!T29,\"\")","v":""},{"$f":"IF(J34=\"\",\"\",CONCATENATE(Riepilogo_Ordine!Q29))","v":""},null,null,0,0,0,0,"NO"]
[null,null,null,{"$f":"IF(Riepilogo_Ordine!R30>0,Riepilogo_Ordine!R30,\"\")","v":""},{"$f":"IF(D35=\"\",\"\",CONCATENATE(Riepilogo_Ordine!Q30))","v":""},null,{"$f":"IF(Riepilogo_Ordine!S30>0,Riepilogo_Ordine!S30,\"\")","v":""},{"$f":"IF(G35=\"\",\"\",CONCATENATE(Riepilogo_Ordine!Q30))","v":""},null,{"$f":"IF(Riepilogo_Ordine!T30>0,Riepilogo_Ordine!T30,\"\")","v":""},{"$f":"IF(J35=\"\",\"\",CONCATENATE(Riepilogo_Ordine!Q30))","v":""},null,null,0,0,0,0,"NO"]
[null,null,null,{"$f":"IF(Riepilogo_Ordine!R31>0,Riepilogo_Ordine!R31,\"\")","v":""},{"$f":"IF(D36=\"\",\"\",CONCATENATE(Riepilogo_Ordine!Q31))","v":""},null,{"$f":"IF(Riepilogo_Ordine!S31>0,Riepilogo_Ordine!S31,\"\")","v":""},{"$f":"IF(G36=\"\",\"\",CONCATENATE(Riepilogo_Ordine!Q31))","v":""},null,{"$f":"IF(Riepilogo_Ordine!T31>0,Riepilogo_Ordine!T31,\"\")","v":""},{"$f":"IF(J36=\"\",\"\",CONCATENATE(Riepilogo_Ordine!Q31))","v":""},null,null,0,0,0,0,"NO"]
[null,null,null,{"$f":"IF(Riepilogo_Ordine!R32>0,Riepilogo_Ordine!R32,\"\")","v":""},{"$f":"IF(D37=\"\",\"\",CONCATENATE(Riepilogo_Ordine!Q32))","v":""},null,{"$f":"IF(Riepilogo_Ordine!S32>0,Riepilogo_Ordine!S32,\"\")","v":""},{"$f":"IF(G37=\"\",\"\",CONCATENATE(Riepilogo_Ordine!Q32))","v":""},null,{"$f":"IF(Riepilogo_Ordine!T32>0,Riepilogo_Ordine!T32,\"\")","v":""},{"$f":"IF(J37=\"\",\"\",CONCATENATE(Riepilogo_Ordine!Q32))","v":""},null,null,0,0,0,0,"NO"]
[null,null,null,{"$f":"IF(Riepilogo_Ordine!R33>0,Riepilogo_Ordine!R33,\"\")","v":""},{"$f":"IF(D38=\"\",\"\",CONCATENATE(Riepilogo_Ordine!Q33))","v":""},null,{"$f":"IF(Riepilogo_Ordine!S33>0,Riepilogo_Ordine!S33,\"\")","v":""},{"$f":"IF(G38=\"\",\"\",CONCATENATE(Riepilogo_Ordine!Q33))","v":""},null,{"$f":"IF(Riepilogo_Ordine!T33>0,Riepilogo_Ordine!T33,\"\")","v":""},{"$f":"IF(J38=\"\",\"\",CONCATENATE(Riepilogo_Ordine!Q33))","v":""},null,null,0,0,0,0,"NO"]
[null,null,null,{"$f":"IF(Riepilogo_Ordine!R34>0,Riepilogo_Ordine!R34,\"\")","v":""},{"$f":"IF(D39=\"\",\"\",CONCATENATE(Riepilogo_Ordine!Q34))","v":""},null,{"$f":"IF(Riepilogo_Ordine!S34>0,Riepilogo_Ordine!S34,\"\")","v":""},{"$f":"IF(G39=\"\",\"\",CONCATENATE(Riepilogo_Ordine!Q34))","v":""},null,{"$f":"IF(Riepilogo_Ordine!T34>0,Riepilogo_Ordine!T34,\"\")","v":""},{"$f":"IF(J39=\"\",\"\",CONCATENATE(Riepilogo_Ordine!Q34))","v":""},null,null,0,0,0,0,"NO"]
[null,null,null,{"$f":"IF(Riepilogo_Ordine!R35>0,Riepilogo_Ordine!R35,\"\")","v":""},{"$f":"IF(D40=\"\",\"\",CONCATENATE(Riepilogo_Ordine!Q35))","v":""},null,{"$f":"IF(Riepilogo_Ordine!S35>0,Riepilogo_Ordine!S35,\"\")","v":""},{"$f":"IF(G40=\"\",\"\",CONCATENATE(Riepilogo_Ordine!Q35))","v":""},null,{"$f":"IF(Riepilogo_Ordine!T35>0,Riepilogo_Ordine!T35,\"\")","v":""},{"$f":"IF(J40=\"\",\"\",CONCATENATE(Riepilogo_Ordine!Q35))","v":""},null,null,0,0,0,0,"NO"]
[null,null,null,{"$f":"IF(Riepilogo_Ordine!R36>0,Riepilogo_Ordine!R36,\"\")","v":""},{"$f":"IF(D41=\"\",\"\",CONCATENATE(Riepilogo_Ordine!Q36))","v":""},null,{"$f":"IF(Riepilogo_Ordine!S36>0,Riepilogo_Ordine!S36,\"\")","v":""},{"$f":"IF(G41=\"\",\"\",CONCATENATE(Riepilogo_Ordine!Q36))","v":""},null,{"$f":"IF(Riepilogo_Ordine!T36>0,Riepilogo_Ordine!T36,\"\")","v":""},{"$f":"IF(J41=\"\",\"\",CONCATENATE(Riepilogo_Ordine!Q36))","v":""},null,null,0,0,0,0,"NO"]
[null,null,null,{"$f":"IF(Riepilogo_Ordine!R37>0,Riepilogo_Ordine!R37,\"\")","v":""},{"$f":"IF(D42=\"\",\"\",CONCATENATE(Riepilogo_Ordine!Q37))","v":""},null,{"$f":"IF(Riepilogo_Ordine!S37>0,Riepilogo_Ordine!S37,\"\")","v":""},{"$f":"IF(G42=\"\",\"\",CONCATENATE(Riepilogo_Ordine!Q37))","v":""},null,{"$f":"IF(Riepilogo_Ordine!T37>0,Riepilogo_Ordine!T37,\"\")","v":""},{"$f":"IF(J42=\"\",\"\",CONCATENATE(Riepilogo_Ordine!Q37))","v":""},null,null,0,0,0,0,"NO"]
[null,null,null,{"$f":"IF(Riepilogo_Ordine!R38>0,Riepilogo_Ordine!R38,\"\")","v":""},{"$f":"IF(D43=\"\",\"\",CONCATENATE(Riepilogo_Ordine!Q38))","v":""},null,{"$f":"IF(Riepilogo_Ordine!S38>0,Riepilogo_Ordine!S38,\"\")","v":""},{"$f":"IF(G43=\"\",\"\",CONCATENATE(Riepilogo_Ordine!Q38))","v":""},null,{"$f":"IF(Riepilogo_Ordine!T38>0,Riepilogo_Ordine!T38,\"\")","v":""},{"$f":"IF(J43=\"\",\"\",CONCATENATE(Riepilogo_Ordine!Q38))","v":""},null,null,0,0,0,0,"NO"]
[null,null,null,{"$f":"IF(Riepilogo_Ordine!R42>0,Riepilogo_Ordine!R42,\"\")","v":""},{"$f":"IF(D44=\"\",\"\",CONCATENATE(Riepilogo_Ordine!Q42))","v":""},null,{"$f":"IF(Riepilogo_Ordine!S42>0,Riepilogo_Ordine!S42,\"\")","v":""},{"$f":"IF(G44=\"\",\"\",CONCATENATE(Riepilogo_Ordine!Q42))","v":""},null,{"$f":"IF(Riepilogo_Ordine!T42>0,Riepilogo_Ordine!T42,\"\")","v":""},{"$f":"IF(J44=\"\",\"\",CONCATENATE(Riepilogo_Ordine!Q42))","v":""},null,null,0,0,0,0,"NO"]
[null,null,null,{"$f":"IF(Riepilogo_Ordine!R43>0,Riepilogo_Ordine!R43,\"\")","v":""},{"$f":"IF(D45=\"\",\"\",CONCATENATE(Riepilogo_Ordine!Q43))","v":""},null,{"$f":"IF(Riepilogo_Ordine!S43>0,Riepilogo_Ordine!S43,\"\")","v":""},{"$f":"IF(G45=\"\",\"\",CONCATENATE(Riepilogo_Ordine!Q43))","v":""},null,{"$f":"IF(Riepilogo_Ordine!T43>0,Riepilogo_Ordine!T43,\"\")","v":""},{"$f":"IF(J45=\"\",\"\",CONCATENATE(Riepilogo_Ordine!Q43))","v":""},null,null,0,0,0,0,"NO"]
[null,null,null,{"$f":"IF(Riepilogo_Ordine!R44>0,Riepilogo_Ordine!R44,\"\")","v":""},{"$f":"IF(D46=\"\",\"\",CONCATENATE(Riepilogo_Ordine!Q44))","v":""},null,{"$f":"IF(Riepilogo_Ordine!S44>0,Riepilogo_Ordine!S44,\"\")","v":""},{"$f":"IF(G46=\"\",\"\",CONCATENATE(Riepilogo_Ordine!Q44))","v":""},null,{"$f":"IF(Riepilogo_Ordine!T44>0,Riepilogo_Ordine!T44,\"\")","v":""},{"$f":"IF(J46=\"\",\"\",CONCATENATE(Riepilogo_Ordine!Q44))","v":""},null,null,0,0,0,0,"NO"]
[null,null,null,{"$f":"IF(Riepilogo_Ordine!R45>0,Riepilogo_Ordine!R45,\"\")","v":""},{"$f":"IF(D47=\"\",\"\",CONCATENATE(Riepilogo_Ordine!Q45))","v":""},null,{"$f":"IF(Riepilogo_Ordine!S45>0,Riepilogo_Ordine!S45,\"\")","v":""},{"$f":"IF(G47=\"\",\"\",CONCATENATE(Riepilogo_Ordine!Q45))","v":""},null,{"$f":"IF(Riepilogo_Ordine!T45>0,Riepilogo_Ordine!T45,\"\")","v":""},{"$f":"IF(J47=\"\",\"\",CONCATENATE(Riepilogo_Ordine!Q45))","v":""},null,null,0,0,0,0,"NO"]
[null,null,null,{"$f":"IF(Riepilogo_Ordine!R46>0,Riepilogo_Ordine!R46,\"\")","v":""},{"$f":"IF(D48=\"\",\"\",CONCATENATE(Riepilogo_Ordine!Q46))","v":""},null,{"$f":"IF(Riepilogo_Ordine!S46>0,Riepilogo_Ordine!S46,\"\")","v":""},{"$f":"IF(G48=\"\",\"\",CONCATENATE(Riepilogo_Ordine!Q46))","v":""},null,{"$f":"IF(Riepilogo_Ordine!T46>0,Riepilogo_Ordine!T46,\"\")","v":""},{"$f":"IF(J48=\"\",\"\",CONCATENATE(Riepilogo_Ordine!Q46))","v":""},null,null,0,0,0,0,"NO"]
[null,null,null,{"$f":"IF(Riepilogo_Ordine!R47>0,Riepilogo_Ordine!R47,\"\")","v":""},{"$f":"IF(D49=\"\",\"\",CONCATENATE(Riepilogo_Ordine!Q47))","v":""},null,{"$f":"IF(Riepilogo_Ordine!S47>0,Riepilogo_Ordine!S47,\"\")","v":""},{"$f":"IF(G49=\"\",\"\",CONCATENATE(Riepilogo_Ordine!Q47))","v":""},null,{"$f":"IF(Riepilogo_Ordine!T47>0,Riepilogo_Ordine!T47,\"\")","v":""},{"$f":"IF(J49=\"\",\"\",CONCATENATE(Riepilogo_Ordine!Q47))","v":""},null,null,0,0,0,0,"NO"]
[null,null,null,{"$f":"IF(Riepilogo_Ordine!R48>0,Riepilogo_Ordine!R48,\"\")","v":""},{"$f":"IF(D50=\"\",\"\",CONCATENATE(Riepilogo_Ordine!Q48))","v":""},null,{"$f":"IF(Riepilogo_Ordine!S48>0,Riepilogo_Ordine!S48,\"\")","v":""},{"$f":"IF(G50=\"\",\"\",CONCATENATE(Riepilogo_Ordine!Q48))","v":""},null,{"$f":"IF(Riepilogo_Ordine!T48>0,Riepilogo_Ordine!T48,\"\")","v":""},{"$f":"IF(J50=\"\",\"\",CONCATENATE(Riepilogo_Ordine!Q48))","v":""},null,null,0,0,0,0,"NO"]
[null,null,null,{"$f":"IF(Riepilogo_Ordine!R49>0,Riepilogo_Ordine!R49,\"\")","v":""},{"$f":"IF(D51=\"\",\"\",CONCATENATE(Riepilogo_Ordine!Q49))","v":""},null,{"$f":"IF(Riepilogo_Ordine!S49>0,Riepilogo_Ordine!S49,\"\")","v":""},{"$f":"IF(G51=\"\",\"\",CONCATENATE(Riepilogo_Ordine!Q49))","v":""},null,{"$f":"IF(Riepilogo_Ordine!T49>0,Riepilogo_Ordine!T49,\"\")","v":""},{"$f":"IF(J51=\"\",\"\",CONCATENATE(Riepilogo_Ordine!Q49))","v":""},null,null,0,0,0,0,"NO"]
[null,null,null,{"$f":"IF(Riepilogo_Ordine!R50>0,Riepilogo_Ordine!R50,\"\")","v":""},{"$f":"IF(D52=\"\",\"\",CONCATENATE(Riepilogo_Ordine!Q50))","v":""},null,{"$f":"IF(Riepilogo_Ordine!S50>0,Riepilogo_Ordine!S50,\"\")","v":""},{"$f":"IF(G52=\"\",\"\",CONCATENATE(Riepilogo_Ordine!Q50))","v":""},null,{"$f":"IF(Riepilogo_Ordine!T50>0,Riepilogo_Ordine!T50,\"\")","v":""},{"$f":"IF(J52=\"\",\"\",CONCATENATE(Riepilogo_Ordine!Q50))","v":""},null,null,0,0,0,0,"NO"]
[null,null,null,{"$f":"IF(Riepilogo_Ordine!R51>0,Riepilogo_Ordine!R51,\"\")","v":""},{"$f":"IF(D53=\"\",\"\",CONCATENATE(Riepilogo_Ordine!Q51))","v":""},null,{"$f":"IF(Riepilogo_Ordine!S51>0,Riepilogo_Ordine!S51,\"\")","v":""},{"$f":"IF(G53=\"\",\"\",CONCATENATE(Riepilogo_Ordine!Q51))","v":""},null,{"$f":"IF(Riepilogo_Ordine!T51>0,Riepilogo_Ordine!T51,\"\")","v":""},{"$f":"IF(J53=\"\",\"\",CONCATENATE(Riepilogo_Ordine!Q51))","v":""},null,null,0,0,0,0,"NO"]
[null,null,null,{"$f":"IF(Riepilogo_Ordine!R95>0,Riepilogo_Ordine!R95,\"\")","v":""},{"$f":"IF(D54=\"\",\"\",CONCATENATE(Riepilogo_Ordine!Q95))","v":""},null,{"$f":"IF(Riepilogo_Ordine!S95>0,Riepilogo_Ordine!S95,\"\")","v":""},{"$f":"IF(G54=\"\",\"\",CONCATENATE(Riepilogo_Ordine!Q95))","v":""},null,{"$f":"IF(Riepilogo_Ordine!T95>0,Riepilogo_Ordine!T95,\"\")","v":""},{"$f":"IF(J54=\"\",\"\",CONCATENATE(Riepilogo_Ordine!Q95))","v":""},null,null,0,0,0,0,"NO"]
[null,null,null,{"$f":"IF(Riepilogo_Ordine!R96>0,Riepilogo_Ordine!R96,\"\")","v":""},{"$f":"IF(D55=\"\",\"\",CONCATENATE(Riepilogo_Ordine!Q96))","v":""},null,{"$f":"IF(Riepilogo_Ordine!S96>0,Riepilogo_Ordine!S96,\"\")","v":""},{"$f":"IF(G55=\"\",\"\",CONCATENATE(Riepilogo_Ordine!Q96))","v":""},null,{"$f":"IF(Riepilogo_Ordine!T96>0,Riepilogo_Ordine!T96,\"\")","v":""},{"$f":"IF(J55=\"\",\"\",CONCATENATE(Riepilogo_Ordine!Q96))","v":""},null,null,0,0,0,0,"NO"]
[null,null,null,{"$f":"IF(Riepilogo_Ordine!R97>0,Riepilogo_Ordine!R97,\"\")","v":""},{"$f":"IF(D56=\"\",\"\",CONCATENATE(Riepilogo_Ordine!Q97))","v":""},null,{"$f":"IF(Riepilogo_Ordine!S97>0,Riepilogo_Ordine!S97,\"\")","v":""},{"$f":"IF(G56=\"\",\"\",CONCATENATE(Riepilogo_Ordine!Q97))","v":""},null,{"$f":"IF(Riepilogo_Ordine!T97>0,Riepilogo_Ordine!T97,\"\")","v":""},{"$f":"IF(J56=\"\",\"\",CONCATENATE(Riepilogo_Ordine!Q97))","v":""},null,null,0,0,0,0,"NO"]
[null,null,null,{"$f":"IF(Riepilogo_Ordine!R98>0,Riepilogo_Ordine!R98,\"\")","v":""},{"$f":"IF(D57=\"\",\"\",CONCATENATE(Riepilogo_Ordine!Q98))","v":""},null,{"$f":"IF(Riepilogo_Ordine!S98>0,Riepilogo_Ordine!S98,\"\")","v":""},{"$f":"IF(G57=\"\",\"\",CONCATENATE(Riepilogo_Ordine!Q98))","v":""},null,{"$f":"IF(Riepilogo_Ordine!T98>0,Riepilogo_Ordine!T98,\"\")","v":""},{"$f":"IF(J57=\"\",\"\",CONCATENATE(Riepilogo_Ordine!Q98))","v":""},null,null,0,0,0,0,"NO"]
[null,null,null,{"$f":"IF(Riepilogo_Ordine!R99>0,Riepilogo_Ordine!R99,\"\")","v":""},{"$f":"IF(D58=\"\",\"\",CONCATENATE(Riepilogo_Ordine!Q99))","v":""},null,{"$f":"IF(Riepilogo_Ordine!S99>0,Riepilogo_Ordine!S99,\"\")","v":""},{"$f":"IF(G58=\"\",\"\",CONCATENATE(Riepilogo_Ordine!Q99))","v":""},null,{"$f":"IF(Riepilogo_Ordine!T99>0,Riepilogo_Ordine!T99,\"\")","v":""},{"$f":"IF(J58=\"\",\"\",CONCATENATE(Riepilogo_Ordine!Q99))","v":""},null,null,0,0,0,0,"NO"]
[null,null,null,{"$f":"IF(Riepilogo_Ordine!R100>0,Riepilogo_Ordine!R100,\"\")","v":""},{"$f":"IF(D59=\"\",\"\",CONCATENATE(Riepilogo_Ordine!Q100))","v":""},null,{"$f":"IF(Riepilogo_Ordine!S100>0,Riepilogo_Ordine!S100,\"\")","v":""},{"$f":"IF(G59=\"\",\"\",CONCATENATE(Riepilogo_Ordine!Q100))","v":""},null,{"$f":"IF(Riepilogo_Ordine!T100>0,Riepilogo_Ordine!T100,\"\")","v":""},{"$f":"IF(J59=\"\",\"\",CONCATENATE(Riepilogo_Ordine!Q100))","v":""},null,null,0,0,0,0,"NO"]
[null,null,null,{"$f":"IF(Riepilogo_Ordine!R101>0,Riepilogo_Ordine!R101,\"\")","v":""},{"$f":"IF(D60=\"\",\"\",CONCATENATE(Riepilogo_Ordine!Q101))","v":""},null,{"$f":"IF(Riepilogo_Ordine!S101>0,Riepilogo_Ordine!S101,\"\")","v":""},{"$f":"IF(G60=\"\",\"\",CONCATENATE(Riepilogo_Ordine!Q101))","v":""},null,{"$f":"IF(Riepilogo_Ordine!T101>0,Riepilogo_Ordine!T101,\"\")","v":""},{"$f":"IF(J60=\"\",\"\",CONCATENATE(Riepilogo_Ordine!Q101))","v":""},null,null,0,0,0,0,"NO"]
[null,null,null,{"$f":"IF(Riepilogo_Ordine!R102>0,Riepilogo_Ordine!R102,\"\")","v":""},{"$f":"IF(D61=\"\",\"\",CONCATENATE(Riepilogo_Ordine!Q102))","v":""},null,{"$f":"IF(Riepilogo_Ordine!S102>0,Riepilogo_Ordine!S102,\"\")","v":""},{"$f":"IF(G61=\"\",\"\",CONCATENATE(Riepilogo_Ordine!Q102))","v":""},null,{"$f":"IF(Riepilogo_Ordine!T102>0,Riepilogo_Ordine!T102,\"\")","v":""},{"$f":"IF(J61=\"\",\"\",CONCATENATE(Riepilogo_Ordine!Q102))","v":""},null,null,0,0,0,0,"NO"]
[null,null,null,{"$f":"IF(Riepilogo_Ordine!R103>0,Riepilogo_Ordine!R103,\"\")","v":""},{"$f":"IF(D62=\"\",\"\",CONCATENATE(Riepilogo_Ordine!Q103))","v":""},null,{"$f":"IF(Riepilogo_Ordine!S103>0,Riepilogo_Ordine!S103,\"\")","v":""},{"$f":"IF(G62=\"\",\"\",CONCATENATE(Riepilogo_Ordine!Q103))","v":""},null,{"$f":"IF(Riepilogo_Ordine!T103>0,Riepilogo_Ordine!T103,\"\")","v":""},{"$f":"IF(J62=\"\",\"\",CONCATENATE(Riepilogo_Ordine!Q103))","v":""},null,null,0,0,0,0,"NO"]
[null,null,null,{"$f":"IF(Riepilogo_Ordine!R104>0,Riepilogo_Ordine!R104,\"\")","v":""},{"$f":"IF(D63=\"\",\"\",CONCATENATE(Riepilogo_Ordine!Q104))","v":""},null,{"$f":"IF(Riepilogo_Ordine!S104>0,Riepilogo_Ordine!S104,\"\")","v":""},{"$f":"IF(G63=\"\",\"\",CONCATENATE(Riepilogo_Ordine!Q104))","v":""},null,{"$f":"IF(Riepilogo_Ordine!T104>0,Riepilogo_Ordine!T104,\"\")","v":""},{"$f":"IF(J63=\"\",\"\",CONCATENATE(Riepilogo_Ordine!Q104))","v":""},null,null,0,0,0,0,"NO"]
[null,null,null,{"$f":"IF(Riepilogo_Ordine!R105>0,Riepilogo_Ordine!R105,\"\")","v":""},{"$f":"IF(D64=\"\",\"\",CONCATENATE(Riepilogo_Ordine!Q105))","v":""},null,{"$f":"IF(Riepilogo_Ordine!S105>0,Riepilogo_Ordine!S105,\"\")","v":""},{"$f":"IF(G64=\"\",\"\",CONCATENATE(Riepilogo_Ordine!Q105))","v":""},null,{"$f":"IF(Riepilogo_Ordine!T105>0,Riepilogo_Ordine!T105,\"\")","v":""},{"$f":"IF(J64=\"\",\"\",CONCATENATE(Riepilogo_Ordine!Q105))","v":""},null,null,0,0,0,0,"NO"]
[null,null,null,{"$f":"IF(Riepilogo_Ordine!R106>0,Riepilogo_Ordine!R106,\"\")","v":""},{"$f":"IF(D65=\"\",\"\",CONCATENATE(Riepilogo_Ordine!Q106))","v":""},null,{"$f":"IF(Riepilogo_Ordine!S106>0,Riepilogo_Ordine!S106,\"\")","v":""},{"$f":"IF(G65=\"\",\"\",CONCATENATE(Riepilogo_Ordine!Q106))","v":""},null,{"$f":"IF(Riepilogo_Ordine!T106>0,Riepilogo_Ordine!T106,\"\")","v":""},{"$f":"IF(J65=\"\",\"\",CONCATENATE(Riepilogo_Ordine!Q106))","v":""},null,null,0,0,0,0,"NO"]
[null,null,null,{"$f":"IF(Riepilogo_Ordine!R119>0,Riepilogo_Ordine!R119,\"\")","v":""},{"$f":"IF(D66=\"\",\"\",CONCATENATE(Riepilogo_Ordine!Q119))","v":""},null,{"$f":"IF(Riepilogo_Ordine!S119>0,Riepilogo_Ordine!S119,\"\")","v":""},{"$f":"IF(G66=\"\",\"\",CONCATENATE(Riepilogo_Ordine!Q119))","v":""},null,{"$f":"IF(Riepilogo_Ordine!T119>0,Riepilogo_Ordine!T119,\"\")","v":""},{"$f":"IF(J66=\"\",\"\",CONCATENATE(Riepilogo_Ordine!Q119))","v":""},null,null,0,0,0,0,"NO"]
[null,null,null,{"$f":"IF(Riepilogo_Ordine!R120>0,Riepilogo_Ordine!R120,\"\")","v":""},{"$f":"IF(D67=\"\",\"\",CONCATENATE(Riepilogo_Ordine!Q120))","v":""},null,{"$f":"IF(Riepilogo_Ordine!S120>0,Riepilogo_Ordine!S120,\"\")","v":""},{"$f":"IF(G67=\"\",\"\",CONCATENATE(Riepilogo_Ordine!Q120))","v":""},null,{"$f":"IF(Riepilogo_Ordine!T120>0,Riepilogo_Ordine!T120,\"\")","v":""},{"$f":"IF(J67=\"\",\"\",CONCATENATE(Riepilogo_Ordine!Q120))","v":""},null,null,0,0,0,0,"NO"]
[null,null,null,{"$f":"IF(Riepilogo_Ordine!R121>0,Riepilogo_Ordine!R121,\"\")","v":""},{"$f":"IF(D68=\"\",\"\",CONCATENATE(Riepilogo_Ordine!Q121))","v":""},null,{"$f":"IF(Riepilogo_Ordine!S121>0,Riepilogo_Ordine!S121,\"\")","v":""},{"$f":"IF(G68=\"\",\"\",CONCATENATE(Riepilogo_Ordine!Q121))","v":""},null,{"$f":"IF(Riepilogo_Ordine!T121>0,Riepilogo_Ordine!T121,\"\")","v":""},{"$f":"IF(J68=\"\",\"\",CONCATENATE(Riepilogo_Ordine!Q121))","v":""},null,null,0,0,0,0,"NO"]
[null,null,null,{"$f":"IF(Riepilogo_Ordine!R122>0,Riepilogo_Ordine!R122,\"\")","v":""},{"$f":"IF(D69=\"\",\"\",CONCATENATE(Riepilogo_Ordine!Q122))","v":""},null,{"$f":"IF(Riepilogo_Ordine!S122>0,Riepilogo_Ordine!S122,\"\")","v":""},{"$f":"IF(G69=\"\",\"\",CONCATENATE(Riepilogo_Ordine!Q122))","v":""},null,{"$f":"IF(Riepilogo_Ordine!T122>0,Riepilogo_Ordine!T122,\"\")","v":""},{"$f":"IF(J69=\"\",\"\",CONCATENATE(Riepilogo_Ordine!Q122))","v":""},null,null,0,0,0,0,"NO"]
[null,null,null,{"$f":"IF(Riepilogo_Ordine!R136>0,Riepilogo_Ordine!R136,\"\")","v":""},{"$f":"IF(D70=\"\",\"\",CONCATENATE(Riepilogo_Ordine!Q136))","v":""},null,{"$f":"IF(Riepilogo_Ordine!S136>0,Riepilogo_Ordine!S136,\"\")","v":""},{"$f":"IF(G70=\"\",\"\",CONCATENATE(Riepilogo_Ordine!Q136))","v":""},null,{"$f":"IF(Riepilogo_Ordine!T136>0,Riepilogo_Ordine!T136,\"\")","v":""},{"$f":"IF(J70=\"\",\"\",CONCATENATE(Riepilogo_Ordine!Q136))","v":""},null,null,{"$f":"IF(D70=\"\",0,D70)","v":0},{"$f":"IF(G70=\"\",0,G70)","v":0},{"$f":"IF(J70=\"\",0,J70)","v":0},{"$f":"SUM(N70:P70)","v":0},{"$f":"IF(Q70>0,\"SI\",\"NO\")","v":"NO"}]
[null,null,null,{"$f":"IF(SUM(C19:C20)=2,1*D17,\"\")","v":""},{"$f":"IF(D71<>\"\",\"TS4L4-SRV + TS4L4-CPU\",\"\")","v":""},null,{"$f":"IF(SUM(F19:F20)=2,1*G17,\"\")","v":""},{"$f":"IF(G71<>\"\",\"TS4L4-SRV + TS4L4-CPU\",\"\")","v":""},null,{"$f":"IF(SUM(I19:I20)=2,1*J17,\"\")","v":""},{"$f":"IF(J71<>\"\",\"TS4L4-SRV + TS4L4-CPU\",\"\")","v":""},null,null,null,null,null,{"$f":"SUM(D138:D141)","v":0},"NO"]
[null,null,{"$f":"IF(D72<>\"\",1,0)","v":0},{"$f":"IF(Riepilogo_Ordine!R67>0,Riepilogo_Ordine!R67,\"\")","v":""},{"$f":"IF(E140<>\"\",\"\",IF(D72=\"\",\"\",CONCATENATE(Riepilogo_Ordine!Q67)))","v":""},{"$f":"IF(G72<>\"\",1,0)","v":0},{"$f":"IF(Riepilogo_Ordine!S67>0,Riepilogo_Ordine!S67,\"\")","v":""},{"$f":"IF(H140<>\"\",\"\",IF(G72=\"\",\"\",CONCATENATE(Riepilogo_Ordine!Q67)))","v":""},{"$f":"IF(J72<>\"\",1,0)","v":0},{"$f":"IF(Riepilogo_Ordine!T67>0,Riepilogo_Ordine!T67,\"\")","v":""},{"$f":"IF(K140<>\"\",\"\",IF(J72=\"\",\"\",CONCATENATE(Riepilogo_Ordine!Q67)))","v":""},null,null,{"$f":"IF(D72=\"\",0,D72)","v":0},{"$f":"IF(G72=\"\",0,G72)","v":0},{"$f":"IF(J72=\"\",0,J72)","v":0},{"$f":"SUM(N72:P72)","v":0},{"$f":"IF(Q72>0,\"SI\",\"NO\")","v":"NO"}]
[null,null,{"$f":"IF(D73<>\"\",1,0)","v":0},{"$f":"IF(SUM(D117:D138)>0,\"\",IF(D74<>\"\",\"\",IF(Riepilogo_Ordine!R70>0,Riepilogo_Ordine!R70,\"\")))","v":""},{"$f":"IF(E140<>\"\",\"\",IF(E74<>\"\",\"\",IF(D73=\"\",\"\",CONCATENATE(Riepilogo_Ordine!Q70))))","v":""},{"$f":"IF(G73<>\"\",1,0)","v":0},{"$f":"IF(SUM(G117:G138)>0,\"\",IF(G74<>\"\",\"\",IF(Riepilogo_Ordine!S70>0,Riepilogo_Ordine!S70,\"\")))","v":""},{"$f":"IF(H140<>\"\",\"\",IF(H74<>\"\",\"\",IF(G73=\"\",\"\",CONCATENATE(Riepilogo_Ordine!Q70))))","v":""},{"$f":"IF(J73<>\"\",1,0)","v":0},{"$f":"IF(SUM(J117:J138)>0,\"\",IF(J74<>\"\",\"\",IF(Riepilogo_Ordine!T70>0,Riepilogo_Ordine!T70,\"\")))","v":""},{"$f":"IF(K140<>\"\",\"\",IF(K74<>\"\",\"\",IF(J73=\"\",\"\",CONCATENATE(Riepilogo_Ordine!Q70))))","v":""},null,null,{"$f":"IF(D73=\"\",0,D73)","v":0},{"$f":"IF(G73=\"\",0,G73)","v":0},{"$f":"IF(J73=\"\",0,J73)","v":0},{"$f":"SUM(N73:P73)","v":0},{"$f":"IF(Q73>0,\"SI\",\"NO\")","v":"NO"}]
[null,null,null,{"$f":"IF(SUM(D66:D69)>0,\"\",IF(D21<>\"\",\"\",IF(Riepilogo_Ordine!R54>0,Riepilogo_Ordine!R54,\"\")))","v":""},{"$f":"IF(D74=\"\",\"\",CONCATENATE(Riepilogo_Ordine!Q54))","v":""},null,{"$f":"IF(SUM(G66:G69)>0,\"\",IF(G21<>\"\",\"\",IF(Riepilogo_Ordine!S54>0,Riepilogo_Ordine!S54,\"\")))","v":""},{"$f":"IF(G74=\"\",\"\",CONCATENATE(Riepilogo_Ordine!Q54))","v":""},null,{"$f":"IF(SUM(J66:J69)>0,\"\",IF(J21<>\"\",\"\",IF(Riepilogo_Ordine!T54>0,Riepilogo_Ordine!T54,\"\")))","v":""},{"$f":"IF(J74=\"\",\"\",CONCATENATE(Riepilogo_Ordine!Q54))","v":""},null,null,0,0,0,0,"NO"]
[null,null,null,{"$f":"IF(SUM(D66:D69)>0,\"\",IF(Riepilogo_Ordine!R55>0,Riepilogo_Ordine!R55,\"\"))","v":""},{"$f":"IF(D75=\"\",\"\",CONCATENATE(Riepilogo_Ordine!Q55))","v":""},null,{"$f":"IF(SUM(G66:G69)>0,\"\",IF(Riepilogo_Ordine!S55>0,Riepilogo_Ordine!S55,\"\"))","v":""},{"$f":"IF(G75=\"\",\"\",CONCATENATE(Riepilogo_Ordine!Q55))","v":""},null,{"$f":"IF(SUM(J66:J69)>0,\"\",IF(Riepilogo_Ordine!T55>0,Riepilogo_Ordine!T55,\"\"))","v":""},{"$f":"IF(J75=\"\",\"\",CONCATENATE(Riepilogo_Ordine!Q55))","v":""},null,null,0,0,0,0,"NO"]
[null,null,null,{"$f":"IF(SUM(D66:D69)>0,\"\",IF(Riepilogo_Ordine!R56>0,Riepilogo_Ordine!R56,\"\"))","v":""},{"$f":"IF(D76=\"\",\"\",CONCATENATE(Riepilogo_Ordine!Q56))","v":""},null,{"$f":"IF(SUM(G66:G69)>0,\"\",IF(Riepilogo_Ordine!S56>0,Riepilogo_Ordine!S56,\"\"))","v":""},{"$f":"IF(G76=\"\",\"\",CONCATENATE(Riepilogo_Ordine!Q56))","v":""},null,{"$f":"IF(SUM(J66:J69)>0,\"\",IF(Riepilogo_Ordine!T56>0,Riepilogo_Ordine!T56,\"\"))","v":""},{"$f":"IF(J76=\"\",\"\",CONCATENATE(Riepilogo_Ordine!Q56))","v":""},null,null,0,0,0,0,"NO"]
[null,null,null,{"$f":"IF(Riepilogo_Ordine!R57>0,Riepilogo_Ordine!R57,\"\")","v":""},{"$f":"IF(D77=\"\",\"\",CONCATENATE(Riepilogo_Ordine!Q57))","v":""},null,{"$f":"IF(Riepilogo_Ordine!S57>0,Riepilogo_Ordine!S57,\"\")","v":""},{"$f":"IF(G77=\"\",\"\",CONCATENATE(Riepilogo_Ordine!Q57))","v":""},null,{"$f":"IF(Riepilogo_Ordine!T57>0,Riepilogo_Ordine!T57,\"\")","v":""},{"$f":"IF(J77=\"\",\"\",CONCATENATE(Riepilogo_Ordine!Q57))","v":""},null,null,0,0,0,0,"NO"]
[null,null,null,{"$f":"IF(Riepilogo_Ordine!R58>0,Riepilogo_Ordine!R58,\"\")","v":""},{"$f":"IF(D78=\"\",\"\",CONCATENATE(Riepilogo_Ordine!Q58))","v":""},null,{"$f":"IF(Riepilogo_Ordine!S58>0,Riepilogo_Ordine!S58,\"\")","v":""},{"$f":"IF(G78=\"\",\"\",CONCATENATE(Riepilogo_Ordine!Q58))","v":""},null,{"$f":"IF(Riepilogo_Ordine!T58>0,Riepilogo_Ordine!T58,\"\")","v":""},{"$f":"IF(J78=\"\",\"\",CONCATENATE(Riepilogo_Ordine!Q58))","v":""},null,null,0,0,0,0,"NO"]
[null,null,null,{"$f":"IF(Riepilogo_Ordine!R59>0,Riepilogo_Ordine!R59,\"\")","v":""},{"$f":"IF(D79=\"\",\"\",CONCATENATE(Riepilogo_Ordine!Q59))","v":""},null,{"$f":"IF(Riepilogo_Ordine!S59>0,Riepilogo_Ordine!S59,\"\")","v":""},{"$f":"IF(G79=\"\",\"\",CONCATENATE(Riepilogo_Ordine!Q59))","v":""},null,{"$f":"IF(Riepilogo_Ordine!T59>0,Riepilogo_Ordine!T59,\"\")","v":""},{"$f":"IF(J79=\"\",\"\",CONCATENATE(Riepilogo_Ordine!Q59))","v":""},null,null,0,0,0,0,"NO"]
[null,null,null,{"$f":"IF(Riepilogo_Ordine!R60>0,Riepilogo_Ordine!R60,\"\")","v":""},{"$f":"IF(D80=\"\",\"\",CONCATENATE(Riepilogo_Ordine!Q60))","v":""},null,{"$f":"IF(Riepilogo_Ordine!S60>0,Riepilogo_Ordine!S60,\"\")","v":""},{"$f":"IF(G80=\"\",\"\",CONCATENATE(Riepilogo_Ordine!Q60))","v":""},null,{"$f":"IF(Riepilogo_Ordine!T60>0,Riepilogo_Ordine!T60,\"\")","v":""},{"$f":"IF(J80=\"\",\"\",CONCATENATE(Riepilogo_Ordine!Q60))","v":""},null,null,0,0,0,0,"NO"]
[null,null,null,{"$f":"IF(Riepilogo_Ordine!R61>0,Riepilogo_Ordine!R61,\"\")","v":""},{"$f":"IF(D81=\"\",\"\",CONCATENATE(Riepilogo_Ordine!Q61))","v":""},null,{"$f":"IF(Riepilogo_Ordine!S61>0,Riepilogo_Ordine!S61,\"\")","v":""},{"$f":"IF(G81=\"\",\"\",CONCATENATE(Riepilogo_Ordine!Q61))","v":""},null,{"$f":"IF(Riepilogo_Ordine!T61>0,Riepilogo_Ordine!T61,\"\")","v":""},{"$f":"IF(J81=\"\",\"\",CONCATENATE(Riepilogo_Ordine!Q61))","v":""},null,null,0,0,0,0,"NO"]
[null,null,null,{"$f":"IF(Riepilogo_Ordine!R62>0,Riepilogo_Ordine!R62,\"\")","v":""},{"$f":"IF(D82=\"\",\"\",CONCATENATE(Riepilogo_Ordine!Q62))","v":""},null,{"$f":"IF(Riepilogo_Ordine!S62>0,Riepilogo_Ordine!S62,\"\")","v":""},{"$f":"IF(G82=\"\",\"\",CONCATENATE(Riepilogo_Ordine!Q62))","v":""},null,{"$f":"IF(Riepilogo_Ordine!T62>0,Riepilogo_Ordine!T62,\"\")","v":""},{"$f":"IF(J82=\"\",\"\",CONCATENATE(Riepilogo_Ordine!Q62))","v":""},null,null,0,0,0,0,"NO"]
[null,null,null,{"$f":"IF(Riepilogo_Ordine!R63>0,Riepilogo_Ordine!R63,\"\")","v":""},{"$f":"IF(D83=\"\",\"\",CONCATENATE(Riepilogo_Ordine!Q63))","v":""},null,{"$f":"IF(Riepilogo_Ordine!S63>0,Riepilogo_Ordine!S63,\"\")","v":""},{"$f":"IF(G83=\"\",\"\",CONCATENATE(Riepilogo_Ordine!Q63))","v":""},null,{"$f":"IF(Riepilogo_Ordine!T63>0,Riepilogo_Ordine!T63,\"\")","v":""},{"$f":"IF(J83=\"\",\"\",CONCATENATE(Riepilogo_Ordine!Q63))","v":""},null,null,0,0,0,0,"NO"]
[null,null,null,{"$f":"IF(Riepilogo_Ordine!R64>0,Riepilogo_Ordine!R64,\"\")","v":""},{"$f":"IF(D84=\"\",\"\",CONCATENATE(Riepilogo_Ordine!Q64))","v":""},null,{"$f":"IF(Riepilogo_Ordine!S64>0,Riepilogo_Ordine!S64,\"\")","v":""},{"$f":"IF(G84=\"\",\"\",CONCATENATE(Riepilogo_Ordine!Q64))","v":""},null,{"$f":"IF(Riepilogo_Ordine!T64>0,Riepilogo_Ordine!T64,\"\")","v":""},{"$f":"IF(J84=\"\",\"\",CONCATENATE(Riepilogo_Ordine!Q64))","v":""},null,null,0,0,0,0,"NO"]
[null,null,null,{"$f":"IF(Riepilogo_Ordine!R65>0,Riepilogo_Ordine!R65,\"\")","v":""},{"$f":"IF(D85=\"\",\"\",CONCATENATE(Riepilogo_Ordine!Q65))","v":""},null,{"$f":"IF(Riepilogo_Ordine!S65>0,Riepilogo_Ordine!S65,\"\")","v":""},{"$f":"IF(G85=\"\",\"\",CONCATENATE(Riepilogo_Ordine!Q65))","v":""},null,{"$f":"IF(Riepilogo_Ordine!T65>0,Riepilogo_Ordine!T65,\"\")","v":""},{"$f":"IF(J85=\"\",\"\",CONCATENATE(Riepilogo_Ordine!Q65))","v":""},null,null,0,0,0,0,"NO"]
[null,null,null,{"$f":"IF(Riepilogo_Ordine!R66>0,Riepilogo_Ordine!R66,\"\")","v":""},{"$f":"IF(D86=\"\",\"\",CONCATENATE(Riepilogo_Ordine!Q66))","v":""},null,{"$f":"IF(Riepilogo_Ordine!S66>0,Riepilogo_Ordine!S66,\"\")","v":""},{"$f":"IF(G86=\"\",\"\",CONCATENATE(Riepilogo_Ordine!Q66))","v":""},null,{"$f":"IF(Riepilogo_Ordine!T66>0,Riepilogo_Ordine!T66,\"\")","v":""},{"$f":"IF(J86=\"\",\"\",CONCATENATE(Riepilogo_Ordine!Q66))","v":""},null,null,0,0,0,0,"NO"]
[null,null,null,{"$f":"IF(Riepilogo_Ordine!R67>0,Riepilogo_Ordine!R67,\"\")","v":""},{"$f":"IF(D87=\"\",\"\",CONCATENATE(Riepilogo_Ordine!Q67))","v":""},null,{"$f":"IF(Riepilogo_Ordine!S67>0,Riepilogo_Ordine!S67,\"\")","v":""},{"$f":"IF(G87=\"\",\"\",CONCATENATE(Riepilogo_Ordine!Q67))","v":""},null,{"$f":"IF(Riepilogo_Ordine!T67>0,Riepilogo_Ordine!T67,\"\")","v":""},{"$f":"IF(J87=\"\",\"\",CONCATENATE(Riepilogo_Ordine!Q67))","v":""},null,null,0,0,0,0,"NO"]
[null,null,null,{"$f":"IF(Riepilogo_Ordine!R68>0,Riepilogo_Ordine!R68,\"\")","v":""},{"$f":"IF(D88=\"\",\"\",CONCATENATE(Riepilogo_Ordine!Q68))","v":""},null,{"$f":"IF(Riepilogo_Ordine!S68>0,Riepilogo_Ordine!S68,\"\")","v":""},{"$f":"IF(G88=\"\",\"\",CONCATENATE(Riepilogo_Ordine!Q68))","v":""},null,{"$f":"IF(Riepilogo_Ordine!T68>0,Riepilogo_Ordine!T68,\"\")","v":""},{"$f":"IF(J88=\"\",\"\",CONCATENATE(Riepilogo_Ordine!Q68))","v":""},null,null,0,0,0,0,"NO"]
[null,null,null,{"$f":"IF(Riepilogo_Ordine!R69>0,Riepilogo_Ordine!R69,\"\")","v":""},{"$f":"IF(D89=\"\",\"\",CONCATENATE(Riepilogo_Ordine!Q69))","v":""},null,{"$f":"IF(Riepilogo_Ordine!S69>0,Riepilogo_Ordine!S69,\"\")","v":""},{"$f":"IF(G89=\"\",\"\",CONCATENATE(Riepilogo_Ordine!Q69))","v":""},null,{"$f":"IF(Riepilogo_Ordine!T69>0,Riepilogo_Ordine!T69,\"\")","v":""},{"$f":"IF(J89=\"\",\"\",CONCATENATE(Riepilogo_Ordine!Q69))","v":""},null,null,0,0,0,0,"NO"]
[null,null,null,{"$f":"IF(Riepilogo_Ordine!R70>0,Riepilogo_Ordine!R70,\"\")","v":""},{"$f":"IF(D90=\"\",\"\",CONCATENATE(Riepilogo_Ordine!Q70))","v":""},null,{"$f":"IF(Riepilogo_Ordine!S70>0,Riepilogo_Ordine!S70,\"\")","v":""},{"$f":"IF(G90=\"\",\"\",CONCATENATE(Riepilogo_Ordine!Q70))","v":""},null,{"$f":"IF(Riepilogo_Ordine!T70>0,Riepilogo_Ordine!T70,\"\")","v":""},{"$f":"IF(J90=\"\",\"\",CONCATENATE(Riepilogo_Ordine!Q70))","v":""},null,null,0,0,0,0,"NO"]
[null,null,null,{"$f":"IF(Riepilogo_Ordine!R71>0,Riepilogo_Ordine!R71,\"\")","v":""},{"$f":"IF(D91=\"\",\"\",CONCATENATE(Riepilogo_Ordine!Q71))","v":""},null,{"$f":"IF(Riepilogo_Ordine!S71>0,Riepilogo_Ordine!S71,\"\")","v":""},{"$f":"IF(G91=\"\",\"\",CONCATENATE(Riepilogo_Ordine!Q71))","v":""},null,{"$f":"IF(Riepilogo_Ordine!T71>0,Riepilogo_Ordine!T71,\"\")","v":""},{"$f":"IF(J91=\"\",\"\",CONCATENATE(Riepilogo_Ordine!Q71))","v":""},null,null,0,0,0,0,"NO"]
[null,null,null,{"$f":"IF(Riepilogo_Ordine!R72>0,Riepilogo_Ordine!R72,\"\")","v":""},{"$f":"IF(D92=\"\",\"\",CONCATENATE(Riepilogo_Ordine!Q72))","v":""},null,{"$f":"IF(Riepilogo_Ordine!S72>0,Riepilogo_Ordine!S72,\"\")","v":""},{"$f":"IF(G92=\"\",\"\",CONCATENATE(Riepilogo_Ordine!Q72))","v":""},null,{"$f":"IF(Riepilogo_Ordine!T72>0,Riepilogo_Ordine!T72,\"\")","v":""},{"$f":"IF(J92=\"\",\"\",CONCATENATE(Riepilogo_Ordine!Q72))","v":""},null,null,0,0,0,0,"NO"]
[null,null,null,{"$f":"IF(Riepilogo_Ordine!R73>0,Riepilogo_Ordine!R73,\"\")","v":""},{"$f":"IF(D93=\"\",\"\",CONCATENATE(Riepilogo_Ordine!Q73))","v":""},null,{"$f":"IF(Riepilogo_Ordine!S73>0,Riepilogo_Ordine!S73,\"\")","v":""},{"$f":"IF(G93=\"\",\"\",CONCATENATE(Riepilogo_Ordine!Q73))","v":""},null,{"$f":"IF(Riepilogo_Ordine!T73>0,Riepilogo_Ordine!T73,\"\")","v":""},{"$f":"IF(J93=\"\",\"\",CONCATENATE(Riepilogo_Ordine!Q73))","v":""},null,null,0,0,0,0,"NO"]
[null,null,null,{"$f":"IF(Riepilogo_Ordine!R74>0,Riepilogo_Ordine!R74,\"\")","v":""},{"$f":"IF(D94=\"\",\"\",CONCATENATE(Riepilogo_Ordine!Q74))","v":""},null,{"$f":"IF(Riepilogo_Ordine!S74>0,Riepilogo_Ordine!S74,\"\")","v":""},{"$f":"IF(G94=\"\",\"\",CONCATENATE(Riepilogo_Ordine!Q74))","v":""},null,{"$f":"IF(Riepilogo_Ordine!T74>0,Riepilogo_Ordine!T74,\"\")","v":""},{"$f":"IF(J94=\"\",\"\",CONCATENATE(Riepilogo_Ordine!Q74))","v":""},null,null,0,0,0,0,"NO"]
[null,null,null,{"$f":"IF(Riepilogo_Ordine!R75>0,Riepilogo_Ordine!R75,\"\")","v":""},{"$f":"IF(D95=\"\",\"\",CONCATENATE(Riepilogo_Ordine!Q75))","v":""},null,{"$f":"IF(Riepilogo_Ordine!S75>0,Riepilogo_Ordine!S75,\"\")","v":""},{"$f":"IF(G95=\"\",\"\",CONCATENATE(Riepilogo_Ordine!Q75))","v":""},null,{"$f":"IF(Riepilogo_Ordine!T75>0,Riepilogo_Ordine!T75,\"\")","v":""},{"$f":"IF(J95=\"\",\"\",CONCATENATE(Riepilogo_Ordine!Q75))","v":""},null,null,0,0,0,0,"NO"]
[null,null,null,{"$f":"IF(Riepilogo_Ordine!R76>0,Riepilogo_Ordine!R76,\"\")","v":""},{"$f":"IF(D96=\"\",\"\",CONCATENATE(Riepilogo_Ordine!Q76))","v":""},null,{"$f":"IF(Riepilogo_Ordine!S76>0,Riepilogo_Ordine!S76,\"\")","v":""},{"$f":"IF(G96=\"\",\"\",CONCATENATE(Riepilogo_Ordine!Q76))","v":""},null,{"$f":"IF(Riepilogo_Ordine!T76>0,Riepilogo_Ordine!T76,\"\")","v":""},{"$f":"IF(J96=\"\",\"\",CONCATENATE(Riepilogo_Ordine!Q76))","v":""},null,null,0,0,0,0,"NO"]
[null,null,null,{"$f":"IF(Riepilogo_Ordine!R77>0,Riepilogo_Ordine!R77,\"\")","v":""},{"$f":"IF(D97=\"\",\"\",CONCATENATE(Riepilogo_Ordine!Q77))","v":""},null,{"$f":"IF(Riepilogo_Ordine!S77>0,Riepilogo_Ordine!S77,\"\")","v":""},{"$f":"IF(G97=\"\",\"\",CONCATENATE(Riepilogo_Ordine!Q77))","v":""},null,{"$f":"IF(Riepilogo_Ordine!T77>0,Riepilogo_Ordine!T77,\"\")","v":""},{"$f":"IF(J97=\"\",\"\",CONCATENATE(Riepilogo_Ordine!Q77))","v":""},null,null,0,0,0,0,"NO"]
[null,null,null,{"$f":"IF(Riepilogo_Ordine!R78>0,Riepilogo_Ordine!R78,\"\")","v":""},{"$f":"IF(D98=\"\",\"\",CONCATENATE(Riepilogo_Ordine!Q78))","v":""},null,{"$f":"IF(Riepilogo_Ordine!S78>0,Riepilogo_Ordine!S78,\"\")","v":""},{"$f":"IF(G98=\"\",\"\",CONCATENATE(Riepilogo_Ordine!Q78))","v":""},null,{"$f":"IF(Riepilogo_Ordine!T78>0,Riepilogo_Ordine!T78,\"\")","v":""},{"$f":"IF(J98=\"\",\"\",CONCATENATE(Riepilogo_Ordine!Q78))","v":""},null,null,0,0,0,0,"NO"]
[null,null,null,{"$f":"IF(Riepilogo_Ordine!R79>0,Riepilogo_Ordine!R79,\"\")","v":""},{"$f":"IF(D99=\"\",\"\",CONCATENATE(Riepilogo_Ordine!Q79))","v":""},null,{"$f":"IF(Riepilogo_Ordine!S79>0,Riepilogo_Ordine!S79,\"\")","v":""},{"$f":"IF(G99=\"\",\"\",CONCATENATE(Riepilogo_Ordine!Q79))","v":""},null,{"$f":"IF(Riepilogo_Ordine!T79>0,Riepilogo_Ordine!T79,\"\")","v":""},{"$f":"IF(J99=\"\",\"\",CONCATENATE(Riepilogo_Ordine!Q79))","v":""},null,null,0,0,0,0,"NO"]
[null,null,null,{"$f":"IF(Riepilogo_Ordine!R80>0,Riepilogo_Ordine!R80,\"\")","v":""},{"$f":"IF(D100=\"\",\"\",CONCATENATE(Riepilogo_Ordine!Q80))","v":""},null,{"$f":"IF(Riepilogo_Ordine!S80>0,Riepilogo_Ordine!S80,\"\")","v":""},{"$f":"IF(G100=\"\",\"\",CONCATENATE(Riepilogo_Ordine!Q80))","v":""},null,{"$f":"IF(Riepilogo_Ordine!T80>0,Riepilogo_Ordine!T80,\"\")","v":""},{"$f":"IF(J100=\"\",\"\",CONCATENATE(Riepilogo_Ordine!Q80))","v":""},null,null,0,0,0,0,"NO"]
[null,null,null,{"$f":"IF(Riepilogo_Ordine!R81>0,Riepilogo_Ordine!R81,\"\")","v":""},{"$f":"IF(D101=\"\",\"\",CONCATENATE(Riepilogo_Ordine!Q81))","v":""},null,{"$f":"IF(Riepilogo_Ordine!S81>0,Riepilogo_Ordine!S81,\"\")","v":""},{"$f":"IF(G101=\"\",\"\",CONCATENATE(Riepilogo_Ordine!Q81))","v":""},null,{"$f":"IF(Riepilogo_Ordine!T81>0,Riepilogo_Ordine!T81,\"\")","v":""},{"$f":"IF(J101=\"\",\"\",CONCATENATE(Riepilogo_Ordine!Q81))","v":""},null,null,0,0,0,0,"NO"]
[null,null,null,{"$f":"IF(Riepilogo_Ordine!R82>0,Riepilogo_Ordine!R82,\"\")","v":""},{"$f":"IF(D102=\"\",\"\",CONCATENATE(Riepilogo_Ordine!Q82))","v":""},null,{"$f":"IF(Riepilogo_Ordine!S82>0,Riepilogo_Ordine!S82,\"\")","v":""},{"$f":"IF(G102=\"\",\"\",CONCATENATE(Riepilogo_Ordine!Q82))","v":""},null,{"$f":"IF(Riepilogo_Ordine!T82>0,Riepilogo_Ordine!T82,\"\")","v":""},{"$f":"IF(J102=\"\",\"\",CONCATENATE(Riepilogo_Ordine!Q82))","v":""},null,null,0,0,0,0,"NO"]
[null,null,null,{"$f":"IF(Riepilogo_Ordine!R83>0,Riepilogo_Ordine!R83,\"\")","v":""},{"$f":"IF(D103=\"\",\"\",CONCATENATE(Riepilogo_Ordine!Q83))","v":""},null,{"$f":"IF(Riepilogo_Ordine!S83>0,Riepilogo_Ordine!S83,\"\")","v":""},{"$f":"IF(G103=\"\",\"\",CONCATENATE(Riepilogo_Ordine!Q83))","v":""},null,{"$f":"IF(Riepilogo_Ordine!T83>0,Riepilogo_Ordine!T83,\"\")","v":""},{"$f":"IF(J103=\"\",\"\",CONCATENATE(Riepilogo_Ordine!Q83))","v":""},null,null,0,0,0,0,"NO"]
[null,null,null,{"$f":"IF(Riepilogo_Ordine!R84>0,Riepilogo_Ordine!R84,\"\")","v":""},{"$f":"IF(D104=\"\",\"\",CONCATENATE(Riepilogo_Ordine!Q84))","v":""},null,{"$f":"IF(Riepilogo_Ordine!S84>0,Riepilogo_Ordine!S84,\"\")","v":""},{"$f":"IF(G104=\"\",\"\",CONCATENATE(Riepilogo_Ordine!Q84))","v":""},null,{"$f":"IF(Riepilogo_Ordine!T84>0,Riepilogo_Ordine!T84,\"\")","v":""},{"$f":"IF(J104=\"\",\"\",CONCATENATE(Riepilogo_Ordine!Q84))","v":""},null,null,0,0,0,0,"NO"]
[null,null,null,{"$f":"IF(Riepilogo_Ordine!R85>0,Riepilogo_Ordine!R85,\"\")","v":""},{"$f":"IF(D105=\"\",\"\",CONCATENATE(Riepilogo_Ordine!Q85))","v":""},null,{"$f":"IF(Riepilogo_Ordine!S85>0,Riepilogo_Ordine!S85,\"\")","v":""},{"$f":"IF(G105=\"\",\"\",CONCATENATE(Riepilogo_Ordine!Q85))","v":""},null,{"$f":"IF(Riepilogo_Ordine!T85>0,Riepilogo_Ordine!T85,\"\")","v":""},{"$f":"IF(J105=\"\",\"\",CONCATENATE(Riepilogo_Ordine!Q85))","v":""},null,null,0,0,0,0,"NO"]
[null,null,null,{"$f":"IF(Riepilogo_Ordine!R86>0,Riepilogo_Ordine!R86,\"\")","v":""},{"$f":"IF(D106=\"\",\"\",CONCATENATE(Riepilogo_Ordine!Q86))","v":""},null,{"$f":"IF(Riepilogo_Ordine!S86>0,Riepilogo_Ordine!S86,\"\")","v":""},{"$f":"IF(G106=\"\",\"\",CONCATENATE(Riepilogo_Ordine!Q86))","v":""},null,{"$f":"IF(Riepilogo_Ordine!T86>0,Riepilogo_Ordine!T86,\"\")","v":""},{"$f":"IF(J106=\"\",\"\",CONCATENATE(Riepilogo_Ordine!Q86))","v":""},null,null,0,0,0,0,"NO"]
[null,null,null,{"$f":"IF(Riepilogo_Ordine!R87>0,Riepilogo_Ordine!R87,\"\")","v":""},{"$f":"IF(D107=\"\",\"\",CONCATENATE(Riepilogo_Ordine!Q87))","v":""},null,{"$f":"IF(Riepilogo_Ordine!S87>0,Riepilogo_Ordine!S87,\"\")","v":""},{"$f":"IF(G107=\"\",\"\",CONCATENATE(Riepilogo_Ordine!Q87))","v":""},null,{"$f":"IF(Riepilogo_Ordine!T87>0,Riepilogo_Ordine!T87,\"\")","v":""},{"$f":"IF(J107=\"\",\"\",CONCATENATE(Riepilogo_Ordine!Q87))","v":""},null,null,0,0,0,0,"NO"]
[null,null,null,{"$f":"IF(Riepilogo_Ordine!R88>0,Riepilogo_Ordine!R88,\"\")","v":""},{"$f":"IF(D108=\"\",\"\",CONCATENATE(Riepilogo_Ordine!Q88))","v":""},null,{"$f":"IF(Riepilogo_Ordine!S88>0,Riepilogo_Ordine!S88,\"\")","v":""},{"$f":"IF(G108=\"\",\"\",CONCATENATE(Riepilogo_Ordine!Q88))","v":""},null,{"$f":"IF(Riepilogo_Ordine!T88>0,Riepilogo_Ordine!T88,\"\")","v":""},{"$f":"IF(J108=\"\",\"\",CONCATENATE(Riepilogo_Ordine!Q88))","v":""},null,null,0,0,0,0,"NO"]
[null,null,null,{"$f":"IF(Riepilogo_Ordine!R89>0,Riepilogo_Ordine!R89,\"\")","v":""},{"$f":"IF(D109=\"\",\"\",CONCATENATE(Riepilogo_Ordine!Q89))","v":""},null,{"$f":"IF(Riepilogo_Ordine!S89>0,Riepilogo_Ordine!S89,\"\")","v":""},{"$f":"IF(G109=\"\",\"\",CONCATENATE(Riepilogo_Ordine!Q89))","v":""},null,{"$f":"IF(Riepilogo_Ordine!T89>0,Riepilogo_Ordine!T89,\"\")","v":""},{"$f":"IF(J109=\"\",\"\",CONCATENATE(Riepilogo_Ordine!Q89))","v":""},null,null,0,0,0,0,"NO"]
[null,null,null,{"$f":"IF(Riepilogo_Ordine!R90>0,Riepilogo_Ordine!R90,\"\")","v":""},{"$f":"IF(D110=\"\",\"\",CONCATENATE(Riepilogo_Ordine!Q90))","v":""},null,{"$f":"IF(Riepilogo_Ordine!S90>0,Riepilogo_Ordine!S90,\"\")","v":""},{"$f":"IF(G110=\"\",\"\",CONCATENATE(Riepilogo_Ordine!Q90))","v":""},null,{"$f":"IF(Riepilogo_Ordine!T90>0,Riepilogo_Ordine!T90,\"\")","v":""},{"$f":"IF(J110=\"\",\"\",CONCATENATE(Riepilogo_Ordine!Q90))","v":""},null,null,0,0,0,0,"NO"]
[null,null,null,{"$f":"IF(Riepilogo_Ordine!R91>0,Riepilogo_Ordine!R91,\"\")","v":""},{"$f":"IF(D111=\"\",\"\",CONCATENATE(Riepilogo_Ordine!Q91))","v":""},null,{"$f":"IF(Riepilogo_Ordine!S91>0,Riepilogo_Ordine!S91,\"\")","v":""},{"$f":"IF(G111=\"\",\"\",CONCATENATE(Riepilogo_Ordine!Q91))","v":""},null,{"$f":"IF(Riepilogo_Ordine!T91>0,Riepilogo_Ordine!T91,\"\")","v":""},{"$f":"IF(J111=\"\",\"\",CONCATENATE(Riepilogo_Ordine!Q91))","v":""},null,null,0,0,0,0,"NO"]
[null,null,null,{"$f":"IF(Riepilogo_Ordine!R92>0,Riepilogo_Ordine!R92,\"\")","v":""},{"$f":"IF(D112=\"\",\"\",CONCATENATE(Riepilogo_Ordine!Q92))","v":""},null,{"$f":"IF(Riepilogo_Ordine!S92>0,Riepilogo_Ordine!S92,\"\")","v":""},{"$f":"IF(G112=\"\",\"\",CONCATENATE(Riepilogo_Ordine!Q92))","v":""},null,{"$f":"IF(Riepilogo_Ordine!T92>0,Riepilogo_Ordine!T92,\"\")","v":""},{"$f":"IF(J112=\"\",\"\",CONCATENATE(Riepilogo_Ordine!Q92))","v":""},null,null,0,0,0,0,"NO"]
[null,null,null,{"$f":"IF(Riepilogo_Ordine!R95>0,Riepilogo_Ordine!R95,\"\")","v":""},{"$f":"IF(D113=\"\",\"\",CONCATENATE(Riepilogo_Ordine!Q95))","v":""},null,{"$f":"IF(Riepilogo_Ordine!S95>0,Riepilogo_Ordine!S95,\"\")","v":""},{"$f":"IF(G113=\"\",\"\",CONCATENATE(Riepilogo_Ordine!Q95))","v":""},null,{"$f":"IF(Riepilogo_Ordine!T95>0,Riepilogo_Ordine!T95,\"\")","v":""},{"$f":"IF(J113=\"\",\"\",CONCATENATE(Riepilogo_Ordine!Q95))","v":""},null,null,0,0,0,0,"NO"]
[null,null,null,{"$f":"IF(Riepilogo_Ordine!R96>0,Riepilogo_Ordine!R96,\"\")","v":""},{"$f":"IF(D114=\"\",\"\",CONCATENATE(Riepilogo_Ordine!Q96))","v":""},null,{"$f":"IF(Riepilogo_Ordine!S96>0,Riepilogo_Ordine!S96,\"\")","v":""},{"$f":"IF(G114=\"\",\"\",CONCATENATE(Riepilogo_Ordine!Q96))","v":""},null,{"$f":"IF(Riepilogo_Ordine!T96>0,Riepilogo_Ordine!T96,\"\")","v":""},{"$f":"IF(J114=\"\",\"\",CONCATENATE(Riepilogo_Ordine!Q96))","v":""},null,null,0,0,0,0,"NO"]
[null,null,null,{"$f":"IF(Riepilogo_Ordine!R97>0,Riepilogo_Ordine!R97,\"\")","v":""},{"$f":"IF(D115=\"\",\"\",CONCATENATE(Riepilogo_Ordine!Q97))","v":""},null,{"$f":"IF(Riepilogo_Ordine!S97>0,Riepilogo_Ordine!S97,\"\")","v":""},{"$f":"IF(G115=\"\",\"\",CONCATENATE(Riepilogo_Ordine!Q97))","v":""},null,{"$f":"IF(Riepilogo_Ordine!T97>0,Riepilogo_Ordine!T97,\"\")","v":""},{"$f":"IF(J115=\"\",\"\",CONCATENATE(Riepilogo_Ordine!Q97))","v":""},null,null,0,0,0,0,"NO"]
[null,null,null,{"$f":"IF(Riepilogo_Ordine!R98>0,Riepilogo_Ordine!R98,\"\")","v":""},{"$f":"IF(D116=\"\",\"\",CONCATENATE(Riepilogo_Ordine!Q98))","v":""},null,{"$f":"IF(Riepilogo_Ordine!S98>0,Riepilogo_Ordine!S98,\"\")","v":""},{"$f":"IF(G116=\"\",\"\",CONCATENATE(Riepilogo_Ordine!Q98))","v":""},null,{"$f":"IF(Riepilogo_Ordine!T98>0,Riepilogo_Ordine!T98,\"\")","v":""},{"$f":"IF(J116=\"\",\"\",CONCATENATE(Riepilogo_Ordine!Q98))","v":""},null,null,0,0,0,0,"NO"]
[null,null,null,{"$f":"IF(Riepilogo_Ordine!R99>0,Riepilogo_Ordine!R99,\"\")","v":""},{"$f":"IF(D117=\"\",\"\",CONCATENATE(Riepilogo_Ordine!Q99))","v":""},null,{"$f":"IF(Riepilogo_Ordine!S99>0,Riepilogo_Ordine!S99,\"\")","v":""},{"$f":"IF(G117=\"\",\"\",CONCATENATE(Riepilogo_Ordine!Q99))","v":""},null,{"$f":"IF(Riepilogo_Ordine!T99>0,Riepilogo_Ordine!T99,\"\")","v":""},{"$f":"IF(J117=\"\",\"\",CONCATENATE(Riepilogo_Ordine!Q99))","v":""},null,null,0,0,0,0,"NO"]
[null,null,null,{"$f":"IF(Riepilogo_Ordine!R100>0,Riepilogo_Ordine!R100,\"\")","v":""},{"$f":"IF(D118=\"\",\"\",CONCATENATE(Riepilogo_Ordine!Q100))","v":""},null,{"$f":"IF(Riepilogo_Ordine!S100>0,Riepilogo_Ordine!S100,\"\")","v":""},{"$f":"IF(G118=\"\",\"\",CONCATENATE(Riepilogo_Ordine!Q100))","v":""},null,{"$f":"IF(Riepilogo_Ordine!T100>0,Riepilogo_Ordine!T100,\"\")","v":""},{"$f":"IF(J118=\"\",\"\",CONCATENATE(Riepilogo_Ordine!Q100))","v":""},null,null,0,0,0,0,"NO"]
[null,null,null,{"$f":"IF(Riepilogo_Ordine!R101>0,Riepilogo_Ordine!R101,\"\")","v":""},{"$f":"IF(D119=\"\",\"\",CONCATENATE(Riepilogo_Ordine!Q101))","v":""},null,{"$f":"IF(Riepilogo_Ordine!S101>0,Riepilogo_Ordine!S101,\"\")","v":""},{"$f":"IF(G119=\"\",\"\",CONCATENATE(Riepilogo_Ordine!Q101))","v":""},null,{"$f":"IF(Riepilogo_Ordine!T101>0,Riepilogo_Ordine!T101,\"\")","v":""},{"$f":"IF(J119=\"\",\"\",CONCATENATE(Riepilogo_Ordine!Q101))","v":""},null,null,0,0,0,0,"NO"]
[null,null,null,{"$f":"IF(Riepilogo_Ordine!R102>0,Riepilogo_Ordine!R102,\"\")","v":""},{"$f":"IF(D120=\"\",\"\",CONCATENATE(Riepilogo_Ordine!Q102))","v":""},null,{"$f":"IF(Riepilogo_Ordine!S102>0,Riepilogo_Ordine!S102,\"\")","v":""},{"$f":"IF(G120=\"\",\"\",CONCATENATE(Riepilogo_Ordine!Q102))","v":""},null,{"$f":"IF(Riepilogo_Ordine!T102>0,Riepilogo_Ordine!T102,\"\")","v":""},{"$f":"IF(J120=\"\",\"\",CONCATENATE(Riepilogo_Ordine!Q102))","v":""},null,null,{"$f":"IF(D120=\"\",0,D120)","v":0},{"$f":"IF(G120=\"\",0,G120)","v":0},{"$f":"IF(J120=\"\",0,J120)","v":0},{"$f":"SUM(N120:P120)","v":0},{"$f":"IF(Q120>0,\"SI\",\"NO\")","v":"NO"}]
[null,null,null,{"$f":"IF(Riepilogo_Ordine!R103>0,Riepilogo_Ordine!R103,\"\")","v":""},{"$f":"IF(D121=\"\",\"\",CONCATENATE(Riepilogo_Ordine!Q103))","v":""},null,{"$f":"IF(Riepilogo_Ordine!S103>0,Riepilogo_Ordine!S103,\"\")","v":""},{"$f":"IF(G121=\"\",\"\",CONCATENATE(Riepilogo_Ordine!Q103))","v":""},null,{"$f":"IF(Riepilogo_Ordine!T103>0,Riepilogo_Ordine!T103,\"\")","v":""},{"$f":"IF(J121=\"\",\"\",CONCATENATE(Riepilogo_Ordine!Q103))","v":""},null,null,0,0,0,0,"NO"]
[null,null,null,{"$f":"IF(Riepilogo_Ordine!R104>0,Riepilogo_Ordine!R104,\"\")","v":""},{"$f":"IF(D122=\"\",\"\",CONCATENATE(Riepilogo_Ordine!Q104))","v":""},null,{"$f":"IF(Riepilogo_Ordine!S104>0,Riepilogo_Ordine!S104,\"\")","v":""},{"$f":"IF(G122=\"\",\"\",CONCATENATE(Riepilogo_Ordine!Q104))","v":""},null,{"$f":"IF(Riepilogo_Ordine!T104>0,Riepilogo_Ordine!T104,\"\")","v":""},{"$f":"IF(J122=\"\",\"\",CONCATENATE(Riepilogo_Ordine!Q104))","v":""},null,null,0,0,0,0,"NO"]
[null,null,null,{"$f":"IF(Riepilogo_Ordine!R105>0,Riepilogo_Ordine!R105,\"\")","v":""},{"$f":"IF(D123=\"\",\"\",CONCATENATE(Riepilogo_Ordine!Q105))","v":""},null,{"$f":"IF(Riepilogo_Ordine!S105>0,Riepilogo_Ordine!S105,\"\")","v":""},{"$f":"IF(G123=\"\",\"\",CONCATENATE(Riepilogo_Ordine!Q105))","v":""},null,{"$f":"IF(Riepilogo_Ordine!T105>0,Riepilogo_Ordine!T105,\"\")","v":""},{"$f":"IF(J123=\"\",\"\",CONCATENATE(Riepilogo_Ordine!Q105))","v":""},null,null,0,0,0,0,"NO"]
[null,null,null,{"$f":"IF(Riepilogo_Ordine!R106>0,Riepilogo_Ordine!R106,\"\")","v":""},{"$f":"IF(D124=\"\",\"\",CONCATENATE(Riepilogo_Ordine!Q106))","v":""},null,{"$f":"IF(Riepilogo_Ordine!S106>0,Riepilogo_Ordine!S106,\"\")","v":""},{"$f":"IF(G124=\"\",\"\",CONCATENATE(Riepilogo_Ordine!Q106))","v":""},null,{"$f":"IF(Riepilogo_Ordine!T106>0,Riepilogo_Ordine!T106,\"\")","v":""},{"$f":"IF(J124=\"\",\"\",CONCATENATE(Riepilogo_Ordine!Q106))","v":""},null,null,0,0,0,0,"NO"]
[null,null,null,{"$f":"IF(Riepilogo_Ordine!R107>0,Riepilogo_Ordine!R107,\"\")","v":""},{"$f":"IF(D125=\"\",\"\",CONCATENATE(Riepilogo_Ordine!Q107))","v":""},null,{"$f":"IF(Riepilogo_Ordine!S107>0,Riepilogo_Ordine!S107,\"\")","v":""},{"$f":"IF(G125=\"\",\"\",CONCATENATE(Riepilogo_Ordine!Q107))","v":""},null,{"$f":"IF(Riepilogo_Ordine!T107>0,Riepilogo_Ordine!T107,\"\")","v":""},{"$f":"IF(J125=\"\",\"\",CONCATENATE(Riepilogo_Ordine!Q107))","v":""},null,null,0,0,0,0,"NO"]
[null,null,null,{"$f":"IF(Riepilogo_Ordine!R108>0,Riepilogo_Ordine!R108,\"\")","v":""},{"$f":"IF(D126=\"\",\"\",CONCATENATE(Riepilogo_Ordine!Q108))","v":""},null,{"$f":"IF(Riepilogo_Ordine!S108>0,Riepilogo_Ordine!S108,\"\")","v":""},{"$f":"IF(G126=\"\",\"\",CONCATENATE(Riepilogo_Ordine!Q108))","v":""},null,{"$f":"IF(Riepilogo_Ordine!T108>0,Riepilogo_Ordine!T108,\"\")","v":""},{"$f":"IF(J126=\"\",\"\",CONCATENATE(Riepilogo_Ordine!Q108))","v":""},null,null,0,0,0,0,"NO"]
[null,null,null,{"$f":"IF(Riepilogo_Ordine!R109>0,Riepilogo_Ordine!R109,\"\")","v":""},{"$f":"IF(D127=\"\",\"\",CONCATENATE(Riepilogo_Ordine!Q109))","v":""},null,{"$f":"IF(Riepilogo_Ordine!S109>0,Riepilogo_Ordine!S109,\"\")","v":""},{"$f":"IF(G127=\"\",\"\",CONCATENATE(Riepilogo_Ordine!Q109))","v":""},null,{"$f":"IF(Riepilogo_Ordine!T109>0,Riepilogo_Ordine!T109,\"\")","v":""},{"$f":"IF(J127=\"\",\"\",CONCATENATE(Riepilogo_Ordine!Q109))","v":""},null,null,0,0,0,0,"NO"]
[null,null,null,{"$f":"IF(Riepilogo_Ordine!R110>0,Riepilogo_Ordine!R110,\"\")","v":""},{"$f":"IF(D128=\"\",\"\",CONCATENATE(Riepilogo_Ordine!Q110))","v":""},null,{"$f":"IF(Riepilogo_Ordine!S110>0,Riepilogo_Ordine!S110,\"\")","v":""},{"$f":"IF(G128=\"\",\"\",CONCATENATE(Riepilogo_Ordine!Q110))","v":""},null,{"$f":"IF(Riepilogo_Ordine!T110>0,Riepilogo_Ordine!T110,\"\")","v":""},{"$f":"IF(J128=\"\",\"\",CONCATENATE(Riepilogo_Ordine!Q110))","v":""},null,null,0,0,0,0,"NO"]
[null,null,null,{"$f":"IF(Riepilogo_Ordine!R111>0,Riepilogo_Ordine!R111,\"\")","v":""},{"$f":"IF(D129=\"\",\"\",CONCATENATE(Riepilogo_Ordine!Q111))","v":""},null,{"$f":"IF(Riepilogo_Ordine!S111>0,Riepilogo_Ordine!S111,\"\")","v":""},{"$f":"IF(G129=\"\",\"\",CONCATENATE(Riepilogo_Ordine!Q111))","v":""},null,{"$f":"IF(Riepilogo_Ordine!T111>0,Riepilogo_Ordine!T111,\"\")","v":""},{"$f":"IF(J129=\"\",\"\",CONCATENATE(Riepilogo_Ordine!Q111))","v":""},null,null,0,0,0,0,"NO"]
[null,null,null,{"$f":"IF(Riepilogo_Ordine!R112>0,Riepilogo_Ordine!R112,\"\")","v":""},{"$f":"IF(D130=\"\",\"\",CONCATENATE(Riepilogo_Ordine!Q112))","v":""},null,{"$f":"IF(Riepilogo_Ordine!S112>0,Riepilogo_Ordine!S112,\"\")","v":""},{"$f":"IF(G130=\"\",\"\",CONCATENATE(Riepilogo_Ordine!Q112))","v":""},null,{"$f":"IF(Riepilogo_Ordine!T112>0,Riepilogo_Ordine!T112,\"\")","v":""},{"$f":"IF(J130=\"\",\"\",CONCATENATE(Riepilogo_Ordine!Q112))","v":""},null,null,0,0,0,0,"NO"]
[null,null,null,{"$f":"IF(Riepilogo_Ordine!R113>0,Riepilogo_Ordine!R113,\"\")","v":""},{"$f":"IF(D131=\"\",\"\",CONCATENATE(Riepilogo_Ordine!Q113))","v":""},null,{"$f":"IF(Riepilogo_Ordine!S113>0,Riepilogo_Ordine!S113,\"\")","v":""},{"$f":"IF(G131=\"\",\"\",CONCATENATE(Riepilogo_Ordine!Q113))","v":""},null,{"$f":"IF(Riepilogo_Ordine!T113>0,Riepilogo_Ordine!T113,\"\")","v":""},{"$f":"IF(J131=\"\",\"\",CONCATENATE(Riepilogo_Ordine!Q113))","v":""},null,null,0,0,0,0,"NO"]
[null,null,null,{"$f":"IF(Riepilogo_Ordine!R114>0,Riepilogo_Ordine!R114,\"\")","v":""},{"$f":"IF(D132=\"\",\"\",CONCATENATE(Riepilogo_Ordine!Q114))","v":""},null,{"$f":"IF(Riepilogo_Ordine!S114>0,Riepilogo_Ordine!S114,\"\")","v":""},{"$f":"IF(G132=\"\",\"\",CONCATENATE(Riepilogo_Ordine!Q114))","v":""},null,{"$f":"IF(Riepilogo_Ordine!T114>0,Riepilogo_Ordine!T114,\"\")","v":""},{"$f":"IF(J132=\"\",\"\",CONCATENATE(Riepilogo_Ordine!Q114))","v":""},null,null,{"$f":"IF(D132=\"\",0,D132)","v":0},{"$f":"IF(G132=\"\",0,G132)","v":0},{"$f":"IF(J132=\"\",0,J132)","v":0},{"$f":"SUM(N132:P132)","v":0},{"$f":"IF(Q132>0,\"SI\",\"NO\")","v":"NO"}]
[null,null,null,{"$f":"IF(Riepilogo_Ordine!R115>0,Riepilogo_Ordine!R115,\"\")","v":""},{"$f":"IF(D133=\"\",\"\",CONCATENATE(Riepilogo_Ordine!Q115))","v":""},null,{"$f":"IF(Riepilogo_Ordine!S115>0,Riepilogo_Ordine!S115,\"\")","v":""},{"$f":"IF(G133=\"\",\"\",CONCATENATE(Riepilogo_Ordine!Q115))","v":""},null,{"$f":"IF(Riepilogo_Ordine!T115>0,Riepilogo_Ordine!T115,\"\")","v":""},{"$f":"IF(J133=\"\",\"\",CONCATENATE(Riepilogo_Ordine!Q115))","v":""},null,null,0,0,0,0,"NO"]
[null,null,null,{"$f":"IF(Riepilogo_Ordine!R116>0,Riepilogo_Ordine!R116,\"\")","v":""},{"$f":"IF(D134=\"\",\"\",CONCATENATE(Riepilogo_Ordine!Q116))","v":""},null,{"$f":"IF(Riepilogo_Ordine!S116>0,Riepilogo_Ordine!S116,\"\")","v":""},{"$f":"IF(G134=\"\",\"\",CONCATENATE(Riepilogo_Ordine!Q116))","v":""},null,{"$f":"IF(Riepilogo_Ordine!T116>0,Riepilogo_Ordine!T116,\"\")","v":""},{"$f":"IF(J134=\"\",\"\",CONCATENATE(Riepilogo_Ordine!Q116))","v":""},null,null,0,0,0,0,"NO"]
[null,null,null,{"$f":"IF(Riepilogo_Ordine!R117>0,Riepilogo_Ordine!R117,\"\")","v":""},{"$f":"IF(D135=\"\",\"\",CONCATENATE(Riepilogo_Ordine!Q117))","v":""},null,{"$f":"IF(Riepilogo_Ordine!S117>0,Riepilogo_Ordine!S117,\"\")","v":""},{"$f":"IF(G135=\"\",\"\",CONCATENATE(Riepilogo_Ordine!Q117))","v":""},null,{"$f":"IF(Riepilogo_Ordine!T117>0,Riepilogo_Ordine!T117,\"\")","v":""},{"$f":"IF(J135=\"\",\"\",CONCATENATE(Riepilogo_Ordine!Q117))","v":""},null,null,0,0,0,0,"NO"]
[null,null,null,{"$f":"IF(Riepilogo_Ordine!R118>0,Riepilogo_Ordine!R118,\"\")","v":""},{"$f":"IF(D136=\"\",\"\",CONCATENATE(Riepilogo_Ordine!Q118))","v":""},null,{"$f":"IF(Riepilogo_Ordine!S118>0,Riepilogo_Ordine!S118,\"\")","v":""},{"$f":"IF(G136=\"\",\"\",CONCATENATE(Riepilogo_Ordine!Q118))","v":""},null,{"$f":"IF(Riepilogo_Ordine!T118>0,Riepilogo_Ordine!T118,\"\")","v":""},{"$f":"IF(J136=\"\",\"\",CONCATENATE(Riepilogo_Ordine!Q118))","v":""},null,null,{"$f":"IF(D136=\"\",0,D136)","v":0},{"$f":"IF(G136=\"\",0,G136)","v":0},{"$f":"IF(J136=\"\",0,J136)","v":0},{"$f":"SUM(N136:P136)","v":0},{"$f":"IF(Q136>0,\"SI\",\"NO\")","v":"NO"}]
[null,null,null,{"$f":"IF(Riepilogo_Ordine!R127>0,Riepilogo_Ordine!R127,\"\")","v":""},{"$f":"IF(D137=\"\",\"\",CONCATENATE(Riepilogo_Ordine!Q127))","v":""},null,{"$f":"IF(Riepilogo_Ordine!S119>0,Riepilogo_Ordine!S119,\"\")","v":""},{"$f":"IF(G137=\"\",\"\",CONCATENATE(Riepilogo_Ordine!Q119))","v":""},null,{"$f":"IF(Riepilogo_Ordine!T119>0,Riepilogo_Ordine!T119,\"\")","v":""},{"$f":"IF(J137=\"\",\"\",CONCATENATE(Riepilogo_Ordine!Q119))","v":""},null,null,{"$f":"IF(D137=\"\",0,D137)","v":0},{"$f":"IF(G137=\"\",0,G137)","v":0},{"$f":"IF(J137=\"\",0,J137)","v":0},{"$f":"SUM(N137:P137)","v":0},{"$f":"IF(Q137>0,\"SI\",\"NO\")","v":"NO"}]
[null,null,null,null,"Altre Opzioni",null,null,null,null,null,null,null,null,null,null,null,{"$f":"SUM(D139:D142)","v":0},"NO"]
[null,null,null,{"$f":"IF(Riepilogo_Ordine!U39>0,Riepilogo_Ordine!U39,\"\")","v":""},{"$f":"IF(D139=\"\",\"\",CONCATENATE(Riepilogo_Ordine!Q39))","v":""},null,null,null,null,null,null,null,null,null,null,null,{"$f":"IF(D139<>\"\",1,0)","v":0},"NO"]
[null,null,null,{"$f":"IF(Riepilogo_Ordine!U40>0,Riepilogo_Ordine!U40,\"\")","v":""},{"$f":"IF(D140=\"\",\"\",CONCATENATE(Riepilogo_Ordine!Q40))","v":""},null,null,null,null,null,null,null,null,null,null,null,{"$f":"IF(D140<>\"\",1,0)","v":0},"NO"]
[null,null,null,{"$f":"IF(Riepilogo_Ordine!U41>0,Riepilogo_Ordine!U41,\"\")","v":""},{"$f":"IF(D141=\"\",\"\",CONCATENATE(Riepilogo_Ordine!Q41))","v":""},null,null,null,null,null,null,null,null,null,null,null,0,"NO"]
[null,null,null,{"$f":"IF(Riepilogo_Ordine!U52>0,Riepilogo_Ordine!U52,\"\")","v":""},{"$f":"IF(D142=\"\",\"\",CONCATENATE(Riepilogo_Ordine!Q52))","v":""},null,null,null,null,null,null,null,null,null,null,null,0,"NO"]
[null,null,null,{"$f":"IF(Riepilogo_Ordine!U123>0,Riepilogo_Ordine!U123,\"\")","v":""},{"$f":"IF(D143=\"\",\"\",CONCATENATE(Riepilogo_Ordine!Q123))","v":""},null,null,null,null,null,null,null,null,null,null,null,{"$f":"IF(D143<>\"\",1,0)","v":0},{"$f":"IF(Q143>0,\"SI\",\"NO\")","v":"NO"}]
[null,null,null,{"$f":"IF(Riepilogo_Ordine!U124>0,Riepilogo_Ordine!U124,\"\")","v":""},{"$f":"IF(D144=\"\",\"\",CONCATENATE(Riepilogo_Ordine!Q124))","v":""},null,null,null,null,null,null,null,null,null,null,null,{"$f":"IF(D144<>\"\",1,0)","v":0},"NO"]
[null,null,null,{"$f":"IF(Riepilogo_Ordine!U125>0,Riepilogo_Ordine!U125,\"\")","v":""},{"$f":"IF(D145=\"\",\"\",CONCATENATE(Riepilogo_Ordine!Q125))","v":""},null,null,null,null,null,null,null,null,null,null,null,0,"NO"]
[null,null,null,{"$f":"IF(Riepilogo_Ordine!U126>0,Riepilogo_Ordine!U126,\"\")","v":""},{"$f":"IF(D146=\"\",\"\",CONCATENATE(Riepilogo_Ordine!Q126))","v":""},null,null,null,null,null,null,null,null,null,null,null,0,"NO"]
[null,null,null,{"$f":"IF(Riepilogo_Ordine!U127>0,Riepilogo_Ordine!U127,\"\")","v":""},{"$f":"IF(D147=\"\",\"\",CONCATENATE(Riepilogo_Ordine!Q127))","v":""},null,null,null,null,null,null,null,null,null,null,null,{"$f":"IF(D147<>\"\",1,0)","v":0},{"$f":"IF(Q147>0,\"SI\",\"NO\")","v":"NO"}]
[null,null,null,{"$f":"IF(Riepilogo_Ordine!U128>0,Riepilogo_Ordine!U128,\"\")","v":""},{"$f":"IF(D148=\"\",\"\",CONCATENATE(Riepilogo_Ordine!Q128))","v":""},null,null,null,null,null,null,null,null,null,null,null,{"$f":"IF(D148<>\"\",1,0)","v":0},"NO"]
[null,null,null,{"$f":"IF(Riepilogo_Ordine!U129>0,Riepilogo_Ordine!U129,\"\")","v":""},{"$f":"IF(D149=\"\",\"\",CONCATENATE(Riepilogo_Ordine!Q129))","v":""},null,null,null,null,null,null,null,null,null,null,null,0,"NO"]
[null,null,null,{"$f":"IF(Riepilogo_Ordine!U130>0,Riepilogo_Ordine!U130,\"\")","v":""},{"$f":"IF(D150=\"\",\"\",CONCATENATE(Riepilogo_Ordine!Q130))","v":""},null,null,null,null,null,null,null,null,null,null,null,0,"NO"]
[null,null,null,{"$f":"IF(Riepilogo_Ordine!U131>0,Riepilogo_Ordine!U131,\"\")","v":""},{"$f":"IF(D151=\"\",\"\",CONCATENATE(Riepilogo_Ordine!Q131))","v":""},null,null,null,null,null,null,null,null,null,null,null,{"$f":"IF(D151<>\"\",1,0)","v":0},"NO"]
[null,null,null,{"$f":"IF(Riepilogo_Ordine!U132>0,Riepilogo_Ordine!U132,\"\")","v":""},{"$f":"IF(D152=\"\",\"\",CONCATENATE(Riepilogo_Ordine!Q132))","v":""},null,null,null,null,null,null,null,null,null,null,null,{"$f":"IF(D152<>\"\",1,0)","v":0},"NO"]
[null,null,null,{"$f":"IF(Riepilogo_Ordine!U136>0,Riepilogo_Ordine!U136,\"\")","v":""},{"$f":"IF(D153=\"\",\"\",CONCATENATE(Riepilogo_Ordine!Q136))","v":""},null,null,null,null,null,null,null,null,null,null,null,0,"NO"]
[null,null,null,{"$f":"IF(Riepilogo_Ordine!U137>0,Riepilogo_Ordine!U137,\"\")","v":""},{"$f":"IF(D154=\"\",\"\",CONCATENATE(Riepilogo_Ordine!Q137))","v":""},null,null,null,null,null,null,null,null,null,null,null,0,"NO"]

{"sheet":"ConfigurationTS4L4","index":7,"n_rows":236,"n_cols":30,"rows_kept":236,"cut":false,"hidden":true,"merged":[[18,0,18,12]]}
[]
[null,"Module Name","Option ID","Option Name","Option List Price","SKUs","Qty","SKU Customer Kit","Attributo","Valore inserito",null,"N°","Codice Convenzione"]
["PowerEdge R7525 Server (General Purpose)","Chassis with Up to 16 x 2.5 Hard Drives for 1CPU Configuration","Chassis with Up to 16 x 2.5 Hard Drives for 2CPU Configuration",{"$f":"VLOOKUP(L3,Tabella_prezzi!$A$2:$L$73,8,FALSE)","v":"PowerEdge R7525 Server"},null,null,null,{"$f":"VLOOKUP(L3,Tabella_prezzi!$A$2:$L$73,9,FALSE)","v":"PowerEdge R7525 Server"},"TS4L4-Opz1CPU",{"$f":"VLOOKUP(L3,Tabella_prezzi!$A$2:$L$73,4,FALSE)","v":3637.17},"TS4L4-Opz2CPU","L4N01",{"$f":"VLOOKUP(L3,Tabella_prezzi!$A$2:$L$73,6,FALSE)","v":"TS4L4-SRV"}]
["PowerEdge R7525 Server (nVME)","Chassis with Up to 16X 2.5 SAS/SATA + 8X 2.5 NVME for 2CPU Configuration","Chassis with Up to 16X 2.5 SAS/SATA + 8X 2.5 NVME for 2CPU Configuration",{"$f":"VLOOKUP(L4,Tabella_prezzi!$A$2:$L$73,8,FALSE)","v":"PowerEdge R7525 Server NVMe"},null,null,null,{"$f":"VLOOKUP(L4,Tabella_prezzi!$A$2:$L$73,9,FALSE)","v":"PowerEdge R7525 Server NVMe"},"TS4L4-Opz2CPU_NVMe",{"$f":"VLOOKUP(L4,Tabella_prezzi!$A$2:$L$73,4,FALSE)","v":3782.6568000000002},"TS4L4-Opz2CPU_NVMe","L4N01-NVME","TS4L4-SRV-NVME"]
["PowerEdge R7525 Server (vSAN Ready 512 GB RAM)","Chassis with Up to 16X 2.5 SAS/SATA + 8X 2.5 NVME for 2CPU Configuration","Chassis with Up to 16X 2.5 SAS/SATA + 8X 2.5 NVME for 2CPU Configuration",{"$f":"VLOOKUP(L5,Tabella_prezzi!$A$2:$L$73,8,FALSE)","v":"PowerEdge R7525 Server NVMe"},null,null,1,{"$f":"VLOOKUP(L5,Tabella_prezzi!$A$2:$L$73,9,FALSE)","v":"PowerEdge R7525 Server NVMe"},"TS4L4-Opz2CPU_vSAN",{"$f":"VLOOKUP(L5,Tabella_prezzi!$A$2:$L$73,4,FALSE)","v":3782.6568000000002},"TS4L4-Opz2CPU_vSAN","L4N01-NVME","TS4L4-SRV-NVME"]
["PowerEdge R7525 Server (vSAN Ready 1 TB RAM)","Chassis with Up to 16X 2.5 SAS/SATA + 8X 2.5 NVME for 2CPU Configuration","Chassis with Up to 16X 2.5 SAS/SATA + 8X 2.5 NVME for 2CPU Configuration",{"$f":"VLOOKUP(L6,Tabella_prezzi!$A$2:$L$73,8,FALSE)","v":"PowerEdge R7525 Server NVMe"},null,null,1,{"$f":"VLOOKUP(L6,Tabella_prezzi!$A$2:$L$73,9,FALSE)","v":"PowerEdge R7525 Server NVMe"},"TS4L4-Opz2CPU_vSAN",{"$f":"VLOOKUP(L6,Tabella_prezzi!$A$2:$L$73,4,FALSE)","v":3782.6568000000002},"TS4L4-Opz2CPU_vSAN","L4N01-NVME","TS4L4-SRV-NVME"]
["PowerEdge R7525 Server (vSAN Ready 2 TB RAM)","Chassis with Up to 16X 2.5 SAS/SATA + 8X 2.5 NVME for 2CPU Configuration","Chassis with Up to 16X 2.5 SAS/SATA + 8X 2.5 NVME for 2CPU Configuration",{"$f":"VLOOKUP(L7,Tabella_prezzi!$A$2:$L$73,8,FALSE)","v":"PowerEdge R7525 Server NVMe"},null,null,1,{"$f":"VLOOKUP(L7,Tabella_prezzi!$A$2:$L$73,9,FALSE)","v":"PowerEdge R7525 Server NVMe"},"TS4L4-Opz2CPU_vSAN",{"$f":"VLOOKUP(L7,Tabella_prezzi!$A$2:$L$73,4,FALSE)","v":3782.6568000000002},"TS4L4-Opz2CPU_vSAN","L4N01-NVME","TS4L4-SRV-NVME"]
["PowerEdge R7525 Server (Nutanix Ready)","Chassis with Up to 16X 2.5 SAS/SATA + 8X 2.5 NVME for 2CPU Configuration","Chassis with Up to 16X 2.5 SAS/SATA + 8X 2.5 NVME for 2CPU Configuration",{"$f":"VLOOKUP(L8,Tabella_prezzi!$A$2:$L$73,8,FALSE)","v":"PowerEdge R7525 Server NVMe"},null,null,1,{"$f":"VLOOKUP(L8,Tabella_prezzi!$A$2:$L$73,9,FALSE)","v":"PowerEdge R7525 Server NVMe"},{"$f":"VLOOKUP(L8,Tabella_prezzi!$A$2:$L$73,3,FALSE)","v":"Server rackable bi-processore prest."},{"$f":"VLOOKUP(L8,Tabella_prezzi!$A$2:$L$73,4,FALSE)","v":3782.6568000000002},"TS4L4-Opz2CPU_NUT","L4N01-NVME","TS4L4-SRV-NVME"]
["PowerEdge R7525 Server (GPU Ready)",{"$f":"CONCATENATE(\"Chassis with Up to 16X 2.5 SAS/SATA + 8X 2.5 NVME for 2CPU Configuration + \",H9)","v":"Chassis with Up to 16X 2.5 SAS/SATA + 8X 2.5 NVME for 2CPU Configuration + PowerEdge R7525 Server NVMe"},{"$f":"CONCATENATE(\"Chassis with Up to 16X 2.5 SAS/SATA + 8X 2.5 NVME for 2CPU Configuration + \",H9)","v":"Chassis with Up to 16X 2.5 SAS/SATA + 8X 2.5 NVME for 2CPU Configuration + PowerEdge R7525 Server NVMe"},{"$f":"VLOOKUP(L9,Tabella_prezzi!$A$2:$L$84,8,FALSE)","v":"PowerEdge R7525 Server NVMe"},null,null,1,{"$f":"VLOOKUP(L9,Tabella_prezzi!$A$2:$L$84,9,FALSE)","v":"PowerEdge R7525 Server NVMe"},{"$f":"VLOOKUP(L9,Tabella_Prezzi,10,FALSE)","v":"L4N01-ServerR7525-NVMe"},{"$f":"VLOOKUP(L9,Tabella_prezzi!$A$2:$L$84,4,FALSE)","v":3782.6568000000002},{"$f":"VLOOKUP(L9,Tabella_Prezzi,6,FALSE)","v":"TS4L4-SRV-NVMe"},"L4N01-NVME",{"$f":"VLOOKUP(L9,Tabella_prezzi!$A$2:$L$73,6,FALSE)","v":"TS4L4-SRV-NVMe"}]
[]
["TS4L4_Chassis"]
["PowerEdge R7525 Server (General Purpose)","Chassis with Up to 16 x 2.5 Hard Drives for 1CPU Configuration","Chassis with Up to 16 x 2.5 Hard Drives for 2CPU Configuration",{"$f":"VLOOKUP(L12,Tabella_prezzi!$A$2:$L$73,8,FALSE)","v":"PowerEdge R7525 Server"},null,null,null,{"$f":"VLOOKUP(L12,Tabella_prezzi!$A$2:$L$73,9,FALSE)","v":"PowerEdge R7525 Server"},"TS4L4-Opz1CPU",{"$f":"VLOOKUP(L12,Tabella_prezzi!$A$2:$L$73,4,FALSE)","v":3637.17},"TS4L4-Opz2CPU","L4N01",{"$f":"VLOOKUP(L12,Tabella_prezzi!$A$2:$L$73,6,FALSE)","v":"TS4L4-SRV"}]
["PowerEdge R7525 Server (nVME)","Chassis with Up to 16X 2.5 SAS/SATA + 8X 2.5 NVME for 2CPU Configuration","Chassis with Up to 16X 2.5 SAS/SATA + 8X 2.5 NVME for 2CPU Configuration",{"$f":"VLOOKUP(L13,Tabella_prezzi!$A$2:$L$73,8,FALSE)","v":"PowerEdge R7525 Server NVMe"},null,null,null,{"$f":"VLOOKUP(L13,Tabella_prezzi!$A$2:$L$73,9,FALSE)","v":"PowerEdge R7525 Server NVMe"},"TS4L4-Opz2CPU_NVMe",{"$f":"VLOOKUP(L13,Tabella_prezzi!$A$2:$L$73,4,FALSE)","v":3782.6568000000002},"TS4L4-Opz2CPU_NVMe","L4N01-NVME","TS4L4-SRV-NVME"]
["PowerEdge R7525 Server (vSAN Ready 512 GB RAM)",{"$f":"CONCATENATE(\"Chassis with Up to 16X 2.5 SAS/SATA + 8X 2.5 NVME for 2CPU Configuration + \",H14)","v":"Chassis with Up to 16X 2.5 SAS/SATA + 8X 2.5 NVME for 2CPU Configuration + Kit vSAN comprensivo di HBA 355 e BOSS Card"},{"$f":"CONCATENATE(\"Chassis with Up to 16X 2.5 SAS/SATA + 8X 2.5 NVME for 2CPU Configuration + \",H14)","v":"Chassis with Up to 16X 2.5 SAS/SATA + 8X 2.5 NVME for 2CPU Configuration + Kit vSAN comprensivo di HBA 355 e BOSS Card"},{"$f":"VLOOKUP(L14,Tabella_prezzi!$A$2:$L$73,8,FALSE)","v":"Kit vSAN comprensivo di HBA 355 in sostituzione di quello Base e BOSS Card "},null,null,1,{"$f":"VLOOKUP(L14,Tabella_prezzi!$A$2:$L$73,9,FALSE)","v":"Kit vSAN comprensivo di HBA 355 e BOSS Card"},{"$f":"VLOOKUP(L14,Tabella_Prezzi,10,FALSE)","v":"L4N112-Opz2CPU-vSAN-512"},{"$f":"VLOOKUP(L14,Tabella_prezzi!$A$2:$L$73,4,FALSE)","v":512.16},{"$f":"VLOOKUP(L14,Tabella_Prezzi,6,FALSE)","v":"TS4L4-2CPU-vSAN-512GB"},"L4N112",{"$f":"VLOOKUP(L14,Tabella_prezzi!$A$2:$L$73,6,FALSE)","v":"TS4L4-2CPU-vSAN-512GB"}]
["PowerEdge R7525 Server (vSAN Ready 1 TB RAM)","Chassis with Up to 16X 2.5 SAS/SATA + 8X 2.5 NVME for 2CPU Configuration + Kit vSAN comprensivo di HBA 355 e BOSS Card",{"$f":"CONCATENATE(\"Chassis with Up to 16X 2.5 SAS/SATA + 8X 2.5 NVME for 2CPU Configuration + \",H15)","v":"Chassis with Up to 16X 2.5 SAS/SATA + 8X 2.5 NVME for 2CPU Configuration + Kit vSAN comprensivo di HBA 355 e BOSS Card"},{"$f":"VLOOKUP(L15,Tabella_prezzi!$A$2:$L$73,8,FALSE)","v":"Kit vSAN comprensivo di HBA 355 in sostituzione di quello Base e BOSS Card"},null,null,1,{"$f":"VLOOKUP(L15,Tabella_prezzi!$A$2:$L$73,9,FALSE)","v":"Kit vSAN comprensivo di HBA 355 e BOSS Card"},{"$f":"VLOOKUP(L15,Tabella_Prezzi,10,FALSE)","v":"L4N113-Opz2CPU-vSAN-1TB"},{"$f":"VLOOKUP(L15,Tabella_prezzi!$A$2:$L$73,4,FALSE)","v":1193.43},{"$f":"VLOOKUP(L15,Tabella_Prezzi,6,FALSE)","v":"TS4L4-2CPU-vSAN-1TB"},"L4N113",{"$f":"VLOOKUP(L15,Tabella_prezzi!$A$2:$L$73,6,FALSE)","v":"TS4L4-2CPU-vSAN-1TB"}]
["PowerEdge R7525 Server (vSAN Ready 2 TB RAM)","Chassis with Up to 16X 2.5 SAS/SATA + 8X 2.5 NVME for 2CPU Configuration + Kit vSAN comprensivo di HBA 355 e BOSS Card","Chassis with Up to 16X 2.5 SAS/SATA + 8X 2.5 NVME for 2CPU Configuration + Kit vSAN comprensivo di HBA 355 e BOSS Card",{"$f":"VLOOKUP(L16,Tabella_prezzi!$A$2:$L$73,8,FALSE)","v":"Kit vSAN comprensivo di HBA 355 in sostituzione di quello Base e BOSS Card"},null,null,1,{"$f":"VLOOKUP(L16,Tabella_prezzi!$A$2:$L$73,9,FALSE)","v":"Kit vSAN comprensivo di HBA 355 e BOSS Card"},{"$f":"VLOOKUP(L16,Tabella_Prezzi,10,FALSE)","v":"L4N114-Opz2CPU-vSAN-2TB"},{"$f":"VLOOKUP(L16,Tabella_prezzi!$A$2:$L$73,4,FALSE)","v":4028.4},{"$f":"VLOOKUP(L16,Tabella_Prezzi,6,FALSE)","v":"TS4L4-2CPU-vSAN-2TB"},"L4N114",{"$f":"VLOOKUP(L16,Tabella_prezzi!$A$2:$L$73,6,FALSE)","v":"TS4L4-2CPU-vSAN-2TB"}]
["PowerEdge R7525 Server (Nutanix Ready)","Chassis with Up to 16X 2.5 SAS/SATA + 8X 2.5 NVME for 2CPU Configuration + Kit Nutanix comprensivo di HBA 355, BOSS Card e scheda Lan 10 GB","Chassis with Up to 16X 2.5 SAS/SATA + 8X 2.5 NVME for 2CPU Configuration + Kit Nutanix comprensivo di HBA 355, BOSS Card e scheda Lan 10 GB",{"$f":"VLOOKUP(L17,Tabella_prezzi!$A$2:$L$73,8,FALSE)","v":"Kit Nutanix comprensivo di HBA 355 in sostituzione di quello Base, BOSS Card e scheda Lan 10 GB"},null,null,1,{"$f":"VLOOKUP(L17,Tabella_prezzi!$A$2:$L$73,9,FALSE)","v":"Kit Nutanix comprensivo di HBA 355, BOSS Card e scheda Lan 10 GB"},{"$f":"VLOOKUP(L17,Tabella_Prezzi,10,FALSE)","v":"L4N115-Opz2CPU-NUT"},{"$f":"VLOOKUP(L17,Tabella_prezzi!$A$2:$L$73,4,FALSE)","v":4290.46},{"$f":"VLOOKUP(L17,Tabella_Prezzi,6,FALSE)","v":"TS4L4-2CPU-NUT"},"L4N115",{"$f":"VLOOKUP(L17,Tabella_prezzi!$A$2:$L$73,6,FALSE)","v":"TS4L4-2CPU-NUT"}]
["PowerEdge R7525 Server (GPU Ready)",{"$f":"CONCATENATE(\"Chassis with Up to 16X 2.5 SAS/SATA + 8X 2.5 NVME for 2CPU Configuration + \",H18)","v":"Chassis with Up to 16X 2.5 SAS/SATA + 8X 2.5 NVME for 2CPU Configuration + Kit GPU Ready (Include il necessario a poter montare GPU su slot PCI Max 3 GPU, Acquisto contestuale all'ordine)"},{"$f":"CONCATENATE(\"Chassis with Up to 16X 2.5 SAS/SATA + 8X 2.5 NVME for 2CPU Configuration + \",H18)","v":"Chassis with Up to 16X 2.5 SAS/SATA + 8X 2.5 NVME for 2CPU Configuration + Kit GPU Ready (Include il necessario a poter montare GPU su slot PCI Max 3 GPU, Acquisto contestuale all'ordine)"},{"$f":"VLOOKUP(L18,Tabella_prezzi!$A$2:$L$84,8,FALSE)","v":"Kit GPU Ready (Include il necessario a poter montare GPU su slot PCI Max 3 GPU, Acquisto contestuale all'ordine)"},null,null,1,{"$f":"VLOOKUP(L18,Tabella_prezzi!$A$2:$L$84,9,FALSE)","v":"Kit GPU Ready (Include il necessario a poter montare GPU su slot PCI Max 3 GPU, Acquisto contestuale all'ordine)"},"TS4L4-2CPU-GPUReady",{"$f":"VLOOKUP(L18,Tabella_prezzi!$A$2:$L$84,4,FALSE)","v":4807.22},{"$f":"VLOOKUP(L18,Tabella_Prezzi,6,FALSE)","v":"TS4L4-2CPU-GPUReady"},"L4N126",{"$f":"VLOOKUP(L18,Tabella_prezzi!$A$2:$L$84,6,FALSE)","v":"TS4L4-2CPU-GPUReady"}]
["TS4L4_CPU"]
["No Additional Processor",null,null,null,null,null,{"$f":"\"\"","v":""},null,{"$f":"\"\"","v":""},null,null,{"$f":"\"\"","v":""},{"$f":"\"\"","v":""}]
["AMD7413 2.65GHz,24C/48T,128M,180W,3200CK",null,null,{"$f":"VLOOKUP(L21,Tabella_prezzi!$A$2:$L$73,8,FALSE)","v":"AMD 7413 2.65GHz,24C/48T,128M,180W,3200"},null,null,1,{"$f":"VLOOKUP(L21,Tabella_prezzi!$A$2:$L$73,9,FALSE)","v":"AMD 7413 2.65GHz,24C/48T,128M,180W,3200"},{"$f":"VLOOKUP(L21,Tabella_prezzi!$A$2:$L$73,3,FALSE)","v":"Kit n. 1 Processore aggiuntivo"},{"$f":"VLOOKUP(L21,Tabella_prezzi!$A$2:$L$73,4,FALSE)","v":858.53},null,"L4N02",{"$f":"VLOOKUP(L21,Tabella_prezzi!$A$2:$L$73,6,FALSE)","v":"TS4L4-CPU"}]
[]
["TS4L4_RAM (1CPU)"]
[256,"Memory Capacity",null,{"$f":"D25","v":"32GB - 2Rx4 DDR4 RDIMM 3200MHz"},null,"370-AEVP",0,{"$f":"H25","v":"32GB - 2Rx4 DDR4 RDIMM 3200MHz"},null,null,null,{"$f":"\"\"","v":""},{"$f":"M25","v":"TS4L4-RAM32"}]
[{"$f":"(32*G25)+256","v":384},"Memory Capacity",null,{"$f":"VLOOKUP(L25,Tabella_prezzi!$A$2:$L$73,8,FALSE)","v":"32GB - 2Rx4 DDR4 RDIMM 3200MHz"},null,"370-AEVP",4,{"$f":"VLOOKUP(L25,Tabella_prezzi!$A$2:$L$73,9,FALSE)","v":"32GB - 2Rx4 DDR4 RDIMM 3200MHz"},{"$f":"VLOOKUP(L25,Tabella_prezzi!$A$2:$L$73,3,FALSE)","v":"OpzRAM32GB"},{"$f":"VLOOKUP(L25,Tabella_prezzi!$A$2:$L$73,4,FALSE)*G25","v":1048.48},null,"L4N03",{"$f":"VLOOKUP(L25,Tabella_prezzi!$A$2:$L$73,6,FALSE)","v":"TS4L4-RAM32"}]
[{"$f":"(32*G26)+256","v":448},"Memory Capacity",null,{"$f":"VLOOKUP(L26,Tabella_prezzi!$A$2:$L$73,8,FALSE)","v":"32GB - 2Rx4 DDR4 RDIMM 3200MHz"},null,"370-AEVP",6,{"$f":"VLOOKUP(L26,Tabella_prezzi!$A$2:$L$73,9,FALSE)","v":"32GB - 2Rx4 DDR4 RDIMM 3200MHz"},{"$f":"VLOOKUP(L26,Tabella_prezzi!$A$2:$L$73,3,FALSE)","v":"OpzRAM32GB"},{"$f":"VLOOKUP(L26,Tabella_prezzi!$A$2:$L$73,4,FALSE)*G26","v":1572.72},null,"L4N03",{"$f":"VLOOKUP(L26,Tabella_prezzi!$A$2:$L$73,6,FALSE)","v":"TS4L4-RAM32"}]
[512,"Memory Capacity",null,{"$f":"VLOOKUP(L27,Tabella_prezzi!$A$2:$L$73,8,FALSE)","v":"32GB - 2Rx4 DDR4 RDIMM 3200MHz"},null,"370-AEVP",8,{"$f":"VLOOKUP(L27,Tabella_prezzi!$A$2:$L$73,9,FALSE)","v":"32GB - 2Rx4 DDR4 RDIMM 3200MHz"},{"$f":"VLOOKUP(L27,Tabella_prezzi!$A$2:$L$73,3,FALSE)","v":"OpzRAM32GB"},{"$f":"VLOOKUP(L27,Tabella_prezzi!$A$2:$L$73,4,FALSE)*G27","v":2096.96},null,"L4N03",{"$f":"VLOOKUP(L27,Tabella_prezzi!$A$2:$L$73,6,FALSE)","v":"TS4L4-RAM32"}]
[576,"Memory Capacity",null,{"$f":"VLOOKUP(L28,Tabella_prezzi!$A$2:$L$73,8,FALSE)","v":"32GB - 2Rx4 DDR4 RDIMM 3200MHz"},null,"370-AEVP",10,{"$f":"VLOOKUP(L28,Tabella_prezzi!$A$2:$L$73,9,FALSE)","v":"32GB - 2Rx4 DDR4 RDIMM 3200MHz"},{"$f":"VLOOKUP(L28,Tabella_prezzi!$A$2:$L$73,3,FALSE)","v":"OpzRAM32GB"},{"$f":"VLOOKUP(L28,Tabella_prezzi!$A$2:$L$73,4,FALSE)*G28","v":2621.1999999999998},null,"L4N03",{"$f":"VLOOKUP(L28,Tabella_prezzi!$A$2:$L$73,6,FALSE)","v":"TS4L4-RAM32"}]
[640,"Memory Capacity",null,{"$f":"VLOOKUP(L29,Tabella_prezzi!$A$2:$L$73,8,FALSE)","v":"32GB - 2Rx4 DDR4 RDIMM 3200MHz"},null,"370-AEVP",12,{"$f":"VLOOKUP(L29,Tabella_prezzi!$A$2:$L$73,9,FALSE)","v":"32GB - 2Rx4 DDR4 RDIMM 3200MHz"},{"$f":"VLOOKUP(L29,Tabella_prezzi!$A$2:$L$73,3,FALSE)","v":"OpzRAM32GB"},{"$f":"VLOOKUP(L29,Tabella_prezzi!$A$2:$L$73,4,FALSE)*G29","v":3145.44},null,"L4N03",{"$f":"VLOOKUP(L29,Tabella_prezzi!$A$2:$L$73,6,FALSE)","v":"TS4L4-RAM32"}]
[704,"Memory Capacity",null,{"$f":"VLOOKUP(L30,Tabella_prezzi!$A$2:$L$73,8,FALSE)","v":"32GB - 2Rx4 DDR4 RDIMM 3200MHz"},null,"370-AEVP",14,{"$f":"VLOOKUP(L30,Tabella_prezzi!$A$2:$L$73,9,FALSE)","v":"32GB - 2Rx4 DDR4 RDIMM 3200MHz"},{"$f":"VLOOKUP(L30,Tabella_prezzi!$A$2:$L$73,3,FALSE)","v":"OpzRAM32GB"},{"$f":"VLOOKUP(L30,Tabella_prezzi!$A$2:$L$73,4,FALSE)*G30","v":3669.6800000000003},null,"L4N03",{"$f":"VLOOKUP(L30,Tabella_prezzi!$A$2:$L$73,6,FALSE)","v":"TS4L4-RAM32"}]
[768,"Memory Capacity",null,{"$f":"VLOOKUP(L31,Tabella_prezzi!$A$2:$L$73,8,FALSE)","v":"32GB - 2Rx4 DDR4 RDIMM 3200MHz"},null,"370-AEVP",16,{"$f":"VLOOKUP(L31,Tabella_prezzi!$A$2:$L$73,9,FALSE)","v":"32GB - 2Rx4 DDR4 RDIMM 3200MHz"},{"$f":"VLOOKUP(L31,Tabella_prezzi!$A$2:$L$73,3,FALSE)","v":"OpzRAM32GB"},{"$f":"VLOOKUP(L31,Tabella_prezzi!$A$2:$L$73,4,FALSE)*G31","v":4193.92},null,"L4N03",{"$f":"VLOOKUP(L31,Tabella_prezzi!$A$2:$L$73,6,FALSE)","v":"TS4L4-RAM32"}]
[832,"Memory Capacity",null,{"$f":"VLOOKUP(L32,Tabella_prezzi!$A$2:$L$73,8,FALSE)","v":"32GB - 2Rx4 DDR4 RDIMM 3200MHz"},null,"370-AEVP",18,{"$f":"VLOOKUP(L32,Tabella_prezzi!$A$2:$L$73,9,FALSE)","v":"32GB - 2Rx4 DDR4 RDIMM 3200MHz"},{"$f":"VLOOKUP(L32,Tabella_prezzi!$A$2:$L$73,3,FALSE)","v":"OpzRAM32GB"},{"$f":"VLOOKUP(L32,Tabella_prezzi!$A$2:$L$73,4,FALSE)*G32","v":4718.16},null,"L4N03",{"$f":"VLOOKUP(L32,Tabella_prezzi!$A$2:$L$73,6,FALSE)","v":"TS4L4-RAM32"}]
[896,"Memory Capacity",null,{"$f":"VLOOKUP(L33,Tabella_prezzi!$A$2:$L$73,8,FALSE)","v":"32GB - 2Rx4 DDR4 RDIMM 3200MHz"},null,"370-AEVP",20,{"$f":"VLOOKUP(L33,Tabella_prezzi!$A$2:$L$73,9,FALSE)","v":"32GB - 2Rx4 DDR4 RDIMM 3200MHz"},{"$f":"VLOOKUP(L33,Tabella_prezzi!$A$2:$L$73,3,FALSE)","v":"OpzRAM32GB"},{"$f":"VLOOKUP(L33,Tabella_prezzi!$A$2:$L$73,4,FALSE)*G33","v":5242.3999999999996},null,"L4N03",{"$f":"VLOOKUP(L33,Tabella_prezzi!$A$2:$L$73,6,FALSE)","v":"TS4L4-RAM32"}]
[960,"Memory Capacity",null,{"$f":"VLOOKUP(L34,Tabella_prezzi!$A$2:$L$73,8,FALSE)","v":"32GB - 2Rx4 DDR4 RDIMM 3200MHz"},null,"370-AEVP",22,{"$f":"VLOOKUP(L34,Tabella_prezzi!$A$2:$L$73,9,FALSE)","v":"32GB - 2Rx4 DDR4 RDIMM 3200MHz"},{"$f":"VLOOKUP(L34,Tabella_prezzi!$A$2:$L$73,3,FALSE)","v":"OpzRAM32GB"},{"$f":"VLOOKUP(L34,Tabella_prezzi!$A$2:$L$73,4,FALSE)*G34","v":5766.64},null,"L4N03",{"$f":"VLOOKUP(L34,Tabella_prezzi!$A$2:$L$73,6,FALSE)","v":"TS4L4-RAM32"}]
[1024,"Memory Capacity",null,{"$f":"VLOOKUP(L35,Tabella_prezzi!$A$2:$L$73,8,FALSE)","v":"32GB - 2Rx4 DDR4 RDIMM 3200MHz"},null,"370-AEVP",24,{"$f":"VLOOKUP(L35,Tabella_prezzi!$A$2:$L$73,9,FALSE)","v":"32GB - 2Rx4 DDR4 RDIMM 3200MHz"},{"$f":"VLOOKUP(L35,Tabella_prezzi!$A$2:$L$73,3,FALSE)","v":"OpzRAM32GB"},{"$f":"VLOOKUP(L35,Tabella_prezzi!$A$2:$L$73,4,FALSE)*G35","v":6290.88},null,"L4N03",{"$f":"VLOOKUP(L35,Tabella_prezzi!$A$2:$L$73,6,FALSE)","v":"TS4L4-RAM32"}]
[1088,"Memory Capacity",null,{"$f":"VLOOKUP(L36,Tabella_prezzi!$A$2:$L$73,8,FALSE)","v":"32GB - 2Rx4 DDR4 RDIMM 3200MHz"},null,"370-AEVP",26,{"$f":"VLOOKUP(L36,Tabella_prezzi!$A$2:$L$73,9,FALSE)","v":"32GB - 2Rx4 DDR4 RDIMM 3200MHz"},{"$f":"VLOOKUP(L36,Tabella_prezzi!$A$2:$L$73,3,FALSE)","v":"OpzRAM32GB"},{"$f":"VLOOKUP(L36,Tabella_prezzi!$A$2:$L$73,4,FALSE)*G36","v":6815.12},null,"L4N03",{"$f":"VLOOKUP(L36,Tabella_prezzi!$A$2:$L$73,6,FALSE)","v":"TS4L4-RAM32"}]
[1152,"Memory Capacity",null,{"$f":"VLOOKUP(L37,Tabella_prezzi!$A$2:$L$73,8,FALSE)","v":"32GB - 2Rx4 DDR4 RDIMM 3200MHz"},null,"370-AEVP",28,{"$f":"VLOOKUP(L37,Tabella_prezzi!$A$2:$L$73,9,FALSE)","v":"32GB - 2Rx4 DDR4 RDIMM 3200MHz"},{"$f":"VLOOKUP(L37,Tabella_prezzi!$A$2:$L$73,3,FALSE)","v":"OpzRAM32GB"},{"$f":"VLOOKUP(L37,Tabella_prezzi!$A$2:$L$73,4,FALSE)*G37","v":7339.3600000000006},null,"L4N03",{"$f":"VLOOKUP(L37,Tabella_prezzi!$A$2:$L$73,6,FALSE)","v":"TS4L4-RAM32"}]
[{"$f":"(64*G38)","v":2048},"Memory Capacity",null,{"$f":"VLOOKUP(L38,Tabella_prezzi!$A$2:$L$73,8,FALSE)","v":"64GB - 2RX4 DDR4 RDIMM 3200MHz"},null,"370-AEVP",32,{"$f":"VLOOKUP(L38,Tabella_prezzi!$A$2:$L$73,9,FALSE)","v":"64GB - 2RX4 DDR4 RDIMM 3200MHz"},{"$f":"VLOOKUP(L38,Tabella_prezzi!$A$2:$L$73,3,FALSE)","v":"OpzRAM64GB"},0,null,"L4N04",{"$f":"VLOOKUP(L38,Tabella_prezzi!$A$2:$L$73,6,FALSE)","v":"TS4L4-RAM64"}]
["TS4L4_RAM (vSAN)"]
[{"$f":"(32*G40)+256","v":512},"Memory Capacity",null,{"$f":"D41","v":"32GB - 2Rx4 DDR4 RDIMM 3200MHz"},null,"370-AEVP",8,{"$f":"H41","v":"32GB - 2Rx4 DDR4 RDIMM 3200MHz"},{"$f":"VLOOKUP(L40,Tabella_prezzi!$A$2:$L$73,3,FALSE)","v":"OpzRAM32GB"},{"$f":"VLOOKUP(L40,Tabella_prezzi!$A$2:$L$73,4,FALSE)*G40","v":2096.96},null,"L4N03",{"$f":"M41","v":"TS4L4-RAM32"}]
[{"$f":"(32*G41)+256","v":1024},"Memory Capacity",null,{"$f":"VLOOKUP(L41,Tabella_prezzi!$A$2:$L$73,8,FALSE)","v":"32GB - 2Rx4 DDR4 RDIMM 3200MHz"},null,"370-AEVP",24,{"$f":"VLOOKUP(L41,Tabella_prezzi!$A$2:$L$73,9,FALSE)","v":"32GB - 2Rx4 DDR4 RDIMM 3200MHz"},{"$f":"VLOOKUP(L41,Tabella_prezzi!$A$2:$L$73,3,FALSE)","v":"OpzRAM32GB"},{"$f":"VLOOKUP(L41,Tabella_prezzi!$A$2:$L$73,4,FALSE)*G41","v":6290.88},null,"L4N03",{"$f":"VLOOKUP(L41,Tabella_prezzi!$A$2:$L$73,6,FALSE)","v":"TS4L4-RAM32"}]
[{"$f":"(64*G42)","v":2048},"Memory Capacity",null,{"$f":"VLOOKUP(L42,Tabella_prezzi!$A$2:$L$73,8,FALSE)","v":"64GB - 2RX4 DDR4 RDIMM 3200MHz"},null,"370-AEVP",32,{"$f":"VLOOKUP(L42,Tabella_prezzi!$A$2:$L$73,9,FALSE)","v":"64GB - 2RX4 DDR4 RDIMM 3200MHz"},{"$f":"VLOOKUP(L42,Tabella_prezzi!$A$2:$L$73,3,FALSE)","v":"OpzRAM64GB"},{"$f":"VLOOKUP(L42,Tabella_prezzi!$A$2:$L$73,4,FALSE)*G42","v":9502.08},null,"L4N04",{"$f":"VLOOKUP(L42,Tabella_prezzi!$A$2:$L$73,6,FALSE)","v":"TS4L4-RAM64"}]
["TS4L4_RAM (2CPU)"]
[256,"Memory Capacity",null,{"$f":"VLOOKUP(L44,Tabella_prezzi!$A$2:$L$73,8,FALSE)","v":"32GB - 2Rx4 DDR4 RDIMM 3200MHz"},null,"370-AEVP",0,{"$f":"VLOOKUP(L44,Tabella_prezzi!$A$2:$L$73,9,FALSE)","v":"32GB - 2Rx4 DDR4 RDIMM 3200MHz"},{"$f":"VLOOKUP(L44,Tabella_prezzi!$A$2:$L$73,3,FALSE)","v":"OpzRAM32GB"},{"$f":"VLOOKUP(L44,Tabella_prezzi!$A$2:$L$73,4,FALSE)*G44","v":0},null,"L4N03",{"$f":"VLOOKUP(L44,Tabella_prezzi!$A$2:$L$73,6,FALSE)","v":"TS4L4-RAM32"}]
[{"$f":"(32*G45)+256","v":384},"Memory Capacity",null,{"$f":"VLOOKUP(L45,Tabella_prezzi!$A$2:$L$73,8,FALSE)","v":"32GB - 2Rx4 DDR4 RDIMM 3200MHz"},null,"370-AEVP",4,{"$f":"VLOOKUP(L45,Tabella_prezzi!$A$2:$L$73,9,FALSE)","v":"32GB - 2Rx4 DDR4 RDIMM 3200MHz"},{"$f":"VLOOKUP(L45,Tabella_prezzi!$A$2:$L$73,3,FALSE)","v":"OpzRAM32GB"},{"$f":"VLOOKUP(L45,Tabella_prezzi!$A$2:$L$73,4,FALSE)*G45","v":1048.48},null,"L4N03",{"$f":"VLOOKUP(L45,Tabella_prezzi!$A$2:$L$73,6,FALSE)","v":"TS4L4-RAM32"}]
[448,"Memory Capacity",null,{"$f":"VLOOKUP(L46,Tabella_prezzi!$A$2:$L$73,8,FALSE)","v":"32GB - 2Rx4 DDR4 RDIMM 3200MHz"},null,"370-AEVP",6,{"$f":"VLOOKUP(L46,Tabella_prezzi!$A$2:$L$73,9,FALSE)","v":"32GB - 2Rx4 DDR4 RDIMM 3200MHz"},{"$f":"VLOOKUP(L46,Tabella_prezzi!$A$2:$L$73,3,FALSE)","v":"OpzRAM32GB"},{"$f":"VLOOKUP(L46,Tabella_prezzi!$A$2:$L$73,4,FALSE)*G46","v":1572.72},null,"L4N03",{"$f":"VLOOKUP(L46,Tabella_prezzi!$A$2:$L$73,6,FALSE)","v":"TS4L4-RAM32"}]
[512,"Memory Capacity",null,{"$f":"VLOOKUP(L47,Tabella_prezzi!$A$2:$L$73,8,FALSE)","v":"32GB - 2Rx4 DDR4 RDIMM 3200MHz"},null,"370-AEVP",8,{"$f":"VLOOKUP(L47,Tabella_prezzi!$A$2:$L$73,9,FALSE)","v":"32GB - 2Rx4 DDR4 RDIMM 3200MHz"},{"$f":"VLOOKUP(L47,Tabella_prezzi!$A$2:$L$73,3,FALSE)","v":"OpzRAM32GB"},{"$f":"VLOOKUP(L47,Tabella_prezzi!$A$2:$L$73,4,FALSE)*G47","v":2096.96},null,"L4N03",{"$f":"VLOOKUP(L47,Tabella_prezzi!$A$2:$L$73,6,FALSE)","v":"TS4L4-RAM32"}]
[576,"Memory Capacity",null,{"$f":"VLOOKUP(L48,Tabella_prezzi!$A$2:$L$73,8,FALSE)","v":"32GB - 2Rx4 DDR4 RDIMM 3200MHz"},null,"370-AEVP",10,{"$f":"VLOOKUP(L48,Tabella_prezzi!$A$2:$L$73,9,FALSE)","v":"32GB - 2Rx4 DDR4 RDIMM 3200MHz"},{"$f":"VLOOKUP(L48,Tabella_prezzi!$A$2:$L$73,3,FALSE)","v":"OpzRAM32GB"},{"$f":"VLOOKUP(L48,Tabella_prezzi!$A$2:$L$73,4,FALSE)*G48","v":2621.1999999999998},null,"L4N03",{"$f":"VLOOKUP(L48,Tabella_prezzi!$A$2:$L$73,6,FALSE)","v":"TS4L4-RAM32"}]
[640,"Memory Capacity",null,{"$f":"VLOOKUP(L49,Tabella_prezzi!$A$2:$L$73,8,FALSE)","v":"32GB - 2Rx4 DDR4 RDIMM 3200MHz"},null,"370-AEVP",12,{"$f":"VLOOKUP(L49,Tabella_prezzi!$A$2:$L$73,9,FALSE)","v":"32GB - 2Rx4 DDR4 RDIMM 3200MHz"},{"$f":"VLOOKUP(L49,Tabella_prezzi!$A$2:$L$73,3,FALSE)","v":"OpzRAM32GB"},{"$f":"VLOOKUP(L49,Tabella_prezzi!$A$2:$L$73,4,FALSE)*G49","v":3145.44},null,"L4N03",{"$f":"VLOOKUP(L49,Tabella_prezzi!$A$2:$L$73,6,FALSE)","v":"TS4L4-RAM32"}]
[704,"Memory Capacity",null,{"$f":"VLOOKUP(L50,Tabella_prezzi!$A$2:$L$73,8,FALSE)","v":"32GB - 2Rx4 DDR4 RDIMM 3200MHz"},null,"370-AEVP",14,{"$f":"VLOOKUP(L50,Tabella_prezzi!$A$2:$L$73,9,FALSE)","v":"32GB - 2Rx4 DDR4 RDIMM 3200MHz"},{"$f":"VLOOKUP(L50,Tabella_prezzi!$A$2:$L$73,3,FALSE)","v":"OpzRAM32GB"},{"$f":"VLOOKUP(L50,Tabella_prezzi!$A$2:$L$73,4,FALSE)*G50","v":3669.6800000000003},null,"L4N03",{"$f":"VLOOKUP(L50,Tabella_prezzi!$A$2:$L$73,6,FALSE)","v":"TS4L4-RAM32"}]
[768,"Memory Capacity",null,{"$f":"VLOOKUP(L51,Tabella_prezzi!$A$2:$L$73,8,FALSE)","v":"32GB - 2Rx4 DDR4 RDIMM 3200MHz"},null,"370-AEVP",16,{"$f":"VLOOKUP(L51,Tabella_prezzi!$A$2:$L$73,9,FALSE)","v":"32GB - 2Rx4 DDR4 RDIMM 3200MHz"},{"$f":"VLOOKUP(L51,Tabella_prezzi!$A$2:$L$73,3,FALSE)","v":"OpzRAM32GB"},{"$f":"VLOOKUP(L51,Tabella_prezzi!$A$2:$L$73,4,FALSE)*G51","v":4193.92},null,"L4N03",{"$f":"VLOOKUP(L51,Tabella_prezzi!$A$2:$L$73,6,FALSE)","v":"TS4L4-RAM32"}]
[832,"Memory Capacity",null,{"$f":"VLOOKUP(L52,Tabella_prezzi!$A$2:$L$73,8,FALSE)","v":"32GB - 2Rx4 DDR4 RDIMM 3200MHz"},null,"370-AEVP",18,{"$f":"VLOOKUP(L52,Tabella_prezzi!$A$2:$L$73,9,FALSE)","v":"32GB - 2Rx4 DDR4 RDIMM 3200MHz"},{"$f":"VLOOKUP(L52,Tabella_prezzi!$A$2:$L$73,3,FALSE)","v":"OpzRAM32GB"},{"$f":"VLOOKUP(L52,Tabella_prezzi!$A$2:$L$73,4,FALSE)*G52","v":4718.16},null,"L4N03",{"$f":"VLOOKUP(L52,Tabella_prezzi!$A$2:$L$73,6,FALSE)","v":"TS4L4-RAM32"}]
[896,"Memory Capacity",null,{"$f":"VLOOKUP(L53,Tabella_prezzi!$A$2:$L$73,8,FALSE)","v":"32GB - 2Rx4 DDR4 RDIMM 3200MHz"},null,"370-AEVP",20,{"$f":"VLOOKUP(L53,Tabella_prezzi!$A$2:$L$73,9,FALSE)","v":"32GB - 2Rx4 DDR4 RDIMM 3200MHz"},{"$f":"VLOOKUP(L53,Tabella_prezzi!$A$2:$L$73,3,FALSE)","v":"OpzRAM32GB"},{"$f":"VLOOKUP(L53,Tabella_prezzi!$A$2:$L$73,4,FALSE)*G53","v":5242.3999999999996},null,"L4N03",{"$f":"VLOOKUP(L53,Tabella_prezzi!$A$2:$L$73,6,FALSE)","v":"TS4L4-RAM32"}]
[960,"Memory Capacity",null,{"$f":"VLOOKUP(L54,Tabella_prezzi!$A$2:$L$73,8,FALSE)","v":"32GB - 2Rx4 DDR4 RDIMM 3200MHz"},null,"370-AEVP",22,{"$f":"VLOOKUP(L54,Tabella_prezzi!$A$2:$L$73,9,FALSE)","v":"32GB - 2Rx4 DDR4 RDIMM 3200MHz"},{"$f":"VLOOKUP(L54,Tabella_prezzi!$A$2:$L$73,3,FALSE)","v":"OpzRAM32GB"},{"$f":"VLOOKUP(L54,Tabella_prezzi!$A$2:$L$73,4,FALSE)*G54","v":5766.64},null,"L4N03",{"$f":"VLOOKUP(L54,Tabella_prezzi!$A$2:$L$73,6,FALSE)","v":"TS4L4-RAM32"}]
[1024,"Memory Capacity",null,{"$f":"VLOOKUP(L55,Tabella_prezzi!$A$2:$L$73,8,FALSE)","v":"32GB - 2Rx4 DDR4 RDIMM 3200MHz"},null,"370-AEVP",24,{"$f":"VLOOKUP(L55,Tabella_prezzi!$A$2:$L$73,9,FALSE)","v":"32GB - 2Rx4 DDR4 RDIMM 3200MHz"},{"$f":"VLOOKUP(L55,Tabella_prezzi!$A$2:$L$73,3,FALSE)","v":"OpzRAM32GB"},{"$f":"VLOOKUP(L55,Tabella_prezzi!$A$2:$L$73,4,FALSE)*G55","v":6290.88},null,"L4N03",{"$f":"VLOOKUP(L55,Tabella_prezzi!$A$2:$L$73,6,FALSE)","v":"TS4L4-RAM32"}]
[{"$f":"(G56)*64","v":1152},"Memory Capacity",null,{"$f":"VLOOKUP(L56,Tabella_prezzi!$A$2:$L$73,8,FALSE)","v":"64GB - 2RX4 DDR4 RDIMM 3200MHz"},null,"370-AEVP",18,{"$f":"VLOOKUP(L56,Tabella_prezzi!$A$2:$L$73,9,FALSE)","v":"64GB - 2RX4 DDR4 RDIMM 3200MHz"},{"$f":"VLOOKUP(L56,Tabella_prezzi!$A$2:$L$73,3,FALSE)","v":"OpzRAM64GB"},{"$f":"VLOOKUP(L56,Tabella_prezzi!$A$2:$L$73,4,FALSE)*(G56)","v":5344.92},null,"L4N04",{"$f":"VLOOKUP(L56,Tabella_prezzi!$A$2:$L$73,6,FALSE)","v":"TS4L4-RAM64"}]
[{"$f":"(G57)*64","v":1280},"Memory Capacity",null,{"$f":"VLOOKUP(L57,Tabella_prezzi!$A$2:$L$73,8,FALSE)","v":"64GB - 2RX4 DDR4 RDIMM 3200MHz"},null,"370-AEVP",20,{"$f":"VLOOKUP(L57,Tabella_prezzi!$A$2:$L$73,9,FALSE)","v":"64GB - 2RX4 DDR4 RDIMM 3200MHz"},{"$f":"VLOOKUP(L57,Tabella_prezzi!$A$2:$L$73,3,FALSE)","v":"OpzRAM64GB"},{"$f":"VLOOKUP(L57,Tabella_prezzi!$A$2:$L$73,4,FALSE)*(G57)","v":5938.8},null,"L4N04",{"$f":"VLOOKUP(L57,Tabella_prezzi!$A$2:$L$73,6,FALSE)","v":"TS4L4-RAM64"}]
[1408,"Memory Capacity",null,{"$f":"VLOOKUP(L58,Tabella_prezzi!$A$2:$L$73,8,FALSE)","v":"64GB - 2RX4 DDR4 RDIMM 3200MHz"},null,"370-AEVP",22,{"$f":"VLOOKUP(L58,Tabella_prezzi!$A$2:$L$73,9,FALSE)","v":"64GB - 2RX4 DDR4 RDIMM 3200MHz"},{"$f":"VLOOKUP(L58,Tabella_prezzi!$A$2:$L$73,3,FALSE)","v":"OpzRAM64GB"},{"$f":"VLOOKUP(L58,Tabella_prezzi!$A$2:$L$73,4,FALSE)*(G58)","v":6532.68},null,"L4N04",{"$f":"VLOOKUP(L58,Tabella_prezzi!$A$2:$L$73,6,FALSE)","v":"TS4L4-RAM64"}]
[1536,"Memory Capacity",null,{"$f":"VLOOKUP(L59,Tabella_prezzi!$A$2:$L$73,8,FALSE)","v":"64GB - 2RX4 DDR4 RDIMM 3200MHz"},null,"370-AEVP",24,{"$f":"VLOOKUP(L59,Tabella_prezzi!$A$2:$L$73,9,FALSE)","v":"64GB - 2RX4 DDR4 RDIMM 3200MHz"},{"$f":"VLOOKUP(L59,Tabella_prezzi!$A$2:$L$73,3,FALSE)","v":"OpzRAM64GB"},{"$f":"VLOOKUP(L59,Tabella_prezzi!$A$2:$L$73,4,FALSE)*(G59)","v":7126.5599999999995},null,"L4N04",{"$f":"VLOOKUP(L59,Tabella_prezzi!$A$2:$L$73,6,FALSE)","v":"TS4L4-RAM64"}]
[1664,"Memory Capacity",null,{"$f":"VLOOKUP(L60,Tabella_prezzi!$A$2:$L$73,8,FALSE)","v":"64GB - 2RX4 DDR4 RDIMM 3200MHz"},null,"370-AEVP",26,{"$f":"VLOOKUP(L60,Tabella_prezzi!$A$2:$L$73,9,FALSE)","v":"64GB - 2RX4 DDR4 RDIMM 3200MHz"},{"$f":"VLOOKUP(L60,Tabella_prezzi!$A$2:$L$73,3,FALSE)","v":"OpzRAM64GB"},{"$f":"VLOOKUP(L60,Tabella_prezzi!$A$2:$L$73,4,FALSE)*G60","v":7720.44},null,"L4N04",{"$f":"VLOOKUP(L60,Tabella_prezzi!$A$2:$L$73,6,FALSE)","v":"TS4L4-RAM64"}]
[1792,"Memory Capacity",null,{"$f":"VLOOKUP(L61,Tabella_prezzi!$A$2:$L$73,8,FALSE)","v":"64GB - 2RX4 DDR4 RDIMM 3200MHz"},null,"370-AEVP",28,{"$f":"VLOOKUP(L61,Tabella_prezzi!$A$2:$L$73,9,FALSE)","v":"64GB - 2RX4 DDR4 RDIMM 3200MHz"},{"$f":"VLOOKUP(L61,Tabella_prezzi!$A$2:$L$73,3,FALSE)","v":"OpzRAM64GB"},{"$f":"VLOOKUP(L61,Tabella_prezzi!$A$2:$L$73,4,FALSE)*(G61)","v":8314.32},null,"L4N04",{"$f":"VLOOKUP(L61,Tabella_prezzi!$A$2:$L$73,6,FALSE)","v":"TS4L4-RAM64"}]
[1920,"Memory Capacity",null,{"$f":"VLOOKUP(L62,Tabella_prezzi!$A$2:$L$73,8,FALSE)","v":"64GB - 2RX4 DDR4 RDIMM 3200MHz"},null,"370-AEVP",30,{"$f":"VLOOKUP(L62,Tabella_prezzi!$A$2:$L$73,9,FALSE)","v":"64GB - 2RX4 DDR4 RDIMM 3200MHz"},{"$f":"VLOOKUP(L62,Tabella_prezzi!$A$2:$L$73,3,FALSE)","v":"OpzRAM64GB"},{"$f":"VLOOKUP(L62,Tabella_prezzi!$A$2:$L$73,4,FALSE)*(G62)","v":8908.2000000000007},null,"L4N04",{"$f":"VLOOKUP(L62,Tabella_prezzi!$A$2:$L$73,6,FALSE)","v":"TS4L4-RAM64"}]
[2048,"Memory Capacity",null,{"$f":"VLOOKUP(L63,Tabella_prezzi!$A$2:$L$73,8,FALSE)","v":"64GB - 2RX4 DDR4 RDIMM 3200MHz"},null,"370-AEVP",32,{"$f":"VLOOKUP(L63,Tabella_prezzi!$A$2:$L$73,9,FALSE)","v":"64GB - 2RX4 DDR4 RDIMM 3200MHz"},{"$f":"VLOOKUP(L63,Tabella_prezzi!$A$2:$L$73,3,FALSE)","v":"OpzRAM64GB"},{"$f":"VLOOKUP(L63,Tabella_prezzi!$A$2:$L$73,4,FALSE)*(G63)","v":9502.08},null,"L4N04",{"$f":"VLOOKUP(L63,Tabella_prezzi!$A$2:$L$73,6,FALSE)","v":"TS4L4-RAM64"}]
[1,2,3,4,5,6,7,8,9,10,11,12,13,14,15,16,17,18,19,20,21,22,23]
[]
["TS4L4_OS"]
["No Operating System","Operating System",null,null,null,null,0,null,{"$f":"\"\"","v":""},null,null,{"$f":"\"\"","v":""},{"$f":"\"\"","v":""},0,null,{"$f":"\"\"","v":""},{"$f":"\"\"","v":""},null,0,0,null,null,{"$f":"\"\"","v":""}]
[{"$f":"D68","v":"Ubuntu 22.04 LTS 64 Bit"},"Operating System",null,{"$f":"VLOOKUP(L68,Tabella_prezzi!$A$2:$L$73,9,FALSE)","v":"Ubuntu 22.04 LTS 64 Bit"},null,null,1,{"$f":"VLOOKUP(L68,Tabella_prezzi!$A$2:$L$73,9,FALSE)","v":"Ubuntu 22.04 LTS 64 Bit"},{"$f":"VLOOKUP(L68,Tabella_prezzi!$A$2:$L$73,3,FALSE)","v":"OpzOpenSource"},{"$f":"VLOOKUP(L68,Tabella_prezzi!$A$2:$L$73,4,FALSE)","v":37.119999999999997},null,"L4N26",{"$f":"VLOOKUP(L68,Tabella_prezzi!$A$2:$L$73,6,FALSE)","v":"TS4L4-LINUX"},16,{"$f":"VLOOKUP(T68,Tabella_prezzi!$A$2:$L$73,9,FALSE)","v":"1-pack of Windows Server 2022/2019 Device CALs (STD or DC)"},{"$f":"VLOOKUP(T68,Tabella_prezzi!$A$2:$L$73,3,FALSE)","v":"OpzDeviceCal"},{"$f":"VLOOKUP(T68,Tabella_prezzi!$A$2:$L$73,4,FALSE)*N68","v":427.52},null,6,"L4N23",{"$f":"VLOOKUP(T68,Tabella_prezzi!$A$2:$L$73,4,FALSE)*S68","v":160.32},null,{"$f":"VLOOKUP(T68,Tabella_prezzi!$A$2:$L$73,6,FALSE)","v":"TS4L4-WINDEVCAL"}]
["Windows Server 2022,Standard,ROK,16CORE","Operating System",null,{"$f":"VLOOKUP(L69,Tabella_prezzi!$A$2:$L$73,9,FALSE)","v":"Windows Server 2022,Standard,ROK,16CORE"},null,null,1,{"$f":"VLOOKUP(L69,Tabella_prezzi!$A$2:$L$73,9,FALSE)","v":"Windows Server 2022,Standard,ROK,16CORE"},{"$f":"VLOOKUP(L69,Tabella_prezzi!$A$2:$L$73,3,FALSE)","v":"OpzWinServSTD"},{"$f":"VLOOKUP(L69,Tabella_prezzi!$A$2:$L$73,4,FALSE)","v":795.78},null,"L4N22",{"$f":"VLOOKUP(L69,Tabella_prezzi!$A$2:$L$73,6,FALSE)","v":"TS4L4-WINSRVSTD"},16,{"$f":"VLOOKUP(T69,Tabella_prezzi!$A$2:$L$73,9,FALSE)","v":"1-pack of Windows Server 2022/2019 Device CALs (STD or DC)"},{"$f":"VLOOKUP(T69,Tabella_prezzi!$A$2:$L$73,3,FALSE)","v":"OpzDeviceCal"},{"$f":"VLOOKUP(T69,Tabella_prezzi!$A$2:$L$73,4,FALSE)*N69","v":427.52},null,6,"L4N23",{"$f":"VLOOKUP(T69,Tabella_prezzi!$A$2:$L$73,4,FALSE)*S69","v":160.32},null,{"$f":"VLOOKUP(T69,Tabella_prezzi!$A$2:$L$73,6,FALSE)","v":"TS4L4-WINDEVCAL"}]
["Windows Server 2022 Standard Edition, Add License,2CORE","Operating System",null,{"$f":"VLOOKUP(L70,Tabella_prezzi!$A$2:$L$73,9,FALSE)","v":"Windows Server 2022 Standard Edition, Add License,2CORE"},null,null,1,{"$f":"VLOOKUP(L70,Tabella_prezzi!$A$2:$L$73,9,FALSE)","v":"Windows Server 2022 Standard Edition, Add License,2CORE"},{"$f":"VLOOKUP(L70,Tabella_prezzi!$A$2:$L$73,3,FALSE)","v":"OpzWinServSTD2core"},{"$f":"VLOOKUP(L70,Tabella_prezzi!$A$2:$L$73,4,FALSE)","v":96.51},null,"L4N25",{"$f":"VLOOKUP(L70,Tabella_prezzi!$A$2:$L$73,6,FALSE)","v":"TS4L4-WINSRV2C"},16,{"$f":"VLOOKUP(T70,Tabella_prezzi!$A$2:$L$73,9,FALSE)","v":"1-pack of Windows Server 2022/2019 Device CALs (STD or DC)"},{"$f":"VLOOKUP(T70,Tabella_prezzi!$A$2:$L$73,3,FALSE)","v":"OpzDeviceCal"},{"$f":"VLOOKUP(T70,Tabella_prezzi!$A$2:$L$73,4,FALSE)*N70","v":427.52},null,6,"L4N23",{"$f":"VLOOKUP(T70,Tabella_prezzi!$A$2:$L$73,4,FALSE)*S70","v":160.32},null,{"$f":"VLOOKUP(T70,Tabella_prezzi!$A$2:$L$73,6,FALSE)","v":"TS4L4-WINDEVCAL"}]
["Windows Server 2022 / 2019 Datacenter Edition,Add License,2CORE","Operating System",null,{"$f":"VLOOKUP(L71,Tabella_prezzi!$A$2:$L$73,9,FALSE)","v":"Windows Server 2022 / 2019 Datacenter Edition,Add License,2CORE"},null,null,1,{"$f":"VLOOKUP(L71,Tabella_prezzi!$A$2:$L$73,9,FALSE)","v":"Windows Server 2022 / 2019 Datacenter Edition,Add License,2CORE"},{"$f":"VLOOKUP(L71,Tabella_prezzi!$A$2:$L$73,3,FALSE)","v":"OpzWinServDC2core"},{"$f":"VLOOKUP(L71,Tabella_prezzi!$A$2:$L$73,4,FALSE)","v":460.51},null,"L4N28",{"$f":"VLOOKUP(L71,Tabella_prezzi!$A$2:$L$73,6,FALSE)","v":"TS4L4-WinServDC2core"},20,{"$f":"VLOOKUP(T71,Tabella_prezzi!$A$2:$L$73,9,FALSE)","v":"1-pack of Windows Server 2022/2019 User CALs (STD or DC)"},{"$f":"VLOOKUP(T71,Tabella_prezzi!$A$2:$L$73,3,FALSE)","v":"OpzUserCal"},{"$f":"VLOOKUP(T71,Tabella_prezzi!$A$2:$L$73,4,FALSE)*N71","v":735},null,6,"L4N24",null,{"$f":"VLOOKUP(T71,Tabella_prezzi!$A$2:$L$73,4,FALSE)*S71","v":220.5},{"$f":"VLOOKUP(T71,Tabella_prezzi!$A$2:$L$73,6,FALSE)","v":"TS4L4-WINUSRCAL"}]
["1-pack of Windows Server 2022/2019 Device CALs (STD or DC)","Operating System",null,{"$f":"VLOOKUP(L72,Tabella_prezzi!$A$2:$L$73,9,FALSE)","v":"1-pack of Windows Server 2022/2019 Device CALs (STD or DC)"},null,null,1,{"$f":"VLOOKUP(L72,Tabella_prezzi!$A$2:$L$73,9,FALSE)","v":"1-pack of Windows Server 2022/2019 Device CALs (STD or DC)"},{"$f":"VLOOKUP(L72,Tabella_prezzi!$A$2:$L$73,3,FALSE)","v":"OpzDeviceCal"},{"$f":"VLOOKUP(L72,Tabella_prezzi!$A$2:$L$73,4,FALSE)","v":26.72},null,"L4N23",{"$f":"VLOOKUP(L72,Tabella_prezzi!$A$2:$L$73,6,FALSE)","v":"TS4L4-WINDEVCAL"},20,{"$f":"VLOOKUP(T72,Tabella_prezzi!$A$2:$L$73,9,FALSE)","v":"1-pack of Windows Server 2022/2019 User CALs (STD or DC)"},{"$f":"VLOOKUP(T72,Tabella_prezzi!$A$2:$L$73,3,FALSE)","v":"OpzUserCal"},{"$f":"VLOOKUP(T72,Tabella_prezzi!$A$2:$L$73,4,FALSE)*N72","v":735},null,6,"L4N24",null,{"$f":"VLOOKUP(T72,Tabella_prezzi!$A$2:$L$73,4,FALSE)*S72","v":220.5},{"$f":"VLOOKUP(T72,Tabella_prezzi!$A$2:$L$73,6,FALSE)","v":"TS4L4-WINUSRCAL"}]
["1-pack of Windows Server 2022/2019 User CALs (STD or DC)","Operating System",null,{"$f":"VLOOKUP(L73,Tabella_prezzi!$A$2:$L$73,9,FALSE)","v":"1-pack of Windows Server 2022/2019 User CALs (STD or DC)"},null,null,1,{"$f":"VLOOKUP(L73,Tabella_prezzi!$A$2:$L$73,9,FALSE)","v":"1-pack of Windows Server 2022/2019 User CALs (STD or DC)"},{"$f":"VLOOKUP(L73,Tabella_prezzi!$A$2:$L$73,3,FALSE)","v":"OpzUserCal"},{"$f":"VLOOKUP(L73,Tabella_prezzi!$A$2:$L$73,4,FALSE)","v":36.75},null,"L4N24",{"$f":"VLOOKUP(L73,Tabella_prezzi!$A$2:$L$73,6,FALSE)","v":"TS4L4-WINUSRCAL"},0,null,{"$f":"\"\"","v":""},{"$f":"\"\"","v":""},null,0,0,null,null,{"$f":"\"\"","v":""}]
["No Operating System","Operating System",null,null,null,null,0,null,{"$f":"\"\"","v":""},null,null,{"$f":"\"\"","v":""},{"$f":"\"\"","v":""},0,null,{"$f":"\"\"","v":""},{"$f":"\"\"","v":""},null,0,0,null,null,{"$f":"\"\"","v":""}]
[{"$f":"D75","v":"Windows Server 2022,Datacenter,ROK,16CORE"},"Operating System",null,{"$f":"VLOOKUP(L75,Tabella_prezzi!$A$2:$L$73,9,FALSE)","v":"Windows Server 2022,Datacenter,ROK,16CORE"},null,null,1,{"$f":"VLOOKUP(L75,Tabella_prezzi!$A$2:$L$73,9,FALSE)","v":"Windows Server 2022,Datacenter,ROK,16CORE"},{"$f":"VLOOKUP(L75,Tabella_prezzi!$A$2:$L$73,3,FALSE)","v":"OpzWinServDC"},{"$f":"VLOOKUP(L75,Tabella_prezzi!$A$2:$L$73,4,FALSE)","v":3345.63},null,"L4N27",{"$f":"VLOOKUP(L75,Tabella_prezzi!$A$2:$L$73,6,FALSE)","v":"TS4L4-WinServDC"},16,{"$f":"VLOOKUP(T75,Tabella_prezzi!$A$2:$L$73,9,FALSE)","v":"1-pack of Windows Server 2022/2019 Device CALs (STD or DC)"},{"$f":"VLOOKUP(T75,Tabella_prezzi!$A$2:$L$73,3,FALSE)","v":"OpzDeviceCal"},{"$f":"VLOOKUP(T75,Tabella_prezzi!$A$2:$L$73,4,FALSE)*N75","v":427.52},null,6,"L4N23",{"$f":"VLOOKUP(T75,Tabella_prezzi!$A$2:$L$73,4,FALSE)*S75","v":160.32},null,{"$f":"VLOOKUP(T75,Tabella_prezzi!$A$2:$L$73,6,FALSE)","v":"TS4L4-WINDEVCAL"}]
[]
["TS4L4_HDD"]
[{"$f":"\"\"","v":""},null,null,null,null,null,{"$f":"\"\"","v":""},null,{"$f":"\"\"","v":""},null,null,{"$f":"\"\"","v":""},{"$f":"\"\"","v":""}]
[{"$f":"VLOOKUP(L79,Tabella_prezzi!$A$2:$L$73,8,FALSE)","v":"2.4TB 10k SAS ISE 12Gbps"},"Hard Drives",null,{"$f":"VLOOKUP(L79,Tabella_prezzi!$A$2:$L$73,8,FALSE)","v":"2.4TB 10k SAS ISE 12Gbps"},null,null,1,{"$f":"VLOOKUP(L79,Tabella_prezzi!$A$2:$L$73,9,FALSE)","v":"2.4TB 10k 512e SAS ISE 12Gbps 2.5in Hot Plug Hard Drive "},{"$f":"VLOOKUP(L79,Tabella_prezzi!$A$2:$L$73,3,FALSE)","v":"OpzHDD2TB"},{"$f":"VLOOKUP(L79,Tabella_prezzi!$A$2:$L$73,4,FALSE)","v":144.76},null,"L4N11",{"$f":"VLOOKUP(L79,Tabella_prezzi!$A$2:$L$73,6,FALSE)","v":"TS4L4-HDD2TB"}]
[{"$f":"VLOOKUP(L80,Tabella_prezzi!$A$2:$L$73,8,FALSE)","v":"1.2TB 10K RPM SAS ISE 12Gbps"},"Hard Drives",null,{"$f":"VLOOKUP(L80,Tabella_prezzi!$A$2:$L$73,8,FALSE)","v":"1.2TB 10K RPM SAS ISE 12Gbps"},null,null,1,{"$f":"VLOOKUP(L80,Tabella_prezzi!$A$2:$L$73,9,FALSE)","v":"1.2TB 10K RPM SAS ISE 12Gbps 512n 2.5in Hot-plug Hard Drive"},{"$f":"VLOOKUP(L80,Tabella_prezzi!$A$2:$L$73,3,FALSE)","v":"OpzHDD1TB"},{"$f":"VLOOKUP(L80,Tabella_prezzi!$A$2:$L$73,4,FALSE)","v":83.51},null,"L4N12",{"$f":"VLOOKUP(L80,Tabella_prezzi!$A$2:$L$73,6,FALSE)","v":"TS4L4-HDD1TB"}]
[{"$f":"VLOOKUP(L81,Tabella_prezzi!$A$2:$L$73,8,FALSE)","v":"3.84TB SSD SAS ISE RI 12Gbps"},"Hard Drives",null,{"$f":"VLOOKUP(L81,Tabella_prezzi!$A$2:$L$73,8,FALSE)","v":"3.84TB SSD SAS ISE RI 12Gbps"},null,null,1,{"$f":"VLOOKUP(L81,Tabella_prezzi!$A$2:$L$73,9,FALSE)","v":"3.84TB SSD SAS ISE RI 12Gbps 512e 2.5in PM6 Hot-Plug 1 DWPD"},{"$f":"VLOOKUP(L81,Tabella_prezzi!$A$2:$L$73,3,FALSE)","v":"OpzSSD-RI3,8TB"},{"$f":"VLOOKUP(L81,Tabella_prezzi!$A$2:$L$73,4,FALSE)","v":991.57},null,"L4N13",{"$f":"VLOOKUP(L81,Tabella_prezzi!$A$2:$L$73,6,FALSE)","v":"TS4L4-SSD-RI3,8TB"}]
[{"$f":"VLOOKUP(L82,Tabella_prezzi!$A$2:$L$73,8,FALSE)","v":"1.92TB SSD SAS ISE RI 12Gbps"},"Hard Drives",null,{"$f":"VLOOKUP(L82,Tabella_prezzi!$A$2:$L$73,8,FALSE)","v":"1.92TB SSD SAS ISE RI 12Gbps"},null,null,1,{"$f":"VLOOKUP(L82,Tabella_prezzi!$A$2:$L$73,9,FALSE)","v":"1.92TB SSD SAS ISE RI 12Gbps 512e 2.5in Hot-Plug 1 DWP"},{"$f":"VLOOKUP(L82,Tabella_prezzi!$A$2:$L$73,3,FALSE)","v":"OpzSSD-RI1,6TB"},{"$f":"VLOOKUP(L82,Tabella_prezzi!$A$2:$L$73,4,FALSE)","v":489.95},null,"L4N14",{"$f":"VLOOKUP(L82,Tabella_prezzi!$A$2:$L$73,6,FALSE)","v":"TS4L4-SSD-RI1,6TB"}]
[{"$f":"VLOOKUP(L83,Tabella_prezzi!$A$2:$L$73,8,FALSE)","v":"1.6TB SSD SAS ISE MU 12Gbps"},"Hard Drives",null,{"$f":"VLOOKUP(L83,Tabella_prezzi!$A$2:$L$73,8,FALSE)","v":"1.6TB SSD SAS ISE MU 12Gbps"},null,null,1,{"$f":"VLOOKUP(L83,Tabella_prezzi!$A$2:$L$73,9,FALSE)","v":"1.6TB SSD SAS ISE MU 12Gbps 512e 2.5in Hot-Plug PM6 3 DWPD"},{"$f":"VLOOKUP(L83,Tabella_prezzi!$A$2:$L$73,3,FALSE)","v":"OpzSSD-MU1,6TB"},{"$f":"VLOOKUP(L83,Tabella_prezzi!$A$2:$L$73,4,FALSE)","v":464.23},null,"L4N15",{"$f":"VLOOKUP(L83,Tabella_prezzi!$A$2:$L$73,6,FALSE)","v":"TS4L4-SSD-MU1,6TB"}]
[{"$f":"VLOOKUP(L84,Tabella_prezzi!$A$2:$L$73,8,FALSE)","v":"960GB SSD SAS ISE RI 12Gbps"},"Hard Drives",null,{"$f":"VLOOKUP(L84,Tabella_prezzi!$A$2:$L$73,8,FALSE)","v":"960GB SSD SAS ISE RI 12Gbps"},null,null,1,{"$f":"VLOOKUP(L84,Tabella_prezzi!$A$2:$L$73,9,FALSE)","v":"960GB SSD SAS ISE RI 12Gbps 512e 2.5in Hot-Plug 1 DWPD"},{"$f":"VLOOKUP(L84,Tabella_prezzi!$A$2:$L$73,3,FALSE)","v":"OpzSSD-RI800GB"},{"$f":"VLOOKUP(L84,Tabella_prezzi!$A$2:$L$73,4,FALSE)","v":278.38},null,"L4N16",{"$f":"VLOOKUP(L84,Tabella_prezzi!$A$2:$L$73,6,FALSE)","v":"TS4L4-SSD-RI800GB"}]
[{"$f":"VLOOKUP(L85,Tabella_prezzi!$A$2:$L$73,8,FALSE)","v":"800GB SSD SAS ISE Mix Use 12Gbps"},"Hard Drives",null,{"$f":"VLOOKUP(L85,Tabella_prezzi!$A$2:$L$73,8,FALSE)","v":"800GB SSD SAS ISE Mix Use 12Gbps"},null,null,1,{"$f":"VLOOKUP(L85,Tabella_prezzi!$A$2:$L$73,9,FALSE)","v":"800GB SSD SAS ISE Mix Use 12Gbps 512e 2.5in Hot-plug, 3 DWPD"},{"$f":"VLOOKUP(L85,Tabella_prezzi!$A$2:$L$73,3,FALSE)","v":"OpzSSD-MU800GB"},{"$f":"VLOOKUP(L85,Tabella_prezzi!$A$2:$L$73,4,FALSE)","v":289.52},null,"L4N17",{"$f":"VLOOKUP(L85,Tabella_prezzi!$A$2:$L$73,6,FALSE)","v":"TS4L4-SSD-MU800GB"}]
[{"$f":"VLOOKUP(L86,Tabella_prezzi!$A$2:$L$73,8,FALSE)","v":"1.6TB Enterprise NVMe Mixed Use Drive U.2"},"Hard Drives",null,{"$f":"VLOOKUP(L86,Tabella_prezzi!$A$2:$L$73,8,FALSE)","v":"1.6TB Enterprise NVMe Mixed Use Drive U.2"},null,null,1,{"$f":"VLOOKUP(L86,Tabella_prezzi!$A$2:$L$73,9,FALSE)","v":"1.6TB Enterprise NVMe Mixed Use AG SED Drive U.2 Gen4 with carrier, FIPS"},{"$f":"VLOOKUP(L86,Tabella_prezzi!$A$2:$L$73,3,FALSE)","v":"OpzNVME1,6TB"},{"$f":"VLOOKUP(L86,Tabella_prezzi!$A$2:$L$73,4,FALSE)","v":594.94000000000005},null,"L4N18",{"$f":"VLOOKUP(L86,Tabella_prezzi!$A$2:$L$73,6,FALSE)","v":"TS4L4-NVME1,6TB"}]
[{"$f":"D87","v":"7.68TB SSD RI SAS ISE 12Gbps"},"Hard Drives",null,{"$f":"VLOOKUP(L87,Tabella_prezzi!$A$2:$L$73,8,FALSE)","v":"7.68TB SSD RI SAS ISE 12Gbps"},null,null,1,{"$f":"VLOOKUP(L87,Tabella_prezzi!$A$2:$L$73,9,FALSE)","v":"\t7.68TB SSD RI SAS ISE 12Gbps 512e 2.5in PM1643a Hot-Plug 1 DWPD"},{"$f":"VLOOKUP(L87,Tabella_prezzi!$A$2:$L$73,3,FALSE)","v":"OpzSSD7,68"},null,{"$f":"VLOOKUP(L87,Tabella_prezzi!$A$2:$L$73,4,FALSE)","v":2844.45},"L4N32",{"$f":"VLOOKUP(L87,Tabella_prezzi!$A$2:$L$73,6,FALSE)","v":"TS4L4-SSD7.68RI"}]
[{"$f":"D88","v":"3.2TB, Enterprise, NVMe, Mixed Use"},"Hard Drives",null,{"$f":"VLOOKUP(L88,Tabella_prezzi!$A$2:$L$73,8,FALSE)","v":"3.2TB, Enterprise, NVMe, Mixed Use"},null,null,1,{"$f":"VLOOKUP(L88,Tabella_prezzi!$A$2:$L$73,9,FALSE)","v":"3.2TB, Enterprise, NVMe, Mixed Use, U2, G4, P5600 with carrier"},{"$f":"VLOOKUP(L88,Tabella_prezzi!$A$2:$L$73,3,FALSE)","v":"OpzNVMe3,2"},null,{"$f":"VLOOKUP(L88,Tabella_prezzi!$A$2:$L$73,4,FALSE)","v":1578.15},"L4N33",{"$f":"VLOOKUP(L88,Tabella_prezzi!$A$2:$L$73,6,FALSE)","v":"TS4L4-NVMe3.2MU"}]
[{"$f":"D89","v":"1.92TB, Enterprise, NVMe, Read Intensive"},"Hard Drives",null,{"$f":"VLOOKUP(L89,Tabella_prezzi!$A$2:$L$73,8,FALSE)","v":"1.92TB, Enterprise, NVMe, Read Intensive"},null,null,1,{"$f":"VLOOKUP(L89,Tabella_prezzi!$A$2:$L$73,9,FALSE)","v":"1.92TB, Enterprise, NVMe, Read Intensive, U2, G4, P5500 with carrier"},{"$f":"VLOOKUP(L89,Tabella_prezzi!$A$2:$L$73,3,FALSE)","v":"OpzNVMe1,92"},null,{"$f":"VLOOKUP(L89,Tabella_prezzi!$A$2:$L$73,4,FALSE)","v":938.25},"L4N34",{"$f":"VLOOKUP(L89,Tabella_prezzi!$A$2:$L$73,6,FALSE)","v":"TS4L4-NVMe1.92RI"}]
[{"$f":"D90","v":"3.84TB, Enterprise, NVMe, Read Intensive"},"Hard Drives",null,{"$f":"VLOOKUP(L90,Tabella_prezzi!$A$2:$L$73,8,FALSE)","v":"3.84TB, Enterprise, NVMe, Read Intensive"},null,null,1,{"$f":"VLOOKUP(L90,Tabella_prezzi!$A$2:$L$73,9,FALSE)","v":"3.84TB, Enterprise, NVMe, Read Intensive, U2, G4, P5500 with carrier, CK"},{"$f":"VLOOKUP(L90,Tabella_prezzi!$A$2:$L$73,3,FALSE)","v":"OpzNVMe3,84"},null,{"$f":"VLOOKUP(L90,Tabella_prezzi!$A$2:$L$73,4,FALSE)","v":1576.8},"L4N35",{"$f":"VLOOKUP(L90,Tabella_prezzi!$A$2:$L$73,6,FALSE)","v":"TS4L4-NVMe3.84RI"}]
[]
["TS4L4_PSU"]
["Dual, Hot-plug Power Supply (1+1), 1400W","Power Supply",null,{"$f":"VLOOKUP(L93,Tabella_prezzi!$A$2:$L$73,8,FALSE)","v":"Dual, Hot-plug Power Supply (1+1), 1400W in sostituzione di quelli in configurazione BASE"},null,null,1,{"$f":"VLOOKUP(L93,Tabella_prezzi!$A$2:$L$73,9,FALSE)","v":"Dual, Hot-plug Power Supply (1+1), 1400W in sostituzione di quelli in configurazione BASE"},{"$f":"VLOOKUP(L93,Tabella_prezzi!$A$2:$L$73,3,FALSE)","v":"OpzPSU1400W"},null,{"$f":"VLOOKUP(L93,Tabella_prezzi!$A$2:$L$73,4,FALSE)","v":0},"L4N49",{"$f":"VLOOKUP(L93,Tabella_prezzi!$A$2:$L$73,6,FALSE)","v":"TS4L4-PSU1400W"}]
[]
["TS4L4_CTRL"]
[null,null,null,null,null,null,{"$f":"\"\"","v":""},null,{"$f":"\"\"","v":""},null,null,{"$f":"\"\"","v":""},{"$f":"\"\"","v":""}]
[{"$f":"D97","v":"PERC H745 Controller"},{"$f":"D97","v":"PERC H745 Controller"},null,{"$f":"VLOOKUP(L97,Tabella_prezzi!$A$2:$L$73,9,FALSE)","v":"PERC H745 Controller"},null,null,{"$f":"\"\"","v":""},{"$f":"VLOOKUP(L97,Tabella_prezzi!$A$2:$L$73,9,FALSE)","v":"PERC H745 Controller"},{"$f":"\"\"","v":""},null,null,"L4N44",{"$f":"VLOOKUP(L97,Tabella_prezzi!$A$2:$L$73,6,FALSE)","v":""}]
[{"$f":"D98","v":"HBA355 Controller Adapter, Front (NO HW RAID)"},{"$f":"D98","v":"HBA355 Controller Adapter, Front (NO HW RAID)"},null,{"$f":"VLOOKUP(L98,Tabella_Prezzi,8,FALSE)","v":"HBA355 Controller Adapter, Front (NO HW RAID)"},null,null,1,{"$f":"VLOOKUP(L98,Tabella_prezzi!$A$2:$L$73,9,FALSE)","v":"HBA355 Controller Adapter, Front, Cust Kit"},{"$f":"VLOOKUP(L98,Tabella_prezzi!$A$2:$L$73,3,FALSE)","v":0},null,{"$f":"VLOOKUP(L98,Tabella_prezzi!$A$2:$L$73,4,FALSE)","v":0},"L4N36",{"$f":"VLOOKUP(L98,Tabella_prezzi!$A$2:$L$73,6,FALSE)","v":"TS4L4-HBA355i-L"}]
[]
[]
["TS4L4_GPU"]
["Slot non utilizzato",null,null,null,null,null,{"$f":"\"\"","v":""},null,{"$f":"\"\"","v":""},null,null,{"$f":"\"\"","v":""},{"$f":"\"\"","v":""}]
[{"$f":"D103","v":"Nvidia A30"},{"$f":"D103","v":"Nvidia A30"},null,{"$f":"VLOOKUP(L103,Tabella_prezzi!$A$2:$L$100,9,FALSE)","v":"Nvidia A30"},null,null,1,{"$f":"VLOOKUP(L103,Tabella_prezzi!$A$2:$L$100,9,FALSE)","v":"Nvidia A30"},{"$f":"\"\"","v":""},null,{"$f":"VLOOKUP(L103,Tabella_prezzi!$A$2:$L$100,4,FALSE)","v":6129},"L4N127",{"$f":"VLOOKUP(L103,Tabella_prezzi!$A$2:$L$100,6,FALSE)","v":"TS4L4-GPU-A30"}]
[{"$f":"D104","v":"Nvidia A40"},{"$f":"D104","v":"Nvidia A40"},null,{"$f":"VLOOKUP(L104,Tabella_Prezzi,8,FALSE)","v":"Nvidia A40"},null,null,1,{"$f":"VLOOKUP(L104,Tabella_prezzi!$A$2:$L$100,9,FALSE)","v":"Nvidia A40"},{"$f":"VLOOKUP(L104,Tabella_prezzi!$A$2:$L$100,3,FALSE)","v":"OpzGPU-A40"},null,{"$f":"VLOOKUP(L104,Tabella_prezzi!$A$2:$L$100,4,FALSE)","v":6858},"L4N128",{"$f":"VLOOKUP(L104,Tabella_prezzi!$A$2:$L$100,6,FALSE)","v":"TS4L4-GPU-A40"}]
[]
["TS4L4_BOSS"]
["No Boss card",null,null,null,null,null,{"$f":"\"\"","v":""},null,{"$f":"\"\"","v":""},null,null,{"$f":"\"\"","v":""},{"$f":"\"\"","v":""}]
[{"$f":"D108","v":"BOSS-S2 controller + 2x 480GB M2BOSS-S2 controller card +  with 2 M.2 480GB (RAID 1)"},null,null,{"$f":"VLOOKUP(L108,Tabella_prezzi!$A$2:$L$73,8,FALSE)","v":"BOSS-S2 controller + 2x 480GB M2BOSS-S2 controller card +  with 2 M.2 480GB (RAID 1)"},null,null,1,{"$f":"VLOOKUP(L108,Tabella_prezzi!$A$2:$L$73,9,FALSE)","v":"BOSS-S2 controller"},{"$f":"VLOOKUP(L108,Tabella_prezzi!$A$2:$L$73,3,FALSE)","v":"OpzBoss"},null,{"$f":"VLOOKUP(L108,Tabella_prezzi!$A$2:$L$73,4,FALSE)","v":0},"L4N40",{"$f":"VLOOKUP(L108,Tabella_prezzi!$A$2:$L$73,6,FALSE)","v":"TS4L4-BOSS"}]
[]
["TS4L4_WARRANTY"]
["Manutenzione in garanzia (36 mesi)","Dell Services: Extended Service",null,"RESTRICTED:ProSupport One Data Center and Next Business Day Onsite Service Volume Low, 39 Month(s)",null,null,{"$f":"\"\"","v":""},null,{"$f":"\"\"","v":""},null,null,{"$f":"\"\"","v":""},{"$f":"\"\"","v":""}]
[{"$f":"D112","v":"Estensione della manutenzione in garanzia per ulteriori 24 mesi"},"Dell Services: Extended Service",null,{"$f":"VLOOKUP(L112,Tabella_prezzi!$A$2:$L$73,8,FALSE)","v":"Estensione della manutenzione in garanzia per ulteriori 24 mesi"},null,null,1,{"$f":"VLOOKUP(L112,Tabella_prezzi!$A$2:$L$223,9,FALSE)","v":"Estensione della manutenzione in garanzia per ulteriori 24 mesi"},{"$f":"VLOOKUP(L112,Tabella_prezzi!$A$2:$L$223,3,FALSE)","v":"OpzEstensione24"},{"$f":"VLOOKUP(L112,Tabella_prezzi!$A$2:$L$223,4,FALSE)","v":155.91},null,"L4N30",{"$f":"VLOOKUP(L112,Tabella_prezzi!$A$2:$L$73,6,FALSE)","v":"TS4L4-OpzEst24"}]
[]
["TS4L4_HDDRET"]
["No Hard Disk Retention",null,null,null,null,null,{"$f":"\"\"","v":""},null,{"$f":"\"\"","v":""},null,null,{"$f":"\"\"","v":""},{"$f":"\"\"","v":""}]
[{"$f":"D116","v":"Hard Disk Retention 36 mesi"},"Keep Your Hard Drive",null,{"$f":"VLOOKUP(L116,Tabella_prezzi!$A$2:$L$73,8,FALSE)","v":"Hard Disk Retention 36 mesi"},null,null,1,{"$f":"VLOOKUP(L116,Tabella_prezzi!$A$2:$L$223,9,FALSE)","v":"Hard Disk Retention 36 mesi"},{"$f":"VLOOKUP(L116,Tabella_prezzi!$A$2:$L$223,3,FALSE)","v":"OpzHDDRetention36"},{"$f":"VLOOKUP(L116,Tabella_prezzi!$A$2:$L$223,4,FALSE)","v":33.14},null,"L4N29",{"$f":"VLOOKUP(L116,Tabella_prezzi!$A$2:$L$73,6,FALSE)","v":"TS4L4-HDRTN36"}]
["Hard Disk Retention 60 mesi","Keep Your Hard Drive",null,{"$f":"VLOOKUP(L117,Tabella_prezzi!$A$2:$L$73,8,FALSE)","v":"Hard Disk Retention 60 mesi"},null,null,1,{"$f":"VLOOKUP(L117,Tabella_prezzi!$A$2:$L$223,9,FALSE)","v":"Hard Disk Retention 60 mesi"},{"$f":"VLOOKUP(L117,Tabella_prezzi!$A$2:$L$223,3,FALSE)","v":"OpzHDDRetention60"},{"$f":"VLOOKUP(L117,Tabella_prezzi!$A$2:$L$223,4,FALSE)","v":55.23},null,"L4N29e",{"$f":"VLOOKUP(L117,Tabella_prezzi!$A$2:$L$73,6,FALSE)","v":"TS4L4-HDRTN60"}]
[]
["TS4L4_Rack"]
[{"$f":"\"\"","v":""},null,null,null,null,null,{"$f":"\"\"","v":""},null,{"$f":"\"\"","v":""},null,null,{"$f":"\"\"","v":""},{"$f":"\"\"","v":""}]
[{"$f":"D121","v":"Armadio Rack 42U"},null,null,{"$f":"VLOOKUP(L121,Tabella_prezzi!$A$2:$L$73,8,FALSE)","v":"Armadio Rack 42U"},null,null,1,{"$f":"VLOOKUP(L121,Tabella_prezzi!$A$2:$L$223,9,FALSE)","v":"Armadio Rack 42U"},{"$f":"VLOOKUP(L121,Tabella_prezzi!$A$2:$L$223,3,FALSE)","v":"OpzRack"},{"$f":"VLOOKUP(L121,Tabella_prezzi!$A$2:$L$223,4,FALSE)","v":579.63},null,"L4N31",{"$f":"VLOOKUP(L121,Tabella_prezzi!$A$2:$L$73,6,FALSE)","v":"TS4L4-RACK"}]
[]
["TS4L4_UPS"]
[{"$f":"\"\"","v":""},null,null,null,null,null,{"$f":"\"\"","v":""},null,{"$f":"\"\"","v":""},null,null,{"$f":"\"\"","v":""},{"$f":"\"\"","v":""}]
["UPS PowerMe RPMM/9K - 3000VA",null,null,{"$f":"VLOOKUP(L125,Tabella_prezzi!$A$2:$L$73,8,FALSE)","v":"Dispositivo UPS di tipo On-line doppia conversione, strutturato per il montaggio a rack da 19”"},null,null,1,{"$f":"VLOOKUP(L125,Tabella_prezzi!$A$2:$L$223,9,FALSE)","v":"Dispositivo UPS di tipo On-line doppia conversione, strutturato per il montaggio a rack da 19”"},{"$f":"VLOOKUP(L125,Tabella_prezzi!$A$2:$L$223,3,FALSE)","v":"OpzUps (3000VA)"},{"$f":"VLOOKUP(L125,Tabella_prezzi!$A$2:$L$223,4,FALSE)","v":386.02},null,"L4N19",{"$f":"VLOOKUP(L125,Tabella_prezzi!$A$2:$L$73,6,FALSE)","v":"TS4L4-UPS"}]
[]
["TS4L4_GUI"]
[{"$f":"\"\"","v":""},null,null,null,null,null,{"$f":"\"\"","v":""},null,{"$f":"\"\"","v":""},null,null,{"$f":"\"\"","v":""},{"$f":"\"\"","v":""}]
["Unità KVM - monitor 17\", cavo combi PS/2&USB",null,null,{"$f":"VLOOKUP(L129,Tabella_prezzi!$A$2:$L$73,8,FALSE)","v":"Unità KVM - monitor 17\", cavo combi PS/2&USB da 1,8mt, tastiera italiana, touch pad"},null,null,1,{"$f":"VLOOKUP(L129,Tabella_prezzi!$A$2:$L$223,9,FALSE)","v":"Unità KVM - monitor 17\", cavo combi PS/2&USB da 1,8mt, tastiera italiana, touch pad"},{"$f":"VLOOKUP(L129,Tabella_prezzi!$A$2:$L$223,3,FALSE)","v":"OpzGUI"},{"$f":"VLOOKUP(L129,Tabella_prezzi!$A$2:$L$223,4,FALSE)","v":491.62},null,"L4N20",{"$f":"VLOOKUP(L129,Tabella_prezzi!$A$2:$L$73,6,FALSE)","v":"TS4L4-GUI"}]
[]
["TS4L4_KVM"]
[{"$f":"\"\"","v":""},null,null,null,null,null,{"$f":"\"\"","v":""},null,{"$f":"\"\"","v":""},null,null,{"$f":"\"\"","v":""},{"$f":"\"\"","v":""}]
[{"$f":"D133","v":"KVM Switch IP per GUI 16P"},null,null,{"$f":"VLOOKUP(L133,Tabella_prezzi!$A$2:$L$73,8,FALSE)","v":"KVM Switch IP per GUI 16P"},null,null,1,{"$f":"VLOOKUP(L133,Tabella_prezzi!$A$2:$L$223,9,FALSE)","v":"KVM Switch IP per GUI 16P"},{"$f":"VLOOKUP(L133,Tabella_prezzi!$A$2:$L$223,3,FALSE)","v":"OpzKVM"},{"$f":"VLOOKUP(L133,Tabella_prezzi!$A$2:$L$223,4,FALSE)","v":552.47},null,"L4N21",{"$f":"VLOOKUP(L133,Tabella_prezzi!$A$2:$L$73,6,FALSE)","v":"TS4L4-KVM"}]
[]
["SFP+ Transceivers"]
[{"$f":"D136","v":"SFP+ SR Optic for all SFP+ ports except High temperature Cards"},null,null,{"$f":"VLOOKUP(L136,Tabella_prezzi!$A$2:$L$73,8,FALSE)","v":"SFP+ SR Optic for all SFP+ ports except High temperature Cards"},null,null,1,{"$f":"VLOOKUP(L136,Tabella_prezzi!$A$2:$L$223,9,FALSE)","v":"SFP+ SR Optic for all SFP+ ports except High temperature Cards"},{"$f":"VLOOKUP(L136,Tabella_prezzi!$A$2:$L$223,3,FALSE)","v":0},null,{"$f":"VLOOKUP(L136,Tabella_prezzi!$A$2:$L$73,4,FALSE)","v":17.55},"L4N109",{"$f":"VLOOKUP(L136,Tabella_prezzi!$A$2:$L$73,6,FALSE)","v":"TS4L4-OT10GB"}]
[{"$f":"D137","v":"SFP28 SR Optic, 25GbE, 85C, for all SFP28 ports"},null,null,{"$f":"VLOOKUP(L137,Tabella_prezzi!$A$2:$L$73,8,FALSE)","v":"SFP28 SR Optic, 25GbE, 85C, for all SFP28 ports"},null,null,1,{"$f":"VLOOKUP(L137,Tabella_prezzi!$A$2:$L$223,9,FALSE)","v":"SFP28 SR Optic, 25GbE, 85C, for all SFP28 ports"},{"$f":"VLOOKUP(L137,Tabella_prezzi!$A$2:$L$223,3,FALSE)","v":0},null,{"$f":"VLOOKUP(L137,Tabella_prezzi!$A$2:$L$73,4,FALSE)","v":112.05},"L4N110",{"$f":"VLOOKUP(L137,Tabella_prezzi!$A$2:$L$73,6,FALSE)","v":"TS4L4-OT25GB"}]
[{"$f":"D138","v":"Dell EMC PowerEdge QSFP28 SR4 100GbE 85C optic"},null,null,{"$f":"VLOOKUP(L138,Tabella_prezzi!$A$2:$L$73,8,FALSE)","v":"Dell EMC PowerEdge QSFP28 SR4 100GbE 85C optic"},null,null,1,{"$f":"VLOOKUP(L138,Tabella_prezzi!$A$2:$L$223,9,FALSE)","v":"Dell EMC PowerEdge QSFP28 SR4 100GbE 85C optic"},{"$f":"VLOOKUP(L138,Tabella_prezzi!$A$2:$L$223,3,FALSE)","v":0},null,{"$f":"VLOOKUP(L138,Tabella_prezzi!$A$2:$L$73,4,FALSE)","v":484.65},"L4N111",{"$f":"VLOOKUP(L138,Tabella_prezzi!$A$2:$L$73,6,FALSE)","v":"TS4L4-OT100GB"}]
[]
[]
["TS4L4_PCI_A"]
["Slot Non Utilizzato",null,null,null,null,null,{"$f":"\"\"","v":""},null,{"$f":"\"\"","v":""},null,null,{"$f":"\"\"","v":""},{"$f":"\"\"","v":""}]
[{"$f":"D143","v":"Broadcom 5719 Quad Port 1Gb Network Interface Card, Full Height"},null,null,{"$f":"VLOOKUP(L143,Tabella_prezzi!$A$2:$L$73,9,FALSE)","v":"Broadcom 5719 Quad Port 1Gb Network Interface Card, Full Height"},null,"540-BBCX",1,{"$f":"VLOOKUP(L143,Tabella_prezzi!$A$2:$L$73,9,FALSE)","v":"Broadcom 5719 Quad Port 1Gb Network Interface Card, Full Height"},{"$f":"VLOOKUP(L143,Tabella_prezzi!$A$2:$L$73,3,FALSE)","v":"OpzGigabit"},{"$f":"VLOOKUP(L143,Tabella_prezzi!$A$2:$L$73,4,FALSE)","v":28.63},null,"L4N05",{"$f":"VLOOKUP(L143,Tabella_prezzi!$A$2:$L$73,6,FALSE)","v":"TS4L4-LAN1"}]
["Broadcom 57414 Dual Port 10Gb, SFP28, PCIe Adapter, Full Height + Optics",null,null,{"$f":"VLOOKUP(L144,Tabella_prezzi!$A$2:$L$73,9,FALSE)","v":"Broadcom 57414 Dual Port 10Gb, SFP28, PCIe Adapter, Full Height + Optics"},null,"540-BBCX",1,{"$f":"VLOOKUP(L144,Tabella_prezzi!$A$2:$L$73,9,FALSE)","v":"Broadcom 57414 Dual Port 10Gb, SFP28, PCIe Adapter, Full Height + Optics"},{"$f":"VLOOKUP(L144,Tabella_prezzi!$A$2:$L$73,3,FALSE)","v":"OpzGigabit10Gbps"},{"$f":"VLOOKUP(L144,Tabella_prezzi!$A$2:$L$73,4,FALSE)","v":157.47999999999999},null,"L4N06",{"$f":"VLOOKUP(L144,Tabella_prezzi!$A$2:$L$73,6,FALSE)","v":"TS4L4-LAN10"}]
["Intel Ethernet XXV710 Dual Port 25GbE SFP28 Adapter, PCIe Full Height + Optics",null,null,{"$f":"VLOOKUP(L145,Tabella_prezzi!$A$2:$L$73,9,FALSE)","v":"Intel Ethernet XXV710 Dual Port 25GbE SFP28 Adapter, PCIe Full Height + Optics"},null,"540-BBCX",1,{"$f":"VLOOKUP(L145,Tabella_prezzi!$A$2:$L$73,9,FALSE)","v":"Intel Ethernet XXV710 Dual Port 25GbE SFP28 Adapter, PCIe Full Height + Optics"},{"$f":"VLOOKUP(L145,Tabella_prezzi!$A$2:$L$73,3,FALSE)","v":"OpzGigabit25Gbps"},{"$f":"VLOOKUP(L145,Tabella_prezzi!$A$2:$L$73,4,FALSE)","v":244.98},null,"L4N07",{"$f":"VLOOKUP(L145,Tabella_prezzi!$A$2:$L$73,6,FALSE)","v":"TS4L4-LAN25"}]
["CNA QLogic 41262 Dual Port 10Gb SFP28 Adapter, Full Height + 10 Gbps Optics",null,null,{"$f":"VLOOKUP(L146,Tabella_prezzi!$A$2:$L$73,9,FALSE)","v":"CNA QLogic 41262 Dual Port 10Gb SFP28 Adapter, Full Height + 10 Gbps Optics"},null,"540-BBCX",1,{"$f":"VLOOKUP(L146,Tabella_prezzi!$A$2:$L$73,9,FALSE)","v":"CNA QLogic 41262 Dual Port 10Gb SFP28 Adapter, Full Height + 10 Gbps Optics"},{"$f":"VLOOKUP(L146,Tabella_prezzi!$A$2:$L$73,3,FALSE)","v":"OpzGigabit10Gbps CNA"},{"$f":"VLOOKUP(L146,Tabella_prezzi!$A$2:$L$73,4,FALSE)","v":150.33000000000001},null,"L4N08",{"$f":"VLOOKUP(L146,Tabella_prezzi!$A$2:$L$73,6,FALSE)","v":"TS4L4-CNA10"}]
["Intel X710-T2L Dual Port 10GbE BASE-T Adapter, PCIe Full Height ",null,null,{"$f":"VLOOKUP(L147,Tabella_prezzi!$A$2:$L$73,9,FALSE)","v":"Intel X710-T2L Dual Port 10GbE BASE-T Adapter, PCIe Full Height "},null,"540-BBCX",1,{"$f":"VLOOKUP(L147,Tabella_prezzi!$A$2:$L$73,9,FALSE)","v":"Intel X710-T2L Dual Port 10GbE BASE-T Adapter, PCIe Full Height "},{"$f":"VLOOKUP(L147,Tabella_prezzi!$A$2:$L$73,3,FALSE)","v":"Opz10Gigabit BaseT"},{"$f":"VLOOKUP(L147,Tabella_prezzi!$A$2:$L$73,4,FALSE)","v":144.76},null,"L4N09",{"$f":"VLOOKUP(L147,Tabella_prezzi!$A$2:$L$73,6,FALSE)","v":"TS4L4-BaseT"}]
["QLogic 2772 Dual Port 32GbE Fibre Channel HBA, PCIe Full Height + Optics",null,null,{"$f":"VLOOKUP(L148,Tabella_prezzi!$A$2:$L$73,9,FALSE)","v":"QLogic 2772 Dual Port 32GbE Fibre Channel HBA, PCIe Full Height + Optics"},null,"540-BBCX",1,{"$f":"VLOOKUP(L148,Tabella_prezzi!$A$2:$L$73,9,FALSE)","v":"QLogic 2772 Dual Port 32GbE Fibre Channel HBA, PCIe Full Height + Optics"},{"$f":"VLOOKUP(L148,Tabella_prezzi!$A$2:$L$73,3,FALSE)","v":"OpzFibreChannel"},{"$f":"VLOOKUP(L148,Tabella_prezzi!$A$2:$L$73,4,FALSE)","v":426.11},null,"L4N10",{"$f":"VLOOKUP(L148,Tabella_prezzi!$A$2:$L$73,6,FALSE)","v":"TS4L4- FibreChannel"}]
[]
["Slot Non Utilizzato",null,null,null,null,null,{"$f":"\"\"","v":""},null,{"$f":"\"\"","v":""},0,0,{"$f":"\"\"","v":""},{"$f":"\"\"","v":""}]
["Aggiungere Processore",{"$f":"\"\"","v":""},{"$f":"\"\"","v":""},{"$f":"\"\"","v":""},{"$f":"\"\"","v":""},{"$f":"\"\"","v":""},{"$f":"\"\"","v":""},{"$f":"\"\"","v":""},{"$f":"\"\"","v":""},0,0,null,{"$f":"\"\"","v":""}]
[null,null,null,null,null,null,null,null,null,null,0]
["TS4L4_PCI_A_LP",null,null,null,null,null,null,null,null,null,{"$f":"\"\"","v":""}]
["Slot Non Utilizzato",null,null,null,null,null,{"$f":"\"\"","v":""},null,{"$f":"\"\"","v":""},0,0,0,{"$f":"\"\"","v":""}]
[{"$f":"D155","v":"Broadcom 57414 Dual Port 10Gb, SFP28, PCIe Adapter, LOW PROFILE + Optics"},null,null,{"$f":"VLOOKUP(L155,Tabella_prezzi!$A$2:$L$73,9,FALSE)","v":"Broadcom 57414 Dual Port 10Gb, SFP28, PCIe Adapter, LOW PROFILE + Optics"},null,null,1,null,{"$f":"VLOOKUP(L155,Tabella_prezzi!$A$2:$L$73,3,FALSE)","v":"OpzGigabit10Gbps"},{"$f":"VLOOKUP(L155,Tabella_prezzi!$A$2:$L$73,4,FALSE)","v":157.47999999999999},null,"L4N76",{"$f":"VLOOKUP(L155,Tabella_prezzi!$A$2:$L$73,6,FALSE)","v":"TS4L4-LAN10-L"}]
[{"$f":"D156","v":"Intel Ethernet XXV710 Dual Port 25GbE SFP28 Adapter, PCIe Low Profile + Optics"},null,null,{"$f":"VLOOKUP(L156,Tabella_prezzi!$A$2:$L$73,9,FALSE)","v":"Intel Ethernet XXV710 Dual Port 25GbE SFP28 Adapter, PCIe Low Profile + Optics"},null,null,1,{"$f":"VLOOKUP(L156,Tabella_prezzi!$A$2:$L$73,9,FALSE)","v":"Intel Ethernet XXV710 Dual Port 25GbE SFP28 Adapter, PCIe Low Profile + Optics"},{"$f":"VLOOKUP(L156,Tabella_prezzi!$A$2:$L$73,3,FALSE)","v":"OpzGigabit25Gbps"},{"$f":"VLOOKUP(L156,Tabella_prezzi!$A$2:$L$73,4,FALSE)","v":244.98},null,"L4N77",{"$f":"VLOOKUP(L156,Tabella_prezzi!$A$2:$L$73,6,FALSE)","v":"TS4L4-LAN25-L"}]
[{"$f":"D157","v":"CNA QLogic 41262 Dual Port 10Gb SFP28 Adapter, Low Profile + 10 Gbps Optics"},null,null,{"$f":"VLOOKUP(L157,Tabella_prezzi!$A$2:$L$73,9,FALSE)","v":"CNA QLogic 41262 Dual Port 10Gb SFP28 Adapter, Low Profile + 10 Gbps Optics"},null,null,1,null,{"$f":"VLOOKUP(L157,Tabella_prezzi!$A$2:$L$73,3,FALSE)","v":"OpzGigabit10Gbps CNA"},{"$f":"VLOOKUP(L157,Tabella_prezzi!$A$2:$L$73,4,FALSE)","v":150.33000000000001},null,"L4N78",{"$f":"VLOOKUP(L157,Tabella_prezzi!$A$2:$L$73,6,FALSE)","v":"TS4L4-CNA10-L"}]
[{"$f":"D158","v":"Intel X710-T2L Dual Port 10GbE BASE-T Adapter, PCIe LP"},null,null,{"$f":"VLOOKUP(L158,Tabella_prezzi!$A$2:$L$73,9,FALSE)","v":"Intel X710-T2L Dual Port 10GbE BASE-T Adapter, PCIe LP"},null,null,1,null,{"$f":"VLOOKUP(L158,Tabella_prezzi!$A$2:$L$73,3,FALSE)","v":"Opz10Gigabit BaseT"},{"$f":"VLOOKUP(L158,Tabella_prezzi!$A$2:$L$73,4,FALSE)","v":144.76},null,"L4N79",{"$f":"VLOOKUP(L158,Tabella_prezzi!$A$2:$L$73,6,FALSE)","v":"TS4L4-BaseT-L"}]
[{"$f":"D159","v":"QLogic 2772 Dual Port 32GbE Fibre Channel HBA, PCIe Low Profile + Optics"},null,null,{"$f":"VLOOKUP(L159,Tabella_prezzi!$A$2:$L$73,9,FALSE)","v":"QLogic 2772 Dual Port 32GbE Fibre Channel HBA, PCIe Low Profile + Optics"},null,null,1,{"$f":"VLOOKUP(L159,Tabella_prezzi!$A$2:$L$73,9,FALSE)","v":"QLogic 2772 Dual Port 32GbE Fibre Channel HBA, PCIe Low Profile + Optics"},{"$f":"VLOOKUP(L159,Tabella_prezzi!$A$2:$L$73,3,FALSE)","v":"OpzFibreChannel-L"},{"$f":"VLOOKUP(L159,Tabella_prezzi!$A$2:$L$73,4,FALSE)","v":426.11},null,"L4N101",{"$f":"VLOOKUP(L159,Tabella_prezzi!$A$2:$L$73,6,FALSE)","v":"TS4L4- FibreChannel-L"}]
[{"$f":"\"\"","v":""},{"$f":"\"\"","v":""},{"$f":"\"\"","v":""},{"$f":"\"\"","v":""},{"$f":"\"\"","v":""},{"$f":"\"\"","v":""},{"$f":"\"\"","v":""},{"$f":"\"\"","v":""},{"$f":"\"\"","v":""},{"$f":"\"\"","v":""},{"$f":"\"\"","v":""},{"$f":"\"\"","v":""},{"$f":"\"\"","v":""}]
["Opzioni 20%"]
[{"$f":"\"\"","v":""},{"$f":"\"\"","v":""},{"$f":"\"\"","v":""},{"$f":"\"\"","v":""},{"$f":"\"\"","v":""},{"$f":"\"\"","v":""},{"$f":"\"\"","v":""},{"$f":"\"\"","v":""},{"$f":"\"\"","v":""},{"$f":"\"\"","v":""},{"$f":"\"\"","v":""},{"$f":"\"\"","v":""},{"$f":"\"\"","v":""}]
[{"$f":"D163","v":"Mellanox ConnectX-6 Single Port HDR VPI Infiniband Adapter, PCIe Low Profile"},null,null,{"$f":"VLOOKUP(L163,Tabella_prezzi!$A$2:$L$73,9,FALSE)","v":"Mellanox ConnectX-6 Single Port HDR VPI Infiniband Adapter, PCIe Low Profile"},null,"540-BBCX",1,{"$f":"VLOOKUP(L163,Tabella_prezzi!$A$2:$L$73,9,FALSE)","v":"Mellanox ConnectX-6 Single Port HDR VPI Infiniband Adapter, PCIe Low Profile"},{"$f":"VLOOKUP(L163,Tabella_prezzi!$A$2:$L$73,3,FALSE)","v":"Opz100GBs"},null,{"$f":"VLOOKUP(L163,Tabella_prezzi!$A$2:$L$73,4,FALSE)","v":1305.45},"L4N39",{"$f":"VLOOKUP(L163,Tabella_prezzi!$A$2:$L$73,6,FALSE)","v":"TS4L4-100GBs-INF"}]
[{"$f":"D164","v":"Broadcom 57508 Dual Port 100GbE QSFP Adapter, PCIe Low Profile"},null,null,{"$f":"VLOOKUP(L164,Tabella_prezzi!$A$2:$L$73,9,FALSE)","v":"Broadcom 57508 Dual Port 100GbE QSFP Adapter, PCIe Low Profile"},null,"540-BBCX",1,{"$f":"VLOOKUP(L164,Tabella_prezzi!$A$2:$L$73,9,FALSE)","v":"Broadcom 57508 Dual Port 100GbE QSFP Adapter, PCIe Low Profile"},{"$f":"VLOOKUP(L164,Tabella_prezzi!$A$2:$L$73,3,FALSE)","v":"Opz100GBs"},null,{"$f":"VLOOKUP(L164,Tabella_prezzi!$A$2:$L$73,4,FALSE)","v":683.1},"L4N37",{"$f":"VLOOKUP(L164,Tabella_prezzi!$A$2:$L$73,6,FALSE)","v":"TS4L4-100GBs-B"}]
[{"$f":"D165","v":"ROCK Port 100Gbs (include scheda pci e manutenzione)"},null,null,{"$f":"VLOOKUP(L165,Tabella_prezzi!$A$2:$L$100,9,FALSE)","v":"ROCK Port 100Gbs (include scheda pci e manutenzione)"},null,"540-BBCX",1,{"$f":"VLOOKUP(L165,Tabella_prezzi!$A$2:$L$100,9,FALSE)","v":"ROCK Port 100Gbs (include scheda pci e manutenzione)"},{"$f":"VLOOKUP(L165,Tabella_prezzi!$A$2:$L$100,3,FALSE)","v":0},null,{"$f":"VLOOKUP(L165,Tabella_prezzi!$A$2:$L$100,4,FALSE)","v":3300},"L4N120",{"$f":"VLOOKUP(L165,Tabella_prezzi!$A$2:$L$100,6,FALSE)","v":"TS4L4-ROCK"}]
[{"$f":"D166","v":"PERC H840 RAID Adapter for External JBOD Only"},null,null,{"$f":"VLOOKUP(L166,Tabella_prezzi!$A$2:$L$99,9,FALSE)","v":"PERC H840 RAID Adapter for External JBOD Only"},null,"540-BBCX",1,{"$f":"VLOOKUP(L166,Tabella_prezzi!$A$2:$L$99,9,FALSE)","v":"PERC H840 RAID Adapter for External JBOD Only"},{"$f":"VLOOKUP(L166,Tabella_prezzi!$A$2:$L$99,3,FALSE)","v":{"$error":"#VALUE!"}},null,{"$f":"VLOOKUP(L166,Tabella_prezzi!$A$2:$L$99,4,FALSE)","v":0},"L4N129",{"$f":"VLOOKUP(L166,Tabella_prezzi!$A$2:$L$99,6,FALSE)","v":""}]
[{"$f":"\"\"","v":""},null,null,null,null,null,{"$f":"\"\"","v":""},null,{"$f":"\"\"","v":""},0,0,0,0]
["TS4L4_PCI_NUT"]
["Slot Non Utilizzato",null,null,null,null,null,{"$f":"\"\"","v":""},null,{"$f":"\"\"","v":""},null,null,{"$f":"\"\"","v":""},{"$f":"\"\"","v":""}]
[{"$f":"D170","v":"Broadcom 57414 Dual Port 10Gb, SFP28, PCIe Adapter, Full Height + Optics"},null,null,{"$f":"VLOOKUP(L170,Tabella_prezzi!$A$2:$L$73,9,FALSE)","v":"Broadcom 57414 Dual Port 10Gb, SFP28, PCIe Adapter, Full Height + Optics"},null,"540-BBCX",1,{"$f":"VLOOKUP(L170,Tabella_prezzi!$A$2:$L$73,9,FALSE)","v":"Broadcom 57414 Dual Port 10Gb, SFP28, PCIe Adapter, Full Height + Optics"},{"$f":"VLOOKUP(L170,Tabella_prezzi!$A$2:$L$73,3,FALSE)","v":"OpzGigabit10Gbps"},{"$f":"VLOOKUP(L170,Tabella_prezzi!$A$2:$L$73,4,FALSE)","v":157.47999999999999},null,"L4N06",{"$f":"VLOOKUP(L170,Tabella_prezzi!$A$2:$L$73,6,FALSE)","v":"TS4L4-LAN10"}]
["Intel Ethernet XXV710 Dual Port 25GbE SFP28 Adapter, PCIe Full Height + Optics",null,null,{"$f":"VLOOKUP(L171,Tabella_prezzi!$A$2:$L$73,9,FALSE)","v":"Intel Ethernet XXV710 Dual Port 25GbE SFP28 Adapter, PCIe Full Height + Optics"},null,"540-BBCX",1,{"$f":"VLOOKUP(L171,Tabella_prezzi!$A$2:$L$73,9,FALSE)","v":"Intel Ethernet XXV710 Dual Port 25GbE SFP28 Adapter, PCIe Full Height + Optics"},{"$f":"VLOOKUP(L171,Tabella_prezzi!$A$2:$L$73,3,FALSE)","v":"OpzGigabit25Gbps"},{"$f":"VLOOKUP(L171,Tabella_prezzi!$A$2:$L$73,4,FALSE)","v":244.98},null,"L4N07",{"$f":"VLOOKUP(L171,Tabella_prezzi!$A$2:$L$73,6,FALSE)","v":"TS4L4-LAN25"}]
["Intel X710-T2L Dual Port 10GbE BASE-T Adapter, PCIe Full Height ",null,null,{"$f":"VLOOKUP(L172,Tabella_prezzi!$A$2:$L$73,9,FALSE)","v":"Intel X710-T2L Dual Port 10GbE BASE-T Adapter, PCIe Full Height "},null,"540-BBCX",1,{"$f":"VLOOKUP(L172,Tabella_prezzi!$A$2:$L$73,9,FALSE)","v":"Intel X710-T2L Dual Port 10GbE BASE-T Adapter, PCIe Full Height "},{"$f":"VLOOKUP(L172,Tabella_prezzi!$A$2:$L$73,3,FALSE)","v":"Opz10Gigabit BaseT"},{"$f":"VLOOKUP(L172,Tabella_prezzi!$A$2:$L$73,4,FALSE)","v":144.76},null,"L4N09",{"$f":"VLOOKUP(L172,Tabella_prezzi!$A$2:$L$73,6,FALSE)","v":"TS4L4-BaseT"}]
[{"$f":"\"\"","v":""},{"$f":"\"\"","v":""},{"$f":"\"\"","v":""},{"$f":"\"\"","v":""},{"$f":"\"\"","v":""},{"$f":"\"\"","v":""},{"$f":"\"\"","v":""},{"$f":"\"\"","v":""},{"$f":"\"\"","v":""},{"$f":"\"\"","v":""},{"$f":"\"\"","v":""},{"$f":"\"\"","v":""},{"$f":"\"\"","v":""}]
["Opzioni 20%"]
[{"$f":"\"\"","v":""},null,null,null,null,null,{"$f":"\"\"","v":""},null,{"$f":"\"\"","v":""},null,null,{"$f":"\"\"","v":""},{"$f":"\"\"","v":""}]
[{"$f":"D176","v":"Rack 42RU DellEmc"},null,null,{"$f":"VLOOKUP(L176,Tabella_prezzi!$A$2:$L$149,9,FALSE)","v":"Rack 42RU DellEmc"},null,"540-BBCX",1,{"$f":"VLOOKUP(L176,Tabella_prezzi!$A$2:$L$149,9,FALSE)","v":"Rack 42RU DellEmc"},{"$f":"VLOOKUP(L176,Tabella_prezzi!$A$2:$L$149,3,FALSE)","v":0},null,{"$f":"VLOOKUP(L176,Tabella_prezzi!$A$2:$L$149,4,FALSE)","v":2929.5},"L4N116",{"$f":"VLOOKUP(L176,Tabella_Prezzi,6,FALSE)","v":"TS4L4-RACK-D"}]
[{"$f":"D177","v":"PDU 220 mono output 20-C13 + 4-C19 IEC 320, input C20"},null,null,{"$f":"VLOOKUP(L177,Tabella_prezzi!$A$2:$L$149,9,FALSE)","v":"PDU 220 mono output 20-C13 + 4-C19 IEC 320, input C20"},null,"540-BBCX",2,{"$f":"VLOOKUP(L177,Tabella_prezzi!$A$2:$L$149,9,FALSE)","v":"PDU 220 mono output 20-C13 + 4-C19 IEC 320, input C20"},{"$f":"VLOOKUP(L177,Tabella_prezzi!$A$2:$L$149,3,FALSE)","v":0},null,{"$f":"VLOOKUP(L177,Tabella_prezzi!$A$2:$L$149,4,FALSE)","v":540},"L4N117","TS4L4-PDU-M"]
["PDU 220 Trifase output 6-C19 e 36-C13, input Spina 3P+T 400V 16A",null,null,{"$f":"VLOOKUP(L178,Tabella_prezzi!$A$2:$L$149,9,FALSE)","v":"PDU 220 Trifase output 6-C19 e 36-C13, input Spina 3P+T 400V 16A"},null,"540-BBCX",3,{"$f":"VLOOKUP(L178,Tabella_prezzi!$A$2:$L$149,9,FALSE)","v":"PDU 220 Trifase output 6-C19 e 36-C13, input Spina 3P+T 400V 16A"},{"$f":"VLOOKUP(L178,Tabella_prezzi!$A$2:$L$149,3,FALSE)","v":0},null,{"$f":"VLOOKUP(L178,Tabella_prezzi!$A$2:$L$149,4,FALSE)","v":1080},"L4N118","TS4L4-PDU-T"]
["Dell KVM + Switch 8 porte + cavi ",null,null,{"$f":"VLOOKUP(L179,Tabella_prezzi!$A$2:$L$149,9,FALSE)","v":"Dell KVM + Switch 8 porte + cavi "},null,"540-BBCX",4,{"$f":"VLOOKUP(L179,Tabella_prezzi!$A$2:$L$149,9,FALSE)","v":"Dell KVM + Switch 8 porte + cavi "},{"$f":"VLOOKUP(L179,Tabella_prezzi!$A$2:$L$149,3,FALSE)","v":0},null,{"$f":"VLOOKUP(L179,Tabella_prezzi!$A$2:$L$149,4,FALSE)","v":3300.75},"L4N119","TS4L4-KVM-D"]
["Cable Management Arm for PowerEdge Systems",null,null,{"$f":"VLOOKUP(L180,Tabella_prezzi!$A$2:$L$149,9,FALSE)","v":"Cable Management Arm for PowerEdge Systems"},null,"540-BBCX",5,{"$f":"VLOOKUP(L180,Tabella_prezzi!$A$2:$L$149,9,FALSE)","v":"Cable Management Arm for PowerEdge Systems"},{"$f":"VLOOKUP(L180,Tabella_prezzi!$A$2:$L$149,3,FALSE)","v":"OpzCMA"},null,{"$f":"VLOOKUP(L180,Tabella_prezzi!$A$2:$L$149,4,FALSE)","v":33.75},"L4N121","TS4L4-CMA"]
["Enclosure di espansione JBOD 12 slot 3,5'' + HBA (H840)  ",null,null,{"$f":"VLOOKUP(L181,Tabella_prezzi!$A$2:$L$149,9,FALSE)","v":"Enclosure di espansione JBOD 12 slot 3,5'' + HBA (H840)  "},null,"540-BBCX",6,{"$f":"VLOOKUP(L181,Tabella_prezzi!$A$2:$L$149,9,FALSE)","v":"Enclosure di espansione JBOD 12 slot 3,5'' + HBA (H840)  "},{"$f":"VLOOKUP(L181,Tabella_prezzi!$A$2:$L$149,3,FALSE)","v":"OpzJBOD"},null,{"$f":"VLOOKUP(L181,Tabella_prezzi!$A$2:$L$149,4,FALSE)","v":5719.95},"L4N122","TS4L4-JBOD"]
["12TB 7.2K RPM NLSAS ISE 12Gbps 512e 3.5in Hot-plug Hard Drive",null,null,{"$f":"VLOOKUP(L182,Tabella_prezzi!$A$2:$L$149,9,FALSE)","v":"12TB 7.2K RPM NLSAS ISE 12Gbps 512e 3.5in Hot-plug Hard Drive"},null,"540-BBCX",7,{"$f":"VLOOKUP(L182,Tabella_prezzi!$A$2:$L$149,9,FALSE)","v":"12TB 7.2K RPM NLSAS ISE 12Gbps 512e 3.5in Hot-plug Hard Drive"},{"$f":"VLOOKUP(L182,Tabella_prezzi!$A$2:$L$149,3,FALSE)","v":"Opz12TBNLSAS"},null,{"$f":"VLOOKUP(L182,Tabella_prezzi!$A$2:$L$149,4,FALSE)","v":405},"L4N123","TS4L4-12TBNLSAS"]
["16TB Hard Drive SAS ISE 12Gbps 7.2K 512e 3.5in Hot-Plug",null,null,{"$f":"VLOOKUP(L183,Tabella_prezzi!$A$2:$L$149,9,FALSE)","v":"16TB Hard Drive SAS ISE 12Gbps 7.2K 512e 3.5in Hot-Plug"},null,"540-BBCX",8,{"$f":"VLOOKUP(L183,Tabella_prezzi!$A$2:$L$149,9,FALSE)","v":"16TB Hard Drive SAS ISE 12Gbps 7.2K 512e 3.5in Hot-Plug"},{"$f":"VLOOKUP(L183,Tabella_prezzi!$A$2:$L$149,3,FALSE)","v":"Opz16TBSAS"},null,{"$f":"VLOOKUP(L183,Tabella_prezzi!$A$2:$L$149,4,FALSE)","v":438.75},"L4N124","TS4L4-16TBSAS"]
["20TB HDD SAS ISE 12Gbps 7.2K 512e 3.5in Hot-Plug",null,null,{"$f":"VLOOKUP(L184,Tabella_prezzi!$A$2:$L$149,9,FALSE)","v":"20TB HDD SAS ISE 12Gbps 7.2K 512e 3.5in Hot-Plug"},null,"540-BBCX",9,{"$f":"VLOOKUP(L184,Tabella_prezzi!$A$2:$L$149,9,FALSE)","v":"20TB HDD SAS ISE 12Gbps 7.2K 512e 3.5in Hot-Plug"},{"$f":"VLOOKUP(L184,Tabella_prezzi!$A$2:$L$149,3,FALSE)","v":"Opz20TBSAS"},null,{"$f":"VLOOKUP(L184,Tabella_prezzi!$A$2:$L$149,4,FALSE)","v":594},"L4N125","TS4L4-20TBSAS"]
["Slot Non Utilizzato"]
["Aggiungere Processore",null,null,null,null,null,{"$f":"\"\"","v":""},null,{"$f":"\"\"","v":""},0,0,{"$f":"\"\"","v":""},{"$f":"\"\"","v":""}]
[]
[0,null,0]
[2,null,1]
[4]
[6]
["Illimitate"]
[]
[]
[1,3]
[3,6]
[4,9,"1CPU","2CPU"]
[]
[1,null,4,16,{"$f":"16+(C199*2)","v":24},{"$f":"16+(D199*2)","v":48}]
[2,null,16,28,{"$f":"16+(C200*2)","v":48},{"$f":"16+(D200*2)","v":72}]
[3,null,28,40,{"$f":"16+(C201*2)","v":72},96]
[4]
[5]
[6]
[7]
[8]
[9]
[10]
[11]
[12]
[13]
[14]
[15]
[16]
[]
[]
["Slot PCI",1,2,3,4,5,6,7,8,null,"Slot PCI",1,2,3,4,5,6,7,8,null,"Slot PCI",1,2,3,4,5,6,7,8]
["Conf 1",{"$f":"Lotto4_R7525_1!M87","v":""},{"$f":"Lotto4_R7525_1!M90","v":""},{"$f":"Lotto4_R7525_1!M93","v":""},{"$f":"Lotto4_R7525_1!M96","v":""},{"$f":"Lotto4_R7525_1!M99","v":""},{"$f":"Lotto4_R7525_1!M102","v":""},{"$f":"Lotto4_R7525_1!M105","v":""},{"$f":"Lotto4_R7525_1!M108","v":""},null,"Conf 2",{"$f":"#REF!","v":{"$error":"#REF!"}},{"$f":"#REF!","v":{"$error":"#REF!"}},{"$f":"#REF!","v":{"$error":"#REF!"}},{"$f":"#REF!","v":{"$error":"#REF!"}},{"$f":"#REF!","v":{"$error":"#REF!"}},{"$f":"#REF!","v":{"$error":"#REF!"}},{"$f":"#REF!","v":{"$error":"#REF!"}},{"$f":"#REF!","v":{"$error":"#REF!"}},null,"Conf 2",{"$f":"#REF!","v":{"$error":"#REF!"}},{"$f":"#REF!","v":{"$error":"#REF!"}},{"$f":"#REF!","v":{"$error":"#REF!"}},{"$f":"#REF!","v":{"$error":"#REF!"}},{"$f":"#REF!","v":{"$error":"#REF!"}},{"$f":"#REF!","v":{"$error":"#REF!"}},{"$f":"#REF!","v":{"$error":"#REF!"}},{"$f":"#REF!","v":{"$error":"#REF!"}}]
[]
[]
[]
["TS4L4-LAN1",{"$f":"IF($A222=$B$218,1,\"\")","v":""},{"$f":"IF($A222=$C$218,2,\"\")","v":""},{"$f":"IF($A222=$D$218,3,\"\")","v":""},{"$f":"IF($A222=$E$218,4,\"\")","v":""},{"$f":"IF($A222=$F$218,5,\"\")","v":""},{"$f":"IF($A222=$G$218,6,\"\")","v":""},{"$f":"IF($A222=$H$218,7,\"\")","v":""},{"$f":"IF($A222=$I$218,8,\"\")","v":""},{"$f":"IF(SUM(B222:I222)=0,\"\",CONCATENATE(\" PCI Slot \",B222,\"-\",C222,\"-\",D222,\"-\",E222,\"-\",F222,\"-\",G222,\"-\",H222,\"-\",I222,\"\"))","v":""},"TS4L4-LAN1",{"$f":"IF($A222=$L$218,1,\"\")","v":{"$error":"#REF!"}},{"$f":"IF($A222=$M$218,2,\"\")","v":{"$error":"#REF!"}},{"$f":"IF($A222=$N$218,3,\"\")","v":{"$error":"#REF!"}},{"$f":"IF($A222=$O$218,4,\"\")","v":{"$error":"#REF!"}},{"$f":"IF($A222=$P$218,5,\"\")","v":{"$error":"#REF!"}},{"$f":"IF($A222=$Q$218,6,\"\")","v":{"$error":"#REF!"}},{"$f":"IF($A222=$R$218,7,\"\")","v":{"$error":"#REF!"}},{"$f":"IF($A222=$S$218,8,\"\")","v":{"$error":"#REF!"}},{"$f":"IF(SUM(L222:S222)=0,\"\",CONCATENATE(\" PCI Slot \",L222,\"-\",M222,\"-\",N222,\"-\",O222,\"-\",P222,\"-\",Q222,\"-\",R222,\"-\",S222,\"\"))","v":{"$error":"#REF!"}},"TS4L4-LAN1",{"$f":"IF($A222=$V$218,1,\"\")","v":{"$error":"#REF!"}},{"$f":"IF($A222=$W$218,2,\"\")","v":{"$error":"#REF!"}},{"$f":"IF($A222=$X$218,3,\"\")","v":{"$error":"#REF!"}},{"$f":"IF($A222=$Y$218,4,\"\")","v":{"$error":"#REF!"}},{"$f":"IF($A222=$Z$218,5,\"\")","v":{"$error":"#REF!"}},{"$f":"IF($A222=$AA$218,6,\"\")","v":{"$error":"#REF!"}},{"$f":"IF($A222=$AB$218,7,\"\")","v":{"$error":"#REF!"}},{"$f":"IF($A222=$AC$218,8,\"\")","v":{"$error":"#REF!"}},{"$f":"IF(SUM(V222:AC222)=0,\"\",CONCATENATE(\" PCI Slot \",V222,\"-\",W222,\"-\",X222,\"-\",Y222,\"-\",Z222,\"-\",AA222,\"-\",AB222,\"-\",AC222,\"\"))","v":{"$error":"#REF!"}}]
["TS4L4-LAN1-L",{"$f":"IF($A223=$B$218,1,\"\")","v":""},{"$f":"IF($A223=$C$218,2,\"\")","v":""},{"$f":"IF($A223=$D$218,3,\"\")","v":""},{"$f":"IF($A223=$E$218,4,\"\")","v":""},{"$f":"IF($A223=$F$218,5,\"\")","v":""},{"$f":"IF($A223=$G$218,6,\"\")","v":""},{"$f":"IF($A223=$H$218,7,\"\")","v":""},{"$f":"IF($A223=$I$218,8,\"\")","v":""},{"$f":"IF(SUM(B223:I223)=0,\"\",CONCATENATE(\" PCI Slot \",B223,\"-\",C223,\"-\",D223,\"-\",E223,\"-\",F223,\"-\",G223,\"-\",H223,\"-\",I223,\"\"))","v":""},"TS4L4-LAN1-L",{"$f":"IF($A223=$L$218,1,\"\")","v":{"$error":"#REF!"}},{"$f":"IF($A223=$M$218,2,\"\")","v":{"$error":"#REF!"}},{"$f":"IF($A223=$N$218,3,\"\")","v":{"$error":"#REF!"}},{"$f":"IF($A223=$O$218,4,\"\")","v":{"$error":"#REF!"}},{"$f":"IF($A223=$P$218,5,\"\")","v":{"$error":"#REF!"}},{"$f":"IF($A223=$Q$218,6,\"\")","v":{"$error":"#REF!"}},{"$f":"IF($A223=$R$218,7,\"\")","v":{"$error":"#REF!"}},{"$f":"IF($A223=$S$218,8,\"\")","v":{"$error":"#REF!"}},{"$f":"IF(SUM(L223:S223)=0,\"\",CONCATENATE(\" PCI Slot \",L223,\"-\",M223,\"-\",N223,\"-\",O223,\"-\",P223,\"-\",Q223,\"-\",R223,\"-\",S223,\"\"))","v":{"$error":"#REF!"}},"TS4L4-LAN1-L",{"$f":"IF($A223=$V$218,1,\"\")","v":{"$error":"#REF!"}},{"$f":"IF($A223=$W$218,2,\"\")","v":{"$error":"#REF!"}},{"$f":"IF($A223=$X$218,3,\"\")","v":{"$error":"#REF!"}},{"$f":"IF($A223=$Y$218,4,\"\")","v":{"$error":"#REF!"}},{"$f":"IF($A223=$Z$218,5,\"\")","v":{"$error":"#REF!"}},{"$f":"IF($A223=$AA$218,6,\"\")","v":{"$error":"#REF!"}},{"$f":"IF($A223=$AB$218,7,\"\")","v":{"$error":"#REF!"}},{"$f":"IF($A223=$AC$218,8,\"\")","v":{"$error":"#REF!"}},{"$f":"IF(SUM(V223:AC223)=0,\"\",CONCATENATE(\" PCI Slot \",V223,\"-\",W223,\"-\",X223,\"-\",Y223,\"-\",Z223,\"-\",AA223,\"-\",AB223,\"-\",AC223,\"\"))","v":{"$error":"#REF!"}}]
["TS4L4-LAN10","","","","","","","","","","TS4L4-LAN10",{"$error":"#REF!"},{"$error":"#REF!"},{"$error":"#REF!"},{"$error":"#REF!"},{"$error":"#REF!"},{"$error":"#REF!"},{"$error":"#REF!"},{"$error":"#REF!"},{"$error":"#REF!"},"TS4L4-LAN10",{"$error":"#REF!"},{"$error":"#REF!"},{"$error":"#REF!"},{"$error":"#REF!"},{"$error":"#REF!"},{"$error":"#REF!"},{"$error":"#REF!"},{"$error":"#REF!"},{"$error":"#REF!"}]
["TS4L4-LAN10-L","","","","","","","","","","TS4L4-LAN10-L",{"$error":"#REF!"},{"$error":"#REF!"},{"$error":"#REF!"},{"$error":"#REF!"},{"$error":"#REF!"},{"$error":"#REF!"},{"$error":"#REF!"},{"$error":"#REF!"},{"$error":"#REF!"},"TS4L4-LAN10-L",{"$error":"#REF!"},{"$error":"#REF!"},{"$error":"#REF!"},{"$error":"#REF!"},{"$error":"#REF!"},{"$error":"#REF!"},{"$error":"#REF!"},{"$error":"#REF!"},{"$error":"#REF!"}]
["TS4L4-LAN25","","","","","","","","","","TS4L4-LAN25",{"$error":"#REF!"},{"$error":"#REF!"},{"$error":"#REF!"},{"$error":"#REF!"},{"$error":"#REF!"},{"$error":"#REF!"},{"$error":"#REF!"},{"$error":"#REF!"},{"$error":"#REF!"},"TS4L4-LAN25",{"$error":"#REF!"},{"$error":"#REF!"},{"$error":"#REF!"},{"$error":"#REF!"},{"$error":"#REF!"},{"$error":"#REF!"},{"$error":"#REF!"},{"$error":"#REF!"},{"$error":"#REF!"}]
["TS4L4-LAN25-L","","","","","","","","","","TS4L4-LAN25-L",{"$error":"#REF!"},{"$error":"#REF!"},{"$error":"#REF!"},{"$error":"#REF!"},{"$error":"#REF!"},{"$error":"#REF!"},{"$error":"#REF!"},{"$error":"#REF!"},{"$error":"#REF!"},"TS4L4-LAN25-L",{"$error":"#REF!"},{"$error":"#REF!"},{"$error":"#REF!"},{"$error":"#REF!"},{"$error":"#REF!"},{"$error":"#REF!"},{"$error":"#REF!"},{"$error":"#REF!"},{"$error":"#REF!"}]
["TS4L4-CNA10","","","","","","","","","","TS4L4-CNA10",{"$error":"#REF!"},{"$error":"#REF!"},{"$error":"#REF!"},{"$error":"#REF!"},{"$error":"#REF!"},{"$error":"#REF!"},{"$error":"#REF!"},{"$error":"#REF!"},{"$error":"#REF!"},"TS4L4-CNA10",{"$error":"#REF!"},{"$error":"#REF!"},{"$error":"#REF!"},{"$error":"#REF!"},{"$error":"#REF!"},{"$error":"#REF!"},{"$error":"#REF!"},{"$error":"#REF!"},{"$error":"#REF!"}]
["TS4L4-CNA10-L","","","","","","","","","","TS4L4-CNA10-L",{"$error":"#REF!"},{"$error":"#REF!"},{"$error":"#REF!"},{"$error":"#REF!"},{"$error":"#REF!"},{"$error":"#REF!"},{"$error":"#REF!"},{"$error":"#REF!"},{"$error":"#REF!"},"TS4L4-CNA10-L",{"$error":"#REF!"},{"$error":"#REF!"},{"$error":"#REF!"},{"$error":"#REF!"},{"$error":"#REF!"},{"$error":"#REF!"},{"$error":"#REF!"},{"$error":"#REF!"},{"$error":"#REF!"}]
["TS4L4-BaseT","","","","","","","","","","TS4L4-BaseT",{"$error":"#REF!"},{"$error":"#REF!"},{"$error":"#REF!"},{"$error":"#REF!"},{"$error":"#REF!"},{"$error":"#REF!"},{"$error":"#REF!"},{"$error":"#REF!"},{"$error":"#REF!"},"TS4L4-BaseT",{"$error":"#REF!"},{"$error":"#REF!"},{"$error":"#REF!"},{"$error":"#REF!"},{"$error":"#REF!"},{"$error":"#REF!"},{"$error":"#REF!"},{"$error":"#REF!"},{"$error":"#REF!"}]
["TS4L4- BaseT-L","","","","","","","","","","TS4L4- BaseT-L",{"$error":"#REF!"},{"$error":"#REF!"},{"$error":"#REF!"},{"$error":"#REF!"},{"$error":"#REF!"},{"$error":"#REF!"},{"$error":"#REF!"},{"$error":"#REF!"},{"$error":"#REF!"},"TS4L4- BaseT-L",{"$error":"#REF!"},{"$error":"#REF!"},{"$error":"#REF!"},{"$error":"#REF!"},{"$error":"#REF!"},{"$error":"#REF!"},{"$error":"#REF!"},{"$error":"#REF!"},{"$error":"#REF!"}]
["TS4L4- FibreChannel","","","","","","","","","","TS4L4- FibreChannel",{"$error":"#REF!"},{"$error":"#REF!"},{"$error":"#REF!"},{"$error":"#REF!"},{"$error":"#REF!"},{"$error":"#REF!"},{"$error":"#REF!"},{"$error":"#REF!"},{"$error":"#REF!"},"TS4L4- FibreChannel",{"$error":"#REF!"},{"$error":"#REF!"},{"$error":"#REF!"},{"$error":"#REF!"},{"$error":"#REF!"},{"$error":"#REF!"},{"$error":"#REF!"},{"$error":"#REF!"},{"$error":"#REF!"}]
["TS4L4- FibreChannel-L","","","","","","","","","","TS4L4- FibreChannel-L",{"$error":"#REF!"},{"$error":"#REF!"},{"$error":"#REF!"},{"$error":"#REF!"},{"$error":"#REF!"},{"$error":"#REF!"},{"$error":"#REF!"},{"$error":"#REF!"},{"$error":"#REF!"},"TS4L4- FibreChannel-L",{"$error":"#REF!"},{"$error":"#REF!"},{"$error":"#REF!"},{"$error":"#REF!"},{"$error":"#REF!"},{"$error":"#REF!"},{"$error":"#REF!"},{"$error":"#REF!"},{"$error":"#REF!"}]
["TS4L4-100GBs_B","","","","","","","","","","TS4L4-100GBs_B",{"$error":"#REF!"},{"$error":"#REF!"},{"$error":"#REF!"},{"$error":"#REF!"},{"$error":"#REF!"},{"$error":"#REF!"},{"$error":"#REF!"},{"$error":"#REF!"},{"$error":"#REF!"},"TS4L4-100GBs_B",{"$error":"#REF!"},{"$error":"#REF!"},{"$error":"#REF!"},{"$error":"#REF!"},{"$error":"#REF!"},{"$error":"#REF!"},{"$error":"#REF!"},{"$error":"#REF!"},{"$error":"#REF!"}]
["TS4L4-100GBs_M","","","","","","","","","","TS4L4-100GBs_M",{"$error":"#REF!"},{"$error":"#REF!"},{"$error":"#REF!"},{"$error":"#REF!"},{"$error":"#REF!"},{"$error":"#REF!"},{"$error":"#REF!"},{"$error":"#REF!"},{"$error":"#REF!"},"TS4L4-100GBs_M",{"$error":"#REF!"},{"$error":"#REF!"},{"$error":"#REF!"},{"$error":"#REF!"},{"$error":"#REF!"},{"$error":"#REF!"},{"$error":"#REF!"},{"$error":"#REF!"},{"$error":"#REF!"}]
["TS4L4-100GBs_M","","","","","","","","","","TS4L4-100GBs_M",{"$error":"#REF!"},{"$error":"#REF!"},{"$error":"#REF!"},{"$error":"#REF!"},{"$error":"#REF!"},{"$error":"#REF!"},{"$error":"#REF!"},{"$error":"#REF!"},{"$error":"#REF!"},"TS4L4-100GBs_M",{"$error":"#REF!"},{"$error":"#REF!"},{"$error":"#REF!"},{"$error":"#REF!"},{"$error":"#REF!"},{"$error":"#REF!"},{"$error":"#REF!"},{"$error":"#REF!"},{"$error":"#REF!"}]

{"sheet":"Tabella_prezzi","index":8,"n_rows":87,"n_cols":18,"rows_kept":87,"cut":false,"hidden":true,"merged":[[26,0,27,0],[24,0,25,0],[5,0,11,0],[16,0,17,0],[22,0,23,0],[20,0,21,0],[18,0,19,0]]}
["N°",null,"Attributo","Valore inserito","N°","Codice Convenzione","Qty:",null,"Description:","Manufacturer Part","Sku Number:","Brand"]
["L4N01",1,"Server rackable bi-processore prest.",3637.17,"L4N01","TS4L4-SRV",1,"PowerEdge R7525 Server","PowerEdge R7525 Server","L4N01-ServerR7525","210-AUVQ","DELL",null,null,null,null,"210-321-BCPX","-"]
["L4N01-NVME",1,"Server rackable bi-processore prest.",{"$f":"D2+(D2*4%)","v":3782.6568000000002},"L4N01-NVME","TS4L4-SRV-NVMe",1,"PowerEdge R7525 Server NVMe","PowerEdge R7525 Server NVMe","L4N01-ServerR7525-NVMe","210-AUVQ","DELL",null,null,null,null,"210-321-BCPX","-"]
["L4N01-NVME",1,"Server rackable bi-processore prest.",{"$f":"D2+(D2*4%)","v":3782.6568000000002},"L4N01-vSAN","TS4L4-SRV-vSAN",1,"PowerEdge R7525 Server vSAN","PowerEdge R7525 Server vSAN NVMe","L4N01-ServerR7525-vSAN","210-AUVQ","DELL",null,null,null,null,"210-321-BCPX","-"]
["L4N01-NVME",1,"Server rackable bi-processore prest.",{"$f":"D2+(D2*4%)","v":3782.6568000000002},"L4N01-NUT","TS4L4-SRV-NUT",1,"PowerEdge R7525 Server Nutanix","PowerEdge R7525 Server Nutanix NVMe","L4N01-ServerR7525-NUT","210-AUVQ","DELL",null,null,null,null,"210-321-BCPX","-"]
["L4N02",2,"Kit n. 1 Processore aggiuntivo",858.53,"L4N02","TS4L4-CPU",1,"AMD 7413 2.65GHz,24C/48T,128M,180W,3200","AMD 7413 2.65GHz,24C/48T,128M,180W,3200","L4N02-OpzCPU","338-BZSB","DELL",{"$f":"CONCATENATE(F6,\"-NVME\")","v":"TS4L4-CPU-NVME"},null,null,null,"338-BZSB","WX6G7"]
[null,null,null,null,null,null,1,"L Shape Heatsink for 2nd CPU equal to or greater than 180W,PowerEdge R6525/R7525, Customer Install","L Shape Heatsink for 2nd CPU equal to or greater than 180W,PowerEdge R6525/R7525, Customer Install",null,"412-AASW","DELL",null,null,null,null,"412-AASW","4RCGC"]
[null,null,null,null,null,null,1,"PowerEdge R7525 High Performance Fan Customer Kit V3","PowerEdge R7525 High Performance Fan Customer Kit V3",null,"121-BBBI","DELL",null,null,null,null,"121-BBBI","HVVRP"]
[null,null,null,null,null,null,1,"Riser with Two x8(x16 connector) PCIe Gen4 (Slots 4 & 5), Customer Install","Riser with Two x8(x16 connector) PCIe Gen4 (Slots 4 & 5), Customer Install",null,"330-BBTM","DELL",null,null,null,null,"330-BBTM","234T7"]
[null,null,null,null,null,null,1,"Riser 4B, PCIe Gen4 1x16 (x16 connector), Half Length, PowerEdge R7525, CK","Riser 4B, PCIe Gen4 1x16 (x16 connector), Half Length, PowerEdge R7525, CK",null,"330-BBPR","DELL",null,null,null,null,"330-BBPR"]
[null,null,null,null,null,null,1,"Riser 1B, PCIe Gen4 2x8 (x16 connector), Half Length, PowerEdge R7525, CK","Riser 1B, PCIe Gen4 2x8 (x16 connector), Half Length, PowerEdge R7525, CK",null,"330-BBPV","DELL",null,null,null,null,"330-BBPV","R80PP"]
[null,null,null,null,null,null,1,"Riser 2A, PCIe Gen4 2x16 (x16 connector), PowerEdge R7525, CK","Riser 2A, PCIe Gen4 2x16 (x16 connector), PowerEdge R7525, CK",null,"330-BBPO","DELL",null,null,null,null,"330-BBPO"]
["L4N03",3,"OpzRAM32GB",262.12,"L4N03","TS4L4-RAM32",1,"32GB - 2Rx4 DDR4 RDIMM 3200MHz","32GB - 2Rx4 DDR4 RDIMM 3200MHz","L4N03-OpzRAM32GB","370-AEVN","DELL",{"$f":"CONCATENATE(F13,\"-NVME\")","v":"TS4L4-RAM32-NVME"},null,null,null,"AA79SNP75X1VC/32G","SNP75X1VC/32G"]
["L4N04",4,"OpzRAM64GB",296.94,"L4N04","TS4L4-RAM64",1,"64GB - 2RX4 DDR4 RDIMM 3200MHz","64GB - 2RX4 DDR4 RDIMM 3200MHz","L4N04-OpzRAM64GB","370-AEVP","DELL",{"$f":"CONCATENATE(F14,\"-NVME\")","v":"TS4L4-RAM64-NVME"},null,null,null,"AA79SNPP2MYXC/64G","SNPP2MYXC/64G"]
["L4N05",5,"OpzGigabit",28.63,"L4N05","TS4L4-LAN1",1,"Broadcom 5719 Quad Port 1Gb Network Interface Card, Full Height","Broadcom 5719 Quad Port 1Gb Network Interface Card, Full Height","L4N05-OpzGigabit","540-BBCW","DELL","TS4L4-LAN1-NVME",1,2,3,"540-XF9VF","XF9VF"]
["L4N75",5,"OpzGigabit",28.63,"L4N05b","TS4L4-LAN1-L",1,"Broadcom 5719 Quad Port 1Gb Network Interface Card, Low Profile ","Broadcom 5719 Quad Port 1Gb Network Interface Card, Low Profile ","L4N75-OpzGigabitLP","540-BBDF","DELL","TS4L4-LAN1-L-NVME",4,null,null,"540-W0N4T","W0N4T"]
["L4N06",6,"OpzGigabit10Gbps",157.47999999999999,"L4N06","TS4L4-LAN10",1,"Broadcom 57414 Dual Port 10Gb, SFP28, PCIe Adapter, Full Height + Optics","Broadcom 57414 Dual Port 10Gb, SFP28, PCIe Adapter, Full Height + Optics","L4N06-OpzGigabit10Gbps","540-BDHF","DELL","TS4L4-LAN10-NVME",1,2,3,"540-H6N50","H6N50"]
[null,null,null,null,null,null,2,"Dell Networking, Transceiver, SFP+, 10GbE, SR, 850nm Wavelength, 300m Reach - Kit","Dell Networking, Transceiver, SFP+, 10GbE, SR, 850nm Wavelength, 300m Reach - Kit",null,"407-BCBE","DELL","-NVME",null,null,null,"407-4Y8DN","4Y8DN"]
["L4N76",6,"OpzGigabit10Gbps",157.47999999999999,"L4N06b","TS4L4-LAN10-L",1,"Broadcom 57414 Dual Port 10Gb, SFP28, PCIe Adapter, LOW PROFILE + Optics","Broadcom 57414 Dual Port 10Gb, SFP28, PCIe Adapter, LOW PROFILE + Optics","L4N76-OpzGigabit10GbpsLP","540-BDGV","DELL","TS4L4-LAN10-L-NVME",4,null,null,"540-N7R67","N7R67"]
[null,null,null,null,null,null,2,"Dell Networking, Transceiver, SFP+, 10GbE, SR, 850nm Wavelength, 300m Reach","Dell Networking, Transceiver, SFP+, 10GbE, SR, 850nm Wavelength, 300m Reach",null,"407-BCBE","DELL","-NVME",null,null,null,"407-4Y8DN","4Y8DN"]
["L4N07",7,"OpzGigabit25Gbps",244.98,"L4N07","TS4L4-LAN25",1,"Intel Ethernet XXV710 Dual Port 10/25GbE SFP28 Adapter, PCIe Full Height + Optics","Intel Ethernet XXV710 Dual Port 25GbE SFP28 Adapter, PCIe Full Height + Optics","L4N07-OpzGigabit25Gbps","540-BCDH","DELL","TS4L4-LAN25-NVME",1,2,3,"540-86P4V","86P4V"]
[null,null,null,null,null,null,2,"Dell Networking, Transceiver, 25GbE SFP28 SR, No FEC, MMF, Duplex LC","Dell Networking, Transceiver, 25GbE SFP28 SR, No FEC, MMF, Duplex LC",null,"407-BCGJ","DELL","-NVME",null,null,null,"407-PY7V9","PY7V9"]
["L4N77",7,"OpzGigabit25Gbps",244.98,"L4N07b","TS4L4-LAN25-L",1,"Intel Ethernet XXV710 Dual Port 10/25GbE SFP28 Adapter, PCIe Low Profile + Optics","Intel Ethernet XXV710 Dual Port 25GbE SFP28 Adapter, PCIe Low Profile + Optics","L4N77-OpzGigabit25GbpsLP","540-BCCM","DELL","TS4L4-LAN25-L-NVME",4,null,null,"540-9RVF0","9RVF0"]
[null,null,null,null,null,null,2,"Dell Networking, Transceiver, 25GbE SFP28 SR, No FEC, MMF, Duplex LC","Dell Networking, Transceiver, 25GbE SFP28 SR, No FEC, MMF, Duplex LC",null,"407-BBXU","DELL","-NVME",null,null,null,"407-PY7V9","PY7V9"]
["L4N08",8,"OpzGigabit10Gbps CNA",150.33000000000001,"L4N08","TS4L4-CNA10",1,"CNA QLogic 41262 Dual Port 10Gb SFP28 Adapter, Full Height + 10 Gbps Optics","CNA QLogic 41262 Dual Port 10Gb SFP28 Adapter, Full Height + 10 Gbps Optics","L4N08-OpzCNA10Gbps","540-BBYL","DELL","TS4L4-CNA10-NVME",1,2,3,"540-42H35","42H35"]
[null,null,null,null,null,null,2,"Dell Networking, Transceiver, SFP+, 10GbE, SR, 850nm Wavelength, 300m Reach - Kit","Dell Networking, Transceiver, SFP+, 10GbE, SR, 850nm Wavelength, 300m Reach - Kit",null,"407-BCBE","DELL","-NVME",null,null,null,"407-4Y8DN","4Y8DN"]
["L4N78",8,"OpzGigabit10Gbps CNA",150.33000000000001,"L4N08b","TS4L4-CNA10-L",1,"CNA QLogic 41262 Dual Port 10Gb SFP28 Adapter, Low Profile + 10 Gbps Optics","CNA QLogic 41262 Dual Port 10Gb SFP28 Adapter, Low Profile + 10 Gbps Optics","L4N78-OpzCNA10GbpsLP","540-BBZJ","DELL","TS4L4-CNA10-L-NVME",4,null,null,"540-01CN1","01CN1"]
[null,null,null,null,null,null,2,"Dell Networking, Transceiver, SFP+, 10GbE, SR, 850nm Wavelength, 300m Reach - Kit","Dell Networking, Transceiver, SFP+, 10GbE, SR, 850nm Wavelength, 300m Reach - Kit",null,"407-BCBE","DELL","-NVME",null,null,null,"407-4Y8DN","4Y8DN"]
["L4N09",9,"Opz10Gigabit BaseT",144.76,"L4N09","TS4L4-BaseT",1,"Intel X710-T2L Dual Port 10GbE BASE-T Adapter, PCIe Full Height ","Intel X710-T2L Dual Port 10GbE BASE-T Adapter, PCIe Full Height ","L4N09-Opz-BaseT","540-BCRO","DELL","TS4L4-BaseT-NVME",1,2,3,"403-YH1DK","YH1DK"]
["L4N79",9,"Opz10Gigabit BaseT",144.76,"L4N09b","TS4L4-BaseT-L",1,"Intel X710-T2L Dual Port 10GbE BASE-T Adapter, PCIe LP","Intel X710-T2L Dual Port 10GbE BASE-T Adapter, PCIe LP","L4N79-Opz-BaseT","540-BCRO","DELL","TS4L4-BaseT-L-NVME",4,null,null,"403-P0TRP","P0TRP"]
["L4N10",10,"OpzFibreChannel",426.11,"L4N10","TS4L4- FibreChannel",1,"QLogic 2772 Dual Port 32GbE Fibre Channel HBA, PCIe Full Height + Optics","QLogic 2772 Dual Port 32GbE Fibre Channel HBA, PCIe Full Height + Optics","L4N10-OpzFibreChannel","540-BDHC","DELL","TS4L4- FibreChannel-NVME",4,null,null,"403-P0TRP","P0TRP"]
["L4N101",10,"OpzFibreChannel-L",426.11,"L4N10","TS4L4- FibreChannel-L",1,"QLogic 2772 Dual Port 32GbE Fibre Channel HBA, PCIe Low Profile + Optics","QLogic 2772 Dual Port 32GbE Fibre Channel HBA, PCIe Low Profile + Optics","L4N10-OpzFibreChannel","540-BDGU","DELL","TS4L4- FibreChannel-L-NVME",4,null,null,"403-P0TRP","P0TRP"]
["L4N11",11,"OpzHDD2TB",144.76,"L4N11","TS4L4-HDD2TB",1,"2.4TB 10k SAS ISE 12Gbps","2.4TB 10k 512e SAS ISE 12Gbps 2.5in Hot Plug Hard Drive ","L4N11-OpzHDD2TB","400-AVEZ","DELL","TS4L4-HDD2TB-NVME",null,null,null,"400-HTMGW","HTMGW"]
["L4N12",12,"OpzHDD1TB",83.51,"L4N12","TS4L4-HDD1TB",1,"1.2TB 10K RPM SAS ISE 12Gbps","1.2TB 10K RPM SAS ISE 12Gbps 512n 2.5in Hot-plug Hard Drive","L4N12-OpzHDD1TB","400-AVFE","DELL","TS4L4-HDD1TB-NVME",null,null,null,"400-400-ATJL","400-ATJL"]
["L4N13",13,"OpzSSD-RI3,8TB",991.57,"L4N13","TS4L4-SSD-RI3,8TB",1,"3.84TB SSD SAS ISE RI 12Gbps","3.84TB SSD SAS ISE RI 12Gbps 512e 2.5in PM6 Hot-Plug 1 DWPD","L4N13-OpzSSD-RI3,8TB","345-BCNU","DELL","TS4L4-SSD-RI3,8TB-NVME",null,null,null,"400-PDNT1","PDNT1"]
["L4N14",14,"OpzSSD-RI1,6TB",489.95,"L4N14","TS4L4-SSD-RI1,6TB",1,"1.92TB SSD SAS ISE RI 12Gbps","1.92TB SSD SAS ISE RI 12Gbps 512e 2.5in Hot-Plug 1 DWP","L4N14-OpzSSD-RI1,6TB","345-BBVC","DELL","TS4L4-SSD-RI1,6TB-NVME",null,null,null,"400-2H59H","2H59H"]
["L4N15",15,"OpzSSD-MU1,6TB",464.23,"L4N15","TS4L4-SSD-MU1,6TB",1,"1.6TB SSD SAS ISE MU 12Gbps","1.6TB SSD SAS ISE MU 12Gbps 512e 2.5in Hot-Plug PM6 3 DWPD","L4N15-OpzSSD-MU1,6TB","400-AZOY","DELL","TS4L4-SSD-MU1,6TB-NVME",null,null,null,"400-CDPWY","CDPWY"]
["L4N16",16,"OpzSSD-RI800GB",278.38,"L4N16","TS4L4-SSD-RI800GB",1,"960GB SSD SAS ISE RI 12Gbps","960GB SSD SAS ISE RI 12Gbps 512e 2.5in Hot-Plug 1 DWPD","L4N16-OpzSSD-RI800GB","400-AXQU","DELL","TS4L4-SSD-RI800GB-NVME",null,null,null,"400-VPV60","VPV60"]
["L4N17",17,"OpzSSD-MU800GB",289.52,"L4N17","TS4L4-SSD-MU800GB",1,"800GB SSD SAS ISE Mix Use 12Gbps","800GB SSD SAS ISE Mix Use 12Gbps 512e 2.5in Hot-plug, 3 DWPD","L4N17-OpzSSD-MU800GB","400-AZQO","DELL","TS4L4-SSD-MU800GB-NVME",null,null,null,"400-MW0DK","MW0DK"]
["L4N18",18,"OpzNVME1,6TB",594.94000000000005,"L4N18","TS4L4-NVME1,6TB",1,"1.6TB Enterprise NVMe Mixed Use Drive U.2","1.6TB Enterprise NVMe Mixed Use AG SED Drive U.2 Gen4 with carrier, FIPS","L4N18-OpzNVME1,6TB","400-BMVM","DELL","TS4L4-NVME1,6TB-NVME",null,null,null,"403-C359R","C359R"]
["L4N19",19,"OpzUps (3000VA)",386.02,"L4N19","TS4L4-UPS",1,"Dispositivo UPS di tipo On-line doppia conversione, strutturato per il montaggio a rack da 19”","Dispositivo UPS di tipo On-line doppia conversione, strutturato per il montaggio a rack da 19”","L4N19-OpzUps","RPMM9/3K",null,"TS4L4-UPS-NVME",null,null,null,"RPMMRPMM9/3K","RPMM9/3K"]
["L4N20",20,"OpzGUI",491.62,"L4N20","TS4L4-GUI",1,"Unità KVM - monitor 17\", cavo combi PS/2&USB da 1,8mt, tastiera italiana, touch pad","Unità KVM - monitor 17\", cavo combi PS/2&USB da 1,8mt, tastiera italiana, touch pad","L4N20-OpzGUI","F9857N",null,"TS4L4-GUI-NVME",null,null,null,"F985F9857N","F9857N"]
["L4N21",21,"OpzKVM",552.47,"L4N21","TS4L4-KVM",1,"KVM Switch IP per GUI 16P","KVM Switch IP per GUI 16P","L4N21-OpzKVM","T9816NIP",null,"TS4L4-KVM-NVME",null,null,null,"T981T9816NIP","T9816NIP"]
["L4N22",22,"OpzWinServSTD",795.78,"L4N22","TS4L4-WINSRVSTD",1,"Windows Server 2022,Standard,ROK,16CORE","Windows Server 2022,Standard,ROK,16CORE","L4N22-WinServSTD","634-BYKR","DELL","TS4L4-WINSRVSTD-NVME",null,null,null,"634-634-BSFX","634-BSFX"]
["L4N23",23,"OpzDeviceCal",26.72,"L4N23","TS4L4-WINDEVCAL",1,"1-pack of Windows Server 2022/2019 Device CALs (STD or DC)","1-pack of Windows Server 2022/2019 Device CALs (STD or DC)","L4N23-OpzDeviceCal","634-BYLD","DELL","TS4L4-WINDEVCAL-NVME",null,null,null,"623-623-BBCV","623-BBCV"]
["L4N24",24,"OpzUserCal",36.75,"L4N24","TS4L4-WINUSRCAL",1,"1-pack of Windows Server 2022/2019 User CALs (STD or DC)","1-pack of Windows Server 2022/2019 User CALs (STD or DC)","L4N24-OpzUserCal","634-BYKZ","DELL","TS4L4-WINUSRCAL-NVME",null,null,null,"623-623-BBCT","623-BBCT"]
["L4N25",25,"OpzWinServSTD2core",96.51,"L4N25","TS4L4-WINSRV2C",1,"Windows Server 2022 Standard Edition, Add License,2CORE","Windows Server 2022 Standard Edition, Add License,2CORE","L4N25-OpzWinServSTD2core","634-BYKQ","DELL","TS4L4-WINSRV2C-NVME",null,null,null,"634-634-BSGS","634-BSGS"]
["L4N26",26,"OpzOpenSource",37.119999999999997,"L4N26","TS4L4-LINUX",1,"Ubuntu Server 22.04 LTS 64 Bit","Ubuntu 22.04 LTS 64 Bit","L4N26-OpzOpenSource",null,null,"TS4L4-LINUX-NVME",null,null,null,""]
["L4N27",27,"OpzWinServDC",3345.63,"L4N27","TS4L4-WinServDC",1,"Windows Server 2022,Datacenter,ROK,16CORE","Windows Server 2022,Datacenter,ROK,16CORE","L4N27-OpzWinServDC","634-BYLC","DELL","TS4L4-WinServDC-NVME",null,null,null,"785-785-10921","785-10921"]
["L4N28",28,"OpzWinServDC2core",460.51,"L4N28","TS4L4-WinServDC2core",1,"Windows Server 2022 / 2019 Datacenter Edition,Add License,2CORE","Windows Server 2022 / 2019 Datacenter Edition,Add License,2CORE","L4N28-OpzWinServDC2core","634-BYKX","DELL","TS4L4-WinServDC2core-NVME",null,null,null,"742-742-10105","742-10105"]
["L4N29",29,"OpzHDDRetention36",33.14,"L4N29","TS4L4-HDRTN36",1,"Hard Disk Retention 36 mesi","Hard Disk Retention 36 mesi","L4N29-OpzHDDRetention36","785-10921","DELL","TS4L4-HDRTN36-NVME",1,2,3,"405-V5FKR","V5FKR"]
["L4N29e",29,"OpzHDDRetention60",55.23,"L4N29e","TS4L4-HDRTN60",1,"Hard Disk Retention 60 mesi","Hard Disk Retention 60 mesi","L4N29b-OpzHDDRetention60","785-10921","DELL","TS4L4-HDRTN60-NVME",1,2,3,"405-V5FKR","V5FKR"]
["L4N30",30,"OpzEstensione24",155.91,"L4N30","TS4L4-OpzEst24",1,"Estensione della manutenzione in garanzia per ulteriori 24 mesi","Estensione della manutenzione in garanzia per ulteriori 24 mesi","L4N30-OpzEst24","P6142NCONSIP",null,"TS4L4-OpzEst24-NVME",null,null,null,"P614P6142NCONSIP","P6142NCONSIP"]
["L4N31",31,"OpzRack",579.63,"L4N31","TS4L4-RACK",1,"Armadio Rack 42U","Armadio Rack 42U","L4N31-OpzRack","P6142NCONSIP",null,"TS4L4-RACK-NVME",null,null,null,"P614P6142NCONSIP","P6142NCONSIP"]
["L4N32",32,"OpzSSD7,68",2844.45,"L4N32","TS4L4-SSD7.68RI",1,"7.68TB SSD RI SAS ISE 12Gbps","\t7.68TB SSD RI SAS ISE 12Gbps 512e 2.5in PM1643a Hot-Plug 1 DWPD","L4N32-OpzSSD7.68RI","540-BBVM","DELL","TS4L4-SSD7.68RI-NVME",4,null,null,"540-MT69G","MT69G"]
["L4N33",33,"OpzNVMe3,2",1578.15,"L4N33","TS4L4-NVMe3.2MU",1,"3.2TB, Enterprise, NVMe, Mixed Use","3.2TB, Enterprise, NVMe, Mixed Use, U2, G4, P5600 with carrier","L4N33-OpzNVMe3.2MU","403-BBVQ","DELL","TS4L4-NVMe3.2MU-NVME",1,2,3,"403-4FXXT","4FXXT"]
["L4N34",34,"OpzNVMe1,92",938.25,"L4N34","TS4L4-NVMe1.92RI",1,"1.92TB, Enterprise, NVMe, Read Intensive","1.92TB, Enterprise, NVMe, Read Intensive, U2, G4, P5500 with carrier","L4N34-OpzNVMe1.92RI","403-BBVQ","DELL","TS4L4-NVMe1.92RI-NVME",1,2,3,"403-4FXXT","4FXXT"]
["L4N35",33,"OpzNVMe3,84",1576.8,"L4N35","TS4L4-NVMe3.84RI",1,"3.84TB, Enterprise, NVMe, Read Intensive","3.84TB, Enterprise, NVMe, Read Intensive, U2, G4, P5500 with carrier, CK","L4N35-OpzNVMe3.84RI","403-BBVQ","DELL","TS4L4-NVMe3.84RI-NVME",1,2,3,"403-4FXXT","4FXXT"]
["L4N36",34,null,0,"L4N36","TS4L4-HBA355i-L",1,"HBA355 Controller Adapter, Front (NO HW RAID)","HBA355 Controller Adapter, Front, Cust Kit","L4N36-OpzHBA","405-AANM","DELL","TS4L4-HBA355i-L-NVME",4,null,null,"405-Y29HF","Y29HF"]
["L4N37",35,"Opz100GBs",683.1,"L4N37","TS4L4-100GBs-B",1,"Broadcom 57508 Dual Port 100GbE QSFP Adapter, PCIe Low Profile","Broadcom 57508 Dual Port 100GbE QSFP Adapter, PCIe Low Profile","L4N37-Opz100GBs-B","405-AAJW","DELL","TS4L4-100GBs-B-NVME","int",null,null,"405-THN56","THN56"]
["L4N38",36,"Opz100GBs",742.5,"L4N38","TS4L4-100GBs-M",1,"Mellanox ConnectX-6 DX Dual Port 100GbE QSFP56 Network Adapter, Low Profile","Mellanox ConnectX-6 DX Dual Port 100GbE QSFP56 Network Adapter","L4N38-Opz100GBs-M","490-BEIX","DELL","TS4L4-100GBs-M-NVME",null,null,null,"490-JKFGX","JKFGX"]
["L4N39",37,"Opz100GBs",1305.45,"L4N39","TS4L4-100GBs-INF",1,"Mellanox ConnectX-6 Single Port HDR VPI Infiniband Adapter, PCIe Low Profile","Mellanox ConnectX-6 Single Port HDR VPI Infiniband Adapter, PCIe Low Profile","L4N39-Opz100GBs-INF","540-BCNL","DELL","TS4L4-100GBs-INF-NVME",null,null,null,"490-JKFGX","JKFGX"]
["L4N105",105,null,null,"L4N105","TS4L4_2cpuChassis",1,"Kit upgrade chassies for 2 CPU","Kit upgrade chassies for 2 CPU","L4N105-OpzOpz2CPU",null,"DELL","TS4L4_2cpuChassis-NVME",null,null,null,"490-JKFGX","JKFGX"]
["L4N40",40,"OpzBoss",0,"L4N44","TS4L4-BOSS",1,"BOSS-S2 controller + 2x 480GB M2BOSS-S2 controller card +  with 2 M.2 480GB (RAID 1)","BOSS-S2 controller","L4N40-OpzOpzBOSS","405-AAMX","DELL","TS4L4-BOSS-NVME",4,null,null,"405-39M19","39M19"]
["L4N44",44,null,null,"L4N44",{"$f":"\"\"","v":""},1,"PERC H745 Controller","PERC H745 Controller",null,"405-AAMX","DELL","-NVME",4,null,null,"405-39M19","39M19"]
["L4N49",49,"OpzPSU1400W",0,"L4N49","TS4L4-PSU1400W",1,"Dual, Hot-plug Power Supply (1+1), 1400W in sostituzione di quelli in configurazione BASE","Dual, Hot-plug Power Supply (1+1), 1400W in sostituzione di quelli in configurazione BASE","TS4-OpzA201100W","450-AEBL","DELL","TS4L4-PSU1400W-NVME",null,null,null,"450-T4RTF","T4RTF"]
["L4N109",109,null,17.55,"L4N109","TS4L4-OT10GB",2,"SFP+ SR Optic for all SFP+ ports except High temperature Cards","SFP+ SR Optic for all SFP+ ports except High temperature Cards","L4N109-OpzOT10GB","407-BCBN","DELL","TS4L4-OT10GB-NVME"]
["L4N110",110,null,112.05,"L4N110","TS4L4-OT25GB",2,"SFP28 SR Optic, 25GbE, 85C, for all SFP28 ports","SFP28 SR Optic, 25GbE, 85C, for all SFP28 ports","L4N110-OpzOT25GB","407-BCGJ","DELL","TS4L4-OT25GB-NVME"]
["L4N111",111,null,484.65,"L4N111","TS4L4-OT100GB",2,"Dell EMC PowerEdge QSFP28 SR4 100GbE 85C optic","Dell EMC PowerEdge QSFP28 SR4 100GbE 85C optic","L4N111-OpzOT100GB","407-BCEQ","DELL","TS4L4-OT100GB-NVME"]
["L4N112",112,null,512.16,"L4N112","TS4L4-2CPU-vSAN-512GB",1,"Kit vSAN comprensivo di HBA 355 in sostituzione di quello Base e BOSS Card ","Kit vSAN comprensivo di HBA 355 e BOSS Card","L4N112-Opz2CPU-vSAN-512",18219176,"DELL","TS4L4-2CPU-vSAN-512GB-NVME",null,null,null,"450-T4RTF","T4RTF"]
["L4N113",113,null,1193.43,"L4N113","TS4L4-2CPU-vSAN-1TB",1,"Kit vSAN comprensivo di HBA 355 in sostituzione di quello Base e BOSS Card","Kit vSAN comprensivo di HBA 355 e BOSS Card","L4N113-Opz2CPU-vSAN-1TB","18219200-18219187","DELL","TS4L4-2CPU-vSAN-1TB-NVME"]
["L4N114",114,null,4028.4,"L4N114","TS4L4-2CPU-vSAN-2TB",1,"Kit vSAN comprensivo di HBA 355 in sostituzione di quello Base e BOSS Card","Kit vSAN comprensivo di HBA 355 e BOSS Card","L4N114-Opz2CPU-vSAN-2TB",18221537,"DELL","TS4L4-2CPU-vSAN-2TB-NVME"]
["L4N115",115,null,4290.46,"L4N115","TS4L4-2CPU-NUT",1,"Kit Nutanix comprensivo di HBA 355 in sostituzione di quello Base, BOSS Card e scheda Lan 10 GB","Kit Nutanix comprensivo di HBA 355, BOSS Card e scheda Lan 10 GB","L4N115-Opz2CPU-NUT",18219226,"DELL","TS4L4-2CPU-NUT-NVME"]
["L4N116",null,null,2929.5,null,"TS4L4-RACK-D",null,"Rack 42RU DellEmc","Rack 42RU DellEmc","L4N116-OpzRACKD",null,null,"TS4L4-RACK-D-NVME"]
["L4N117",null,null,540,null,"TS4L4-PDU-M",null,"PDU 220 mono output 20-C13 + 4-C19 IEC 320, input C20","PDU 220 mono output 20-C13 + 4-C19 IEC 320, input C20","L4N117-OpzPDUT",null,null,"TS4L4-PDU-M-NVME"]
["L4N118",null,null,1080,null,"TS4L4-PDU-T",null,"PDU 220 Trifase output 6-C19 e 36-C13, input Spina 3P+T 400V 16A","PDU 220 Trifase output 6-C19 e 36-C13, input Spina 3P+T 400V 16A","L4N118-OpzPDUT",null,null,"TS4L4-PDU-T-NVME"]
["L4N119",null,null,3300.75,null,"TS4L4-KVM-D",null,"Dell KVM + Switch 8 porte + cavi ","Dell KVM + Switch 8 porte + cavi ","L4N119-OpzKVMD",null,null,"TS4L4-KVM-D-NVME"]
["L4N120",null,null,3300,null,"TS4L4-ROCK",null,"ROCK Port 100Gbs (include scheda pci e manutenzione)","ROCK Port 100Gbs (include scheda pci e manutenzione)","L4N120-OpzROCK",null,null,{"$f":"CONCATENATE(F78,\"-NVME\")","v":"TS4L4-ROCK-NVME"}]
["L4N121",null,{"$f":"CONCATENATE(\"Opz\",MID(F79,7,LEN(F79)-6))","v":"OpzCMA"},33.75,null,"TS4L4-CMA",null,"Cable Management Arm for PowerEdge Systems","Cable Management Arm for PowerEdge Systems","L4N121-OpzCMA",null,null,"TS4L4-CMA-NVME"]
["L4N122",null,{"$f":"CONCATENATE(\"Opz\",MID(F80,7,LEN(F80)-6))","v":"OpzJBOD"},5719.95,null,"TS4L4-JBOD",null,"Enclosure di espansione JBOD 12 slot 3,5'' + HBA (H840)  ","Enclosure di espansione JBOD 12 slot 3,5'' + HBA (H840)  ","L4N122-OpzJBOD",null,null,"TS4L4-JBOD-NVME"]
["L4N123",null,"Opz12TBNLSAS",405,null,"TS4L4-12TBNLSAS",null,"12TB 7.2K RPM NLSAS ISE 12Gbps 512e 3.5in Hot-plug Hard Drive","12TB 7.2K RPM NLSAS ISE 12Gbps 512e 3.5in Hot-plug Hard Drive","L4N123-Opz12TBNLSAS",null,null,"TS4L4-12TBNLSAS-NVME"]
["L4N124",null,"Opz16TBSAS",438.75,null,"TS4L4-16TBSAS",null,"16TB Hard Drive SAS ISE 12Gbps 7.2K 512e 3.5in Hot-Plug","16TB Hard Drive SAS ISE 12Gbps 7.2K 512e 3.5in Hot-Plug","L4N124-Opz16TBSAS",null,null,"TS4L4-16TBSAS-NVME"]
["L4N125",null,"Opz20TBSAS",594,null,"TS4L4-20TBSAS",null,"20TB HDD SAS ISE 12Gbps 7.2K 512e 3.5in Hot-Plug","20TB HDD SAS ISE 12Gbps 7.2K 512e 3.5in Hot-Plug","L4N125-Opz20TBSAS",null,null,"TS4L4-20TBSAS-NVME"]
["L4N126",null,"Opz2CPU-GPUReady",4807.22,null,"TS4L4-2CPU-GPUReady",null,"Kit GPU Ready (Include il necessario a poter montare GPU su slot PCI Max 3 GPU, Acquisto contestuale all'ordine)","Kit GPU Ready (Include il necessario a poter montare GPU su slot PCI Max 3 GPU, Acquisto contestuale all'ordine)","L4N126-2CPU-GPUReady",null,null,"TS4L4-2CPU-GPUReady-NVME"]
["L4N127",null,"OpzGPU-A30",6129,null,"TS4L4-GPU-A30",null,"Nvidia A30","Nvidia A30","L4N127-GPU-A30",null,null,"TS4L4-GPU-A30-NVME"]
["L4N128",null,"OpzGPU-A40",6858,null,"TS4L4-GPU-A40",null,"Nvidia A40","Nvidia A40","L4N128-GPU-A40",null,null,"TS4L4-GPU-A40-NVME"]
["L4N129",null,{"$error":"#VALUE!"},0,null,{"$f":"\"\"","v":""},null,"PERC H840 RAID Adapter for External JBOD Only","PERC H840 RAID Adapter for External JBOD Only",{"$f":"\"\"","v":""},null,null,"-NVME"]